Workbook

Sheet PI vs gap
A1: Measurement | B1: Hall
A2: Type | B2: Off-axis
A4: PS type | B4: HXR
A5: PS serial no | B5: 16327
A7: Measurement date | B7: ='DF raw data'!B2 -> 2. okt 2017
C11: Nominal gap [mm] | D11: Encoder [counts] | E11: Encoder [mm] | F11: PI [T^2mm^3] | G11: x [mm] | H11: Encoder offset
C12: 10 | D12: =' 10 x=-2'!B3 -> 17908810 | E12: =(D12-$H$12)*-0.00025+10 -> 10.001 | F12: =' 10 x=-2'!Q3 -> 711.4650764 | G12: -2 | H12: 17908814
C13: 10 | D13: ='10 x=-1'!B3 -> 17908798 | E13: =(D13-$H$12)*-0.00025+10 -> 10.004 | F13: ='10 x=-1'!Q3 -> 711.8266655 | G13: -1
C14: 10 | D14: ='10 x=0'!B3 -> 17908792 | E14: 10.0055 | F14: ='10 x=0'!Q3 -> 711.9093173 | G14: 0
C15: 10 | D15: ='10 x=1'!B3 -> 17908797 | E15: 10.00425 | F15: ='10 x=1'!Q3 -> 711.8782454 | G15: 1
C16: 10 | D16: ='10 x=2'!B3 -> 17908792 | E16: 10.0055 | F16: ='10 x=2'!Q3 -> 711.4408336 | G16: 2
C17: 30 | D17: ='30 x=-2'!B3 -> 17828716 | E17: 30.0245 | F17: ='30 x=-2'!Q3 -> 68.03473155 | G17: -2
C18: 30 | D18: ='30 x=-1'!B3 -> 17828733 | E18: 30.02025 | F18: ='30 x=-1'!Q3 -> 68.18872583 | G18: -1
C19: 30 | D19: ='30 x=0'!B3 -> 17828736 | E19: 30.0195 | F19: ='30 x=0'!Q3 -> 68.28720253 | G19: 0
C20: 30 | D20: ='30 x=1'!B3 -> 17828740 | E20: 30.0185 | F20: ='30 x=1'!Q3 -> 68.32612917 | G20: 1
C21: 30 | D21: ='30 x=2'!B3 -> 17828721 | E21: 30.02325 | F21: ='30 x=2'!Q3 -> 68.29406524 | G21: 2
A41: Measuring series at 10 mm gap:
A42: Reference magnet
A43: Tref | B43: 20.67 | C43: degC
A44: Hall ref field | B44: 0.50561 | C44: T
A45: NMR ref field | B45: 0.5066125 | C45: T
A47: Measuring series at larger gaps:
A48: Reference magnet
A49: Tref | B49: 20.675 | C49: degC
A50: Hall ref field | B50: 0.505575 | C50: T
A51: NMR ref field | B51: 0.5066135 | C51: T
A53: Offset from Faro | B53: 0.421

Sheet 10 x=-2
A1: dz | B1: ='DF raw data'!B7 -> 0.50014 | C1: mm | F1: T_coeff | G1: -0.0008 | H1: /degC | L1: Hallref | M1: ='PI vs gap'!B44 -> 0.50561 | N1: T | P1: IBy total | Q1: =L1203*1000 -> -12.81469729 | R1: muTm | X1: DF ref | Y1: 18
A2: Tref | B2: ='DF raw data'!B8 -> 21.38 | C2: degC | F2: Tcorr | G2: 20 | H2: degC | L2: NMRref | M2: ='PI vs gap'!B45 -> 0.5066125 | N2: T | P2: JBy total | Q2: =M1203 -> -4.50451299 | R2: muTm^2
A3: Encoder | B3: ='DF raw data'!B9 -> 17908810 | P3: PI total | Q3: =N1203 -> 711.4650764 | R3: T^2mm^3
A5: z [mm] | B5: Bx | C5: By | D5: Bz | F5: Bx_corr | G5: By_corr | H5: Bz_corr | J5: Ix | K5: Jx | L5: Iy | M5: Jy | N5: PI
A6: ='PI vs gap'!B53 -> 0.421 | B6: ='DF raw data'!A11 -> 6.8072654e-07 | C6: ='DF raw data'!B11 -> -2.2966826e-06 | D6: ='DF raw data'!C11 -> -1.5068845e-06 | F6: =(1-$G$1*($B$2-$G$2))*B6 -> 6.814780621e-07 | G6: =(1-$G$1*($B$2-$G$2))*C6*$M$2/$M$1 -> -2.30377692e-06 | H6: =(1-$G$1*($B$2-$G$2))*D6 -> -1.5085481e-06 | J6: =F6*$B$1 -> 3.40834438e-07 | K6: =J6*$B$1 -> 1.704649358e-07 | L6: =G6*$B$1 -> -1.152210989e-06 | M6: =L6*$B$1 -> -5.76266804e-07 | N6: =(J6^2+L6)^2*$B$1 -> 6.639808103e-13
A7: =A6+$B$1 -> 0.92114 | B7: ='DF raw data'!A12 -> 2.1133994e-07 | C7: ='DF raw data'!B12 -> 9.9468607e-06 | D7: ='DF raw data'!C12 -> -4.3116061e-06 | F7: =(1-$G$1*($B$2-$G$2))*B7 -> 2.115732593e-07 | G7: =(1-$G$1*($B$2-$G$2))*C7*$M$2/$M$1 -> 9.97758598e-06 | H7: =(1-$G$1*($B$2-$G$2))*D7 -> -4.316366113e-06 | J7: =F7*$B$1+J6 -> 4.466506879e-07 | K7: =J7*$B$1+K6 -> 3.938528108e-07 | L7: =G7*$B$1+L6 -> 3.837978863e-06 | M7: =L7*$B$1+M6 -> 1.343259945e-06 | N7: =(J7^2+L7^2)*$B$1+N6 -> 8.130860247e-12
A8: =A7+$B$1 -> 1.42128 | B8: ='DF raw data'!A13 -> 4.2580606e-07 | C8: ='DF raw data'!B13 -> 3.9339657e-06 | D8: ='DF raw data'!C13 -> -4.2905203e-06 | F8: 4.262761499e-07 | G8: 3.946117494e-06 | H8: -4.295257034e-06 | J8: =F8*$B$1+J7 -> 6.598484415e-07 | K8: =J8*$B$1+K7 -> 7.238694104e-07 | L8: =G8*$B$1+L7 -> 5.811590067e-06 | M8: =L8*$B$1+M7 -> 4.249868601e-06 | N8: =(J8^2+L8^2)*$B$1+N7 -> 2.524063918e-11
A9: 1.92142 | B9: ='DF raw data'!A14 -> 4.6505258e-07 | C9: ='DF raw data'!B14 -> 2.9444698e-06 | D9: ='DF raw data'!C14 -> -3.2805592e-06 | F9: 4.65565998e-07 | G9: 2.953565098e-06 | H9: -3.284180937e-06 | J9: 8.926966198e-07 | K9: 1.170342698e-06 | L9: 7.288786115e-06 | M9: 7.895282088e-06 | N9: 5.220984358e-11
A10: 2.42156 | B10: ='DF raw data'!A15 -> 7.5395178e-07 | C10: ='DF raw data'!B15 -> -6.49497e-06 | D10: ='DF raw data'!C15 -> -1.2633133e-05 | F10: 7.547841428e-07 | G10: -6.515032589e-06 | H10: -1.264707998e-05 | J10: 1.270194361e-06 | K10: 1.805617705e-06 | L10: 4.030357716e-06 | M10: 9.911025196e-06 | N10: 6.11409321e-11
A11: 2.9217 | B11: ='DF raw data'!A16 -> 6.344078e-07 | C11: ='DF raw data'!B16 -> -4.1003523e-06 | D11: ='DF raw data'!C16 -> -1.8250768e-05 | F11: =(1-$G$1*($B$2-$G$2))*B11 -> 6.351081862e-07 | G11: -4.113018052e-06 | H11: =(1-$G$1*($B$2-$G$2))*D11 -> -1.827091685e-05 | J11: 1.587837369e-06 | K11: 2.599758687e-06 | L11: 1.973272867e-06 | M11: 1.089793789e-05 | N11: 6.434934687e-11
A12: 3.42184 | B12: ='DF raw data'!A17 -> 1.0198153e-06 | C12: ='DF raw data'!B17 -> -1.3551665e-05 | D12: ='DF raw data'!C17 -> -1.2521782e-05 | F12: 1.020941176e-06 | G12: -1.359352531e-05 | H12: -1.253560605e-05 | J12: 2.098450889e-06 | K12: 3.649277915e-06 | L12: -4.825392883e-06 | M12: 8.484565891e-06 | N12: 7.819717948e-11
A13: 3.92198 | B13: ='DF raw data'!A18 -> 4.9255573e-07 | C13: ='DF raw data'!B18 -> 1.4710338e-06 | D13: ='DF raw data'!C18 -> -9.0313597e-06 | F13: 4.930995115e-07 | G13: 1.475577739e-06 | H13: -9.041330321e-06 | J13: 2.345069679e-06 | K13: 4.822141064e-06 | L13: -4.087397433e-06 | M13: 6.440294939e-06 | N13: 8.930337313e-11
A14: 4.42212 | B14: ='DF raw data'!A19 -> 7.0208876e-07 | C14: ='DF raw data'!B19 -> -2.7148446e-06 | D14: ='DF raw data'!C19 -> 1.2441437e-07 | F14: 7.02863866e-07 | G14: -2.723230599e-06 | H14: 1.245517235e-07 | J14: 2.696600013e-06 | K14: 6.170818594e-06 | L14: -5.449393985e-06 | M14: 3.714835031e-06 | N14: 1.077923218e-10
A15: 4.92226 | B15: ='DF raw data'!A20 -> 5.2927021e-07 | C15: ='DF raw data'!B20 -> 2.7465965e-06 | D15: ='DF raw data'!C20 -> 4.5963197e-06 | F15: 5.298545243e-07 | G15: 2.755080579e-06 | H15: 4.601394037e-06 | J15: 2.961601454e-06 | K15: 7.652033946e-06 | L15: -4.071467984e-06 | M15: 1.678531034e-06 | N15: 1.204698379e-10
A16: 5.4224 | B16: ='DF raw data'!A21 -> 4.8842298e-07 | C16: ='DF raw data'!B21 -> 3.9525121e-06 | D16: ='DF raw data'!C21 -> 5.2122732e-06 | F16: 4.88962199e-07 | G16: 3.964721182e-06 | H16: 5.21802755e-06 | J16: 3.206151009e-06 | K16: 9.255558311e-06 | L16: -2.088552332e-06 | M16: 6.339624704e-07 | N16: 1.277926152e-10
A17: 5.92254 | B17: ='DF raw data'!A22 -> 2.9044415e-07 | C17: ='DF raw data'!B22 -> 8.5561496e-06 | D17: ='DF raw data'!C22 -> 1.0098547e-06 | F17: 2.907648003e-07 | G17: 8.582579054e-06 | H17: 1.01096958e-06 | J17: 3.351574116e-06 | K17: 1.093181459e-05 | L17: 2.203938756e-06 | M17: 1.7362404e-06 | N17: 1.358400654e-10
A18: 6.42268 | B18: ='DF raw data'!A23 -> 1.6455553e-07 | C18: ='DF raw data'!B23 -> 1.1926253e-05 | D18: ='DF raw data'!C23 -> 1.3850904e-06 | F18: 1.647371993e-07 | G18: 1.196309251e-05 | H18: 1.38661954e-06 | J18: 3.433965779e-06 | K18: 1.264927823e-05 | L18: 8.187159844e-06 | M18: 5.830966524e-06 | N18: 1.752619541e-10
A19: 6.92282 | B19: ='DF raw data'!A24 -> 9.5118844e-07 | C19: ='DF raw data'!B24 -> -8.826476e-06 | D19: ='DF raw data'!C24 -> 5.6751551e-06 | F19: 9.52238552e-07 | G19: -8.853740477e-06 | H19: 5.681420471e-06 | J19: 3.910218368e-06 | K19: 1.460493485e-05 | L19: 3.759050082e-06 | M19: 7.711017832e-06 | N19: 1.899762056e-10
A20: 7.42296 | B20: ='DF raw data'!A25 -> 6.549551e-07 | C20: ='DF raw data'!B25 -> -1.4925183e-06 | D20: ='DF raw data'!C25 -> 7.4230326e-07 | F20: 6.556781704e-07 | G20: -1.497128603e-06 | H20: 7.431227628e-07 | J20: 4.238149248e-06 | K20: 1.672460281e-05 | L20: 3.010276182e-06 | M20: 9.216577362e-06 | N20: 2.034918247e-10
A21: 7.9231 | B21: ='DF raw data'!A26 -> 6.5882591e-07 | C21: ='DF raw data'!B26 -> -3.4964607e-06 | D21: ='DF raw data'!C26 -> -1.0925422e-05 | F21: 6.595532538e-07 | G21: -3.507261066e-06 | H21: -1.093748367e-05 | J21: 4.568018213e-06 | K21: 1.900925144e-05 | L21: 1.256154633e-06 | M21: 9.84483054e-06 | N21: 2.147173244e-10
A22: 8.42324 | B22: ='DF raw data'!A27 -> 1.172072e-06 | C22: ='DF raw data'!B27 -> -6.4167807e-06 | D22: ='DF raw data'!C27 -> -7.4873724e-06 | F22: 1.173365967e-06 | G22: -6.436601766e-06 | H22: -7.495638459e-06 | J22: 5.154865468e-06 | K22: 2.158740586e-05 | L22: -1.963047375e-06 | M22: 8.863032026e-06 | N22: 2.299346806e-10
A23: 8.92338 | B23: ='DF raw data'!A28 -> -5.0134008e-07 | C23: ='DF raw data'!B28 -> -2.3572586e-06 | D23: ='DF raw data'!C28 -> -3.1768041e-06 | F23: -5.018935594e-07 | G23: -2.364540036e-06 | H23: -3.180311292e-06 | J23: 4.903848423e-06 | K23: 2.404001661e-05 | L23: -3.145648428e-06 | M23: 7.289767421e-06 | N23: 2.469108493e-10
A24: 9.42352 | B24: ='DF raw data'!A29 -> -3.344406e-06 | C24: ='DF raw data'!B29 -> 1.2995658e-07 | D24: ='DF raw data'!C29 -> -1.8280161e-06 | F24: -3.348098224e-06 | G24: 1.303580084e-07 | H24: -1.83003423e-06 | J24: 3.229330577e-06 | K24: 2.5655134e-05 | L24: -3.080451174e-06 | M24: 5.74911057e-06 | N24: 2.568725155e-10
A25: 9.92366 | B25: ='DF raw data'!A30 -> -2.8878396e-06 | C25: ='DF raw data'!B30 -> 1.4853244e-05 | D25: ='DF raw data'!C30 -> -1.5753076e-06 | F25: -2.891027775e-06 | G25: 1.489912482e-05 | H25: -1.57704674e-06 | J25: 1.783411946e-06 | K25: 2.654708965e-05 | L25: 4.371197111e-06 | M25: 7.935321094e-06 | N25: 2.68019597e-10
A26: 10.4238 | B26: ='DF raw data'!A31 -> -3.0669883e-06 | C26: ='DF raw data'!B31 -> 4.6564737e-06 | D26: ='DF raw data'!C31 -> -8.2550005e-06 | F26: -3.070374255e-06 | G26: 4.670857279e-06 | H26: -8.264114021e-06 | J26: 2.477949656e-07 | K26: 2.667102183e-05 | L26: 6.707279671e-06 | M26: 1.128989995e-05 | N26: 2.905504053e-10
A27: 10.92394 | B27: ='DF raw data'!A32 -> -4.2757645e-07 | C27: ='DF raw data'!B32 -> 7.0749747e-06 | D27: ='DF raw data'!C32 -> -7.059095e-06 | F27: -4.280484944e-07 | G27: 7.09682889e-06 | H27: -7.066888241e-06 | J27: 3.371079165e-08 | K27: 2.668788194e-05 | L27: 1.025668767e-05 | M27: 1.641967972e-05 | N27: 3.431655226e-10
A28: 11.42408 | B28: ='DF raw data'!A33 -> -1.1231725e-06 | C28: ='DF raw data'!B33 -> 1.1214019e-05 | D28: ='DF raw data'!C33 -> 3.1940244e-06 | F28: -1.124412482e-06 | G28: 1.124865846e-05 | H28: 3.197550603e-06 | J28: -5.286528673e-07 | K28: 2.64234815e-05 | L28: 1.588259171e-05 | M28: 2.436319914e-05 | N28: 4.694689744e-10
A29: 11.92422 | B29: ='DF raw data'!A34 -> -5.7581906e-06 | C29: ='DF raw data'!B34 -> 8.6519503e-06 | D29: ='DF raw data'!C34 -> 5.492805e-06 | F29: -5.764547642e-06 | G29: 8.678675677e-06 | H29: 5.498869057e-06 | J29: -3.411733725e-06 | K29: 2.471713699e-05 | L29: 2.022314457e-05 | M29: 3.447760266e-05 | N29: 6.798356121e-10
A30: 12.42436 | B30: ='DF raw data'!A35 -> -5.4894604e-06 | C30: ='DF raw data'!B35 -> 2.386211e-06 | D30: ='DF raw data'!C35 -> 8.4917947e-06 | F30: -5.495520764e-06 | G30: 2.393581868e-06 | H30: 8.501169641e-06 | J30: -6.16026348e-06 | K30: 2.163614281e-05 | L30: 2.14202706e-05 | M30: 4.51907368e-05 | N30: 9.282935803e-10
A31: 12.9245 | B31: ='DF raw data'!A36 -> -1.3665533e-06 | C31: ='DF raw data'!B36 -> -1.3808396e-06 | D31: ='DF raw data'!C36 -> 5.1652851e-06 | F31: -1.368061975e-06 | G31: -1.385104934e-06 | H31: 5.170987575e-06 | J31: -6.844485996e-06 | K31: 1.821294159e-05 | L31: 2.072752422e-05 | M31: 5.555740077e-05 | N31: 1.166598912e-09
A32: 13.42464 | B32: ='DF raw data'!A37 -> 1.6927831e-06 | C32: ='DF raw data'!B37 -> -7.8892836e-06 | D32: ='DF raw data'!C37 -> -9.3672583e-07 | F32: 1.694651933e-06 | G32: -7.913653143e-06 | H32: -9.377599753e-07 | J32: -5.996922779e-06 | K32: 1.521364063e-05 | L32: 1.676958974e-05 | M32: 6.394454338e-05 | N32: 1.325234428e-09
A33: 13.92478 | B33: ='DF raw data'!A38 -> -1.227306e-06 | C33: ='DF raw data'!B38 -> -4.4487306e-06 | D33: ='DF raw data'!C38 -> -3.754617e-06 | F33: -1.228660946e-06 | G33: -4.462472473e-06 | H33: -3.758762097e-06 | J33: -6.611425264e-06 | K33: 1.19070024e-05 | L33: 1.453772876e-05 | M33: 7.121544304e-05 | N33: 1.452798387e-09
A34: 14.42492 | B34: ='DF raw data'!A39 -> -4.7977414e-07 | C34: ='DF raw data'!B39 -> 6.9167299e-06 | D34: ='DF raw data'!C39 -> -5.5473256e-06 | F34: -4.803038107e-07 | G34: 6.938095281e-06 | H34: -5.553449847e-06 | J34: -6.851644412e-06 | K34: 8.480220962e-06 | L34: 1.800774773e-05 | M34: 8.022183799e-05 | N34: 1.638462363e-09
A35: 14.92506 | B35: ='DF raw data'!A40 -> 5.5597798e-06 | C35: ='DF raw data'!B40 -> -7.5547805e-06 | D35: ='DF raw data'!C40 -> -5.5069877e-06 | F35: 5.565917797e-06 | G35: -7.578116782e-06 | H35: -5.513067414e-06 | J35: -4.067906285e-06 | K35: 6.445698313e-06 | L35: 1.42176284e-05 | M35: 8.733264266e-05 | N35: 1.747837389e-09
A36: 15.4252 | B36: ='DF raw data'!A41 -> 5.1563425e-06 | C36: ='DF raw data'!B41 -> 3.0091821e-06 | D36: ='DF raw data'!C41 -> -8.1817316e-06 | F36: 5.162035102e-06 | G36: 3.01847729e-06 | H36: -8.190764232e-06 | J36: -1.486166049e-06 | K36: 5.702407225e-06 | L36: 1.572728963e-05 | M36: 9.519848929e-05 | N36: 1.872650491e-09
A37: 15.92534 | B37: ='DF raw data'!A42 -> 1.9403549e-06 | C37: ='DF raw data'!B42 -> 8.2675469e-06 | D37: ='DF raw data'!C42 -> -8.7476377e-07 | F37: 1.942497052e-06 | G37: 8.293084877e-06 | H37: -8.757295092e-07 | J37: -5.146455737e-07 | K37: 5.445012388e-06 | L37: 1.98749931e-05 | M37: 0.0001051387683 | N37: 2.070345936e-09
A38: 16.42548 | B38: ='DF raw data'!A43 -> -2.21493e-06 | C38: ='DF raw data'!B43 -> 6.6905714e-06 | D38: ='DF raw data'!C43 -> 5.8155811e-06 | F38: -2.217375283e-06 | G38: 6.71123819e-06 | H38: 5.822001502e-06 | J38: -1.623643648e-06 | K38: 4.632963254e-06 | L38: 2.323155177e-05 | M38: 0.0001167577966 | N38: 2.341592472e-09
A39: 16.92562 | B39: ='DF raw data'!A44 -> -4.051411e-06 | C39: ='DF raw data'!B44 -> 6.8400095e-06 | D39: ='DF raw data'!C44 -> 6.0676348e-06 | F39: -4.055883758e-06 | G39: 6.861137896e-06 | H39: 6.074333469e-06 | J39: -3.65215335e-06 | K39: 2.806375277e-06 | L39: 2.666308128e-05 | M39: 0.0001300930701 | N39: 2.703822932e-09
A40: 17.42576 | B40: ='DF raw data'!A45 -> 9.7461702e-07 | C40: ='DF raw data'!B45 -> 2.4355661e-05 | D40: ='DF raw data'!C45 -> -2.1662463e-06 | F40: 9.756929972e-07 | G40: 2.443089424e-05 | H40: -2.168637836e-06 | J40: -3.164170255e-06 | K40: 1.223847166e-06 | L40: 3.888194872e-05 | M40: 0.000149539488 | N40: 3.464944941e-09
A41: 17.9259 | B41: ='DF raw data'!A46 -> 4.4068752e-06 | C41: ='DF raw data'!B46 -> -6.1736978e-07 | D41: ='DF raw data'!C46 -> -5.9713393e-06 | F41: 4.41174039e-06 | G41: -6.192767997e-07 | H41: -5.977931659e-06 | J41: -9.576824158e-07 | K41: 7.448718825e-07 | L41: 3.857222362e-05 | M41: 0.0001688309999 | N41: 4.209520159e-09
A42: 18.42604 | B42: ='DF raw data'!A47 -> -2.4129088e-06 | C42: ='DF raw data'!B47 -> -1.0982793e-05 | D42: ='DF raw data'!C47 -> -2.5393429e-06 | F42: -2.415572651e-06 | G42: -1.101671822e-05 | H42: -2.542146335e-06 | J42: -2.165806922e-06 | K42: -3.383347913e-07 | L42: 3.306232218e-05 | M42: 0.0001853667897 | N42: 4.758577786e-09
A43: 18.92618 | B43: ='DF raw data'!A48 -> -9.7120328e-06 | C43: ='DF raw data'!B48 -> -9.2841301e-06 | D43: ='DF raw data'!C48 -> -9.3627941e-06 | F43: -9.722754884e-06 | G43: -9.312808244e-06 | H43: -9.373130625e-06 | J43: -7.028545549e-06 | K43: -3.853591562e-06 | L43: 2.840461426e-05 | M43: 0.0001995730735 | N43: 5.186808939e-09
A44: 19.42632 | B44: ='DF raw data'!A49 -> -5.4883253e-06 | C44: ='DF raw data'!B49 -> 1.2999408e-05 | D44: ='DF raw data'!C49 -> -9.3976023e-06 | F44: -5.494384411e-06 | G44: 1.303956242e-05 | H44: -9.407977253e-06 | J44: -9.776506969e-06 | K44: -8.743213758e-06 | L44: 3.492622101e-05 | M44: 0.0002170410736 | N44: 5.844703599e-09
A45: 19.92646 | B45: ='DF raw data'!A50 -> 1.0808897e-06 | C45: ='DF raw data'!B50 -> 2.2293143e-05 | D45: ='DF raw data'!C50 -> -3.6040774e-06 | F45: 1.082083002e-06 | G45: 2.236200524e-05 | H45: -3.608056301e-06 | J45: -9.235313976e-06 | K45: -1.336216369e-05 | L45: 4.611035431e-05 | M45: 0.0002401027062 | N45: 6.950741103e-09
A46: 20.4266 | B46: ='DF raw data'!A51 -> 7.6729589e-07 | C46: ='DF raw data'!B51 -> 1.406587e-06 | D46: ='DF raw data'!C51 -> 9.4642297e-07 | F46: 7.681429847e-07 | G46: 1.410931866e-06 | H46: 9.47467821e-07 | J46: -8.851134944e-06 | K46: -1.778897032e-05 | L46: 4.681601777e-05 | M46: 0.0002635172694 | N46: 8.086099969e-09
A47: 20.92674 | B47: ='DF raw data'!A52 -> 3.926953e-06 | C47: ='DF raw data'!B52 -> -4.9414766e-06 | D47: ='DF raw data'!C52 -> 5.1728812e-06 | F47: 3.931288356e-06 | G47: -4.956740537e-06 | H47: 5.178592061e-06 | J47: -6.884940385e-06 | K47: -2.12324044e-05 | L47: 4.433695356e-05 | M47: 0.0002856919533 | N47: 9.09296574e-09
A48: 21.42688 | B48: ='DF raw data'!A53 -> 4.8904208e-06 | C48: ='DF raw data'!B53 -> -6.674295e-06 | D48: ='DF raw data'!C53 -> -1.5537416e-06 | F48: 4.895819825e-06 | G48: -6.694911513e-06 | H48: -1.555456931e-06 | J48: -4.436345058e-06 | K48: -2.345119802e-05 | L48: 4.098856052e-05 | M48: 0.000306191972 | N48: 9.94307533e-09
A49: 21.92702 | B49: ='DF raw data'!A54 -> -5.2226655e-06 | C49: ='DF raw data'!B54 -> -1.2473841e-05 | D49: ='DF raw data'!C54 -> -9.1962766e-06 | F49: -5.228431323e-06 | G49: -1.251237198e-05 | H49: -9.206429289e-06 | J49: -7.0512927e-06 | K49: -2.697783155e-05 | L49: 3.47306228e-05 | M49: 0.0003235621457 | N49: 1.057121961e-08
A50: 22.42716 | B50: ='DF raw data'!A55 -> -3.5354435e-06 | C50: ='DF raw data'!B55 -> 9.5132016e-08 | D50: ='DF raw data'!C55 -> -7.6667975e-06 | F50: -3.53934663e-06 | G50: 9.542587332e-08 | H50: -7.675261644e-06 | J50: -8.821461523e-06 | K50: -3.138979732e-05 | L50: 3.477834909e-05 | M50: 0.0003409561892 | N50: 1.121507571e-08
A51: 22.9273 | B51: ='DF raw data'!A56 -> 2.3247001e-06 | C51: ='DF raw data'!B56 -> 9.0573021e-06 | D51: ='DF raw data'!C56 -> 4.2281417e-06 | F51: 2.327266569e-06 | G51: 9.085279585e-06 | H51: 4.232809568e-06 | J51: -7.657502422e-06 | K51: -3.521962058e-05 | L51: 3.932226082e-05 | M51: 0.0003606228247 | N51: 1.201773916e-08
A52: 23.42744 | B52: ='DF raw data'!A57 -> 5.9795007e-06 | C52: ='DF raw data'!B57 -> -3.9064826e-06 | D52: ='DF raw data'!C57 -> 7.6366368e-06 | F52: 5.986102069e-06 | G52: -3.9185495e-06 | H52: 7.645067647e-06 | J52: -4.663613333e-06 | K52: -3.755208015e-05 | L52: 3.736243748e-05 | M52: 0.0003793092742 | N52: 1.272678815e-08
A53: 23.92758 | B53: ='DF raw data'!A58 -> 6.5194349e-06 | C53: ='DF raw data'!B58 -> -3.3682365e-06 | D53: ='DF raw data'!C58 -> 3.8185229e-07 | F53: 6.526632356e-06 | G53: -3.378640789e-06 | H53: 3.822738549e-07 | J53: -1.399383426e-06 | K53: -3.825196778e-05 | L53: 3.567264407e-05 | M53: 0.0003971505904 | N53: 1.336421449e-08
A54: 24.42772 | B54: ='DF raw data'!A59 -> 3.0062099e-06 | C54: ='DF raw data'!B59 -> 8.6260652e-06 | D54: ='DF raw data'!C59 -> -1.9313784e-06 | F54: 3.009528756e-06 | G54: 8.652710619e-06 | H54: -1.933510642e-06 | J54: 1.058022856e-07 | K54: -3.819905182e-05 | L54: 4.000021076e-05 | M54: 0.0004171562958 | N54: 1.416445252e-08
A55: 24.92786 | B55: ='DF raw data'!A60 -> 3.9625907e-06 | C55: ='DF raw data'!B60 -> 9.6286376e-06 | D55: ='DF raw data'!C60 -> -5.4221355e-06 | F55: 3.9669654e-06 | G55: 9.658379908e-06 | H55: -5.428121538e-06 | J55: 2.089840361e-06 | K55: -3.715383907e-05 | L55: 4.483075289e-05 | M55: 0.0004395779486 | N55: 1.517181642e-08
A56: 25.428 | B56: ='DF raw data'!A61 -> 4.597578e-06 | C56: ='DF raw data'!B61 -> 4.428447e-06 | D56: ='DF raw data'!C61 -> -7.5603793e-06 | F56: 4.602653726e-06 | G56: 4.442126218e-06 | H56: -7.568725959e-06 | J56: 4.391811595e-06 | K56: -3.495731842e-05 | L56: 4.70524379e-05 | M56: 0.0004631107549 | N56: 1.628873903e-08
A57: 25.92814 | B57: ='DF raw data'!A62 -> -1.2890498e-06 | C57: ='DF raw data'!B62 -> -1.8092872e-07 | D57: ='DF raw data'!C62 -> -2.8508848e-06 | F57: -1.290472911e-06 | G57: -1.814875984e-07 | H57: -2.854032177e-06 | J57: 3.746394474e-06 | K57: -3.308359668e-05 | L57: 4.696166869e-05 | M57: 0.0004865981638 | N57: 1.739876665e-08
A58: 26.42828 | B58: ='DF raw data'!A63 -> -5.7192206e-06 | C58: ='DF raw data'!B63 -> 5.603807e-06 | D58: ='DF raw data'!C63 -> -1.6378663e-06 | F58: -5.72553462e-06 | G58: 5.621116837e-06 | H58: -1.639674504e-06 | J58: 8.828255891e-07 | K58: -3.264206029e-05 | L58: 4.977301406e-05 | M58: 0.0005114916391 | N58: 1.863817974e-08
A59: 26.92842 | B59: ='DF raw data'!A64 -> -2.798258e-06 | C59: ='DF raw data'!B64 -> 1.0073632e-07 | D59: ='DF raw data'!C64 -> 1.4849747e-06 | F59: -2.801347277e-06 | G59: 1.010474887e-07 | H59: 1.486614112e-06 | J59: -5.18240238e-07 | K59: -3.290125297e-05 | L59: 4.982355195e-05 | M59: 0.0005364103904 | N59: 1.987985477e-08
A60: 27.42856 | B60: ='DF raw data'!A65 -> 5.2661512e-06 | C60: ='DF raw data'!B65 -> -2.3859459e-06 | D60: ='DF raw data'!C65 -> -1.12414e-06 | F60: 5.271965031e-06 | G60: -2.39331595e-06 | H60: -1.125381051e-06 | J60: 2.118480353e-06 | K60: -3.18417162e-05 | L60: 4.862655892e-05 | M60: 0.0005607304775 | N60: 2.106470153e-08
A61: 27.9287 | B61: ='DF raw data'!A66 -> 9.162718e-06 | C61: ='DF raw data'!B66 -> 6.3794187e-06 | D61: ='DF raw data'!C66 -> -5.7859188e-06 | F61: 9.172833641e-06 | G61: 6.399124357e-06 | H61: -5.792306454e-06 | J61: 6.70618137e-06 | K61: -2.848768665e-05 | L61: 5.182701697e-05 | M61: 0.0005866512418 | N61: 2.243059015e-08
A62: 28.42884 | B62: ='DF raw data'!A67 -> 2.6997611e-06 | C62: ='DF raw data'!B67 -> -2.4026242e-06 | D62: ='DF raw data'!C67 -> -1.6694876e-06 | F62: 2.702741636e-06 | G62: -2.410045768e-06 | H62: -1.671330714e-06 | J62: 8.057930572e-06 | K62: -2.445759326e-05 | L62: 5.062165668e-05 | M62: 0.0006119691572 | N62: 2.374469918e-08
A63: 28.92898 | B63: ='DF raw data'!A68 -> -6.5654581e-06 | C63: ='DF raw data'!B68 -> -6.3867601e-06 | D63: ='DF raw data'!C68 -> 3.7043601e-06 | F63: -6.572706366e-06 | G63: -6.406488434e-06 | H63: 3.708449714e-06 | J63: 4.77065721e-06 | K63: -2.207159676e-05 | L63: 4.741751556e-05 | M63: 0.0006356845534 | N63: 2.488060712e-08
A64: 29.42912 | B64: ='DF raw data'!A69 -> -6.5322943e-06 | C64: ='DF raw data'!B69 -> 1.4866444e-06 | D64: ='DF raw data'!C69 -> 2.5951695e-06 | F64: -6.539505953e-06 | G64: 1.491236559e-06 | H64: 2.598034567e-06 | J64: 1.499988703e-06 | K64: -2.132139241e-05 | L64: 4.816334261e-05 | M64: 0.0006597729676 | N64: 2.604191096e-08
A65: 29.92926 | B65: ='DF raw data'!A70 -> 2.5379002e-06 | C65: ='DF raw data'!B70 -> -5.5551072e-06 | D65: ='DF raw data'!C70 -> 2.4468272e-06 | F65: 2.540702042e-06 | G65: -5.572266607e-06 | H65: 2.449528497e-06 | J65: 2.770695422e-06 | K65: -1.99356568e-05 | L65: 4.537642919e-05 | M65: 0.0006824675349 | N65: 2.707554884e-08
A66: 30.4294 | B66: ='DF raw data'!A71 -> -1.3924412e-06 | C66: ='DF raw data'!B71 -> -8.6294031e-06 | D66: ='DF raw data'!C71 -> 1.9656391e-06 | F66: -1.393978455e-06 | G66: -8.65605883e-06 | H66: 1.967809166e-06 | J66: 2.073511037e-06 | K66: -1.889861099e-05 | L66: 4.104718792e-05 | M66: 0.0007029968754 | N66: 2.792037086e-08
A67: 30.92954 | B67: ='DF raw data'!A72 -> -1.0625631e-05 | C67: ='DF raw data'!B72 -> -1.4003982e-05 | D67: ='DF raw data'!C72 -> 7.6640123e-07 | F67: -1.06373617e-05 | G67: -1.404723949e-05 | H67: 7.67247337e-07 | J67: -3.246659042e-06 | K67: -2.052239504e-05 | L67: 3.402160156e-05 | M67: 0.0007200124392 | N67: 2.850453947e-08
A68: 31.42968 | B68: ='DF raw data'!A73 -> -9.3799581e-06 | C68: ='DF raw data'!B73 -> -1.1747195e-05 | D68: ='DF raw data'!C73 -> -1.5854212e-06 | F68: -9.390313574e-06 | G68: -1.178348141e-05 | H68: -1.587171505e-06 | J68: -7.943130472e-06 | K68: -2.449507232e-05 | L68: 2.812821117e-05 | M68: 0.0007340804828 | N68: 2.893180386e-08
A69: 31.92982 | B69: ='DF raw data'!A74 -> -4.828978e-06 | C69: ='DF raw data'!B74 -> -2.1524477e-06 | D69: ='DF raw data'!C74 -> -9.8728096e-06 | F69: -4.834309192e-06 | G69: -2.159096487e-06 | H69: -9.883709182e-06 | J69: -1.036096187e-05 | K69: -2.967700379e-05 | L69: 2.704836065e-05 | M69: 0.0007476084499 | N69: 2.935140299e-08
A70: 32.42996 | B70: ='DF raw data'!A75 -> -2.6263708e-06 | C70: ='DF raw data'!B75 -> 1.3682936e-06 | D70: ='DF raw data'!C75 -> -1.180673e-05 | F70: -2.629270313e-06 | G70: 1.37252018e-06 | H70: -1.181976463e-05 | J70: -1.167596513e-05 | K70: -3.551662099e-05 | L70: 2.77348129e-05 | M70: 0.0007614797392 | N70: 2.980430377e-08
A71: 32.9301 | B71: ='DF raw data'!A76 -> 4.4193025e-06 | C71: ='DF raw data'!B76 -> -9.2665255e-07 | D71: ='DF raw data'!C76 -> -3.9858905e-06 | F71: 4.42418141e-06 | G71: =(1-$G$1*($B$2-$G$2))*C71*$M$2/$M$1 -> -9.295149264e-07 | H71: -3.990290923e-06 | J71: -9.463255036e-06 | K71: -4.024957336e-05 | L71: 2.72699253e-05 | M71: 0.0007751185196 | N71: 3.022102143e-08
A72: =A71+$B$1 -> 33.43024 | B72: ='DF raw data'!A77 -> 9.5634196e-06 | C72: ='DF raw data'!B77 -> 1.3346185e-05 | D72: ='DF raw data'!C77 -> 3.5267249e-06 | F72: 9.573977615e-06 | G72: 1.33874106e-05 | H72: 3.530618404e-06 | J72: =F72*$B$1+J71 -> -4.674925871e-06 | K72: =J72*$B$1+K71 -> -4.258769079e-05 | L72: =G72*$B$1+L71 -> 3.396550484e-05 | M72: =L72*$B$1+M71 -> 0.0007921060272 | N72: =(J72^2+L72^2)*$B$1+N71 -> 3.080894123e-08
A73: 33.93038 | B73: ='DF raw data'!A78 -> 9.8817427e-06 | C73: ='DF raw data'!B78 -> -4.9597556e-06 | D73: ='DF raw data'!C78 -> 4.8565371e-06 | F73: 9.892652144e-06 | G73: -4.975076e-06 | H73: 4.861898717e-06 | J73: 2.72785172e-07 | K73: -4.245126001e-05 | L73: 3.147727033e-05 | M73: 0.0008078490692 | N73: 3.130452643e-08
A74: 34.43052 | B74: ='DF raw data'!A79 -> 1.0496467e-06 | C74: ='DF raw data'!B79 -> -1.2024477e-06 | D74: ='DF raw data'!C79 -> 1.7174561e-06 | F74: 1.05080551e-06 | G74: -1.206161992e-06 | H74: 1.719352172e-06 | J74: 7.983350397e-07 | K74: -4.205198072e-05 | L74: 3.087402047e-05 | M74: 0.0008232904018 | N74: 3.178158121e-08
A75: 34.93066 | B75: ='DF raw data'!A80 -> -4.5258034e-06 | C75: ='DF raw data'!B80 -> 2.2603879e-06 | D75: ='DF raw data'!C80 -> 2.5940344e-06 | F75: =(1-$G$1*($B$2-$G$2))*B75 -> -4.530799887e-06 | G75: 2.267370108e-06 | H75: =(1-$G$1*($B$2-$G$2))*D75 -> 2.596898214e-06 | J75: -1.467699216e-06 | K75: -4.278603581e-05 | L75: 3.200802295e-05 | M75: 0.0008392988944 | N75: 3.229505878e-08
A76: 35.4308 | B76: ='DF raw data'!A81 -> -3.9605634e-06 | C76: ='DF raw data'!B81 -> -3.1814391e-06 | D76: ='DF raw data'!C81 -> -2.4791125e-06 | F76: -3.964935862e-06 | G76: -3.191266382e-06 | H76: -2.48184944e-06 | J76: -3.450722238e-06 | K76: -4.451188003e-05 | L76: 3.041194299e-05 | M76: 0.0008545091236 | N76: 3.276358681e-08
A77: 35.93094 | B77: ='DF raw data'!A82 -> -5.1081856e-06 | C77: ='DF raw data'!B82 -> -4.9466807e-06 | D77: ='DF raw data'!C82 -> -8.0301152e-06 | F77: -5.113825037e-06 | G77: -4.961960712e-06 | H77: -8.038980447e-06 | J77: -6.008350692e-06 | K77: -4.751689654e-05 | L77: 2.793026796e-05 | M77: 0.0008684781678 | N77: 3.317180115e-08
A78: 36.43108 | B78: ='DF raw data'!A83 -> -3.8268604e-06 | C78: ='DF raw data'!B83 -> 1.039491e-05 | D78: ='DF raw data'!C83 -> -4.8714619e-06 | F78: -3.831085254e-06 | G78: 1.042701928e-05 | H78: -4.876839994e-06 | J78: -7.924429671e-06 | K78: -5.14802208e-05 | L78: 3.314523738e-05 | M78: 0.0008850554268 | N78: 3.375266542e-08
A79: 36.93122 | B79: ='DF raw data'!A84 -> -4.5828099e-07 | C79: ='DF raw data'!B84 -> 5.7800635e-06 | D79: ='DF raw data'!C84 -> -8.2570926e-07 | F79: -4.587869322e-07 | G79: 5.797917784e-06 | H79: -8.26620843e-07 | J79: -8.153887367e-06 | K79: -5.555830603e-05 | L79: 3.604500798e-05 | M79: 0.0009030829771 | N79: 3.443572086e-08
A80: 37.43136 | B80: ='DF raw data'!A85 -> 3.838783e-06 | C80: ='DF raw data'!B85 -> -7.0925898e-06 | D80: ='DF raw data'!C85 -> 1.8623496e-06 | F80: 3.843021016e-06 | G80: -7.114498402e-06 | H80: 1.864405634e-06 | J80: -6.231838836e-06 | K80: -5.86750979e-05 | L80: 3.248676275e-05 | M80: 0.0009193309066 | N80: 3.498298684e-08
A81: 37.9315 | B81: ='DF raw data'!A86 -> 7.8558764e-07 | C81: ='DF raw data'!B86 -> -4.3066293e-06 | D81: ='DF raw data'!C86 -> 4.30965e-07 | F81: 7.864549288e-07 | G81: -4.31993223e-06 | H81: 4.314407854e-07 | J81: -5.838501268e-06 | K81: -6.159516593e-05 | L81: 3.032619184e-05 | M81: 0.0009344982482 | N81: 3.546000337e-08
A82: 38.43164 | B82: ='DF raw data'!A87 -> -8.4512694e-06 | C82: ='DF raw data'!B87 -> -8.5055826e-06 | D82: ='DF raw data'!C87 -> -4.3884838e-06 | F82: -8.460599601e-06 | G82: -8.531855855e-06 | H82: -4.393328686e-06 | J82: -1.006998555e-05 | K82: -6.66315685e-05 | L82: 2.605906945e-05 | M82: 0.0009475314312 | N82: 3.585035249e-08
A83: 38.93178 | B83: ='DF raw data'!A88 -> -8.7155904e-06 | C83: ='DF raw data'!B88 -> 2.6610694e-06 | D83: ='DF raw data'!C88 -> -8.8426796e-06 | F83: -8.725212412e-06 | G83: 2.66928929e-06 | H83: -8.852441918e-06 | J83: -1.443381329e-05 | K83: -7.385049588e-05 | L83: 2.73940878e-05 | M83: 0.0009612323103 | N83: 3.632987223e-08
A84: 39.43192 | B84: ='DF raw data'!A89 -> -3.7658654e-07 | C84: ='DF raw data'!B89 -> 1.2450489e-05 | D84: ='DF raw data'!C89 -> -5.9770582e-06 | F84: -3.770022915e-07 | G84: 1.248894784e-05 | H84: -5.983656872e-06 | J84: -1.462236721e-05 | K84: -8.116372662e-05 | L84: 3.364031018e-05 | M84: 0.000978057175 | N84: 3.700280264e-08
A85: 39.93206 | B85: ='DF raw data'!A90 -> -4.08392e-06 | C85: ='DF raw data'!B90 -> 1.6319877e-05 | D85: ='DF raw data'!C90 -> 2.2500853e-06 | F85: -4.088428648e-06 | G85: 1.637028816e-05 | H85: 2.252569394e-06 | J85: -1.666715392e-05 | K85: -8.949963698e-05 | L85: 4.18277461e-05 | M85: 0.0009989769039 | N85: 3.801676365e-08
A86: 40.4322 | B86: ='DF raw data'!A91 -> -1.1581488e-05 | C86: ='DF raw data'!B91 -> -6.9538246e-06 | D86: ='DF raw data'!C91 -> 6.236146e-06 | F86: -1.159427396e-05 | G86: -6.975304564e-06 | H86: 6.243030705e-06 | J86: -2.24659141e-05 | K86: -0.0001007357393 | L86: 3.833911727e-05 | M86: 0.00101815183 | N86: 3.90043427e-08
A87: 40.93234 | B87: ='DF raw data'!A92 -> -8.9954819e-06 | C87: ='DF raw data'!B92 -> -2.0699911e-06 | D87: ='DF raw data'!C92 -> 1.3341732e-06 | F87: -9.005412912e-06 | G87: -2.076385183e-06 | H87: 1.335646127e-06 | J87: -2.696988131e-05 | K87: -0.0001142244557 | L87: 3.730063399e-05 | M87: 0.001036807369 | N87: 4.006399522e-08
A88: 41.43248 | B88: ='DF raw data'!A93 -> -4.1894505e-06 | C88: ='DF raw data'!B93 -> -1.2770336e-06 | D88: ='DF raw data'!C93 -> 3.9558608e-06 | F88: -4.194075653e-06 | G88: -1.280978283e-06 | H88: 3.96022807e-06 | J88: -2.906750631e-05 | K88: -0.0001287622783 | L88: 3.665996551e-05 | M88: 0.001055142484 | N88: 4.115873816e-08
A89: 41.93262 | B89: ='DF raw data'!A94 -> 1.4032659e-07 | C89: ='DF raw data'!B94 -> 7.9175584e-07 | D89: ='DF raw data'!C94 -> 3.9627876e-06 | F89: 1.404815106e-07 | G89: 7.942015282e-07 | H89: 3.967162518e-06 | J89: -2.899724589e-05 | K89: -0.0001432649609 | L89: 3.705717746e-05 | M89: 0.001073676261 | N89: 4.226608546e-08
A90: 42.43276 | B90: ='DF raw data'!A95 -> 4.7560272e-07 | C90: ='DF raw data'!B95 -> 5.4834554e-06 | D90: ='DF raw data'!C95 -> 2.4329738e-06 | F90: 4.761277854e-07 | G90: 5.500393478e-06 | H90: 2.435659803e-06 | J90: -2.875911534e-05 | K90: -0.0001576485448 | L90: 3.980814425e-05 | M90: 0.001093585906 | N90: 4.347231064e-08
A91: 42.9329 | B91: ='DF raw data'!A96 -> -5.604144e-06 | C91: ='DF raw data'!B96 -> 8.5616202e-06 | D91: ='DF raw data'!C96 -> 1.2585615e-06 | F91: -5.610330975e-06 | G91: 8.588066552e-06 | H91: 1.259950952e-06 | J91: -3.156506627e-05 | K91: -0.000173435497 | L91: 4.410337986e-05 | M91: 0.001115643771 | N91: 4.494345321e-08
A92: 43.43304 | B92: ='DF raw data'!A97 -> -5.5838441e-06 | C92: ='DF raw data'!B97 -> 1.9707174e-06 | D92: ='DF raw data'!C97 -> -4.5999056e-07 | F92: -5.590008664e-06 | G92: 1.976804833e-06 | H92: -4.604983896e-07 | J92: -3.43608532e-05 | K92: -0.0001906207342 | L92: 4.509205903e-05 | M92: 0.001138196113 | N92: 4.655088418e-08
A93: 43.93318 | B93: ='DF raw data'!A98 -> -8.1753865e-07 | C93: ='DF raw data'!B98 -> -2.5939582e-06 | D93: ='DF raw data'!C98 -> 1.8604173e-07 | F93: -8.184412127e-07 | G93: -2.601970788e-06 | H93: 1.862471201e-07 | J93: -3.477018839e-05 | K93: -0.0002080106962 | L93: 4.379070936e-05 | M93: 0.001160097598 | N93: 4.811461801e-08
A94: 44.43332 | B94: ='DF raw data'!A99 -> 2.9877144e-06 | C94: ='DF raw data'!B99 -> -9.9977046e-07 | D94: ='DF raw data'!C99 -> -1.6483405e-07 | F94: 2.991012837e-06 | G94: -1.002858693e-06 | H94: -1.650160268e-07 | J94: -3.327426323e-05 | K94: -0.0002246524862 | L94: 4.328913961e-05 | M94: 0.001181748229 | N94: 4.960559847e-08
A95: 44.93346 | B95: ='DF raw data'!A100 -> 6.6562933e-08 | C95: ='DF raw data'!B100 -> -5.1652341e-06 | D95: ='DF raw data'!C100 -> 4.6339219e-06 | F95: 6.663641848e-08 | G95: -5.181189211e-06 | H95: 4.63903775e-06 | J95: -3.324093569e-05 | K95: -0.0002412776078 | L95: 4.069781964e-05 | M95: 0.001202102836 | N95: 5.098662121e-08
A96: 45.4336 | B96: ='DF raw data'!A101 -> -4.3927698e-06 | C96: ='DF raw data'!B101 -> -1.9040065e-06 | D96: ='DF raw data'!C101 -> 6.2140416e-06 | F96: -4.397619418e-06 | G96: -1.909887867e-06 | H96: 6.220901902e-06 | J96: -3.544036107e-05 | K96: -0.00025900275 | L96: 3.974260832e-05 | M96: 0.001221979704 | N96: 5.240476524e-08
A97: 45.93374 | B97: ='DF raw data'!A102 -> -5.6185504e-06 | C97: ='DF raw data'!B102 -> -8.6424798e-06 | D97: ='DF raw data'!C102 -> 3.8226235e-06 | F97: -5.62475328e-06 | G97: -8.669175923e-06 | H97: 3.826843676e-06 | J97: -3.825352517e-05 | K97: -0.000278134868 | L97: 3.540680668e-05 | M97: 0.001239688065 | N97: 5.376363269e-08
A98: 46.43388 | B98: ='DF raw data'!A103 -> -6.5347535e-06 | C98: ='DF raw data'!B103 -> -1.5683965e-05 | D98: ='DF raw data'!C103 -> 2.2631384e-06 | F98: -6.541967868e-06 | G98: -1.573241187e-05 | H98: 2.265636905e-06 | J98: -4.152542498e-05 | K98: -0.0002989033941 | L98: 2.753839821e-05 | M98: 0.001253461119 | N98: 5.500534242e-08
A99: 46.93402 | B99: ='DF raw data'!A104 -> -5.6749536e-06 | C99: ='DF raw data'!B104 -> -8.7572271e-06 | D99: ='DF raw data'!C104 -> 2.8406166e-06 | F99: -5.681218749e-06 | G99: -8.784277671e-06 | H99: 2.843752641e-06 | J99: -4.436682973e-05 | K99: -0.0003210930203 | L99: 2.314502957e-05 | M99: 0.001265036874 | N99: 5.625774698e-08
A100: 47.43416 | B100: ='DF raw data'!A105 -> -2.2013821e-06 | C100: ='DF raw data'!B105 -> 7.1280783e-06 | D100: ='DF raw data'!C105 -> 5.928795e-06 | F100: -2.203812426e-06 | G100: 7.150096524e-06 | H100: 5.93534039e-06 | J100: -4.546904447e-05 | K100: -0.0003438339082 | L100: 2.672107885e-05 | M100: 0.001278401155 | N100: 5.764886141e-08
A101: 47.9343 | B101: ='DF raw data'!A106 -> 3.1613333e-06 | C101: ='DF raw data'!B106 -> 4.613511e-06 | D101: ='DF raw data'!C106 -> 4.5583101e-06 | F101: 3.164823412e-06 | G101: 4.62776187e-06 | H101: 4.563342474e-06 | J101: -4.388618969e-05 | K101: -0.0003657831471 | L101: 2.903560767e-05 | M101: 0.001292923023 | N101: 5.903378116e-08
A102: 48.43444 | B102: ='DF raw data'!A107 -> 3.3774729e-06 | C102: ='DF raw data'!B107 -> -6.3137963e-07 | D102: ='DF raw data'!C107 -> 5.977311e-06 | F102: 3.38120163e-06 | G102: -6.333299254e-07 | H102: 5.983909951e-06 | J102: -4.219511551e-05 | K102: -0.0003868866122 | L102: 2.871885404e-05 | M102: 0.001307286471 | N102: 6.033674606e-08
A103: 48.93458 | B103: ='DF raw data'!A108 -> 2.2354532e-06 | C103: ='DF raw data'!B108 -> -6.5863669e-06 | D103: ='DF raw data'!C108 -> 6.7334286e-06 | F103: 2.23792114e-06 | G103: -6.606711808e-06 | H103: 6.740862305e-06 | J103: -4.107584163e-05 | K103: -0.0004074302836 | L103: 2.54145732e-05 | M103: 0.001319997316 | N103: 6.150363535e-08
A104: 49.43472 | B104: ='DF raw data'!A109 -> 1.3938104e-05 | C104: ='DF raw data'!B109 -> -1.7514985e-05 | D104: ='DF raw data'!C109 -> 4.2062411e-06 | F104: 1.395349167e-05 | G104: -1.756908778e-05 | H104: 4.21088479e-06 | J104: -3.409714231e-05 | K104: -0.0004244836284 | L104: 1.662756963e-05 | M104: 0.001328313428 | N104: 6.222338241e-08
A105: 49.93486 | B105: ='DF raw data'!A110 -> 1.764043e-05 | C105: ='DF raw data'!B110 -> -1.0801331e-05 | D105: ='DF raw data'!C110 -> 4.3112623e-06 | F105: 1.765990503e-05 | G105: -1.083469569e-05 | H105: 4.316021934e-06 | J105: -2.52647174e-05 | K105: -0.0004371195241 | L105: 1.120870493e-05 | M105: 0.00133391935 | N105: 6.260545987e-08
A106: 50.435 | B106: ='DF raw data'!A111 -> 6.2690547e-06 | C106: ='DF raw data'!B111 -> -3.8313619e-06 | D106: ='DF raw data'!C111 -> 4.0433179e-06 | F106: 6.275975736e-06 | G106: -3.843196756e-06 | H106: 4.047781723e-06 | J106: -2.21258509e-05 | K106: -0.0004481855472 | L106: 9.286568505e-06 | M106: 0.001338563934 | N106: 6.28934373e-08
A107: 50.93514 | B107: ='DF raw data'!A112 -> -4.0041464e-06 | C107: ='DF raw data'!B112 -> -5.4793209e-06 | D107: ='DF raw data'!C112 -> 1.0101877e-05 | F107: -4.008566978e-06 | G107: -5.496246207e-06 | H107: 1.011302947e-05 | J107: -2.413069559e-05 | K107: -0.0004602542733 | L107: 6.537675927e-06 | M107: 0.001341833688 | N107: 6.320604064e-08
A108: 51.43528 | B108: ='DF raw data'!A113 -> 3.4864668e-06 | C108: ='DF raw data'!B113 -> 3.7352918e-06 | D108: ='DF raw data'!C113 -> 1.2336556e-05 | F108: 3.490315859e-06 | G108: 3.746829901e-06 | H108: 1.235017556e-05 | J108: -2.238504901e-05 | K108: -0.0004714499317 | L108: 8.411615434e-06 | M108: 0.001346040673 | N108: 6.349204355e-08
A109: 51.93542 | B109: ='DF raw data'!A114 -> 1.5096145e-05 | C109: ='DF raw data'!B114 -> 3.3478198e-06 | D109: ='DF raw data'!C114 -> 5.0763001e-06 | F109: 1.511281114e-05 | G109: 3.358161023e-06 | H109: 5.081904335e-06 | J109: -1.482652765e-05 | K109: -0.0004788652713 | L109: 1.009116609e-05 | M109: 0.001351087669 | N109: 6.365291736e-08
A110: 52.43556 | B110: ='DF raw data'!A115 -> 1.1877756e-05 | C110: ='DF raw data'!B115 -> -1.1272864e-05 | D110: ='DF raw data'!C115 -> -1.5051528e-06 | F110: 1.189086904e-05 | G110: -1.130768523e-05 | H110: -1.506814489e-06 | J110: -8.879428405e-06 | K110: -0.0004833062286 | L110: 4.435740397e-06 | M110: 0.00135330616 | N110: 6.370219117e-08
A111: 52.9357 | B111: ='DF raw data'!A116 -> 2.7085796e-06 | C111: ='DF raw data'!B116 -> -3.4799152e-06 | D111: ='DF raw data'!C116 -> -5.0190183e-06 | F111: 2.711569872e-06 | G111: -3.490664458e-06 | H111: -5.024559296e-06 | J111: -7.523263849e-06 | K111: -0.0004870689138 | L111: 2.689919475e-06 | M111: 0.001354651496 | N111: 6.373411769e-08
A112: 53.43584 | B112: ='DF raw data'!A117 -> 1.915995e-06 | C112: ='DF raw data'!B117 -> 3.6559038e-06 | D112: ='DF raw data'!C117 -> -9.5915038e-07 | F112: 1.918110258e-06 | G112: 3.667196676e-06 | H112: -9.60209282e-07 | J112: -6.563940185e-06 | K112: -0.0004903518028 | L112: 4.524031221e-06 | M112: 0.001356914145 | N112: 6.376590267e-08
A113: 53.93598 | B113: ='DF raw data'!A118 -> 5.2626733e-06 | C113: ='DF raw data'!B118 -> 4.3742757e-06 | D113: ='DF raw data'!C118 -> 3.5741205e-06 | F113: 5.268483291e-06 | G113: 4.387787586e-06 | H113: 3.578066329e-06 | J113: -3.928960951e-06 | K113: -0.0004923168333 | L113: 6.718539304e-06 | M113: 0.001360274356 | N113: 6.37961989e-08
A114: 54.43612 | B114: ='DF raw data'!A119 -> 1.9318129e-06 | C114: ='DF raw data'!B119 -> -7.2718035e-07 | D114: ='DF raw data'!C119 -> 3.5026997e-06 | F114: 1.933945621e-06 | G114: -7.294265683e-07 | H114: 3.50656668e-06 | J114: -2.961717388e-06 | K114: -0.0004937981067 | L114: 6.353723901e-06 | M114: 0.001363452107 | N114: 6.382077657e-08
A115: 54.93626 | B115: ='DF raw data'!A120 -> 1.9805404e-07 | C115: ='DF raw data'!B120 -> -4.9326709e-06 | D115: ='DF raw data'!C120 -> 2.3652201e-06 | F115: 1.982726917e-07 | G115: -4.947907637e-06 | H115: 2.367831303e-06 | J115: -2.862553284e-06 | K115: -0.0004952297841 | L115: 3.879077375e-06 | M115: 0.001365392189 | N115: 6.383240055e-08
A116: 55.4364 | B116: ='DF raw data'!A121 -> 1.832889e-06 | C116: ='DF raw data'!B121 -> 1.033767e-05 | D116: ='DF raw data'!C121 -> 6.0447301e-06 | F116: 1.834912509e-06 | G116: 1.036960247e-05 | H116: 6.051403482e-06 | J116: -1.944840142e-06 | K116: -0.0004962024764 | L116: 9.065330353e-06 | M116: 0.001369926123 | N116: 6.38753939e-08
A117: 55.93654 | B117: ='DF raw data'!A122 -> 3.1462575e-06 | C117: ='DF raw data'!B122 -> -3.5918788e-07 | D117: ='DF raw data'!C122 -> 3.0320907e-06 | F117: 3.149730968e-06 | G117: -3.602973907e-07 | H117: 3.035438128e-06 | J117: -3.695336952e-07 | K117: -0.000496387295 | L117: 8.885131216e-06 | M117: 0.001374369933 | N117: 6.391494602e-08
A118: 56.43668 | B118: ='DF raw data'!A123 -> 3.5602304e-06 | C118: ='DF raw data'!B123 -> -4.9961809e-06 | D118: ='DF raw data'!C123 -> 1.8357923e-06 | F118: 3.564160894e-06 | G118: -5.011613815e-06 | H118: 1.837819015e-06 | J118: 1.413045735e-06 | K118: -0.0004956805743 | L118: 6.378622683e-06 | M118: 0.001377560137 | N118: 6.393629376e-08
A119: 56.93682 | B119: ='DF raw data'!A124 -> 4.280128e-06 | C119: ='DF raw data'!B124 -> 7.3080719e-06 | D119: ='DF raw data'!C124 -> 1.8241362e-06 | F119: 4.284853261e-06 | G119: 7.330646114e-06 | H119: 1.826150046e-06 | J119: 3.556072245e-06 | K119: -0.0004939020403 | L119: 1.004497203e-05 | M119: 0.001382584029 | N119: 6.399308321e-08
A120: 57.43696 | B120: ='DF raw data'!A125 -> 3.7465968e-06 | C120: ='DF raw data'!B125 -> 1.7892377e-07 | D120: ='DF raw data'!C125 -> -9.3965076e-07 | F120: 3.750733043e-06 | G120: 1.794764552e-07 | H120: -9.406881344e-07 | J120: 5.431963869e-06 | K120: -0.0004911852979 | L120: 1.013473538e-05 | M120: 0.001387652816 | N120: 6.405921127e-08
A121: 57.9371 | B121: ='DF raw data'!A126 -> 4.0713371e-06 | C121: ='DF raw data'!B126 -> -2.8097104e-06 | D121: ='DF raw data'!C126 -> -4.849765e-06 | F121: 4.075831856e-06 | G121: -2.818389434e-06 | H121: -4.855119141e-06 | J121: 7.470450413e-06 | K121: -0.0004874490269 | L121: 8.725146093e-06 | M121: 0.00139201661 | N121: 6.412519764e-08
A122: 58.43724 | B122: ='DF raw data'!A127 -> 2.6288787e-06 | C122: ='DF raw data'!B127 -> 2.2048832e-06 | D122: ='DF raw data'!C127 -> -5.6952749e-06 | F122: 2.631780982e-06 | G122: 2.211693957e-06 | H122: -5.701562483e-06 | J122: 8.786709354e-06 | K122: -0.000483054442 | L122: 9.831302709e-06 | M122: 0.001396933638 | N122: 6.421215237e-08
A123: 58.93738 | B123: ='DF raw data'!A128 -> -3.9912097e-06 | C123: ='DF raw data'!B128 -> 3.7701163e-06 | D123: ='DF raw data'!C128 -> -2.5473319e-06 | F123: -3.995615996e-06 | G123: 3.781761972e-06 | H123: -2.550144154e-06 | J123: 6.78834197e-06 | K123: -0.0004796593207 | L123: 1.172271314e-05 | M123: 0.001402796636 | N123: 6.430392986e-08
A124: 59.43752 | B124: ='DF raw data'!A129 -> -7.4881368e-06 | C124: ='DF raw data'!B129 -> -6.5532759e-06 | D124: ='DF raw data'!C129 -> -2.0628841e-06 | F124: -7.496403703e-06 | G124: -6.573518592e-06 | H124: -2.065161524e-06 | J124: 3.039090622e-06 | K124: -0.0004781393499 | L124: 8.435033553e-06 | M124: 0.001407015334 | N124: 6.434413404e-08
A125: 59.93766 | B125: ='DF raw data'!A130 -> -2.5078891e-06 | C125: ='DF raw data'!B130 -> -8.1003645e-06 | D125: ='DF raw data'!C130 -> -9.6248277e-07 | F125: -2.51065781e-06 | G125: -8.12538606e-06 | H125: -9.63545351e-07 | J125: 1.783410225e-06 | K125: -0.0004772473951 | L125: 4.371202969e-06 | M125: 0.001409201547 | N125: 6.435528115e-08
A126: 60.4378 | B126: ='DF raw data'!A131 -> -2.7041363e-06 | C126: ='DF raw data'!B131 -> -1.9228203e-06 | D126: ='DF raw data'!C131 -> 3.131121e-08 | F126: -2.707121666e-06 | G126: -1.928759781e-06 | H126: 3.134577758e-08 | J126: 4.294703944e-07 | K126: -0.0004770325998 | L126: 3.406553052e-06 | M126: 0.001410905301 | N126: 6.436117732e-08
A127: 60.93794 | B127: ='DF raw data'!A132 -> -2.3790028e-06 | C127: ='DF raw data'!B132 -> 5.8058149e-06 | D127: ='DF raw data'!C132 -> -6.5693212e-06 | F127: -2.381629219e-06 | G127: 5.823748728e-06 | H127: -6.576573731e-06 | J127: -7.616776432e-07 | K127: -0.0004774135452 | L127: 6.319242741e-06 | M127: 0.001414065807 | N127: 6.438143948e-08
A128: 61.43808 | B128: ='DF raw data'!A133 -> 1.8869493e-06 | C128: ='DF raw data'!B133 -> 7.736096e-07 | D128: ='DF raw data'!C133 -> -1.1573652e-05 | F128: 1.889032492e-06 | G128: 7.759992355e-07 | H128: -1.158642931e-05 | J128: 1.831030673e-07 | K128: -0.0004773219681 | L128: 6.707350999e-06 | M128: 0.001417420421 | N128: 6.440395683e-08
A129: 61.93822 | B129: ='DF raw data'!A134 -> -4.7043869e-08 | C129: ='DF raw data'!B134 -> -6.488583e-07 | D129: ='DF raw data'!C134 -> -4.732171e-06 | F129: -4.709580543e-08 | G129: -6.50862586e-07 | H129: -4.737395317e-06 | J129: 1.595485712e-07 | K129: -0.0004772421715 | L129: 6.381828585e-06 | M129: 0.001420612229 | N129: 6.442433913e-08
A130: 62.43836 | B130: ='DF raw data'!A135 -> -3.5212263e-06 | C130: ='DF raw data'!B135 -> 3.986795e-07 | D130: ='DF raw data'!C135 -> 1.9491954e-06 | F130: -3.525113734e-06 | G130: 3.99910998e-07 | H130: 1.951347312e-06 | J130: -1.603501812e-06 | K130: -0.0004780441469 | L130: 6.581840071e-06 | M130: 0.00142390407 | N130: 6.444729147e-08
A131: 62.9385 | B131: ='DF raw data'!A136 -> 3.4463548e-07 | C131: ='DF raw data'!B136 -> -4.0120221e-06 | D131: ='DF raw data'!C136 -> -2.2080976e-06 | F131: 3.450159576e-07 | G131: -4.024415005e-06 | H131: -2.21053534e-06 | J131: -1.430945531e-06 | K131: -0.00047875982 | L131: 4.569069151e-06 | M131: 0.001426189245 | N131: 6.445875668e-08
A132: 63.43864 | B132: ='DF raw data'!A137 -> 8.9017294e-06 | C132: ='DF raw data'!B137 -> 1.6737092e-06 | D132: ='DF raw data'!C137 -> -7.110536e-06 | F132: 8.911556909e-06 | G132: 1.678879191e-06 | H132: -7.118386032e-06 | J132: 3.026080542e-06 | K132: -0.000477246356 | L132: 5.408743789e-06 | M132: 0.001428894374 | N132: 6.44779679e-08
A133: 63.93878 | B133: ='DF raw data'!A138 -> 1.1997358e-05 | C133: ='DF raw data'!B138 -> 4.6156447e-06 | D133: ='DF raw data'!C138 -> -5.7226907e-06 | F133: 1.201060308e-05 | G133: 4.629902161e-06 | H133: -5.729008551e-06 | J133: 9.033063568e-06 | K133: -0.0004727285596 | L133: 7.724343056e-06 | M133: 0.001432757627 | N133: 6.454861853e-08
A134: 64.43892 | B134: ='DF raw data'!A139 -> 1.1662621e-05 | C134: ='DF raw data'!B139 -> 1.2217258e-05 | D134: ='DF raw data'!C139 -> -5.745188e-06 | F134: 1.167549653e-05 | G134: 1.225499641e-05 | H134: -5.751530688e-06 | J134: 1.48724464e-05 | K134: -0.0004652902543 | L134: 1.385355696e-05 | M134: 0.001439686345 | N134: 6.475523172e-08
A135: 64.93906 | B135: ='DF raw data'!A140 -> 1.1480183e-05 | C135: ='DF raw data'!B140 -> 1.4861517e-05 | D135: ='DF raw data'!C140 -> -4.2819347e-06 | F135: 1.149285712e-05 | G135: =(1-$G$1*($B$2-$G$2))*C135*$M$2/$M$1 -> 1.490742337e-05 | H135: -4.286661956e-06 | J135: 2.062048397e-05 | K135: -0.0004549771254 | L135: 2.130935568e-05 | M135: 0.001450344006 | N135: 6.519500132e-08
A136: =A135+$B$1 -> 65.4392 | B136: ='DF raw data'!A141 -> 5.8521423e-06 | C136: ='DF raw data'!B141 -> 9.1824568e-06 | D136: ='DF raw data'!C141 -> 1.3207273e-06 | F136: 5.858603065e-06 | G136: 9.210820881e-06 | H136: 1.322185383e-06 | J136: =F136*$B$1+J135 -> 2.35506057e-05 | K136: =J136*$B$1+K135 -> -0.0004431985255 | L136: =G136*$B$1+L135 -> 2.591605564e-05 | M136: =L136*$B$1+M135 -> 0.001463305662 | N136: =(J136^2+L136^2)*$B$1+N135 -> 6.580830948e-08
A137: 65.93934 | B137: ='DF raw data'!A142 -> 2.9310715e-07 | C137: ='DF raw data'!B142 -> -4.7609492e-06 | D137: ='DF raw data'!C142 -> 2.6470761e-06 | F137: 2.934307403e-07 | G137: -4.775655498e-06 | H137: 2.649998472e-06 | J137: 2.369736215e-05 | K137: -0.0004313465268 | L137: 2.35275593e-05 | M137: 0.001475072735 | N137: 6.63660211e-08
A138: 66.43948 | B138: ='DF raw data'!A143 -> -3.0884232e-06 | C138: ='DF raw data'!B143 -> -5.8334363e-06 | D138: ='DF raw data'!C143 -> 2.3110901e-07 | F138: -3.091832819e-06 | G138: -5.851455449e-06 | H138: 2.313641543e-07 | J138: 2.215101289e-05 | K138: -0.0004202679192 | L138: 2.060101237e-05 | M138: 0.001485376126 | N138: 6.682368376e-08
A139: 66.93962 | B139: ='DF raw data'!A144 -> -5.9899799e-07 | C139: ='DF raw data'!B144 -> 7.5124826e-06 | D139: ='DF raw data'!C144 -> 3.4151844e-06 | F139: =(1-$G$1*($B$2-$G$2))*B139 -> -5.996592838e-07 | G139: 7.535688227e-06 | H139: =(1-$G$1*($B$2-$G$2))*D139 -> 3.418954764e-06 | J139: 2.185109929e-05 | K139: -0.0004093393104 | L139: 2.436991148e-05 | M139: 0.001497564493 | N139: 6.735951531e-08
A140: 67.43976 | B140: ='DF raw data'!A145 -> 7.5612647e-06 | C140: ='DF raw data'!B145 -> -2.8460204e-07 | D140: ='DF raw data'!C145 -> 3.3283968e-06 | F140: 7.569612336e-06 | G140: -2.854811593e-07 | H140: 3.33207135e-06 | J140: 2.563696521e-05 | K140: -0.0003965172386 | L140: 2.422713093e-05 | M140: 0.001509681451 | N140: 6.798179343e-08
A141: 67.9399 | B141: ='DF raw data'!A146 -> 1.1928819e-05 | C141: ='DF raw data'!B146 -> -1.5117305e-06 | D141: ='DF raw data'!C146 -> 2.1171099e-06 | F141: 1.194198842e-05 | G141: -1.516400149e-06 | H141: 2.119447189e-06 | J141: 3.160963129e-05 | K141: -0.0003807079976 | L141: 2.346871856e-05 | M141: 0.001521419095 | N141: 6.875698519e-08
A142: 68.44004 | B142: ='DF raw data'!A147 -> 4.9484829e-06 | C142: ='DF raw data'!B147 -> 7.0941878e-06 | D142: ='DF raw data'!C147 -> 6.739424e-06 | F142: 4.953946025e-06 | G142: 7.116101338e-06 | H142: 6.746864324e-06 | J142: 3.408729786e-05 | K142: -0.0003636595765 | L142: 2.702776549e-05 | M142: 0.001534936762 | N142: 6.970347212e-08
A143: 68.94018 | B143: ='DF raw data'!A148 -> -2.5693128e-06 | C143: ='DF raw data'!B148 -> 1.067057e-05 | D143: ='DF raw data'!C148 -> 6.4915175e-06 | F143: -2.572149321e-06 | G143: 1.070353078e-05 | H143: 6.498684135e-06 | J143: 3.28008631e-05 | K143: -0.0003472545528 | L143: 3.238102937e-05 | M143: 0.00155113181 | N143: 7.076598339e-08
A144: 69.44032 | B144: ='DF raw data'!A149 -> 1.6835358e-07 | C144: ='DF raw data'!B149 -> -5.6662529e-06 | D144: ='DF raw data'!C149 -> 7.8616273e-07 | F144: 1.685394424e-07 | G144: -5.683755629e-06 | H144: 7.870306537e-07 | J144: 3.288515641e-05 | K144: -0.0003308073707 | L144: 2.953835583e-05 | M144: 0.001565905123 | N144: 7.174323093e-08
A145: 69.94046 | B145: ='DF raw data'!A150 -> 7.3690194e-06 | C145: ='DF raw data'!B150 -> -3.14061e-06 | D145: ='DF raw data'!C150 -> -2.5489908e-06 | F145: 7.377154797e-06 | G145: -3.150311164e-06 | H145: -2.551804886e-06 | J145: 3.657476661e-05 | K145: -0.0003125148669 | L145: 2.79627592e-05 | M145: 0.001579890418 | N145: 7.28033424e-08
A146: 70.4406 | B146: ='DF raw data'!A151 -> 6.0262269e-06 | C146: ='DF raw data'!B151 -> 3.1201932e-06 | D146: ='DF raw data'!C151 -> 3.4931827e-06 | F146: 6.032879854e-06 | G146: 3.129831297e-06 | H146: 3.497039174e-06 | J146: 3.959205114e-05 | K146: -0.0002927132984 | L146: 2.952811303e-05 | M146: 0.001594658608 | N146: 7.402340391e-08
A147: 70.94074 | B147: ='DF raw data'!A152 -> 2.3042692e-06 | C147: ='DF raw data'!B152 -> 8.8266061e-06 | D147: ='DF raw data'!C152 -> 1.0467293e-06 | F147: 2.306813113e-06 | G147: 8.853870978e-06 | H147: 1.047884889e-06 | J147: 4.074578065e-05 | K147: -0.0002723347037 | L147: 3.395628806e-05 | M147: 0.001611641506 | N147: 7.543042184e-08
A148: 71.44088 | B148: ='DF raw data'!A153 -> 3.2334603e-07 | C148: ='DF raw data'!B153 -> 7.8871462e-06 | D148: ='DF raw data'!C153 -> -1.230264e-07 | F148: 3.23703004e-07 | G148: 7.911509141e-06 | H148: -1.231622211e-07 | J148: 4.090767747e-05 | K148: -0.0002518751379 | L148: 3.791315024e-05 | M148: 0.001630603389 | N148: 7.698627987e-08
A149: 71.94102 | B149: ='DF raw data'!A154 -> -5.2365481e-06 | C149: ='DF raw data'!B154 -> -1.3709662e-06 | D149: ='DF raw data'!C154 -> 6.2251189e-07 | F149: -5.242329249e-06 | G149: -1.375201036e-06 | H149: 6.231991431e-07 | J149: 3.828577892e-05 | K149: -0.0002327268884 | L149: 3.722535719e-05 | M149: 0.001649221279 | N149: 7.841244313e-08
A150: 72.44116 | B150: ='DF raw data'!A155 -> -5.6275726e-06 | C150: ='DF raw data'!B155 -> -2.2970828e-06 | D150: ='DF raw data'!C155 -> -5.141007e-06 | F150: -5.63378544e-06 | G150: -2.304178357e-06 | H150: -5.146682672e-06 | J150: 3.546809747e-05 | K150: -0.0002149878741 | L150: 3.607294543e-05 | M150: 0.001667262802 | N150: 7.969242309e-08
A151: 72.9413 | B151: ='DF raw data'!A156 -> 9.01872e-07 | C151: ='DF raw data'!B156 -> 6.7440751e-06 | D151: ='DF raw data'!C156 -> -8.9624127e-06 | F151: 9.028676667e-07 | G151: 6.76490716e-06 | H151: -8.972307204e-06 | J151: 3.591965771e-05 | K151: -0.0001970230165 | L151: 3.94563461e-05 | M151: 0.001686996499 | N151: 8.11163342e-08
A152: 73.44144 | B152: ='DF raw data'!A157 -> -1.9611446e-06 | C152: ='DF raw data'!B157 -> 7.1923905e-06 | D152: ='DF raw data'!C157 -> -4.72392e-06 | F152: -1.963309704e-06 | G152: 7.21460738e-06 | H152: -4.729135208e-06 | J152: 3.493772799e-05 | K152: -0.0001795492613 | L152: 4.306465983e-05 | M152: 0.001708534858 | N152: 8.265436961e-08
A153: 73.94158 | B153: ='DF raw data'!A158 -> -7.8068088e-06 | C153: ='DF raw data'!B158 -> -5.6840907e-08 | D153: ='DF raw data'!C158 -> 3.8548415e-06 | F153: -7.815427517e-06 | G153: -5.701648529e-08 | H153: 3.859097245e-06 | J153: 3.102892008e-05 | K153: -0.0001640304572 | L153: 4.303614361e-05 | M153: 0.001730058955 | N153: 8.406221547e-08
A154: 74.44172 | B154: ='DF raw data'!A159 -> -2.9953637e-06 | C154: ='DF raw data'!B159 -> 5.9615081e-07 | D154: ='DF raw data'!C159 -> 6.0033299e-06 | F154: -2.998670582e-06 | G154: 5.979922856e-07 | H154: 6.009957576e-06 | J154: 2.952916497e-05 | K154: -0.0001492617406 | L154: 4.333522347e-05 | M154: 0.001751732634 | N154: 8.543755704e-08
A155: 74.94186 | B155: ='DF raw data'!A160 -> 2.5565848e-06 | C155: ='DF raw data'!B160 -> 5.5904648e-06 | D155: ='DF raw data'!C160 -> 1.9420067e-06 | F155: 2.55940727e-06 | G155: 5.607733424e-06 | H155: 1.944150675e-06 | J155: 3.080922692e-05 | K155: -0.0001338528139 | L155: 4.613987526e-05 | M155: 0.001774809031 | N155: 8.697703625e-08
A156: 75.442 | B156: ='DF raw data'!A161 -> 1.4560817e-06 | C156: ='DF raw data'!B161 -> 2.9540759e-06 | D156: ='DF raw data'!C161 -> 1.1292532e-06 | F156: 1.457689214e-06 | G156: 2.96320087e-06 | H156: 1.130499896e-06 | J156: 3.153827561e-05 | K156: -0.0001180792607 | L156: 4.762189055e-05 | M156: 0.001798626643 | N156: 8.860874665e-08
A157: 75.94214 | B157: ='DF raw data'!A162 -> -3.2506189e-06 | C157: ='DF raw data'!B162 -> 2.924188e-06 | D157: ='DF raw data'!C162 -> 1.0579633e-06 | F157: -3.254207583e-06 | G157: 2.933220648e-06 | H157: 1.059131291e-06 | J157: 2.991071623e-05 | K157: -0.0001031197151 | L157: 4.908891152e-05 | M157: 0.001823177971 | N157: 9.026139535e-08
A158: 76.44228 | B158: ='DF raw data'!A163 -> -2.3079167e-06 | C158: ='DF raw data'!B163 -> -9.8604907e-08 | D158: ='DF raw data'!C163 -> -9.3241297e-06 | F158: -2.31046464e-06 | G158: -9.890949188e-08 | H158: -9.334423539e-06 | J158: 2.875516044e-05 | K158: -8.873810914e-05 | L158: 4.903944293e-05 | M158: 0.001847704558 | N158: 9.18777109e-08
A159: 76.94242 | B159: ='DF raw data'!A164 -> 1.4018176e-06 | C159: ='DF raw data'!B164 -> 2.0996092e-06 | D159: ='DF raw data'!C164 -> -1.9928328e-05 | F159: 1.403365207e-06 | G159: 2.106094772e-06 | H159: -1.995032887e-05 | J159: 2.945703951e-05 | K159: -7.40054654e-05 | L159: 5.009278517e-05 | M159: 0.001872757964 | N159: 9.356668583e-08
A160: 77.44256 | B160: ='DF raw data'!A165 -> -3.2143701e-06 | C160: ='DF raw data'!B165 -> 3.9929409e-06 | D160: ='DF raw data'!C165 -> -1.4284936e-05 | F160: -3.217918765e-06 | G160: 4.005274865e-06 | H160: -1.430070657e-05 | J160: 2.784762962e-05 | K160: -6.007775192e-05 | L160: 5.209598334e-05 | M160: 0.001898813249 | N160: 9.531191534e-08
A161: 77.9427 | B161: ='DF raw data'!A166 -> -1.6586393e-06 | C161: ='DF raw data'!B166 -> -6.337807e-07 | D161: ='DF raw data'!C166 -> -4.3166701e-06 | F161: -1.660470438e-06 | G161: -6.357384121e-07 | H161: -4.321435704e-06 | J161: 2.701716194e-05 | K161: -4.656538854e-05 | L161: 5.177802513e-05 | M161: 0.00192470951 | N161: 9.701783833e-08
A162: 78.44284 | B162: ='DF raw data'!A167 -> 5.8066239e-06 | C162: ='DF raw data'!B167 -> -6.0349271e-07 | D162: ='DF raw data'!C167 -> -3.1363934e-06 | F162: 5.813034413e-06 | G162: -6.053568643e-07 | H162: -3.139855978e-06 | J162: 2.992449297e-05 | K162: -3.159895263e-05 | L162: 5.147526195e-05 | M162: 0.001950454348 | N162: 9.879092359e-08
A163: 78.94298 | B163: ='DF raw data'!A168 -> 7.9397314e-06 | C163: ='DF raw data'!B168 -> 1.332926e-07 | D163: ='DF raw data'!C168 -> -2.8324475e-06 | F163: 7.948496863e-06 | G163: 1.337043332e-07 | H163: -2.835574522e-06 | J163: 3.389985419e-05 | K163: -1.464427955e-05 | L163: 5.154213283e-05 | M163: 0.00197623263 | N163: 1.006943522e-07
A164: 79.44312 | B164: ='DF raw data'!A169 -> 6.5235677e-06 | C164: ='DF raw data'!B169 -> 1.3578882e-05 | D164: ='DF raw data'!C169 -> 3.9247197e-06 | F164: 6.530769719e-06 | G164: 1.362082639e-05 | H164: 3.929052591e-06 | J164: 3.716615336e-05 | K164: 3.944000387e-06 | L164: 5.835445294e-05 | M164: 0.002005418026 | N164: 1.030883049e-07
A165: 79.94326 | B165: ='DF raw data'!A170 -> -3.5656311e-07 | C165: ='DF raw data'!B170 -> 1.8437499e-05 | D165: ='DF raw data'!C170 -> 7.1615168e-06 | F165: -3.569567557e-07 | G165: 1.849445137e-05 | H165: 7.169423115e-06 | J165: 3.698762501e-05 | K165: 2.244299116e-05 | L165: 6.760426785e-05 | M165: 0.002039229625 | N165: 1.06058347e-07
A166: 80.4434 | B166: ='DF raw data'!A171 -> -3.4322413e-06 | C166: ='DF raw data'!B171 -> 9.463588e-06 | D166: ='DF raw data'!C171 -> -3.3666308e-07 | F166: -3.436030494e-06 | G166: 9.492820479e-06 | H166: -3.37034756e-07 | J166: 3.526912872e-05 | K166: 4.008249319e-05 | L166: 7.235200709e-05 | M166: 0.002075415758 | N166: 1.092986162e-07
A167: 80.94354 | B167: ='DF raw data'!A172 -> -3.3071531e-06 | C167: ='DF raw data'!B172 -> 3.4485572e-06 | D167: ='DF raw data'!C172 -> -1.3528816e-06 | F167: -3.310804197e-06 | G167: 3.459209595e-06 | H167: -1.354375181e-06 | J167: 3.36132631e-05 | K167: 5.68938306e-05 | L167: 7.408209617e-05 | M167: 0.002112467177 | N167: 1.126085469e-07
A168: 81.44368 | B168: ='DF raw data'!A173 -> -4.6509499e-06 | C168: ='DF raw data'!B173 -> 1.0137128e-05 | D168: ='DF raw data'!C173 -> 8.8855986e-06 | F168: -4.656084549e-06 | G168: 1.016844101e-05 | H168: 8.895408301e-06 | J168: 3.128456898e-05 | K168: 7.254049493e-05 | L168: 7.916774026e-05 | M168: 0.002152062131 | N168: 1.162326891e-07
A169: 81.94382 | B169: ='DF raw data'!A174 -> -1.0075721e-06 | C169: ='DF raw data'!B174 -> 7.9962892e-06 | D169: ='DF raw data'!C174 -> 6.9993212e-06 | F169: -1.00868446e-06 | G169: 8.020989277e-06 | H169: 7.007048451e-06 | J169: 3.078008553e-05 | K169: 8.793484691e-05 | L169: 8.317935783e-05 | M169: 0.002193663455 | N169: 1.201668999e-07
A170: 82.44396 | B170: ='DF raw data'!A175 -> 2.1862677e-06 | C170: ='DF raw data'!B175 -> 6.8488112e-07 | D170: ='DF raw data'!C175 -> 3.9301767e-06 | F170: 2.18868134e-06 | G170: 6.869966784e-07 | H170: 3.934515615e-06 | J170: 3.187473262e-05 | K170: 0.0001038766757 | L170: 8.352295235e-05 | M170: 0.002235436624 | N170: 1.241640599e-07
A171: 82.9441 | B171: ='DF raw data'!A176 -> 1.9877505e-06 | C171: ='DF raw data'!B176 -> 6.3570033e-06 | D171: ='DF raw data'!C176 -> 7.0706692e-06 | F171: 1.989944977e-06 | G171: 6.376639717e-06 | H171: 7.078475219e-06 | J171: 3.28699837e-05 | K171: 0.0001203162693 | L171: 8.671216494e-05 | M171: 0.002278804847 | N171: 1.284649815e-07
A172: 83.44424 | B172: ='DF raw data'!A177 -> -6.6707184e-07 | C172: ='DF raw data'!B177 -> -1.8725179e-06 | D172: ='DF raw data'!C177 -> 6.5624323e-07 | F172: -6.678082873e-07 | G172: -1.878302e-06 | H172: 6.569677225e-07 | J172: 3.253598606e-05 | K172: 0.0001365888174 | L172: 8.577275098e-05 | M172: 0.00232170323 | N172: 1.326739373e-07
A173: 83.94438 | B173: ='DF raw data'!A178 -> -1.330028e-06 | C173: ='DF raw data'!B178 -> -7.0193373e-06 | D173: ='DF raw data'!C178 -> -4.1564099e-06 | F173: -1.331496351e-06 | G173: -7.041019629e-06 | H173: -4.160998577e-06 | J173: 3.187005148e-05 | K173: 0.0001525283049 | L173: 8.225125542e-05 | M173: 0.002362840373 | N173: 1.365655112e-07
A174: 84.44452 | B174: ='DF raw data'!A179 -> 1.6676229e-06 | C174: ='DF raw data'!B179 -> -9.2843993e-06 | D174: ='DF raw data'!C179 -> -2.8346449e-06 | F174: 1.669463956e-06 | G174: -9.313078275e-06 | H174: -2.837774348e-06 | J174: 3.270501718e-05 | K174: 0.0001688853922 | L174: 7.759341245e-05 | M174: 0.002401647942 | N174: 1.401116818e-07
A175: 84.94466 | B175: ='DF raw data'!A180 -> 6.435464e-07 | C175: ='DF raw data'!B180 -> -9.0200783e-06 | D175: ='DF raw data'!C180 -> 8.1018794e-07 | F175: 6.442568752e-07 | G175: -9.047940803e-06 | H175: 8.110823875e-07 | J175: 3.302723581e-05 | K175: 0.000185403634 | L175: 7.306817534e-05 | M175: 0.00243819226 | N175: 1.433274602e-07
A176: 85.4448 | B176: ='DF raw data'!A181 -> -7.0486317e-07 | C176: ='DF raw data'!B181 -> -7.2113389e-06 | D176: ='DF raw data'!C181 -> 2.5310828e-06 | F176: -7.056413389e-07 | G176: -7.233614311e-06 | H176: 2.533877115e-06 | J176: 3.267431635e-05 | K176: 0.0002017453665 | L176: 6.945035548e-05 | M176: 0.00247292716 | N176: 1.462737664e-07
A177: 85.94494 | B177: ='DF raw data'!A182 -> -4.5483589e-06 | C177: ='DF raw data'!B182 -> -6.5141821e-06 | D177: ='DF raw data'!C182 -> 2.2998674e-06 | F177: -4.553380288e-06 | G177: -6.534304034e-06 | H177: 2.302406454e-06 | J177: 3.039698874e-05 | K177: 0.0002169481165 | L177: 6.618228866e-05 | M177: 0.00250602757 | N177: 1.489265451e-07
A178: 86.44508 | B178: ='DF raw data'!A183 -> -8.0565778e-06 | C178: ='DF raw data'!B183 -> -8.0373875e-06 | D178: ='DF raw data'!C183 -> 1.1623879e-06 | F178: -8.065472262e-06 | G178: -8.062214528e-06 | H178: 1.163671176e-06 | J178: 2.636312344e-05 | K178: 0.000230133369 | L178: 6.215005269e-05 | M178: 0.002537111298 | N178: 1.512060048e-07
A179: 86.94522 | B179: ='DF raw data'!A184 -> -7.8527928e-06 | C179: ='DF raw data'!B184 -> -2.904578e-06 | D179: ='DF raw data'!C184 -> 3.7705016e-07 | F179: -7.861462283e-06 | G179: -2.913550074e-06 | H179: 3.774664234e-07 | J179: 2.243129169e-05 | K179: 0.0002413521553 | L179: 6.069286975e-05 | M179: 0.002567466229 | N179: 1.532999846e-07
A180: 87.44536 | B180: ='DF raw data'!A185 -> -1.2396606e-06 | C180: ='DF raw data'!B185 -> 3.0360013e-06 | D180: ='DF raw data'!C185 -> -1.1917015e-07 | F180: -1.241029185e-06 | G180: 3.045379333e-06 | H180: -1.193017138e-07 | J180: 2.181060336e-05 | K180: 0.0002522605104 | L180: 6.221598577e-05 | M180: 0.002598582933 | N180: 1.554738588e-07
A181: 87.9455 | B181: ='DF raw data'!A186 -> 5.4368888e-06 | C181: ='DF raw data'!B186 -> 4.3090286e-06 | D181: ='DF raw data'!C186 -> 1.6261315e-07 | F181: 5.442891125e-06 | G181: 4.322338941e-06 | H181: 1.627926749e-07 | J181: 2.453281092e-05 | K181: 0.0002645303505 | L181: 6.437776037e-05 | M181: 0.002630780826 | N181: 1.578477007e-07
A182: 88.44564 | B182: ='DF raw data'!A187 -> 8.5300667e-07 | C182: ='DF raw data'!B187 -> 1.1770924e-06 | D182: ='DF raw data'!C187 -> 2.0780381e-06 | F182: 8.539483894e-07 | G182: 1.180728371e-06 | H182: 2.080332254e-06 | J182: 2.495990467e-05 | K182: 0.0002770137972 | L182: 6.496828986e-05 | M182: 0.002663274066 | N182: 1.602703166e-07
A183: 88.94578 | B183: ='DF raw data'!A188 -> -4.0062273e-06 | C183: ='DF raw data'!B188 -> -6.178213e-06 | D183: ='DF raw data'!C188 -> 3.3786185e-07 | F183: -4.010650175e-06 | G183: -6.197297144e-06 | H183: 3.382348495e-07 | J183: 2.295401809e-05 | K183: 0.0002884940198 | L183: 6.186877366e-05 | M183: 0.002694217115 | N183: 1.624482423e-07
A184: 89.44592 | B184: ='DF raw data'!A189 -> -3.0279455e-06 | C184: ='DF raw data'!B189 -> -1.8750536e-06 | D184: ='DF raw data'!C189 -> -2.0304042e-06 | F184: -3.031288352e-06 | G184: -1.880845533e-06 | H184: -2.032645766e-06 | J184: 2.143794954e-05 | K184: 0.0002992159959 | L184: 6.092808758e-05 | M184: 0.002724689688 | N184: 1.645347351e-07
A185: 89.94606 | B185: ='DF raw data'!A190 -> -1.3244983e-06 | C185: ='DF raw data'!B190 -> 1.0906322e-06 | D185: ='DF raw data'!C190 -> -3.7766486e-06 | F185: -1.325960546e-06 | G185: 1.0940011e-06 | H185: -3.78081802e-06 | J185: 2.077478363e-05 | K185: 0.0003096062962 | L185: 6.147524129e-05 | M185: 0.002755435916 | N185: 1.666407231e-07
A186: 90.4462 | B186: ='DF raw data'!A191 -> -6.3704915e-06 | C186: ='DF raw data'!B191 -> 4.7864314e-06 | D186: ='DF raw data'!C191 -> 9.4875128e-07 | F186: -6.377524523e-06 | G186: 4.801216411e-06 | H186: 9.497987014e-07 | J186: 1.758512851e-05 | K186: 0.0003184013224 | L186: 6.387652166e-05 | M186: 0.002787383119 | N186: 1.68836061e-07
A187: 90.94634 | B187: ='DF raw data'!A192 -> -8.4279718e-06 | C187: ='DF raw data'!B192 -> 9.1853917e-06 | D187: ='DF raw data'!C192 -> 4.1665144e-06 | F187: -8.437276281e-06 | G187: 9.213764846e-06 | H187: 4.171114232e-06 | J187: 1.336530915e-05 | K187: 0.0003250858481 | L187: 6.848469401e-05 | M187: 0.002821635054 | N187: 1.71271135e-07
A188: 91.44648 | B188: ='DF raw data'!A193 -> -2.77189e-06 | C188: ='DF raw data'!B193 -> -4.0621917e-06 | D188: ='DF raw data'!C193 -> 1.0320173e-06 | F188: -2.774950167e-06 | G188: -4.074739576e-06 | H188: 1.033156647e-06 | J188: 1.197744558e-05 | K188: 0.0003310762477 | L188: 6.644675376e-05 | M188: 0.002854867733 | N188: 1.735510884e-07
A189: 91.94662 | B189: ='DF raw data'!A194 -> -1.2939247e-06 | C189: ='DF raw data'!B194 -> -9.8291794e-06 | D189: ='DF raw data'!C194 -> -8.3522364e-06 | F189: -1.295353193e-06 | G189: -9.85954117e-06 | H189: -8.361457269e-06 | J189: 1.132958763e-05 | K189: 0.0003367426277 | L189: 6.151560284e-05 | M189: 0.002885634147 | N189: 1.755079006e-07
A190: 92.44676 | B190: ='DF raw data'!A195 -> 4.6466738e-08 | C190: ='DF raw data'!B195 -> 3.7224825e-06 | D190: ='DF raw data'!C195 -> -1.0219349e-05 | F190: 4.651803728e-08 | G190: 3.733981034e-06 | H190: -1.023063116e-05 | J190: 1.135285316e-05 | K190: 0.0003424206436 | L190: 6.338311612e-05 | M190: 0.002917334579 | N190: 1.775816344e-07
A191: 92.9469 | B191: ='DF raw data'!A196 -> 2.8906677e-06 | C191: ='DF raw data'!B196 -> 1.306025e-05 | D191: ='DF raw data'!C196 -> -3.5907042e-06 | F191: 2.893858997e-06 | G191: 1.310059236e-05 | H191: -3.594668337e-06 | J191: 1.28001878e-05 | K191: 0.0003488225296 | L191: 6.993524638e-05 | M191: 0.002952311993 | N191: 1.801097338e-07
A192: 93.44704 | B192: ='DF raw data'!A197 -> -3.1917924e-07 | C192: ='DF raw data'!B197 -> 1.059038e-05 | D192: ='DF raw data'!C197 -> -2.4505616e-06 | F192: -3.195316139e-07 | G192: 1.062309307e-05 | H192: -2.45326702e-06 | J192: 1.264037726e-05 | K192: 0.0003551444879 | L192: 7.524828015e-05 | M192: 0.002989946668 | N192: 1.830215903e-07
A193: 93.94718 | B193: ='DF raw data'!A198 -> -4.8897905e-06 | C193: ='DF raw data'!B198 -> 1.0916209e-05 | D193: ='DF raw data'!C198 -> -6.6231632e-06 | F193: -4.895188829e-06 | G193: 1.094992854e-05 | H193: -6.630475172e-06 | J193: 1.019209752e-05 | K193: 0.0003602419635 | L193: 8.072477741e-05 | M193: 0.003030320358 | N193: 1.863327015e-07
A194: 94.44732 | B194: ='DF raw data'!A199 -> -6.9175708e-06 | C194: ='DF raw data'!B199 -> 1.063281e-05 | D194: ='DF raw data'!C199 -> -4.580962e-06 | F194: -6.925207798e-06 | G194: 1.066565414e-05 | H194: -4.586019382e-06 | J194: 6.728524092e-06 | K194: 0.0003636071675 | L194: 8.605909767e-05 | M194: 0.003073361955 | N194: 1.900594653e-07
A195: 94.94746 | B195: ='DF raw data'!A200 -> -7.3231326e-06 | C195: ='DF raw data'!B200 -> 9.2304685e-07 | D195: ='DF raw data'!C200 -> 9.9460431e-07 | F195: -7.331217338e-06 | G195: 9.258980886e-07 | H195: 9.957023532e-07 | J195: 3.061889053e-06 | K195: 0.0003651385407 | L195: 8.652217634e-05 | M195: 0.003116635156 | N195: 1.938082458e-07
A196: 95.4476 | B196: ='DF raw data'!A201 -> -5.0332287e-06 | C196: ='DF raw data'!B201 -> -2.6692117e-06 | D196: ='DF raw data'!C201 -> 2.2739796e-06 | F196: -5.038785384e-06 | G196: -2.677456741e-06 | H196: 2.276490073e-06 | J196: 5.417909303e-07 | K196: 0.0003654095121 | L196: 8.518307313e-05 | M196: 0.003159238618 | N196: 1.974374864e-07
A197: 95.94774 | B197: ='DF raw data'!A202 -> -2.3772711e-06 | C197: ='DF raw data'!B202 -> -1.8442327e-06 | D197: ='DF raw data'!C202 -> 1.9579848e-06 | F197: -2.379895607e-06 | G197: -1.849929429e-06 | H197: 1.960146415e-06 | J197: -6.484900587e-07 | K197: 0.0003650851762 | L197: 8.425784942e-05 | M197: 0.003201379339 | N197: 2.009883833e-07
A198: 96.44788 | B198: ='DF raw data'!A203 -> -6.2155345e-07 | C198: ='DF raw data'!B203 -> -1.5946416e-05 | D198: ='DF raw data'!C203 -> -1.3100844e-06 | F198: -6.22239645e-07 | G198: -1.599567356e-05 | H198: -1.311530733e-06 | J198: -9.596969948e-07 | K198: 0.0003646051934 | L198: 7.625777325e-05 | M198: 0.003239518902 | N198: 2.03897282e-07
A199: 96.94802 | B199: ='DF raw data'!A204 -> -8.9082209e-07 | C199: ='DF raw data'!B204 -> -1.1734254e-05 | D199: ='DF raw data'!C204 -> -1.2362188e-06 | F199: -8.918055576e-07 | G199: =(1-$G$1*($B$2-$G$2))*C199*$M$2/$M$1 -> -1.177050044e-05 | H199: -1.237583586e-06 | J199: -1.405724626e-06 | K199: 0.0003639021343 | L199: 7.037087516e-05 | M199: 0.003274714191 | N199: 2.063749936e-07
A200: =A199+$B$1 -> 97.44816 | B200: ='DF raw data'!A205 -> -3.7350812e-06 | C200: ='DF raw data'!B205 -> 2.2543834e-06 | D200: ='DF raw data'!C205 -> -1.5421583e-06 | F200: -3.73920473e-06 | G200: 2.261347061e-06 | H200: -1.543860843e-06 | J200: =F200*$B$1+J199 -> -3.27585048e-06 | K200: =J200*$B$1+K199 -> 0.0003622637504 | L200: =G200*$B$1+L199 -> 7.150186528e-05 | M200: =L200*$B$1+M199 -> 0.003310475134 | N200: =(J200^2+L200^2)*$B$1+N199 -> 2.089373349e-07
A201: 97.9483 | B201: ='DF raw data'!A206 -> -2.4515587e-06 | C201: ='DF raw data'!B206 -> 8.424724e-06 | D201: ='DF raw data'!C206 -> -2.4944793e-06 | F201: -2.454265221e-06 | G201: 8.450747488e-06 | H201: -2.497233205e-06 | J201: -4.503326687e-06 | K201: 0.0003600114566 | L201: 7.572842213e-05 | M201: 0.003348349947 | N201: 2.118156775e-07
... 1002 more rows

Sheet 10 x=-1
A1: dz | B1: ='DF raw data'!E7 -> 0.50014 | C1: mm | F1: T_coeff | G1: -0.0008 | H1: /degC | L1: Hallref | M1: ='PI vs gap'!B44 -> 0.50561 | N1: T | P1: IBy total | Q1: =L1203*1000 -> -11.38700559 | R1: muTm | X1: DF ref | Y1: 19
A2: Tref | B2: ='DF raw data'!E8 -> 21.36 | C2: degC | F2: Tcorr | G2: 20 | H2: degC | L2: NMRref | M2: ='PI vs gap'!B45 -> 0.5066125 | N2: T | P2: JBy total | Q2: =M1203 -> -4.022991918 | R2: muTm^2
A3: Encoder | B3: ='DF raw data'!E9 -> 17908798 | P3: PI total | Q3: =N1203 -> 711.8266655 | R3: T^2mm^3
A5: z [mm] | B5: Bx | C5: By | D5: Bz | F5: Bx_corr | G5: By_corr | H5: Bz_corr | J5: Ix | K5: Jx | L5: Iy | M5: Jy | N5: PI
A6: ='PI vs gap'!B53 -> 0.421 | B6: ='DF raw data'!D11 -> -9.9594645e-06 | C6: ='DF raw data'!E11 -> 9.1907145e-07 | D6: ='DF raw data'!F11 -> -9.0182875e-06 | F6: =(1-$G$1*($B$2-$G$2))*B6 -> -9.970300397e-06 | G6: =(1-$G$1*($B$2-$G$2))*C6*$M$2/$M$1 -> 9.218956745e-07 | H6: =(1-$G$1*($B$2-$G$2))*D6 -> -9.028099397e-06 | J6: =F6*$B$1 -> -4.986546041e-06 | K6: =J6*$B$1 -> -2.493971137e-06 | L6: =G6*$B$1 -> 4.610769027e-07 | M6: =L6*$B$1 -> 2.306030021e-07 | N6: =(J6^2+L6)^2*$B$1 -> 1.063371864e-13
A7: =A6+$B$1 -> 0.92114 | B7: ='DF raw data'!D12 -> -9.8901828e-06 | C7: ='DF raw data'!E12 -> 6.4127539e-07 | D7: ='DF raw data'!F12 -> 6.3444895e-07 | F7: =(1-$G$1*($B$2-$G$2))*B7 -> -9.900943319e-06 | G7: =(1-$G$1*($B$2-$G$2))*C7*$M$2/$M$1 -> 6.43245972e-07 | H7: 6.351392305e-07 | J7: =F7*$B$1+J6 -> -9.938403832e-06 | K7: =J7*$B$1+K6 -> -7.464564429e-06 | L7: =G7*$B$1+L6 -> 7.827899431e-07 | M7: =L7*$B$1+M6 -> 6.221075642e-07 | N7: =(J7^2+L7^2)*$B$1+N6 -> 4.981256645e-11
A8: =A7+$B$1 -> 1.42128 | B8: ='DF raw data'!D13 -> -1.0056322e-05 | C8: ='DF raw data'!E13 -> 4.4934527e-06 | D8: ='DF raw data'!F13 -> -3.2973621e-06 | F8: -1.006726328e-05 | G8: 4.507260679e-06 | H8: -3.30094963e-06 | J8: =F8*$B$1+J7 -> -1.497344489e-05 | K8: =J8*$B$1+K7 -> -1.495338316e-05 | L8: =G8*$B$1+L7 -> 3.037051299e-06 | M8: =L8*$B$1+M7 -> 2.141058401e-06 | N8: =(J8^2+L8^2)*$B$1+N7 -> 1.665591125e-10
A9: 1.92142 | B9: ='DF raw data'!D14 -> -9.9353665e-06 | C9: ='DF raw data'!E14 -> 1.14523e-06 | D9: ='DF raw data'!F14 -> -3.3419492e-06 | F9: -9.946176179e-06 | G9: 1.14874919e-06 | H9: -3.345585241e-06 | J9: -1.994792544e-05 | K9: -2.493013859e-05 | L9: 3.611586719e-06 | M9: 3.947357383e-06 | N9: 3.720982914e-10
A10: 2.42156 | B10: ='DF raw data'!D15 -> -9.9552008e-06 | C10: ='DF raw data'!E15 -> 2.4213275e-06 | D10: ='DF raw data'!F15 -> 1.2377568e-06 | F10: -9.966032058e-06 | G10: 2.428768023e-06 | H10: 1.239103479e-06 | J10: -2.493233672e-05 | K10: -3.739979747e-05 | L10: 4.826310758e-06 | M10: 6.361188445e-06 | N10: 6.946459243e-10
A11: 2.9217 | B11: ='DF raw data'!D16 -> -9.7073525e-06 | C11: ='DF raw data'!E16 -> -3.4469324e-06 | D11: ='DF raw data'!F16 -> 6.4976048e-06 | F11: -9.7179141e-06 | G11: -3.457524516e-06 | H11: 6.504674194e-06 | J11: -2.979265427e-05 | K11: -5.230029558e-05 | L11: 3.097064447e-06 | M11: 7.910154257e-06 | N11: 1.14336856e-09
A12: 3.42184 | B12: ='DF raw data'!D17 -> -9.7041511e-06 | C12: ='DF raw data'!E17 -> -4.3945315e-06 | D12: ='DF raw data'!F17 -> 1.080567e-06 | F12: -9.714709216e-06 | G12: -4.408035503e-06 | H12: 1.081742657e-06 | J12: -3.465136894e-05 | K12: -6.963083124e-05 | L12: 8.924295703e-07 | M12: 8.356493983e-06 | N12: 1.744293672e-09
A13: 3.92198 | B13: ='DF raw data'!D18 -> -9.8535993e-06 | C13: ='DF raw data'!E18 -> -1.0074839e-06 | D13: ='DF raw data'!F18 -> -3.1398959e-06 | F13: -9.864320016e-06 | G13: -1.010579808e-06 | H13: -3.143312107e-06 | J13: -3.958490995e-05 | K13: -8.942882811e-05 | L13: 3.86998185e-07 | M13: 8.550047255e-06 | N13: 2.5280705e-09
A14: 4.42212 | B14: ='DF raw data'!D19 -> -9.7720358e-06 | C14: ='DF raw data'!E19 -> -2.5406955e-06 | D14: ='DF raw data'!F19 -> 1.2837554e-06 | F14: -9.782667775e-06 | G14: -2.54850283e-06 | H14: 1.285152126e-06 | J14: -4.447761342e-05 | K14: -0.0001116738617 | L14: -8.876100206e-07 | M14: 8.106117979e-06 | N14: 3.51787054e-09
A15: 4.92226 | B15: ='DF raw data'!D20 -> -9.8582123e-06 | C15: ='DF raw data'!E20 -> -1.3681367e-06 | D15: ='DF raw data'!F20 -> -5.3003023e-06 | F15: -9.868938035e-06 | G15: -1.372340862e-06 | H15: -5.306069029e-06 | J15: -4.941346408e-05 | K15: -0.0001363875116 | L15: -1.573972579e-06 | M15: 7.318911333e-06 | N15: 4.740296634e-09
A16: 5.4224 | B16: ='DF raw data'!D21 -> -9.57672e-06 | C16: ='DF raw data'!E21 -> -9.6669082e-06 | D16: ='DF raw data'!F21 -> -9.1426045e-06 | F16: -9.587139471e-06 | G16: -9.696613746e-06 | H16: -9.152551654e-06 | J16: -5.420837602e-05 | K16: -0.0001634992888 | L16: -6.423636978e-06 | M16: 4.106193535e-06 | N16: 6.230619379e-09
A17: 5.92254 | B17: ='DF raw data'!D22 -> -9.211205e-06 | C17: ='DF raw data'!E22 -> -1.7844259e-05 | D17: ='DF raw data'!F22 -> 5.0307426e-07 | F17: -9.221226791e-06 | G17: -1.789909282e-05 | H17: 5.036216048e-07 | J17: -5.882028039e-05 | K17: -0.0001929176638 | L17: -1.537568926e-05 | M17: -3.583803691e-06 | N17: 8.079255455e-09
A18: 6.42268 | B18: ='DF raw data'!D23 -> -9.6256581e-06 | C18: ='DF raw data'!E23 -> -5.7314724e-06 | D18: ='DF raw data'!F23 -> 4.6358764e-06 | F18: -9.636130816e-06 | G18: -5.749084703e-06 | H18: 4.640920234e-06 | J18: -6.363969485e-05 | K18: -0.0002247464208 | L18: -1.825103648e-05 | M18: -1.271187708e-05 | N18: 1.027142464e-08
A19: 6.92282 | B19: ='DF raw data'!D24 -> -1.0284802e-05 | C19: ='DF raw data'!E24 -> 1.1639545e-05 | D19: ='DF raw data'!F24 -> 1.8228457e-06 | F19: -1.029599186e-05 | G19: 1.167531228e-05 | H19: 1.824828956e-06 | J19: -6.878913222e-05 | K19: -0.0002591506174 | L19: -1.24117458e-05 | M19: -1.891948762e-05 | N19: 1.271510675e-08
A20: 7.42296 | B20: ='DF raw data'!D25 -> -9.8448536e-06 | C20: ='DF raw data'!E25 -> -5.3835379e-07 | D20: ='DF raw data'!F25 -> 2.0140433e-06 | F20: -9.855564801e-06 | G20: -5.400081031e-07 | H20: 2.016234579e-06 | J20: -7.37182944e-05 | K20: -0.0002960200852 | L20: -1.268182545e-05 | M20: -2.52621758e-05 | N20: 1.551349789e-08
A21: 7.9231 | B21: ='DF raw data'!D26 -> -9.460523e-06 | C21: ='DF raw data'!E26 -> -1.083733e-05 | D21: ='DF raw data'!F26 -> 3.2405806e-06 | F21: -9.470816049e-06 | G21: -1.087063215e-05 | H21: 3.244106352e-06 | J21: -7.845502834e-05 | K21: -0.000335258583 | L21: -1.811866341e-05 | M21: -3.432404412e-05 | N21: 1.87561443e-08
A22: 8.42324 | B22: ='DF raw data'!D27 -> -8.5141392e-06 | C22: ='DF raw data'!E27 -> -1.1575581e-05 | D22: ='DF raw data'!F27 -> -5.390757e-06 | F22: -8.523402583e-06 | G22: -1.161115173e-05 | H22: -5.396622144e-06 | J22: -8.271792291e-05 | K22: -0.000376629125 | L22: -2.392586484e-05 | M22: -4.629032616e-05 | N22: 2.246453325e-08
A23: 8.92338 | B23: ='DF raw data'!D28 -> -6.9342523e-06 | C23: ='DF raw data'!E28 -> -1.2473947e-05 | D23: ='DF raw data'!F28 -> -8.6848449e-06 | F23: =(1-$G$1*($B$2-$G$2))*B23 -> -6.941796767e-06 | G23: -1.251227833e-05 | H23: -8.694294011e-06 | J23: -8.618979314e-05 | K23: -0.0004197360881 | L23: -3.018375572e-05 | M23: -6.138642974e-05 | N23: 2.663557058e-08
A24: 9.42352 | B24: ='DF raw data'!D29 -> -6.6847451e-06 | C24: ='DF raw data'!E29 -> -1.3644005e-06 | D24: ='DF raw data'!F29 -> -1.1460623e-05 | F24: -6.692018103e-06 | G24: -1.368593181e-06 | H24: -1.147309216e-05 | J24: -8.953673908e-05 | K24: -0.0004645169928 | L24: -3.086824391e-05 | M24: -7.682487325e-05 | N24: 3.11216644e-08
A25: 9.92366 | B25: ='DF raw data'!D30 -> -2.9358227e-06 | C25: ='DF raw data'!E30 -> 1.9371983e-08 | D25: ='DF raw data'!F30 -> -2.3401226e-06 | F25: -2.939016875e-06 | G25: 1.943151137e-08 | H25: -2.342668653e-06 | J25: -9.100665898e-05 | K25: -0.0005100330632 | L25: -3.085852544e-05 | M25: -9.225845617e-05 | N25: 3.574018751e-08
A26: 10.4238 | B26: ='DF raw data'!D31 -> 1.8687394e-06 | C26: ='DF raw data'!E31 -> 8.9213663e-06 | D26: ='DF raw data'!F31 -> 3.0389783e-06 | F26: 1.870772588e-06 | G26: 8.948780862e-06 | H26: 3.042284708e-06 | J26: -9.007101078e-05 | K26: -0.0005550811786 | L26: -2.638288218e-05 | M26: -0.0001054535909 | N26: 4.014584248e-08
A27: 10.92394 | B27: ='DF raw data'!D32 -> 9.7923908e-07 | C27: ='DF raw data'!E32 -> 6.9206249e-06 | D27: ='DF raw data'!F32 -> 5.8242003e-06 | F27: 9.803044921e-07 | G27: 6.941891363e-06 | H27: 5.83053703e-06 | J27: -8.958072129e-05 | K27: -0.0005998840805 | L27: -2.291096463e-05 | M27: -0.0001169122807 | N27: 4.442184839e-08
A28: 11.42408 | B28: ='DF raw data'!D33 -> -6.125777e-06 | C28: ='DF raw data'!E33 -> 3.693023e-06 | D28: ='DF raw data'!F33 -> 2.9849471e-06 | F28: -6.132441845e-06 | G28: 3.70437133e-06 | H28: 2.988194722e-06 | J28: -9.264780075e-05 | K28: -0.0006462209516 | L28: -2.105826035e-05 | M28: -0.000127444359 | N28: 4.893664483e-08
A29: 11.92422 | B29: ='DF raw data'!D34 -> -7.3595756e-06 | C29: ='DF raw data'!E34 -> -5.3888311e-06 | D29: ='DF raw data'!F34 -> -1.0855438e-05 | F29: -7.367582818e-06 | G29: -5.405390497e-06 | H29: -1.086724872e-05 | J29: -9.633262362e-05 | K29: -0.00069440075 | L29: -2.376171236e-05 | M29: -0.0001393285419 | N29: 5.386031975e-08
A30: 12.42436 | B30: ='DF raw data'!D35 -> -2.1715416e-06 | C30: ='DF raw data'!E35 -> -4.9265059e-06 | D30: ='DF raw data'!F35 -> -1.0395554e-05 | F30: -2.173904237e-06 | G30: -4.941644613e-06 | H30: -1.040686436e-05 | J30: -9.741988009e-05 | K30: -0.0007431243288 | L30: -2.623322649e-05 | M30: -0.0001524488278 | N30: 5.895115239e-08
A31: 12.9245 | B31: ='DF raw data'!D36 -> 1.7529208e-06 | C31: ='DF raw data'!E36 -> 2.2275924e-06 | D31: ='DF raw data'!F36 -> -2.8442591e-06 | F31: 1.754827978e-06 | G31: 2.234437593e-06 | H31: -2.847353654e-06 | J31: -9.654222042e-05 | K31: -0.0007914089549 | L31: -2.511569487e-05 | M31: -0.0001650101914 | N31: 6.392814478e-08
A32: 13.42464 | B32: ='DF raw data'!D37 -> 1.485864e-06 | C32: ='DF raw data'!E37 -> -7.1044365e-06 | D32: ='DF raw data'!F37 -> -9.8372984e-06 | F32: 1.48748062e-06 | G32: -7.126267799e-06 | H32: -9.848001381e-06 | J32: -9.579827187e-05 | K32: -0.0008393215026 | L32: -2.867982645e-05 | M32: -0.0001793541198 | N32: 6.892946543e-08
A33: 13.92478 | B33: ='DF raw data'!D38 -> -6.6747015e-07 | C33: ='DF raw data'!E38 -> -1.0187805e-05 | D33: ='DF raw data'!F38 -> -6.4690685e-06 | F33: -6.681963575e-07 | G33: -1.021911122e-05 | H33: -6.476106847e-06 | J33: -9.613246359e-05 | K33: -0.0008874011929 | L33: -3.379081274e-05 | M33: -0.0001962542569 | N33: 7.412255388e-08
A34: 14.42492 | B34: ='DF raw data'!D39 -> 2.0410196e-06 | C34: ='DF raw data'!E39 -> -9.6726453e-06 | D34: ='DF raw data'!F39 -> -2.3476314e-06 | F34: 2.043240229e-06 | G34: -9.702368476e-06 | H34: -2.350185623e-06 | J34: -9.511055742e-05 | K34: -0.0009349697871 | L34: -3.86433553e-05 | M34: -0.0002155813446 | N34: 7.939369291e-08
A35: 14.92506 | B35: ='DF raw data'!D40 -> 4.3808514e-06 | C35: ='DF raw data'!E40 -> -6.1026681e-06 | D35: ='DF raw data'!F40 -> -6.2759209e-06 | F35: 4.385617766e-06 | G35: -6.121421054e-06 | H35: -6.282749102e-06 | J35: -9.291713455e-05 | K35: -0.0009814413628 | L35: -4.170492283e-05 | M35: -0.0002364396447 | N35: 8.458159235e-08
A36: 15.4252 | B36: ='DF raw data'!D41 -> 1.4583027e-06 | C36: ='DF raw data'!E41 -> 3.5359787e-06 | D36: ='DF raw data'!F41 -> -3.7932623e-06 | F36: 1.459889333e-06 | G36: 3.546844447e-06 | H36: -3.797389369e-06 | J36: -9.21869855e-05 | K36: -0.001027547762 | L36: -3.993100405e-05 | M36: -0.0002564107371 | N36: 8.962946805e-08
A37: 15.92534 | B37: ='DF raw data'!D42 -> -2.4717185e-06 | C37: ='DF raw data'!E42 -> 1.208279e-05 | D37: ='DF raw data'!F42 -> 2.7102651e-06 | F37: -2.47440773e-06 | G37: 1.211991934e-05 | H37: 2.713213868e-06 | J37: -9.342453579e-05 | K37: -0.001074273109 | L37: -3.386934759e-05 | M37: -0.0002733501526 | N37: 9.456848889e-08
A38: 16.42548 | B38: ='DF raw data'!D43 -> -3.1753909e-06 | C38: ='DF raw data'!E43 -> -3.2126338e-06 | D38: ='DF raw data'!F43 -> 4.9259252e-06 | F38: -3.178845725e-06 | G38: -3.222505937e-06 | H38: 4.931284607e-06 | J38: -9.501440369e-05 | K38: -0.001121793613 | L38: -3.548105171e-05 | M38: -0.0002910956458 | N38: 9.971324999e-08
A39: 16.92562 | B39: ='DF raw data'!D44 -> 6.9045925e-08 | C39: ='DF raw data'!E44 -> -7.2265234e-06 | D39: ='DF raw data'!F44 -> 4.2873435e-06 | F39: 6.912104697e-08 | G39: -7.248729861e-06 | H39: 4.29200813e-06 | J39: -9.497983349e-05 | K39: -0.001169296827 | L39: -3.910643147e-05 | M39: -0.0003106543364 | N39: 1.049899679e-07
A40: 17.42576 | B40: ='DF raw data'!D45 -> 6.3968882e-06 | C40: ='DF raw data'!E45 -> 4.0044411e-06 | D40: ='DF raw data'!F45 -> -1.9830477e-06 | F40: 6.403848014e-06 | G40: 4.01674639e-06 | H40: -1.985205256e-06 | J40: -9.177701294e-05 | K40: -0.001215198182 | L40: -3.709749593e-05 | M40: -0.000329208278 | N40: 1.09890962e-07
A41: 17.9259 | B41: ='DF raw data'!D46 -> 8.252985e-06 | C41: ='DF raw data'!E46 -> 8.7044136e-06 | D41: ='DF raw data'!F46 -> -1.0376127e-05 | F41: 8.261964248e-06 | G41: 8.731161486e-06 | H41: -1.038741623e-05 | J41: -8.764487414e-05 | K41: -0.001259032889 | L41: -3.273069282e-05 | M41: -0.0003455782067 | N41: 1.142686485e-07
A42: 18.42604 | B42: ='DF raw data'!D47 -> 6.9361531e-06 | C42: ='DF raw data'!E47 -> 1.326425e-06 | D42: ='DF raw data'!F47 -> -2.4420733e-06 | F42: 6.943699635e-06 | G42: 1.330500986e-06 | H42: -2.444730276e-06 | J42: -8.417205221e-05 | K42: -0.0013011307 | L42: -3.206525606e-05 | M42: -0.0003616153239 | N42: 1.183263418e-07
A43: 18.92618 | B43: ='DF raw data'!D48 -> 5.4096455e-07 | C43: ='DF raw data'!E48 -> -2.9078858e-06 | D43: ='DF raw data'!F48 -> 2.525514e-06 | F43: 5.415531194e-07 | G43: -2.916821474e-06 | H43: 2.528261759e-06 | J43: -8.390119983e-05 | K43: -0.001343093046 | L43: -3.352407515e-05 | M43: -0.0003783820548 | N43: 1.224091222e-07
A44: 19.42632 | B44: ='DF raw data'!D49 -> -3.9512115e-06 | C44: ='DF raw data'!E49 -> -1.0455327e-05 | D44: ='DF raw data'!F49 -> -6.8571535e-07 | F44: -3.955510418e-06 | G44: -1.048745529e-05 | H44: -6.864614083e-07 | J44: -8.587950881e-05 | K44: -0.001386044823 | L44: -3.876927104e-05 | M44: -0.0003977721181 | N44: 1.268495383e-07
A45: 19.92646 | B45: ='DF raw data'!D50 -> -2.2529741e-06 | C45: ='DF raw data'!E50 -> -3.4291863e-06 | D45: ='DF raw data'!F50 -> -2.4032779e-06 | F45: -2.255425336e-06 | G45: -3.439723883e-06 | H45: -2.405892666e-06 | J45: -8.700753724e-05 | K45: -0.001429560773 | L45: -4.048961454e-05 | M45: -0.0004180225939 | N45: 1.314556879e-07
A46: 20.4266 | B46: ='DF raw data'!D51 -> -6.9770903e-07 | C46: ='DF raw data'!E51 -> -3.6934836e-08 | D46: ='DF raw data'!F51 -> -6.4047053e-06 | F46: -6.984681374e-07 | G46: -3.704833345e-08 | H46: -6.411673619e-06 | J46: -8.735686909e-05 | K46: -0.001473251437 | L46: -4.050814389e-05 | M46: -0.000438282337 | N46: 1.360930522e-07
A47: 20.92674 | B47: ='DF raw data'!D52 -> 4.0585002e-07 | C47: ='DF raw data'!E52 -> 2.4021153e-06 | D47: ='DF raw data'!F52 -> -8.1504259e-06 | F47: 4.062915848e-07 | G47: 2.409496786e-06 | H47: -8.159293563e-06 | J47: -8.715366642e-05 | K47: -0.001516840472 | L47: -3.930305817e-05 | M47: -0.0004579393685 | N47: 1.406645778e-07
A48: 21.42688 | B48: ='DF raw data'!D53 -> 1.8638646e-06 | C48: ='DF raw data'!E53 -> 1.4981449e-06 | D48: ='DF raw data'!F53 -> 5.0436938e-08 | F48: 1.865892485e-06 | G48: 1.502748566e-06 | H48: 5.049181339e-08 | J48: -8.622045895e-05 | K48: -0.001559962773 | L48: -3.85514735e-05 | M48: -0.0004772205024 | N48: 1.451259185e-07
A49: 21.92702 | B49: ='DF raw data'!D54 -> 2.239464e-06 | C49: ='DF raw data'!E54 -> -4.566386e-06 | D49: ='DF raw data'!F54 -> 7.8204903e-06 | F49: 2.241900537e-06 | G49: -4.580418097e-06 | H49: 7.828998993e-06 | J49: -8.509919482e-05 | K49: -0.001602524284 | L49: -4.084232381e-05 | M49: -0.0004976473823 | N49: 1.4958215e-07
A50: 22.42716 | B50: ='DF raw data'!D55 -> 2.7029134e-06 | C50: ='DF raw data'!E55 -> 4.2994484e-06 | D50: ='DF raw data'!F55 -> 9.3893323e-07 | F50: 2.70585417e-06 | G50: 4.312660221e-06 | H50: 9.399547894e-07 | J50: -8.374588891e-05 | K50: -0.001644408953 | L50: -3.868538993e-05 | M50: -0.0005169954932 | N50: 1.538383081e-07
A51: 22.9273 | B51: ='DF raw data'!D56 -> 1.9686674e-06 | C51: ='DF raw data'!E56 -> 6.9689263e-06 | D51: ='DF raw data'!F56 -> -1.6908889e-06 | F51: 1.97080931e-06 | G51: 6.990341188e-06 | H51: -1.692728587e-06 | J51: -8.276020834e-05 | K51: -0.001685800643 | L51: -3.518924068e-05 | M51: -0.00053459504 | N51: 1.578832077e-07
A52: 23.42744 | B52: ='DF raw data'!D57 -> -2.7449889e-06 | C52: ='DF raw data'!E57 -> -1.3734737e-06 | D52: ='DF raw data'!F57 -> 2.3353787e-06 | F52: -2.747975448e-06 | G52: -1.377694262e-06 | H52: 2.337919592e-06 | J52: -8.413458078e-05 | K52: -0.001727879713 | L52: -3.587828069e-05 | M52: -0.0005525392033 | N52: 1.620673183e-07
A53: 23.92758 | B53: ='DF raw data'!D58 -> -5.5845039e-06 | C53: ='DF raw data'!E58 -> -3.966898e-06 | D53: ='DF raw data'!F58 -> -2.1565938e-08 | F53: -5.59057984e-06 | G53: -3.979087923e-06 | H53: -2.158940174e-08 | J53: -8.693065338e-05 | K53: -0.001771357209 | L53: -3.786838173e-05 | M53: -0.0005714786957 | N53: 1.665640534e-07
A54: 24.42772 | B54: ='DF raw data'!D59 -> -5.9651501e-07 | C54: ='DF raw data'!E59 -> -2.0507507e-06 | D54: ='DF raw data'!F59 -> -1.0445801e-06 | F54: -5.971640183e-07 | G54: -2.057052474e-06 | H54: -1.045716603e-06 | J54: -8.7229319e-05 | K54: -0.001814984081 | L54: -3.889719595e-05 | M54: -0.0005909327393 | N54: 1.711263035e-07
A55: 24.92786 | B55: ='DF raw data'!D60 -> 1.3362849e-06 | C55: ='DF raw data'!E60 -> -4.5323618e-06 | D55: ='DF raw data'!F60 -> 2.7001515e-06 | F55: 1.337738778e-06 | G55: -4.546289343e-06 | H55: 2.703089265e-06 | J55: -8.656026232e-05 | K55: -0.001858276331 | L55: -4.11709771e-05 | M55: -0.0006115239918 | N55: 1.75721454e-07
A56: 25.428 | B56: ='DF raw data'!D61 -> -2.4285866e-06 | C56: ='DF raw data'!E61 -> 2.0007662e-06 | D56: ='DF raw data'!F61 -> -3.0615629e-06 | F56: -2.431228902e-06 | G56: 2.006914376e-06 | H56: -3.06489388e-06 | J56: -8.777621715e-05 | K56: -0.001902176728 | L56: -4.016723895e-05 | M56: -0.0006316132347 | N56: 1.803817942e-07
A57: 25.92814 | B57: ='DF raw data'!D62 -> -5.0392291e-06 | C57: ='DF raw data'!E62 -> 4.5165357e-06 | D57: ='DF raw data'!F62 -> -3.5308331e-06 | F57: -5.044711781e-06 | G57: 4.530414611e-06 | H57: -3.534674646e-06 | J57: -9.02992793e-05 | K57: -0.001947339009 | L57: -3.790139738e-05 | M57: -0.0006505692396 | N57: 1.851783747e-07
A58: 26.42828 | B58: ='DF raw data'!D63 -> -4.9280961e-06 | C58: ='DF raw data'!E63 -> 4.8933339e-06 | D58: ='DF raw data'!F63 -> 9.273499e-07 | F58: -4.933457869e-06 | G58: 4.908370678e-06 | H58: 9.283588567e-07 | J58: -9.276669892e-05 | K58: -0.001993735346 | L58: -3.544652487e-05 | M58: -0.0006682974645 | N58: 1.901108137e-07
A59: 26.92842 | B59: ='DF raw data'!D64 -> -5.0971748e-06 | C59: ='DF raw data'!E64 -> -2.9138053e-07 | D59: ='DF raw data'!F64 -> 2.0670996e-07 | F59: -5.102720526e-06 | G59: -2.922759164e-07 | H59: 2.069348604e-07 | J59: -9.531877356e-05 | K59: -0.002041408078 | L59: -3.559270375e-05 | M59: -0.0006860987994 | N59: 1.952885176e-07
A60: 27.42856 | B60: ='DF raw data'!D65 -> -5.556346e-06 | C60: ='DF raw data'!E65 -> -1.0439982e-05 | D60: ='DF raw data'!F65 -> -2.6551133e-06 | F60: -5.562391304e-06 | G60: -1.047206313e-05 | H60: -2.658002063e-06 | J60: -9.810074795e-05 | K60: -0.002090472186 | L60: -4.08302014e-05 | M60: -0.0007065196163 | N60: 2.009355294e-07
A61: 27.9287 | B61: ='DF raw data'!D66 -> -1.928641e-06 | C61: ='DF raw data'!E66 -> -1.0479476e-05 | D61: ='DF raw data'!F66 -> -3.2604876e-06 | F61: -1.930739361e-06 | G61: -1.051167849e-05 | H61: -3.264035011e-06 | J61: -9.906638793e-05 | K61: -0.002140019249 | L61: -4.608751229e-05 | M61: -0.0007295698247 | N61: 2.069063047e-07
A62: 28.42884 | B62: ='DF raw data'!D67 -> 3.9466513e-06 | C62: ='DF raw data'!E67 -> 3.9529382e-06 | D62: ='DF raw data'!F67 -> 4.0183222e-06 | F62: 3.950945257e-06 | G62: 3.965085226e-06 | H62: 4.022694135e-06 | J62: -9.709036217e-05 | K62: -0.002188578023 | L62: -4.410441456e-05 | M62: -0.0007516282066 | N62: 2.125937657e-07
A63: 28.92898 | B63: ='DF raw data'!D68 -> 6.7272313e-06 | C63: ='DF raw data'!E68 -> -4.0606978e-06 | D63: ='DF raw data'!F68 -> 6.4755732e-06 | F63: 6.734550528e-06 | G63: -4.073175962e-06 | H63: 6.482618624e-06 | J63: -9.372214407e-05 | K63: -0.002235452216 | L63: -4.614157279e-05 | M63: -0.0007747054528 | N63: 2.18051736e-07
A64: 29.42912 | B64: ='DF raw data'!D69 -> 7.3741658e-06 | C64: ='DF raw data'!E69 -> -3.7905068e-06 | D64: ='DF raw data'!F69 -> 6.798291e-06 | F64: 7.382188892e-06 | G64: -3.802154689e-06 | H64: 6.805687541e-06 | J64: -9.003001612e-05 | K64: -0.002280479828 | L64: -4.804318243e-05 | M64: -0.0007987337701 | N64: 2.232599695e-07
A65: 29.92926 | B65: ='DF raw data'!D70 -> 3.7895195e-06 | C65: ='DF raw data'!E70 -> -3.2198388e-06 | D65: ='DF raw data'!F70 -> 6.4324413e-06 | F65: 3.793642497e-06 | G65: -3.229733077e-06 | H65: 6.439439796e-06 | J65: -8.813266376e-05 | K65: -0.002324558499 | L65: -4.965850113e-05 | M65: -0.0008235699729 | N65: 2.283780687e-07
A66: 30.4294 | B66: ='DF raw data'!D71 -> 7.5489226e-07 | C66: ='DF raw data'!E71 -> 2.9988003e-06 | D66: ='DF raw data'!F71 -> 5.3692347e-06 | F66: 7.557135828e-07 | G66: 3.008015346e-06 | H66: 5.375076427e-06 | J66: -8.775470117e-05 | K66: -0.002368448135 | L66: -4.815407234e-05 | M66: -0.0008476537506 | N66: 2.333893226e-07
A67: 30.92954 | B67: ='DF raw data'!D72 -> 4.2304719e-06 | C67: ='DF raw data'!E72 -> 5.8822948e-06 | D67: ='DF raw data'!F72 -> 1.1916563e-05 | F67: 4.235074653e-06 | G67: 5.900370567e-06 | H67: 1.192952822e-05 | J67: -8.563657093e-05 | K67: -0.002411278409 | L67: -4.5203061e-05 | M67: -0.0008702616095 | N67: 2.380791049e-07
A68: 31.42968 | B68: ='DF raw data'!D73 -> 6.4517635e-06 | C68: ='DF raw data'!E73 -> 4.8394281e-06 | D68: ='DF raw data'!F73 -> 5.3981203e-06 | F68: 6.458783019e-06 | G68: 4.854299231e-06 | H68: 5.403993455e-06 | J68: -8.240627519e-05 | K68: -0.002452493084 | L68: -4.277523179e-05 | M68: -0.0008916552139 | N68: 2.423905691e-07
A69: 31.92982 | B69: ='DF raw data'!D74 -> 4.7308249e-06 | C69: ='DF raw data'!E74 -> -4.9654668e-06 | D69: ='DF raw data'!F74 -> -7.2683906e-07 | F69: 4.735972037e-06 | G69: -4.980725236e-06 | H69: -7.276298609e-07 | J69: -8.003762614e-05 | K69: -0.002492523102 | L69: -4.526629171e-05 | M69: -0.0009142946971 | N69: 2.466192822e-07
A70: 32.42996 | B70: ='DF raw data'!D75 -> 1.1826894e-06 | C70: ='DF raw data'!E75 -> -1.8521204e-08 | D70: ='DF raw data'!F75 -> 3.1925883e-06 | F70: 1.183976166e-06 | G70: -1.857811801e-08 | H70: 3.196061836e-06 | J70: -7.94454723e-05 | K70: -0.002532256961 | L70: -4.527558337e-05 | M70: -0.0009369388273 | N70: 2.508011836e-07
A71: 32.9301 | B71: ='DF raw data'!D76 -> 2.6465684e-06 | C71: ='DF raw data'!E76 -> 2.5064544e-06 | D71: ='DF raw data'!F76 -> -2.7395145e-06 | F71: 2.649447866e-06 | G71: =(1-$G$1*($B$2-$G$2))*C71*$M$2/$M$1 -> 2.514156511e-06 | H71: -2.742495092e-06 | J71: -7.812037744e-05 | K71: -0.002571328086 | L71: -4.401815313e-05 | M71: -0.0009589540665 | N71: 2.548225048e-07
A72: =A71+$B$1 -> 33.43024 | B72: ='DF raw data'!D77 -> 4.2966103e-06 | C72: ='DF raw data'!E77 -> 1.4107516e-06 | D72: ='DF raw data'!F77 -> -1.0847652e-05 | F72: 4.301285012e-06 | G72: 1.415086714e-06 | H72: -1.085945425e-05 | J72: =F72*$B$1+J71 -> -7.596913275e-05 | K72: =J72*$B$1+K71 -> -0.002609323288 | L72: =G72*$B$1+L71 -> -4.331041166e-05 | M72: =L72*$B$1+M71 -> -0.0009806153357 | N72: =(J72^2+L72^2)*$B$1+N71 -> 2.586471258e-07
A73: 33.93038 | B73: ='DF raw data'!D78 -> -1.2442499e-06 | C73: ='DF raw data'!E78 -> -9.8920304e-07 | D73: ='DF raw data'!F78 -> -6.2323961e-06 | F73: -1.245603644e-06 | G73: -9.922427726e-07 | H73: -6.239176947e-06 | J73: -7.659210896e-05 | K73: -0.002647630066 | L73: -4.380667196e-05 | M73: -0.001002524805 | N73: 2.625409036e-07
A74: 34.43052 | B74: ='DF raw data'!D79 -> -4.2771599e-06 | C74: ='DF raw data'!E79 -> -1.650202e-06 | D74: ='DF raw data'!F79 -> 3.64476e-06 | F74: -4.28181345e-06 | G74: -1.655272923e-06 | H74: 3.648725499e-06 | J74: -7.873361514e-05 | K74: -0.002687007896 | L74: -4.463454016e-05 | M74: -0.001024848324 | N74: 2.666376626e-07
A75: 34.93066 | B75: ='DF raw data'!D80 -> -8.2473269e-07 | C75: ='DF raw data'!E80 -> -3.7945103e-06 | D75: ='DF raw data'!F80 -> 6.8999798e-06 | F75: -8.256299992e-07 | G75: -3.806170491e-06 | H75: 6.907486978e-06 | J75: -7.914654573e-05 | K75: -0.002726592249 | L75: -4.653815827e-05 | M75: -0.001048123918 | N75: 2.708538307e-07
A76: 35.4308 | B76: ='DF raw data'!D81 -> -3.6949671e-06 | C76: ='DF raw data'!E81 -> -2.1305848e-07 | D76: ='DF raw data'!F81 -> 4.8350048e-06 | F76: -3.698987224e-06 | G76: -2.137131897e-07 | H76: 4.840265285e-06 | J76: -8.09965572e-05 | K76: -0.002767101868 | L76: -4.664504478e-05 | M76: -0.001071452971 | N76: 2.75223155e-07
A77: 35.93094 | B77: ='DF raw data'!D82 -> -7.9283518e-06 | C77: ='DF raw data'!E82 -> -1.579522e-07 | D77: ='DF raw data'!F82 -> 3.7824648e-06 | F77: -7.936977847e-06 | G77: -1.58437573e-07 | H77: 3.786580122e-06 | J77: -8.49661573e-05 | K77: -0.002809596841 | L77: -4.672428575e-05 | M77: -0.001094821655 | N77: 2.799256747e-07
A78: 36.43108 | B78: ='DF raw data'!D83 -> -4.3073842e-06 | C78: ='DF raw data'!E83 -> -4.0332478e-07 | D78: ='DF raw data'!F83 -> 2.6795315e-06 | F78: -4.312070634e-06 | G78: -4.04564161e-07 | H78: 2.68244683e-06 | J78: -8.712279631e-05 | K78: -0.002853170437 | L78: -4.692662447e-05 | M78: -0.001118291537 | N78: 2.848232905e-07
A79: 36.93122 | B79: ='DF raw data'!D84 -> -1.148411e-06 | C79: ='DF raw data'!E84 -> 3.8476642e-06 | D79: ='DF raw data'!F84 -> 5.2707474e-06 | F79: -1.149660471e-06 | G79: 3.859487729e-06 | H79: 5.276481973e-06 | J79: -8.769778749e-05 | K79: -0.002897031608 | L79: -4.499634028e-05 | M79: -0.001140796007 | N79: 2.89682437e-07
A80: 37.43136 | B80: ='DF raw data'!D85 -> -2.9612595e-06 | C80: ='DF raw data'!E85 -> -1.7399982e-06 | D80: ='DF raw data'!F85 -> 7.5371645e-07 | F80: -2.96448135e-06 | G80: -1.745345059e-06 | H80: 7.545364935e-07 | J80: -8.91804432e-05 | K80: -0.002941634315 | L80: -4.586925716e-05 | M80: -0.001163737057 | N80: 2.947124151e-07
A81: 37.9315 | B81: ='DF raw data'!D86 -> -7.3161499e-07 | C81: ='DF raw data'!E86 -> -5.9019935e-06 | D81: ='DF raw data'!F86 -> -1.5931146e-06 | F81: -7.324109871e-07 | G81: -5.920129799e-06 | H81: -1.594847909e-06 | J81: -8.954675123e-05 | K81: -0.002986420227 | L81: -4.883015088e-05 | M81: -0.001188158969 | N81: 2.999153737e-07
A82: 38.43164 | B82: ='DF raw data'!D87 -> -2.3685163e-06 | C82: ='DF raw data'!E87 -> -1.8854337e-06 | D82: ='DF raw data'!F87 -> 3.1452655e-06 | F82: -2.371093246e-06 | G82: -1.891227469e-06 | H82: 3.148687549e-06 | J82: -9.07326298e-05 | K82: -0.003031799245 | L82: -4.977602938e-05 | M82: -0.001213053952 | N82: 3.052719047e-07
A83: 38.93178 | B83: ='DF raw data'!D88 -> -8.5989186e-06 | C83: ='DF raw data'!E88 -> -1.4105665e-06 | D83: ='DF raw data'!F88 -> 1.4042162e-06 | F83: -8.608274223e-06 | G83: -1.414901045e-06 | H83: 1.405743987e-06 | J83: -9.503797207e-05 | K83: -0.003079331536 | L83: -5.048367799e-05 | M83: -0.001238302859 | N83: 3.110639349e-07
A84: 39.43192 | B84: ='DF raw data'!D89 -> -8.787817e-06 | C84: ='DF raw data'!E89 -> 2.784918e-06 | D84: ='DF raw data'!F89 -> -9.8520832e-07 | F84: -8.797378145e-06 | G84: 2.793475804e-06 | H84: -9.862802267e-07 | J84: -9.943789278e-05 | K84: -0.003129064404 | L84: -4.9086549e-05 | M84: -0.001262853005 | N84: 3.172143485e-07
A85: 39.93206 | B85: ='DF raw data'!D90 -> 8.342584e-07 | C85: ='DF raw data'!E90 -> -2.3093328e-06 | D85: ='DF raw data'!F90 -> -1.5653641e-06 | F85: 8.351660731e-07 | G85: -2.316429174e-06 | H85: -1.567067216e-06 | J85: -9.902019282e-05 | K85: -0.003178588363 | L85: -5.024508789e-05 | M85: -0.001287982583 | N85: 3.233808583e-07
A86: 40.4322 | B86: ='DF raw data'!D91 -> 8.7058843e-06 | C86: ='DF raw data'!E91 -> -7.4815021e-06 | D86: ='DF raw data'!F91 -> 2.8210779e-06 | F86: 8.715356302e-06 | G86: -7.504492088e-06 | H86: 2.824147233e-06 | J86: -9.466129452e-05 | K86: -0.003225932263 | L86: -5.399838456e-05 | M86: -0.001314989336 | N86: 3.293208142e-07
A87: 40.93234 | B87: ='DF raw data'!D92 -> 3.7636171e-06 | C87: ='DF raw data'!E92 -> 2.6768041e-07 | D87: ='DF raw data'!F92 -> 6.9738599e-06 | F87: =(1-$G$1*($B$2-$G$2))*B87 -> 3.767711915e-06 | G87: 2.68502968e-07 | H87: 6.98144746e-06 | J87: -9.277691108e-05 | K87: -0.003272333707 | L87: -5.386409549e-05 | M87: -0.001341928924 | N87: 3.350768734e-07
A88: 41.43248 | B88: ='DF raw data'!D93 -> -4.2314232e-06 | C88: ='DF raw data'!E93 -> 5.8757573e-06 | D88: ='DF raw data'!F93 -> -1.561566e-06 | F88: -4.236026988e-06 | G88: 5.893812978e-06 | H88: -1.563264984e-06 | J88: -9.489551762e-05 | K88: -0.003319794751 | L88: -5.091636386e-05 | M88: -0.001367394234 | N88: 3.408773148e-07
A89: 41.93262 | B89: ='DF raw data'!D94 -> -4.8471293e-06 | C89: ='DF raw data'!E94 -> -1.2149185e-05 | D89: ='DF raw data'!F94 -> -8.5185311e-06 | F89: -4.852402977e-06 | G89: -1.218651836e-05 | H89: -8.527799262e-06 | J89: -9.732239844e-05 | K89: -0.003368469576 | L89: -5.701132916e-05 | M89: -0.001395907881 | N89: 3.472400663e-07
A90: 42.43276 | B90: ='DF raw data'!D95 -> -4.1792255e-06 | C90: ='DF raw data'!E95 -> -2.8354355e-06 | D90: ='DF raw data'!F95 -> -2.3771863e-06 | F90: -4.183772497e-06 | G90: -2.84414854e-06 | H90: -2.379772679e-06 | J90: -9.941487042e-05 | K90: -0.003418190929 | L90: -5.843380161e-05 | M90: -0.001425132962 | N90: 3.538908408e-07
A91: 42.9329 | B91: ='DF raw data'!D96 -> -3.046909e-07 | C91: ='DF raw data'!E96 -> -4.1111705e-09 | D91: ='DF raw data'!F96 -> -1.2735254e-06 | F91: -3.050224037e-07 | G91: -4.12380376e-09 | H91: -1.274910996e-06 | J91: -9.956742433e-05 | K91: -0.003467988581 | L91: -5.843586409e-05 | M91: -0.001454359075 | N91: 3.605569179e-07
A92: 43.43304 | B92: ='DF raw data'!D97 -> 3.430742e-06 | C92: ='DF raw data'!E97 -> -3.7017783e-06 | D92: ='DF raw data'!F97 -> -4.2797183e-08 | F92: 3.434474647e-06 | G92: -3.713153534e-06 | H92: -4.284374634e-08 | J92: -9.784970617e-05 | K92: -0.003516927133 | L92: -6.02929607e-05 | M92: -0.001484513997 | N92: 3.671636703e-07
A93: 43.93318 | B93: ='DF raw data'!D98 -> 3.0259805e-06 | C93: ='DF raw data'!E98 -> -9.5808721e-09 | D93: ='DF raw data'!F98 -> 6.3602347e-06 | F93: 3.029272767e-06 | G93: -9.610313265e-09 | H93: 6.367154635e-06 | J93: -9.633464569e-05 | K93: -0.003565107942 | L93: -6.02977672e-05 | M93: -0.001514671322 | N93: 3.736235709e-07
A94: 44.43332 | B94: ='DF raw data'!D99 -> 1.6422534e-06 | C94: ='DF raw data'!E99 -> 9.2587629e-07 | D94: ='DF raw data'!F99 -> 9.9630706e-06 | F94: 1.644040172e-06 | G94: 9.287214252e-07 | H94: 9.973910421e-06 | J94: -9.551239544e-05 | K94: -0.003612877512 | L94: -5.983327646e-05 | M94: -0.001544596337 | N94: 3.799766686e-07
A95: 44.93346 | B95: ='DF raw data'!D100 -> 2.8184556e-06 | C95: ='DF raw data'!E100 -> 5.610505e-06 | D95: ='DF raw data'!F100 -> 6.3991029e-06 | F95: 2.82152208e-06 | G95: 5.627745581e-06 | H95: 6.406065124e-06 | J95: -9.410123939e-05 | K95: -0.003659941306 | L95: -5.701861579e-05 | M95: -0.001573113627 | N95: 3.860314464e-07
A96: 45.4336 | B96: ='DF raw data'!D101 -> 1.5038211e-06 | C96: ='DF raw data'!E101 -> 3.6403196e-06 | D96: ='DF raw data'!F101 -> 6.656468e-06 | F96: 1.505457257e-06 | G96: 3.651505977e-06 | H96: 6.663710237e-06 | J96: -9.33483e-05 | K96: -0.003706628524 | L96: -5.519235159e-05 | M96: -0.00160071753 | N96: 3.919131432e-07
A97: 45.93374 | B97: ='DF raw data'!D102 -> -1.6762526e-06 | C97: ='DF raw data'!E102 -> 2.1504709e-06 | D97: ='DF raw data'!F102 -> 9.9508179e-06 | F97: -1.678076363e-06 | G97: 2.157079105e-06 | H97: 9.96164439e-06 | J97: -9.418757311e-05 | K97: -0.003753735497 | L97: -5.411351005e-05 | M97: -0.001627781861 | N97: 3.978145806e-07
A98: 46.43388 | B98: ='DF raw data'!D103 -> -1.1012191e-06 | C98: ='DF raw data'!E103 -> 9.1407201e-06 | D98: ='DF raw data'!F103 -> 1.042748e-05 | F98: -1.102417226e-06 | G98: 9.168808717e-06 | H98: 1.04388251e-05 | J98: -9.473893606e-05 | K98: -0.003801118229 | L98: -4.952782205e-05 | M98: -0.001652552706 | N98: 4.035304161e-07
A99: 46.93402 | B99: ='DF raw data'!D104 -> -2.1544402e-07 | C99: ='DF raw data'!E104 -> 6.3159328e-06 | D99: ='DF raw data'!F104 -> 1.7381826e-06 | F99: -2.156784231e-07 | G99: 6.335341098e-06 | H99: 1.740073743e-06 | J99: -9.484680547e-05 | K99: -0.00384855491 | L99: -4.635926456e-05 | M99: -0.001675738828 | N99: 4.091045254e-07
A100: 47.43416 | B100: ='DF raw data'!D105 -> -7.82212e-07 | C100: ='DF raw data'!E105 -> 3.1481065e-06 | D100: ='DF raw data'!F105 -> -8.2885817e-06 | F100: -7.830630467e-07 | G100: 3.15778035e-06 | H100: -8.297599677e-06 | J100: -9.523844662e-05 | K100: -0.003896187467 | L100: -4.477993229e-05 | M100: -0.001698135064 | N100: 4.14643878e-07
A101: 47.9343 | B101: ='DF raw data'!D106 -> 1.5240482e-06 | C101: ='DF raw data'!E106 -> -2.3441573e-06 | D101: ='DF raw data'!F106 -> -7.0283859e-06 | F101: 1.525706364e-06 | G101: -2.351360686e-06 | H101: -7.036032784e-06 | J101: -9.447537984e-05 | K101: -0.003943438383 | L101: -4.595594183e-05 | M101: -0.001721119468 | N101: 4.201641963e-07
A102: 48.43444 | B102: ='DF raw data'!D107 -> 4.2393485e-06 | C102: ='DF raw data'!E107 -> 5.5099003e-06 | D102: ='DF raw data'!F107 -> 4.6539208e-06 | F102: 4.243960911e-06 | G102: 5.526831732e-06 | H102: 4.658984266e-06 | J102: -9.235280523e-05 | K102: -0.003989627715 | L102: -4.319175221e-05 | M102: -0.001742721391 | N102: 4.253629355e-07
A103: 48.93458 | B103: ='DF raw data'!D108 -> 5.3367085e-06 | C103: ='DF raw data'!E108 -> 6.756643e-06 | D103: ='DF raw data'!F108 -> 5.3969998e-06 | F103: 5.342514839e-06 | G103: 6.777405561e-06 | H103: 5.402871736e-06 | J103: -8.968079986e-05 | K103: -0.00403448067 | L103: -3.980210059e-05 | M103: -0.001762628014 | N103: 4.301777098e-07
A104: 49.43472 | B104: ='DF raw data'!D109 -> 5.5100509e-06 | C104: ='DF raw data'!E109 -> 3.0850944e-07 | D104: ='DF raw data'!F109 -> -4.9768569e-06 | F104: 5.516045835e-06 | G104: 3.09457462e-07 | H104: -4.98227172e-06 | J104: -8.692200469e-05 | K104: -0.004077953842 | L104: -3.964732853e-05 | M104: -0.001782457229 | N104: 4.347426605e-07
A105: 49.93486 | B105: ='DF raw data'!D110 -> -2.510962e-07 | C105: ='DF raw data'!E110 -> 4.5624342e-06 | D105: ='DF raw data'!F110 -> -7.9307938e-06 | F105: -2.513693927e-07 | G105: 4.576454153e-06 | H105: -7.939422504e-06 | J105: -8.704772458e-05 | K105: -0.004121489891 | L105: -3.735846075e-05 | M105: -0.001801141689 | N105: 4.392303971e-07
A106: 50.435 | B106: ='DF raw data'!D111 -> -4.494158e-06 | C106: ='DF raw data'!E111 -> 6.3442199e-06 | D106: ='DF raw data'!F111 -> -7.3210831e-06 | F106: -4.499047644e-06 | G106: 6.363715121e-06 | H106: -7.329048438e-06 | J106: -8.929787827e-05 | K106: -0.004166151332 | L106: -3.417571227e-05 | M106: -0.00181823433 | N106: 4.438027222e-07
A107: 50.93514 | B107: ='DF raw data'!D112 -> -5.1376146e-06 | C107: ='DF raw data'!E112 -> 8.4176791e-06 | D107: ='DF raw data'!F112 -> -1.2325429e-05 | F107: -5.143204325e-06 | G107: 8.443545877e-06 | H107: -1.233883907e-05 | J107: -9.187020048e-05 | K107: -0.004212099294 | L107: -2.995275724e-05 | M107: -0.001833214902 | N107: 4.484726801e-07
A108: 51.43528 | B108: ='DF raw data'!D113 -> -2.4104986e-06 | C108: ='DF raw data'!E113 -> 1.410084e-06 | D108: ='DF raw data'!F113 -> -3.5141275e-06 | F108: -2.413121222e-06 | G108: 1.414417062e-06 | H108: -3.517950871e-06 | J108: -9.307709893e-05 | K108: -0.004258650874 | L108: -2.924535069e-05 | M108: -0.001847841672 | N108: 4.532333312e-07
A109: 51.93542 | B109: ='DF raw data'!D114 -> 2.0492269e-06 | C109: ='DF raw data'!E114 -> -3.0792073e-06 | D109: ='DF raw data'!F114 -> 4.5134948e-06 | F109: 2.051456459e-06 | G109: -3.088669429e-06 | H109: 4.518405482e-06 | J109: -9.205108349e-05 | K109: -0.004304689303 | L109: -3.079011782e-05 | M109: -0.001863241041 | N109: 4.579453669e-07
A110: 52.43556 | B110: ='DF raw data'!D115 -> 2.6741765e-07 | C110: ='DF raw data'!E115 -> -3.2761457e-06 | D110: ='DF raw data'!F115 -> 1.3777317e-06 | F110: 2.677086004e-07 | G110: -3.286213003e-06 | H110: 1.379230672e-06 | J110: -9.191719171e-05 | K110: -0.004350660767 | L110: -3.243368439e-05 | M110: -0.001879462424 | N110: 4.62697054e-07
A111: 52.9357 | B111: ='DF raw data'!D116 -> -5.7659954e-06 | C111: ='DF raw data'!E116 -> -3.7232605e-06 | D111: ='DF raw data'!F116 -> 1.9152794e-06 | F111: -5.772268803e-06 | G111: -3.734701747e-06 | H111: 1.917363224e-06 | J111: -9.480413423e-05 | K111: -0.004398076107 | L111: -3.430155812e-05 | M111: -0.001896618006 | N111: 4.677806874e-07
A112: 53.43584 | B112: ='DF raw data'!D117 -> -5.9801268e-06 | C112: ='DF raw data'!E117 -> -1.107185e-07 | D112: ='DF raw data'!F117 -> -2.7585484e-06 | F112: -5.986633178e-06 | G112: -1.110587281e-07 | H112: -2.761549701e-06 | J112: -9.779828895e-05 | K112: -0.004446988943 | L112: -3.435710303e-05 | M112: -0.001913801367 | N112: 4.731546496e-07
A113: 53.93598 | B113: ='DF raw data'!D118 -> -2.8463721e-06 | C113: ='DF raw data'!E118 -> 4.0612808e-06 | D113: ='DF raw data'!F118 -> -6.2964828e-06 | F113: -2.849468953e-06 | G113: 4.073760753e-06 | H113: -6.303333373e-06 | J113: -9.922342235e-05 | K113: -0.004496614546 | L113: -3.231965233e-05 | M113: -0.001929965718 | N113: 4.786010979e-07
A114: 54.43612 | B114: ='DF raw data'!D119 -> 3.8997388e-07 | C114: ='DF raw data'!E119 -> -5.4040415e-06 | D114: ='DF raw data'!F119 -> -5.6338758e-06 | F114: 3.903981716e-07 | G114: -5.420647637e-06 | H114: -5.640005457e-06 | J114: -9.902816861e-05 | K114: -0.004546142494 | L114: -3.503073504e-05 | M114: -0.00194748599 | N114: 4.841195079e-07
A115: 54.93626 | B115: ='DF raw data'!D120 -> 3.889698e-07 | C115: ='DF raw data'!E120 -> 5.3170984e-06 | D115: ='DF raw data'!F120 -> -6.75724e-06 | F115: 3.893929991e-07 | G115: 5.333437369e-06 | H115: -6.764591877e-06 | J115: -9.88334176e-05 | K115: -0.004595573039 | L115: -3.236326967e-05 | M115: -0.001963672156 | N115: 4.895287349e-07
A116: 55.4364 | B116: ='DF raw data'!D121 -> -3.9038887e-06 | C116: ='DF raw data'!E121 -> 2.4167909e-06 | D116: ='DF raw data'!F121 -> -7.6297001e-06 | F116: -3.908136131e-06 | G116: 2.424217483e-06 | H116: -7.638001214e-06 | J116: -0.0001007880328 | K116: -0.004645981166 | L116: -3.115082154e-05 | M116: -0.001979251927 | N116: 4.950945935e-07
A117: 55.93654 | B117: ='DF raw data'!D122 -> -5.6514573e-06 | C117: ='DF raw data'!E122 -> 2.8394895e-06 | D117: ='DF raw data'!F122 -> -1.4423713e-06 | F117: -5.657606086e-06 | G117: 2.848214998e-06 | H117: -1.4439406e-06 | J117: -0.0001036176279 | K117: -0.004697804486 | L117: -2.972631529e-05 | M117: -0.001994119247 | N117: 5.009063537e-07
A118: 56.43668 | B118: ='DF raw data'!D123 -> -1.370677e-06 | C118: ='DF raw data'!E123 -> 2.6740397e-06 | D118: ='DF raw data'!F123 -> -1.466251e-07 | F118: -1.372168297e-06 | G118: 2.682256785e-06 | H118: -1.467846281e-07 | J118: -0.0001043039042 | K118: -0.004749971041 | L118: -2.838481138e-05 | M118: -0.002008315626 | N118: 5.067504905e-07
A119: 56.93682 | B119: ='DF raw data'!D124 -> 3.1019997e-06 | C119: ='DF raw data'!E124 -> -1.0181937e-05 | D119: ='DF raw data'!F124 -> -1.8775027e-06 | F119: 3.105374676e-06 | G119: -1.021322518e-05 | H119: -1.879545423e-06 | J119: -0.0001027507821 | K119: -0.004801360817 | L119: -3.349285383e-05 | M119: -0.002025066742 | N119: 5.125918729e-07
A120: 57.43696 | B120: ='DF raw data'!D125 -> 8.5250622e-06 | C120: ='DF raw data'!E125 -> -9.5250743e-06 | D120: ='DF raw data'!F125 -> 2.0348816e-06 | F120: 8.534337468e-06 | G120: -9.554344003e-06 | H120: 2.037095551e-06 | J120: -9.848241853e-05 | K120: -0.004850615814 | L120: -3.827136344e-05 | M120: -0.002044207782 | N120: 5.181751778e-07
A121: 57.9371 | B121: ='DF raw data'!D126 -> 1.0160828e-05 | C121: ='DF raw data'!E126 -> 6.1005426e-07 | D121: ='DF raw data'!F126 -> 5.5307028e-06 | F121: 1.017188298e-05 | G121: 6.119289023e-07 | H121: 5.536720205e-06 | J121: -9.339505298e-05 | K121: -0.004897326416 | L121: -3.796531331e-05 | M121: -0.002063195754 | N121: 5.232586012e-07
A122: 58.43724 | B122: ='DF raw data'!D127 -> 5.9039421e-06 | C122: ='DF raw data'!E127 -> 6.7239539e-06 | D122: ='DF raw data'!F127 -> 6.3825864e-06 | F122: 5.910365589e-06 | G122: 6.74461601e-06 | H122: 6.389530654e-06 | J122: -9.043904273e-05 | K122: -0.004942558599 | L122: -3.459206106e-05 | M122: -0.002080496627 | N122: 5.279478294e-07
A123: 58.93738 | B123: ='DF raw data'!D128 -> 8.732313e-08 | C123: ='DF raw data'!E128 -> 7.9042511e-06 | D123: ='DF raw data'!F128 -> 6.4073538e-06 | F123: 8.741813757e-08 | G123: 7.928540158e-06 | H123: 6.414325001e-06 | J123: -9.039532142e-05 | K123: -0.004987768915 | L123: -3.062668099e-05 | M123: -0.002095814255 | N123: 5.325037586e-07
A124: 59.43752 | B124: ='DF raw data'!D129 -> -6.660004e-07 | C124: ='DF raw data'!E129 -> -2.225139e-06 | D124: ='DF raw data'!F129 -> 3.501671e-06 | F124: -6.667250084e-07 | G124: -2.231976654e-06 | H124: 3.505480818e-06 | J124: -9.072877727e-05 | K124: -0.005033146005 | L124: -3.174298179e-05 | M124: -0.00211169019 | N124: 5.37124716e-07
A125: 59.93766 | B125: ='DF raw data'!D130 -> -5.5499839e-07 | C125: ='DF raw data'!E130 -> 1.7629989e-06 | D125: ='DF raw data'!F130 -> -3.3782271e-06 | F125: -5.556022282e-07 | G125: 1.768416438e-06 | H125: -3.381902611e-06 | J125: -9.100665617e-05 | K125: -0.005078662074 | L125: -3.085852599e-05 | M125: -0.002127123774 | N125: 5.417432389e-07
A126: 60.4378 | B126: ='DF raw data'!D131 -> 1.3372744e-06 | C126: ='DF raw data'!E131 -> -3.9195315e-06 | D126: ='DF raw data'!F131 -> 2.1565356e-06 | F126: 1.338729355e-06 | G126: -3.93157587e-06 | H126: 2.158881911e-06 | J126: -9.033710407e-05 | K126: -0.005123843274 | L126: -3.282486435e-05 | M126: -0.002143540801 | N126: 5.463636643e-07
A127: 60.93794 | B127: ='DF raw data'!D132 -> 2.3516739e-06 | C127: ='DF raw data'!E132 -> -1.0740644e-06 | D127: ='DF raw data'!F132 -> 3.2255339e-06 | F127: 2.354232521e-06 | G127: -1.077364904e-06 | H127: 3.229043281e-06 | J127: -8.915965821e-05 | K127: -0.005168435585 | L127: -3.336369763e-05 | M127: -0.002160227321 | N127: 5.508962236e-07
A128: 61.43808 | B128: ='DF raw data'!D133 -> -1.4229154e-07 | C128: ='DF raw data'!E133 -> 4.3919131e-06 | D128: ='DF raw data'!F133 -> -1.0030839e-05 | F128: -1.424463532e-07 | G128: 4.405409057e-06 | H128: -1.004175255e-05 | J128: -8.923090133e-05 | K128: -0.005213063528 | L128: -3.116037635e-05 | M128: -0.002175811872 | N128: 5.553640356e-07
A129: 61.93822 | B129: ='DF raw data'!D134 -> -1.1096884e-06 | C129: ='DF raw data'!E134 -> -5.7733691e-06 | D129: ='DF raw data'!F134 -> -1.515144e-05 | F129: -1.110895741e-06 | G129: -5.791110148e-06 | H129: -1.516792477e-05 | J129: -8.978650473e-05 | K129: -0.00525796935 | L129: -3.405674218e-05 | M129: -0.002192845011 | N129: 5.599760657e-07
A130: 62.43836 | B130: ='DF raw data'!D135 -> 2.4732842e-06 | C130: ='DF raw data'!E135 -> -3.6636655e-07 | D130: ='DF raw data'!F135 -> -7.7650766e-06 | F130: 2.475975133e-06 | G130: -3.674923617e-07 | H130: -7.773525003e-06 | J130: -8.854817053e-05 | K130: -0.005302255833 | L130: -3.424053981e-05 | M130: -0.002209970074 | N130: 5.644839241e-07
A131: 62.9385 | B131: ='DF raw data'!D136 -> 7.7378181e-06 | C131: ='DF raw data'!E136 -> 5.1783331e-06 | D131: ='DF raw data'!F136 -> -8.9223613e-07 | F131: 7.746236846e-06 | G131: 5.194245655e-06 | H131: -8.932068829e-07 | J131: -8.467396763e-05 | K131: -0.005344604671 | L131: -3.164268978e-05 | M131: -0.002225795849 | N131: 5.685705383e-07
A132: 63.43864 | B132: ='DF raw data'!D137 -> 8.9226933e-06 | C132: ='DF raw data'!E137 -> -3.5718206e-06 | D132: ='DF raw data'!F137 -> 1.0192016e-06 | F132: 8.93240119e-06 | G132: -3.582796486e-06 | H132: 1.020310491e-06 | J132: -8.02065165e-05 | K132: -0.005384719158 | L132: -3.343458962e-05 | M132: -0.002242517825 | N132: 5.72347074e-07
A133: 63.93878 | B133: ='DF raw data'!D138 -> 2.7986214e-06 | C133: ='DF raw data'!E138 -> -4.256074e-07 | D133: ='DF raw data'!F138 -> 5.0752715e-06 | F133: 2.8016663e-06 | G133: -4.269152536e-07 | H133: 5.080793395e-06 | J133: -7.880529112e-05 | K133: -0.005424132836 | L133: -3.364810701e-05 | M133: -0.002259346589 | N133: 5.760193364e-07
A134: 64.43892 | B134: ='DF raw data'!D139 -> -2.9308169e-06 | C134: ='DF raw data'!E139 -> 4.103978e-06 | D134: ='DF raw data'!F139 -> 3.0836381e-06 | F134: -2.934005629e-06 | G134: 4.116589158e-06 | H134: 3.086993098e-06 | J134: -8.027270469e-05 | K134: -0.005464280427 | L134: -3.158923611e-05 | M134: -0.002275145629 | N134: 5.797411717e-07
A135: 64.93906 | B135: ='DF raw data'!D140 -> -2.0258333e-06 | C135: ='DF raw data'!E140 -> -2.5679149e-06 | D135: ='DF raw data'!F140 -> -2.1070446e-06 | F135: -2.028037407e-06 | G135: =(1-$G$1*($B$2-$G$2))*C135*$M$2/$M$1 -> -2.575805873e-06 | H135: -2.109337065e-06 | J135: -8.128700732e-05 | K135: -0.005504935311 | L135: -3.287749966e-05 | M135: -0.002291588982 | N135: 5.835865019e-07
A136: =A135+$B$1 -> 65.4392 | B136: ='DF raw data'!D141 -> -1.7790474e-06 | C136: ='DF raw data'!E141 -> -6.2895983e-06 | D136: ='DF raw data'!F141 -> -1.9075815e-06 | F136: -1.780983004e-06 | G136: -6.308925674e-06 | H136: -1.909656949e-06 | J136: =F136*$B$1+J135 -> -8.217774816e-05 | K136: =J136*$B$1+K135 -> -0.005546035689 | L136: =G136*$B$1+L135 -> -3.603284575e-05 | M136: =L136*$B$1+M135 -> -0.00230961045 | N136: =(J136^2+L136^2)*$B$1+N135 -> 5.876134032e-07
A137: 65.93934 | B137: ='DF raw data'!D142 -> -2.4806534e-06 | C137: ='DF raw data'!E142 -> -8.619505e-06 | D137: ='DF raw data'!F142 -> 4.2221072e-06 | F137: -2.483352351e-06 | G137: -8.64599197e-06 | H137: 4.226700853e-06 | J137: -8.3419772e-05 | K137: -0.005587757254 | L137: -4.035705217e-05 | M137: -0.002329794626 | N137: 5.919083805e-07
A138: 66.43948 | B138: ='DF raw data'!D143 -> -5.3474823e-06 | C138: ='DF raw data'!E143 -> -8.2752613e-06 | D138: ='DF raw data'!F143 -> 6.7877118e-06 | F138: -5.353300361e-06 | G138: -8.300690439e-06 | H138: 6.79509683e-06 | J138: -8.609717165e-05 | K138: -0.005630817894 | L138: -4.450855949e-05 | M138: -0.002352055137 | N138: 5.96606563e-07
A139: 66.93962 | B139: ='DF raw data'!D144 -> -7.2800058e-06 | C139: ='DF raw data'!E144 -> 2.310049e-06 | D139: ='DF raw data'!F144 -> 3.7025893e-06 | F139: -7.287926446e-06 | G139: 2.317147574e-06 | H139: 3.706617717e-06 | J139: -8.974215518e-05 | K139: -0.005675701535 | L139: -4.33496613e-05 | M139: -0.002373736036 | N139: 6.015743774e-07
A140: 67.43976 | B140: ='DF raw data'!D145 -> -4.4282087e-06 | C140: ='DF raw data'!E145 -> 5.4814495e-07 | D140: ='DF raw data'!F145 -> -1.3784738e-06 | F140: -4.433026591e-06 | G140: 5.498293505e-07 | H140: -1.379973579e-06 | J140: -9.19592891e-05 | K140: -0.005721694054 | L140: -4.307466965e-05 | M140: -0.002395279402 | N140: 6.067317901e-07
A141: 67.9399 | B141: ='DF raw data'!D146 -> 2.6935305e-07 | C141: ='DF raw data'!E146 -> -5.2333894e-06 | D141: ='DF raw data'!F146 -> -8.2292827e-06 | F141: 2.696461061e-07 | G141: -5.249471139e-06 | H141: -8.23823616e-06 | J141: -9.182442829e-05 | K141: -0.005767619124 | L141: -4.570014014e-05 | M141: -0.00241813587 | N141: 6.119933771e-07
A142: 68.44004 | B142: ='DF raw data'!D147 -> 4.4343151e-06 | C142: ='DF raw data'!E147 -> 4.367897e-06 | D142: ='DF raw data'!F147 -> -1.3694371e-05 | F142: 4.439139635e-06 | G142: 4.381319158e-06 | H142: -1.370927048e-05 | J142: -8.9604237e-05 | K142: -0.005812433787 | L142: -4.350886718e-05 | M142: -0.002439896394 | N142: 6.169557366e-07
A143: 68.94018 | B143: ='DF raw data'!D148 -> 3.7413236e-06 | C143: ='DF raw data'!E148 -> 1.160392e-05 | D143: ='DF raw data'!F148 -> -1.3763653e-05 | F143: 3.74539416e-06 | G143: 1.163957781e-05 | H143: -1.377862785e-05 | J143: -8.773101556e-05 | K143: -0.005856311577 | L143: -3.768744874e-05 | M143: -0.002458745395 | N143: 6.215155504e-07
A144: 69.44032 | B144: ='DF raw data'!D149 -> 1.2344098e-07 | C144: ='DF raw data'!E149 -> 4.9619486e-09 | D144: ='DF raw data'!F149 -> -1.1792188e-05 | F144: 1.235752838e-07 | G144: 4.977196225e-09 | H144: -1.18050179e-05 | J144: -8.766921062e-05 | K144: -0.005900158456 | L144: -3.768495944e-05 | M144: -0.002477593151 | N144: 6.260698486e-07
A145: 69.94046 | B145: ='DF raw data'!D150 -> -1.5842118e-06 | C145: ='DF raw data'!E150 -> 1.4501127e-06 | D145: ='DF raw data'!F150 -> -4.4861517e-06 | F145: -1.585935422e-06 | G145: 1.454568767e-06 | H145: -4.491032633e-06 | J145: -8.846240036e-05 | K145: -0.005944402041 | L145: -3.695747142e-05 | M145: -0.00249607706 | N145: 6.306668609e-07
A146: 70.4406 | B146: ='DF raw data'!D151 -> -3.1675038e-06 | C146: ='DF raw data'!E151 -> 7.6056399e-06 | D146: ='DF raw data'!F151 -> 1.1616212e-06 | F146: -3.170950044e-06 | G146: 7.629011353e-06 | H146: 1.162885044e-06 | J146: -9.004831932e-05 | K146: -0.005989438807 | L146: -3.314189768e-05 | M146: -0.002512652649 | N146: 6.352716925e-07
A147: 70.94074 | B147: ='DF raw data'!D152 -> -2.7428498e-06 | C147: ='DF raw data'!E152 -> 1.2652257e-05 | D147: ='DF raw data'!F152 -> -3.0284136e-06 | F147: -2.745834021e-06 | G147: 1.269113626e-05 | H147: -3.031708514e-06 | J147: -9.142162074e-05 | K147: -0.006035162417 | L147: -2.679455279e-05 | M147: -0.002526053677 | N147: 6.398108935e-07
A148: 71.44088 | B148: ='DF raw data'!D153 -> 1.2700591e-06 | C148: ='DF raw data'!E153 -> -3.0523881e-06 | D148: ='DF raw data'!F153 -> 2.1088199e-06 | F148: 1.271440924e-06 | G148: -3.061767816e-06 | H148: 2.111114296e-06 | J148: -9.078572228e-05 | K148: -0.006080567988 | L148: -2.832586535e-05 | M148: -0.002540220575 | N148: 6.443343607e-07
A149: 71.94102 | B149: ='DF raw data'!D154 -> 4.6828327e-06 | C149: ='DF raw data'!E154 -> 8.7417739e-06 | D149: ='DF raw data'!F154 -> 4.1706662e-06 | F149: 4.687927622e-06 | G149: 8.768636591e-06 | H149: 4.175203885e-06 | J149: -8.844110216e-05 | K149: -0.006124800921 | L149: -2.394031944e-05 | M149: -0.002552194086 | N149: 6.485330198e-07
A150: 72.44116 | B150: ='DF raw data'!D155 -> 3.3511139e-06 | C150: ='DF raw data'!E155 -> 8.9292389e-06 | D150: ='DF raw data'!F155 -> -1.7225684e-06 | F150: 3.354759912e-06 | G150: 8.956677654e-06 | H150: -1.724442554e-06 | J150: -8.676325254e-05 | K150: -0.006168194694 | L150: -1.946072668e-05 | M150: -0.002561927174 | N150: 6.524874176e-07
A151: 72.9413 | B151: ='DF raw data'!D156 -> -1.1706318e-06 | C151: ='DF raw data'!E156 -> -1.3845477e-06 | D151: ='DF raw data'!F156 -> 2.1623273e-06 | F151: =(1-$G$1*($B$2-$G$2))*B151 -> -1.171905447e-06 | G151: -1.388802291e-06 | H151: 2.164679912e-06 | J151: -8.734936933e-05 | K151: -0.006211881607 | L151: -2.015532226e-05 | M151: -0.002572007657 | N151: 6.565066174e-07
A152: 73.44144 | B152: ='DF raw data'!D157 -> -2.5934598e-06 | C152: ='DF raw data'!E157 -> 2.7678377e-06 | D152: ='DF raw data'!F157 -> 1.5340629e-06 | F152: -2.596281484e-06 | G152: 2.776343018e-06 | H152: 1.53573196e-06 | J152: -8.864787355e-05 | K152: -0.006256217955 | L152: -1.876676206e-05 | M152: -0.002581393666 | N152: 6.606130853e-07
A153: 73.94158 | B153: ='DF raw data'!D158 -> 2.2802531e-06 | C153: ='DF raw data'!E158 -> -1.5208232e-07 | D153: ='DF raw data'!F158 -> -8.3460181e-06 | F153: 2.282734015e-06 | G153: -1.525496554e-07 | H153: -8.355098568e-06 | J153: -8.750618696e-05 | K153: -0.006299983299 | L153: -1.884305825e-05 | M153: -0.002590817833 | N153: 6.646204038e-07
A154: 74.44172 | B154: ='DF raw data'!D159 -> 5.9183631e-06 | C154: ='DF raw data'!E159 -> -1.6764864e-06 | D154: ='DF raw data'!F159 -> -8.4097846e-06 | F154: 5.924802279e-06 | G154: -1.681638093e-06 | H154: -8.418934446e-06 | J154: -8.454295635e-05 | K154: -0.006342266613 | L154: -1.968411272e-05 | M154: -0.002600662645 | N154: 6.683889466e-07
A155: 74.94186 | B155: ='DF raw data'!D160 -> 7.0015785e-06 | C155: ='DF raw data'!E160 -> -2.3350842e-06 | D155: ='DF raw data'!F160 -> -1.782988e-06 | F155: 7.009196217e-06 | G155: -2.342259705e-06 | H155: -1.784927891e-06 | J155: -8.103737695e-05 | K155: -0.006382796647 | L155: -2.085557049e-05 | M155: -0.00261109335 | N155: 6.718909325e-07
A156: 75.442 | B156: ='DF raw data'!D161 -> 8.1035369e-06 | C156: ='DF raw data'!E161 -> 2.648954e-06 | D156: ='DF raw data'!F161 -> 2.9646471e-06 | F156: 8.112353548e-06 | G156: 2.657093999e-06 | H156: 2.967872636e-06 | J156: -7.698006445e-05 | K156: -0.006421297456 | L156: -1.95266515e-05 | M156: -0.002620859409 | N156: 6.750454257e-07
A157: 75.94214 | B157: ='DF raw data'!D162 -> 4.8914926e-06 | C157: ='DF raw data'!E162 -> 1.1673702e-05 | D157: ='DF raw data'!F162 -> 4.1867752e-06 | F157: 4.896814544e-06 | G157: 1.170957424e-05 | H157: 4.191330411e-06 | J157: -7.453097162e-05 | K157: -0.006458573376 | L157: -1.367022504e-05 | M157: -0.002627696436 | N157: 6.779171e-07
A158: 76.44228 | B158: ='DF raw data'!D163 -> 1.1023192e-06 | C158: ='DF raw data'!E163 -> 7.7758941e-06 | D158: ='DF raw data'!F163 -> 4.3807813e-06 | F158: 1.103518523e-06 | G158: 7.799788729e-06 | H158: 4.38554759e-06 | J158: -7.397905787e-05 | K158: -0.006495573262 | L158: -9.769238702e-06 | M158: -0.002632582423 | N158: 6.80702049e-07
A159: 76.94242 | B159: ='DF raw data'!D164 -> 2.0320119e-06 | C159: ='DF raw data'!E164 -> -5.278353e-06 | D159: ='DF raw data'!F164 -> 4.6026107e-06 | F159: 2.034222729e-06 | G159: -5.294572908e-06 | H159: 4.60761834e-06 | J159: -7.296166171e-05 | K159: -0.006532064308 | L159: -1.24172664e-05 | M159: -0.002638792794 | N159: 6.834416122e-07
A160: 77.44256 | B160: ='DF raw data'!D165 -> 6.0254943e-06 | C160: ='DF raw data'!E165 -> -3.6526765e-06 | D160: ='DF raw data'!F165 -> -3.2719399e-06 | F160: 6.032050038e-06 | G160: -3.663900849e-06 | H160: -3.275499771e-06 | J160: -6.994479221e-05 | K160: -0.006567046496 | L160: -1.424972977e-05 | M160: -0.002645919654 | N160: 6.859899899e-07
A161: 77.9427 | B161: ='DF raw data'!D166 -> 7.6918923e-06 | C161: ='DF raw data'!E166 -> -5.1977645e-06 | D161: ='DF raw data'!F166 -> -1.5938916e-05 | F161: 7.700261079e-06 | G161: -5.213736766e-06 | H161: -1.595625754e-05 | J161: -6.609358363e-05 | K161: -0.006600102541 | L161: -1.685732807e-05 | M161: -0.002654350678 | N161: 6.883169069e-07
A162: 78.44284 | B162: ='DF raw data'!D167 -> 9.6884442e-06 | C162: ='DF raw data'!E167 -> -2.7787285e-06 | D162: ='DF raw data'!F167 -> -1.241939e-05 | F162: 9.698985227e-06 | G162: -2.787267285e-06 | H162: -1.24329023e-05 | J162: -6.124273316e-05 | K162: -0.006630732482 | L162: -1.825135193e-05 | M162: -0.002663478909 | N162: 6.903593708e-07
A163: 78.94298 | B163: ='DF raw data'!D168 -> 1.3489957e-05 | C163: ='DF raw data'!E168 -> -5.4969519e-07 | D163: ='DF raw data'!F168 -> 4.6053901e-07 | F163: 1.350463407e-05 | G163: -5.513843543e-07 | H163: 4.610400764e-07 | J163: -5.448852547e-05 | K163: -0.006657984373 | L163: -1.85271213e-05 | M163: -0.002672745064 | N163: 6.920159613e-07
A164: 79.44312 | B164: ='DF raw data'!D169 -> 1.3375608e-05 | C164: ='DF raw data'!E169 -> -5.059303e-07 | D164: ='DF raw data'!F169 -> 3.621928e-06 | F164: 1.339016066e-05 | G164: -5.074849787e-07 | H164: 3.625868658e-06 | J164: -4.779157052e-05 | K164: -0.006681886849 | L164: -1.878093484e-05 | M164: -0.002682138161 | N164: 6.933347093e-07
A165: 79.94326 | B165: ='DF raw data'!D170 -> 8.4991598e-06 | C165: ='DF raw data'!E170 -> -1.2386952e-05 | D165: ='DF raw data'!F170 -> 5.1688403e-06 | F165: 8.508406886e-06 | G165: -1.2425016e-05 | H165: 5.174463998e-06 | J165: -4.35361759e-05 | K165: -0.006703661032 | L165: -2.499518234e-05 | M165: -0.002694639251 | N165: 6.94595141e-07
A166: 80.4434 | B166: ='DF raw data'!D171 -> 1.1661293e-06 | C166: ='DF raw data'!E171 -> -2.3074647e-06 | D166: ='DF raw data'!F171 -> -2.3246103e-06 | F166: 1.167398049e-06 | G166: -2.314555333e-06 | H166: -2.327139476e-06 | J166: -4.295231344e-05 | K166: -0.006725143202 | L166: -2.615278405e-05 | M166: -0.002707719304 | N166: 6.958599297e-07
A167: 80.94354 | B167: ='DF raw data'!D172 -> -1.7960149e-06 | C167: ='DF raw data'!E172 -> 1.2842524e-05 | D167: ='DF raw data'!F172 -> -7.6460128e-06 | F167: -1.797968964e-06 | G167: 1.288198793e-05 | H167: -7.654331662e-06 | J167: -4.385154964e-05 | K167: -0.006747075116 | L167: -1.97099866e-05 | M167: -0.002717577057 | N167: 6.970159743e-07
A168: 81.44368 | B168: ='DF raw data'!D173 -> 6.8045921e-07 | C168: ='DF raw data'!E173 -> 2.1915673e-06 | D168: ='DF raw data'!F173 -> -2.2838067e-06 | F168: 6.811995496e-07 | G168: 2.198301791e-06 | H168: -2.286291482e-06 | J168: -4.351085449e-05 | K168: -0.006768836635 | L168: -1.861052794e-05 | M168: -0.002726884927 | N168: 6.98136061e-07
A169: 81.94382 | B169: ='DF raw data'!D174 -> 1.3721262e-06 | C169: ='DF raw data'!E174 -> 3.6127001e-06 | D169: ='DF raw data'!F174 -> 3.6497513e-06 | F169: 1.373619073e-06 | G169: 3.623801605e-06 | H169: 3.653722229e-06 | J169: -4.282385265e-05 | K169: -0.006790254557 | L169: -1.679811981e-05 | M169: -0.002735286338 | N169: 6.991943868e-07
A170: 82.44396 | B170: ='DF raw data'!D175 -> -1.4591963e-06 | C170: ='DF raw data'!E175 -> 5.0589165e-06 | D170: ='DF raw data'!F175 -> 7.1341929e-06 | F170: -1.460783906e-06 | G170: 5.074462099e-06 | H170: 7.141954902e-06 | J170: -4.355444911e-05 | K170: -0.006812037879 | L170: -1.426017834e-05 | M170: -0.002742418424 | N170: 7.002448522e-07
A171: 82.9441 | B171: ='DF raw data'!D176 -> -4.5061634e-06 | C171: ='DF raw data'!E176 -> 1.2382067e-05 | D171: ='DF raw data'!F176 -> 2.9607181e-06 | F171: -4.511066106e-06 | G171: 1.242011599e-05 | H171: 2.963939361e-06 | J171: -4.581061372e-05 | K171: -0.006834949599 | L171: -8.048381526e-06 | M171: -0.002746443741 | N171: 7.013268495e-07
A172: 83.44424 | B172: ='DF raw data'!D177 -> -3.6062586e-06 | C172: ='DF raw data'!E177 -> 1.2621569e-05 | D172: ='DF raw data'!F177 -> -2.1701417e-06 | F172: -3.610182209e-06 | G172: 1.266035395e-05 | H172: -2.172502814e-06 | J172: -4.761621025e-05 | K172: -0.00685876437 | L172: -1.716432099e-06 | M172: -0.002747302198 | N172: 7.024622921e-07
A173: 83.94438 | B173: ='DF raw data'!D178 -> -1.5808794e-06 | C173: ='DF raw data'!E178 -> 4.2909101e-06 | D173: ='DF raw data'!F178 -> 5.1037496e-06 | F173: -1.582599397e-06 | G173: 4.304095684e-06 | H173: 5.10930248e-06 | J173: -4.840773151e-05 | K173: -0.006882975013 | L173: 4.362183158e-07 | M173: -0.002747084028 | N173: 7.036343696e-07
A174: 84.44452 | B174: ='DF raw data'!D179 -> -3.2966666e-06 | C174: ='DF raw data'!E179 -> 5.3549916e-06 | D174: ='DF raw data'!F179 -> 1.0603791e-05 | F174: -3.300253373e-06 | G174: 5.371447011e-06 | H174: 1.061532792e-05 | J174: -5.005832023e-05 | K174: -0.006908011182 | L174: 3.122693824e-06 | M174: -0.002745522243 | N174: 7.048925151e-07
A175: 84.94466 | B175: ='DF raw data'!D180 -> -3.0767289e-06 | C175: ='DF raw data'!E180 -> 6.4464252e-06 | D175: ='DF raw data'!F180 -> 3.3553806e-06 | F175: -3.080076381e-06 | G175: 6.466234489e-06 | H175: 3.359031254e-06 | J175: -5.159878963e-05 | K175: -0.0069338178 | L175: 6.356716341e-06 | M175: -0.002742342995 | N175: 7.062443149e-07
A176: 85.4448 | B176: ='DF raw data'!D181 -> 3.5844685e-06 | C176: ='DF raw data'!E181 -> 8.9616624e-06 | D176: ='DF raw data'!F181 -> -8.9762034e-07 | F176: 3.588368402e-06 | G176: 8.989200789e-06 | H176: -8.985969509e-07 | J176: -4.980410306e-05 | K176: -0.006958726824 | L176: 1.085257522e-05 | M176: -0.002736915188 | N176: 7.075437922e-07
A177: 85.94494 | B177: ='DF raw data'!D182 -> 1.0134664e-05 | C177: ='DF raw data'!E182 -> 3.5004866e-06 | D177: ='DF raw data'!F182 -> -3.1844829e-06 | F177: 1.014569051e-05 | G177: 3.511243283e-06 | H177: -3.187947617e-06 | J177: -4.472983741e-05 | K177: -0.006981098005 | L177: 1.260868844e-05 | M177: -0.002730609079 | N177: 7.086239633e-07
A178: 86.44508 | B178: ='DF raw data'!D183 -> 9.5811674e-06 | C178: ='DF raw data'!E183 -> -3.6810005e-07 | D178: ='DF raw data'!F183 -> -3.5311677e-06 | F178: 9.59159171e-06 | G178: -3.692311886e-07 | H178: -3.53500961e-06 | J178: -3.993269873e-05 | K178: -0.007001069945 | L178: 1.242402115e-05 | M178: -0.002724395329 | N178: 7.094986965e-07
A179: 86.94522 | B179: ='DF raw data'!D184 -> 1.2129283e-06 | C179: ='DF raw data'!E184 -> 1.7694921e-07 | D179: ='DF raw data'!F184 -> 3.9784936e-08 | F179: 1.214247966e-06 | G179: 1.774929591e-07 | H179: 3.982822201e-08 | J179: -3.932540475e-05 | K179: -0.007020738153 | L179: 1.251279248e-05 | M179: -0.002718137181 | N179: 7.103504637e-07
A180: 87.44536 | B180: ='DF raw data'!D185 -> -6.1009514e-06 | C180: ='DF raw data'!E185 -> -8.4790395e-07 | D180: ='DF raw data'!F185 -> 1.4560646e-06 | F180: -6.107589235e-06 | G180: -8.505094832e-07 | H180: 1.457648798e-06 | J180: -4.238005443e-05 | K180: -0.007041934114 | L180: 1.208741867e-05 | M180: -0.002712091779 | N180: 7.113218229e-07
A181: 87.9455 | B181: ='DF raw data'!D186 -> -7.1345594e-06 | C181: ='DF raw data'!E186 -> -4.250564e-06 | D181: ='DF raw data'!F186 -> -6.754708e-07 | F181: -7.142321801e-06 | G181: -4.263625604e-06 | H181: -6.762057122e-07 | J181: -4.595221526e-05 | K181: -0.007064916654 | L181: 9.955008959e-06 | M181: -0.002707112881 | N181: 7.124274866e-07
A182: 88.44564 | B182: ='DF raw data'!D187 -> -3.7123681e-07 | C182: ='DF raw data'!E187 -> 2.9977343e-06 | D182: ='DF raw data'!F187 -> -1.2337841e-06 | F182: -3.716407156e-07 | G182: 3.00694607e-06 | H182: -1.235126457e-06 | J182: -4.613808764e-05 | K182: -0.007087992158 | L182: 1.145890297e-05 | M182: -0.002701381825 | N182: 7.135578177e-07
A183: 88.94578 | B183: ='DF raw data'!D188 -> 3.2669457e-06 | C183: ='DF raw data'!E188 -> 9.0299764e-06 | D183: ='DF raw data'!F188 -> 3.9146398e-06 | F183: 3.270500137e-06 | G183: 9.057724711e-06 | H183: 3.918898928e-06 | J183: -4.45023797e-05 | K183: -0.007110249578 | L183: 1.59890334e-05 | M183: -0.00269338507 | N183: 7.146761863e-07
A184: 89.44592 | B184: ='DF raw data'!D189 -> -4.8271903e-07 | C184: ='DF raw data'!E189 -> -2.335217e-06 | D184: ='DF raw data'!F189 -> 4.7548092e-06 | F184: -4.832442283e-07 | G184: -2.342392913e-06 | H184: 4.759982432e-06 | J184: -4.474406947e-05 | K184: -0.007132627877 | L184: 1.481750901e-05 | M184: -0.002685974241 | N184: 7.157872925e-07
A185: 89.94606 | B185: ='DF raw data'!D190 -> -2.9977703e-06 | C185: ='DF raw data'!E190 -> 9.2062328e-06 | D185: ='DF raw data'!F190 -> 3.902649e-06 | F185: -3.001031874e-06 | G185: 9.234522732e-06 | H185: 3.906895082e-06 | J185: -4.624500555e-05 | K185: -0.007155756854 | L185: 1.943606321e-05 | M185: -0.002676253489 | N185: 7.170458253e-07
A186: 90.4462 | B186: ='DF raw data'!D191 -> 2.1450803e-06 | C186: ='DF raw data'!E191 -> 8.8946817e-06 | D186: ='DF raw data'!F191 -> 5.4095726e-06 | F186: 2.147414147e-06 | G186: 8.922014263e-06 | H186: 5.415458215e-06 | J186: -4.517099784e-05 | K186: -0.007178348677 | L186: 2.389831942e-05 | M186: -0.002664300983 | N186: 7.183519653e-07
A187: 90.94634 | B187: ='DF raw data'!D192 -> 7.4424579e-06 | C187: ='DF raw data'!E192 -> 3.8260491e-06 | D187: ='DF raw data'!F192 -> 1.0065298e-05 | F187: 7.450555294e-06 | G187: 3.837806207e-06 | H187: 1.007624904e-05 | J187: -4.144467712e-05 | K187: -0.007199076817 | L187: 2.581775982e-05 | M187: -0.002651388489 | N187: 7.195444081e-07
A188: 91.44648 | B188: ='DF raw data'!D193 -> 5.2779624e-06 | C188: ='DF raw data'!E193 -> 5.5568667e-06 | D188: ='DF raw data'!F193 -> 1.1686017e-05 | F188: 5.283704823e-06 | G188: 5.573942455e-06 | H188: 1.169873139e-05 | J188: -3.880208499e-05 | K188: -0.007218483292 | L188: 2.86055114e-05 | M188: -0.002637081728 | N188: 7.20706672e-07
A189: 91.94662 | B189: ='DF raw data'!D194 -> 2.6051246e-06 | C189: ='DF raw data'!E194 -> 1.1801926e-05 | D189: ='DF raw data'!F194 -> 6.2093022e-08 | F189: 2.607958976e-06 | G189: 1.183819227e-05 | H189: 6.216057921e-08 | J189: -3.749774039e-05 | K189: -0.007237237412 | L189: 3.452626488e-05 | M189: -0.002619813762 | N189: 7.220061075e-07
A190: 92.44676 | B190: ='DF raw data'!D195 -> 6.4221213e-06 | C190: ='DF raw data'!E195 -> 9.1824841e-06 | D190: ='DF raw data'!F195 -> -4.37774e-06 | F190: 6.429108568e-06 | G190: 9.210701054e-06 | H190: -4.382502981e-06 | J190: -3.428228603e-05 | K190: -0.007254383355 | L190: 3.913290491e-05 | M190: -0.002600241831 | N190: 7.233598161e-07
A191: 92.9469 | B191: ='DF raw data'!D196 -> 4.5656898e-06 | C191: ='DF raw data'!E196 -> -4.9833457e-06 | D191: ='DF raw data'!F196 -> 3.7267455e-08 | F191: 4.570657271e-06 | G191: -4.998659077e-06 | H191: 3.730800199e-08 | J191: -3.19963175e-05 | K191: -0.007270385993 | L191: 3.663287555e-05 | M191: -0.002581920265 | N191: 7.245430132e-07
A192: 93.44704 | B192: ='DF raw data'!D197 -> -4.0941986e-06 | C192: ='DF raw data'!E197 -> 3.0041372e-06 | D192: ='DF raw data'!F197 -> -6.9417001e-07 | F192: -4.098653088e-06 | G192: 3.013368645e-06 | H192: -6.94925267e-07 | J192: -3.404621785e-05 | K192: -0.007287413868 | L192: 3.813998175e-05 | M192: -0.002562844934 | N192: 7.258502807e-07
A193: 93.94718 | B193: ='DF raw data'!D198 -> -6.0181073e-06 | C193: ='DF raw data'!E198 -> 1.7111126e-05 | D193: ='DF raw data'!F198 -> -5.3359836e-06 | F193: -6.024655001e-06 | G193: 1.716370696e-05 | H193: -5.34178915e-06 | J193: -3.705938881e-05 | K193: -0.007305948751 | L193: 4.672423815e-05 | M193: -0.002539476274 | N193: 7.27629055e-07
A194: 94.44732 | B194: ='DF raw data'!D199 -> -2.3374771e-06 | C194: ='DF raw data'!E199 -> 8.1357466e-06 | D194: ='DF raw data'!F199 -> -2.3974135e-06 | F194: -2.340020275e-06 | G194: 8.160747023e-06 | H194: -2.400021886e-06 | J194: -3.822972655e-05 | K194: -0.007325068966 | L194: 5.080575417e-05 | M194: -0.002514066284 | N194: 7.296509893e-07
A195: 94.94746 | B195: ='DF raw data'!D200 -> -6.0272868e-07 | C195: ='DF raw data'!E200 -> 6.9808007e-06 | D195: ='DF raw data'!F200 -> 4.4474727e-06 | F195: -6.033844488e-07 | G195: 7.002252077e-06 | H195: 4.45231155e-06 | J195: -3.853150324e-05 | K195: -0.007344340112 | L195: 5.430786052e-05 | M195: -0.002486904751 | N195: 7.318686203e-07
A196: 95.4476 | B196: ='DF raw data'!D201 -> -2.1281478e-06 | C196: ='DF raw data'!E201 -> 6.4265455e-06 | D196: ='DF raw data'!F201 -> -3.9843289e-06 | F196: -2.130463225e-06 | G196: 6.446293701e-06 | H196: -3.98866385e-06 | J196: -3.959703312e-05 | K196: -0.007364144173 | L196: 5.753190985e-05 | M196: -0.002458130741 | N196: 7.343082261e-07
A197: 95.94774 | B197: ='DF raw data'!D202 -> -4.2238853e-06 | C197: ='DF raw data'!E202 -> 9.4354618e-06 | D197: ='DF raw data'!F202 -> -5.4766133e-06 | F197: -4.228480887e-06 | G197: 9.464456132e-06 | H197: -5.482571855e-06 | J197: -4.171186555e-05 | K197: -0.007385005945 | L197: 6.226546294e-05 | M197: -0.002426989293 | N197: 7.371174462e-07
A198: 96.44788 | B198: ='DF raw data'!D203 -> -3.9243196e-06 | C198: ='DF raw data'!E203 -> 1.0874207e-05 | D198: ='DF raw data'!F203 -> -2.4804176e-06 | F198: -3.92858926e-06 | G198: 1.090762247e-05 | H198: -2.483116294e-06 | J198: -4.367671019e-05 | K198: -0.007406850415 | L198: 6.772080124e-05 | M198: -0.002393119411 | N198: 7.403652363e-07
A199: 96.94802 | B199: ='DF raw data'!D204 -> -4.4793995e-07 | C199: ='DF raw data'!E204 -> 7.4764826e-06 | D199: ='DF raw data'!F204 -> -3.7649734e-06 | F199: -4.484273087e-07 | G199: =(1-$G$1*($B$2-$G$2))*C199*$M$2/$M$1 -> 7.499457164e-06 | H199: -3.769069691e-06 | J199: -4.390098662e-05 | K199: -0.007428807054 | L199: 7.147157975e-05 | M199: -0.002357373615 | N199: 7.43883963e-07
A200: =A199+$B$1 -> 97.44816 | B200: ='DF raw data'!D205 -> 2.4469889e-06 | C200: ='DF raw data'!E205 -> 1.9410876e-05 | D200: ='DF raw data'!F205 -> 4.2004831e-06 | F200: 2.449651224e-06 | G200: 1.947052389e-05 | H200: 4.205053226e-06 | J200: =F200*$B$1+J199 -> -4.267581806e-05 | K200: =J200*$B$1+K199 -> -0.007450150938 | L200: =G200*$B$1+L199 -> 8.120956757e-05 | M200: =L200*$B$1+M199 -> -0.002316757462 | N200: =(J200^2+L200^2)*$B$1+N199 -> 7.480932509e-07
A201: 97.9483 | B201: ='DF raw data'!D206 -> 5.2584046e-06 | C201: ='DF raw data'!E206 -> 9.5244577e-06 | D201: ='DF raw data'!F206 -> 2.6742637e-06 | F201: 5.264125744e-06 | G201: 9.553725508e-06 | H201: 2.677173299e-06 | J201: -4.004301821e-05 | K201: -0.007470178053 | L201: 8.598776784e-05 | M201: -0.00227375154 | N201: 7.525931803e-07
... 1002 more rows

Sheet 10 x=0
A1: dz | B1: ='DF raw data'!H7 -> 0.50015 | C1: mm | F1: T_coeff | G1: -0.0008 | H1: /degC | L1: Hallref | M1: ='PI vs gap'!B44 -> 0.50561 | N1: T | P1: IBy total | Q1: =L1203*1000 -> -10.1671945 | R1: muTm | X1: DF ref | Y1: 19
A2: Tref | B2: ='DF raw data'!H8 -> 21.38 | C2: degC | F2: Tcorr | G2: 20 | H2: degC | L2: NMRref | M2: ='PI vs gap'!B45 -> 0.5066125 | N2: T | P2: JBy total | Q2: =M1203 -> -3.711630613 | R2: muTm^2
A3: Encoder | B3: ='DF raw data'!H9 -> 17908792 | P3: PI total | Q3: =N1203 -> 711.9093173 | R3: T^2mm^3
A5: z [mm] | B5: Bx | C5: By | D5: Bz | F5: Bx_corr | G5: By_corr | H5: Bz_corr | J5: Ix | K5: Jx | L5: Iy | M5: Jy | N5: PI
A6: ='PI vs gap'!B53 -> 0.421 | B6: ='DF raw data'!G11 -> 3.5208739e-06 | C6: ='DF raw data'!H11 -> 2.9208256e-06 | D6: ='DF raw data'!I11 -> 1.6843113e-06 | F6: =(1-$G$1*($B$2-$G$2))*B6 -> 3.524760945e-06 | G6: =(1-$G$1*($B$2-$G$2))*C6*$M$2/$M$1 -> 2.929847862e-06 | H6: =(1-$G$1*($B$2-$G$2))*D6 -> 1.68617078e-06 | J6: =F6*$B$1 -> 1.762909187e-06 | K6: =J6*$B$1 -> 8.817190296e-07 | L6: =G6*$B$1 -> 1.465363408e-06 | M6: =L6*$B$1 -> 7.329015087e-07 | N6: =(J6^2+L6)^2*$B$1 -> 1.073971608e-12
A7: =A6+$B$1 -> 0.92115 | B7: ='DF raw data'!G12 -> 3.8767121e-06 | C7: ='DF raw data'!H12 -> -7.7621553e-06 | D7: ='DF raw data'!I12 -> -4.783753e-06 | F7: =(1-$G$1*($B$2-$G$2))*B7 -> 3.88099199e-06 | G7: =(1-$G$1*($B$2-$G$2))*C7*$M$2/$M$1 -> -7.786132151e-06 | H7: -4.789034263e-06 | J7: =F7*$B$1+J6 -> 3.70398733e-06 | K7: =J7*$B$1+K6 -> 2.734268293e-06 | L7: =G7*$B$1+L6 -> -2.428870587e-06 | M7: =L7*$B$1+M6 -> -4.818981155e-07 | N7: =(J7^2+L7^2)*$B$1+N6 -> 1.088638168e-11
A8: =A7+$B$1 -> 1.4213 | B8: ='DF raw data'!G13 -> 3.9706301e-06 | C8: ='DF raw data'!H13 -> -1.0117412e-05 | D8: ='DF raw data'!I13 -> -4.5693741e-06 | F8: 3.975013676e-06 | G8: -1.01486641e-05 | H8: -4.574418689e-06 | J8: =F8*$B$1+J7 -> 5.69209042e-06 | K8: =J8*$B$1+K7 -> 5.581167317e-06 | L8: =G8*$B$1+L7 -> -7.504724938e-06 | M8: =L8*$B$1+M7 -> -4.235386293e-06 | N8: =(J8^2+L8^2)*$B$1+N7 -> 5.526008468e-11
A9: 1.92145 | B9: ='DF raw data'!G14 -> 3.4290367e-06 | C9: ='DF raw data'!H14 -> 5.4646152e-06 | D9: ='DF raw data'!I14 -> 1.5742248e-07 | F9: 3.432822357e-06 | G9: 5.481495082e-06 | H9: 1.575962744e-07 | J9: 7.409016522e-06 | K9: 9.28678693e-06 | L9: -4.763155173e-06 | M9: -6.617678353e-06 | N9: 9.406230837e-11
A10: 2.4216 | B10: ='DF raw data'!G15 -> 3.6063809e-06 | C10: ='DF raw data'!H15 -> 9.8826763e-07 | D10: ='DF raw data'!I15 -> 2.7307394e-06 | F10: 3.610362345e-06 | G10: 9.913203318e-07 | H10: 2.733754136e-06 | J10: 9.214739248e-06 | K10: 1.389553877e-05 | L10: -4.267346309e-06 | M10: -8.75199161e-06 | N10: 1.456386086e-10
A11: 2.92175 | B11: ='DF raw data'!G16 -> 3.9405368e-06 | C11: ='DF raw data'!H16 -> -8.3984669e-06 | D11: ='DF raw data'!I16 -> 8.6941856e-07 | F11: 3.944887153e-06 | G11: -8.424409281e-06 | H11: 8.703783981e-07 | J11: 1.118777456e-05 | K11: 1.949110421e-05 | L11: -8.480814611e-06 | M11: -1.299367104e-05 | N11: 2.442134302e-10
A12: 3.4219 | B12: ='DF raw data'!G17 -> 3.5510545e-06 | C12: ='DF raw data'!H17 -> 1.9239922e-06 | D12: ='DF raw data'!I17 -> -1.5247934e-06 | F12: 3.554974864e-06 | G12: 1.929935301e-06 | H12: -1.526476772e-06 | J12: 1.296579524e-05 | K12: 2.59759467e-05 | L12: -7.51555747e-06 | M12: -1.675257711e-05 | N12: 3.565448446e-10
A13: 3.92205 | B13: ='DF raw data'!G18 -> 3.4674101e-06 | C13: ='DF raw data'!H18 -> 4.9549235e-06 | D13: ='DF raw data'!I18 -> 3.0532535e-06 | F13: 3.471238121e-06 | G13: 4.970228974e-06 | H13: 3.056624292e-06 | J13: 1.470193498e-05 | K13: 3.332911948e-05 | L13: -5.029697449e-06 | M13: -1.926818029e-05 | N13: 4.773034356e-10
A14: 4.4222 | B14: ='DF raw data'!G19 -> 3.1542238e-06 | C14: ='DF raw data'!H19 -> 1.289811e-05 | D14: ='DF raw data'!I19 -> 2.7702467e-07 | F14: 3.157706063e-06 | G14: 1.293795152e-05 | H14: 2.773305052e-07 | J14: 1.628126167e-05 | K14: 4.14721925e-05 | L14: 1.441219003e-06 | M14: -1.85473546e-05 | N14: 6.10921806e-10
A15: 4.92235 | B15: ='DF raw data'!G20 -> 3.4812344e-06 | C15: ='DF raw data'!H20 -> 2.5054667e-06 | D15: ='DF raw data'!I20 -> -7.8642042e-06 | F15: 3.485077683e-06 | G15: 2.513205942e-06 | H15: -7.872886281e-06 | J15: 1.802432327e-05 | K15: 5.048705779e-05 | L15: 2.698198956e-06 | M15: -1.719785039e-05 | N15: 7.77049883e-10
A16: 5.4225 | B16: ='DF raw data'!G21 -> 3.6030485e-06 | C16: ='DF raw data'!H21 -> -9.7297948e-07 | D16: ='DF raw data'!I21 -> -8.9346577e-06 | F16: 3.607026266e-06 | G16: -9.759849576e-07 | H16: -8.944521562e-06 | J16: 1.982837746e-05 | K16: 6.040422077e-05 | L16: 2.210060079e-06 | M16: -1.609248884e-05 | N16: 9.761340495e-10
A17: 5.92265 | B17: ='DF raw data'!G22 -> 3.8745875e-06 | C17: ='DF raw data'!H22 -> -6.9929465e-06 | D17: ='DF raw data'!I22 -> -1.3355894e-06 | F17: 3.878865045e-06 | G17: -7.014547309e-06 | H17: -1.337063891e-06 | J17: 2.176839181e-05 | K17: 7.129168194e-05 | L17: -1.298265758e-06 | M17: -1.674181646e-05 | N17: 1.21397957e-09
A18: 6.4228 | B18: ='DF raw data'!G23 -> 3.5717474e-06 | C18: ='DF raw data'!H23 -> 1.2133585e-06 | D18: ='DF raw data'!I23 -> -2.233661e-06 | F18: 3.575690609e-06 | G18: 1.217106495e-06 | H18: -2.236126962e-06 | J18: 2.355677347e-05 | K18: 8.307360219e-05 | L18: -6.895299445e-07 | M18: -1.708668487e-05 | N18: 1.491761393e-09
A19: 6.92295 | B19: ='DF raw data'!G24 -> 3.491901e-06 | C19: ='DF raw data'!H24 -> 2.8471748e-06 | D19: ='DF raw data'!I24 -> -5.5655692e-06 | F19: 3.495756059e-06 | G19: 2.855969559e-06 | H19: -5.571713588e-06 | J19: 2.530517586e-05 | K19: 9.57299859e-05 | L19: 7.388832305e-07 | M19: -1.671713242e-05 | N19: 1.812306465e-09
A20: 7.4231 | B20: ='DF raw data'!G25 -> 3.3718331e-06 | C20: ='DF raw data'!H25 -> 5.8363439e-06 | D20: ='DF raw data'!I25 -> -6.7904184e-06 | F20: 3.375555604e-06 | G20: 5.854372031e-06 | H20: -6.797915022e-06 | J20: 2.699346e-05 | K20: 0.0001092307649 | L20: 3.666947402e-06 | M20: -1.488310867e-05 | N20: 2.183464472e-09
A21: 7.92325 | B21: ='DF raw data'!G26 -> 3.1144389e-06 | C21: ='DF raw data'!H26 -> 1.310639e-05 | D21: ='DF raw data'!I26 -> -4.4336775e-06 | F21: 3.117877241e-06 | G21: 1.314687488e-05 | H21: -4.43857228e-06 | J21: 2.85528663e-05 | K21: 0.000123511481 | L21: 1.024235688e-05 | M21: -9.760393884e-06 | N21: 2.643688522e-09
A22: 8.4234 | B22: ='DF raw data'!G27 -> 3.9702372e-06 | C22: ='DF raw data'!H27 -> -4.4037915e-06 | D22: ='DF raw data'!I27 -> 2.0375735e-06 | F22: 3.974620342e-06 | G22: -4.417394559e-06 | H22: 2.039822981e-06 | J22: 3.054077266e-05 | K22: 0.0001387864484 | L22: 8.032996987e-06 | M22: -5.742690441e-06 | N22: 3.14247203e-09
A23: 8.92355 | B23: ='DF raw data'!G28 -> 4.245574e-06 | C23: ='DF raw data'!H28 -> -7.5785574e-06 | D23: ='DF raw data'!I28 -> 5.8944424e-06 | F23: =(1-$G$1*($B$2-$G$2))*B23 -> 4.250261114e-06 | G23: -7.601967128e-06 | H23: 5.900949864e-06 | J23: 3.266654076e-05 | K23: 0.0001551246188 | L23: 4.230873128e-06 | M23: -3.626619246e-06 | N23: 3.685136366e-09
A24: 9.4237 | B24: ='DF raw data'!G29 -> 3.5378268e-06 | C24: ='DF raw data'!H29 -> -2.865376e-06 | D24: ='DF raw data'!I29 -> -3.8850121e-06 | F24: 3.541732561e-06 | G24: -2.874226982e-06 | H24: -3.889301153e-06 | J24: 3.44379383e-05 | K24: 0.0001723487536 | L24: 2.793328503e-06 | M24: -2.229535995e-06 | N24: 4.282202572e-09
A25: 9.92385 | B25: ='DF raw data'!G30 -> 5.4331122e-06 | C25: ='DF raw data'!H30 -> -7.7443855e-07 | D25: ='DF raw data'!I30 -> 1.590814e-07 | F25: 5.439110356e-06 | G25: -7.768307461e-07 | H25: 1.592570259e-07 | J25: 3.715830934e-05 | K25: 0.0001909334821 | L25: 2.404796605e-06 | M25: -1.026776973e-06 | N25: 4.97567205e-09
A26: 10.424 | B26: ='DF raw data'!G31 -> 1.0473095e-05 | C26: ='DF raw data'!H31 -> 9.39031e-06 | D26: ='DF raw data'!I31 -> 9.4208226e-06 | F26: 1.04846573e-05 | G26: 9.419316127e-06 | H26: 9.431223188e-06 | J26: 4.240221069e-05 | K26: 0.0002121409477 | L26: 7.115867566e-06 | M26: 2.53222419e-06 | N26: 5.900240859e-09
A27: 10.92415 | B27: ='DF raw data'!G32 -> 1.1185455e-05 | C27: ='DF raw data'!H32 -> 1.0389683e-06 | D27: ='DF raw data'!I32 -> 6.0496532e-06 | F27: 1.119780374e-05 | G27: 1.042177613e-06 | H27: 6.056332017e-06 | J27: 4.800279223e-05 | K27: 0.0002361495443 | L27: 7.6371127e-06 | M27: 6.351926107e-06 | N27: 7.081892024e-09
A28: 11.4243 | B28: ='DF raw data'!G33 -> 3.5470382e-06 | C28: ='DF raw data'!H33 -> -1.0722768e-05 | D28: ='DF raw data'!I33 -> -1.7217391e-06 | F28: 3.55095413e-06 | G28: -1.075589001e-05 | H28: -1.7236399e-06 | J28: 4.977880194e-05 | K28: 0.0002610464121 | L28: 2.257554309e-06 | M28: 7.481041894e-06 | N28: 8.323777315e-09
A29: 11.92445 | B29: ='DF raw data'!G34 -> -5.6290792e-06 | C29: ='DF raw data'!H34 -> -1.0174517e-05 | D29: ='DF raw data'!I34 -> 6.6297054e-07 | F29: -5.635293703e-06 | G29: -1.02059455e-05 | H29: 6.637024595e-07 | J29: 4.69603098e-05 | K29: 0.000284533611 | L29: -2.846949331e-06 | M29: 6.057140186e-06 | N29: 9.43079723e-09
A30: 12.4246 | B30: ='DF raw data'!G35 -> -7.5893095e-06 | C30: ='DF raw data'!H35 -> -1.6690685e-06 | D30: ='DF raw data'!I35 -> -3.1852544e-06 | F30: -7.597688098e-06 | G30: -1.674224157e-06 | H30: -3.188770921e-06 | J30: 4.316032609e-05 | K30: 0.0003061202481 | L30: -3.684312543e-06 | M30: 4.214431268e-06 | N30: 1.036927264e-08
A31: 12.92475 | B31: ='DF raw data'!G36 -> -4.6095429e-06 | C31: ='DF raw data'!H36 -> 1.2666747e-05 | D31: ='DF raw data'!I36 -> -8.9795794e-06 | F31: -4.614631835e-06 | G31: 1.270587385e-05 | H31: -8.989492856e-06 | J31: 4.085231798e-05 | K31: 0.0003265525349 | L31: 2.670530264e-06 | M31: 5.550096979e-06 | N31: 1.120754586e-08
A32: 13.4249 | B32: ='DF raw data'!G37 -> 1.2128819e-06 | C32: ='DF raw data'!H37 -> 4.9820101e-06 | D32: ='DF raw data'!I37 -> -9.2351547e-06 | F32: 1.214220922e-06 | G32: 4.997399243e-06 | H32: -9.245350311e-06 | J32: 4.145961057e-05 | K32: 0.0003472885592 | L32: 5.169979495e-06 | M32: 8.135862224e-06 | N32: 1.20806217e-08
A33: 13.92505 | B33: ='DF raw data'!G38 -> 6.8930622e-06 | C33: ='DF raw data'!H38 -> 3.7367333e-06 | D33: ='DF raw data'!I38 -> -7.8091689e-06 | F33: 6.900672141e-06 | G33: 3.748275854e-06 | H33: -7.817790222e-06 | J33: 4.491098175e-05 | K33: 0.0003697507867 | L33: 7.044679664e-06 | M33: 1.165925876e-05 | N33: 1.311424359e-08
A34: 14.4252 | B34: ='DF raw data'!G39 -> 8.6215387e-06 | C34: ='DF raw data'!H39 -> -1.2397679e-05 | D34: ='DF raw data'!I39 -> -7.5491407e-06 | F34: 8.631056879e-06 | G34: -1.243597472e-05 | H34: -7.557474951e-06 | J34: 4.922780484e-05 | K34: 0.0003943720733 | L34: 8.248269091e-07 | M34: 1.207179594e-05 | N34: 1.432663575e-08
A35: 14.92535 | B35: ='DF raw data'!G40 -> 3.3066842e-06 | C35: ='DF raw data'!H40 -> -1.3675111e-05 | D35: ='DF raw data'!I40 -> -6.0522725e-06 | F35: 3.310334779e-06 | G35: -1.371735263e-05 | H35: -6.058954209e-06 | J35: 5.088346878e-05 | K35: 0.0004198214402 | L35: -6.035907009e-06 | M35: 9.052937046e-06 | N35: 1.563980937e-08
A36: 15.4255 | B36: ='DF raw data'!G41 -> -4.1001822e-06 | C36: ='DF raw data'!H41 -> -2.1121798e-06 | D36: ='DF raw data'!I41 -> -7.0867827e-06 | F36: -4.104708801e-06 | G36: -2.118704202e-06 | H36: -7.094606508e-06 | J36: 4.883049868e-05 | K36: 0.0004442440141 | L36: -7.095576916e-06 | M36: 5.504084251e-06 | N36: 1.685755699e-08
A37: 15.92565 | B37: ='DF raw data'!G42 -> -7.1326704e-06 | C37: ='DF raw data'!H42 -> -2.6827149e-06 | D37: ='DF raw data'!I42 -> -5.7990401e-06 | F37: -7.140544868e-06 | G37: -2.691001652e-06 | H37: -5.80544224e-06 | J37: 4.525915516e-05 | K37: 0.0004668803806 | L37: -8.441481392e-06 | M37: 1.282077333e-06 | N37: 1.791769981e-08
A38: 16.4258 | B38: ='DF raw data'!G43 -> -8.6728451e-06 | C38: ='DF raw data'!H43 -> -1.0775606e-05 | D38: ='DF raw data'!I43 -> 2.8477368e-06 | F38: -8.682419921e-06 | G38: -1.080889123e-05 | H38: 2.850880701e-06 | J38: 4.091664284e-05 | K38: 0.0004873448395 | L38: -1.384754834e-05 | M38: -5.643773969e-06 | N38: 1.885094282e-08
A39: 16.92595 | B39: ='DF raw data'!G44 -> -7.7604545e-06 | C39: ='DF raw data'!H44 -> -6.829765e-06 | D39: ='DF raw data'!I44 -> 2.6295018e-06 | F39: -7.769022042e-06 | G39: -6.850861751e-06 | H39: 2.63240477e-06 | J39: 3.703096646e-05 | K39: 0.0005058658774 | L39: -1.727400684e-05 | M39: -1.428336849e-05 | N39: 1.968603517e-08
A40: 17.4261 | B40: ='DF raw data'!G45 -> -3.3572489e-06 | C40: ='DF raw data'!H45 -> -7.7329314e-06 | D40: ='DF raw data'!I45 -> 1.157663e-06 | F40: -3.360955303e-06 | G40: -7.75681798e-06 | H40: 1.15894106e-06 | J40: 3.534998467e-05 | K40: 0.0005235461722 | L40: -2.115357936e-05 | M40: -2.486333121e-05 | N40: 2.05348374e-08
A41: 17.92625 | B41: ='DF raw data'!G46 -> 1.9381129e-07 | C41: ='DF raw data'!H46 -> -9.8605437e-07 | D41: ='DF raw data'!I46 -> 3.7136049e-06 | F41: 1.940252577e-07 | G41: -9.891002352e-07 | H41: 3.71770472e-06 | J41: 3.54470264e-05 | K41: 0.0005412750024 | L41: -2.164827784e-05 | M41: -3.569071737e-05 | N41: 2.139766598e-08
A42: 18.4264 | B42: ='DF raw data'!G47 -> 1.9608067e-06 | C42: ='DF raw data'!H47 -> 3.1022862e-06 | D42: ='DF raw data'!I47 -> 5.7876896e-06 | F42: 1.962971431e-06 | G42: 3.111868984e-06 | H42: 5.794079209e-06 | J42: 3.642880656e-05 | K42: 0.00055949487 | L42: -2.009187657e-05 | M42: -4.573966943e-05 | N42: 2.226329632e-08
A43: 18.92655 | B43: ='DF raw data'!G48 -> 2.3054979e-06 | C43: ='DF raw data'!H48 -> -4.7276097e-07 | D43: ='DF raw data'!I48 -> 5.7457655e-06 | F43: 2.30804317e-06 | G43: -4.742213014e-07 | H43: 5.752108825e-06 | J43: 3.758317435e-05 | K43: 0.0005782920947 | L43: -2.032905835e-05 | M43: -5.590724797e-05 | N43: 2.317645299e-08
A44: 19.4267 | B44: ='DF raw data'!G49 -> 1.9989399e-07 | C44: ='DF raw data'!H49 -> -4.6995791e-07 | D44: ='DF raw data'!I49 -> -1.0144578e-06 | F44: 2.00114673e-07 | G44: -4.714095829e-07 | H44: -1.015577761e-06 | J44: 3.768326171e-05 | K44: 0.000597139378 | L44: -2.056483385e-05 | M44: -6.619274962e-05 | N44: 2.409819973e-08
A45: 19.92685 | B45: ='DF raw data'!G50 -> -1.5355965e-06 | C45: ='DF raw data'!H50 -> 1.1334477e-05 | D45: ='DF raw data'!I50 -> -7.3819538e-06 | F45: -1.537291799e-06 | G45: 1.136948855e-05 | H45: -7.390103477e-06 | J45: 3.691438521e-05 | K45: 0.0006156021078 | L45: -1.487838416e-05 | M45: -7.363417346e-05 | N45: 2.489045641e-08
A46: 20.427 | B46: ='DF raw data'!G51 -> 3.310555e-06 | C46: ='DF raw data'!H51 -> 1.3502935e-05 | D46: ='DF raw data'!I51 -> -2.2749302e-06 | F46: 3.314209853e-06 | G46: 1.354464479e-05 | H46: -2.277441723e-06 | J46: 3.857198727e-05 | K46: 0.0006348938872 | L46: -8.104030066e-06 | M46: -7.768740409e-05 | N46: 2.566742619e-08
A47: 20.92715 | B47: ='DF raw data'!G52 -> 8.6034506e-06 | C47: ='DF raw data'!H52 -> 1.4687593e-07 | D47: ='DF raw data'!I52 -> 2.6063497e-06 | F47: 8.612948809e-06 | G47: 1.473296213e-07 | H47: 2.60922711e-06 | J47: 4.287975362e-05 | K47: 0.000656340196 | L47: -8.030343156e-06 | M47: -8.170378022e-05 | N47: 2.66192915e-08
A48: 21.4273 | B48: ='DF raw data'!G53 -> 7.2386265e-06 | C48: ='DF raw data'!H53 -> -2.9502355e-06 | D48: ='DF raw data'!I53 -> 5.7698327e-07 | F48: 7.246617944e-06 | G48: -2.959348608e-06 | H48: 5.776202595e-07 | J48: 4.650414958e-05 | K48: 0.0006795992464 | L48: -9.510461362e-06 | M48: -8.646043747e-05 | N48: 2.774617186e-08
A49: 21.92745 | B49: ='DF raw data'!G54 -> 5.2363994e-06 | C49: ='DF raw data'!H54 -> 4.4012013e-06 | D49: ='DF raw data'!I54 -> -5.882699e-06 | F49: 5.242180385e-06 | G49: 4.414796358e-06 | H49: -5.8891935e-06 | J49: 4.91260261e-05 | K49: 0.0007041696284 | L49: -7.302400964e-06 | M49: -9.011273332e-05 | N49: 2.897988762e-08
A50: 22.4276 | B50: ='DF raw data'!G55 -> 1.5333442e-06 | C50: ='DF raw data'!H55 -> 8.5335732e-06 | D50: ='DF raw data'!I55 -> -7.5764256e-06 | F50: 1.535037012e-06 | G50: 8.559932917e-06 | H50: -7.584789974e-06 | J50: 4.989377486e-05 | K50: 0.0007291239999 | L50: -3.021150516e-06 | M50: -9.162376175e-05 | N50: 3.022952046e-08
A51: 22.92775 | B51: ='DF raw data'!G56 -> -3.3102608e-06 | C51: ='DF raw data'!H56 -> 1.9780289e-06 | D51: ='DF raw data'!I56 -> -1.0691002e-06 | F51: -3.313915328e-06 | G51: 1.984138917e-06 | H51: -1.070280487e-06 | J51: 4.823632011e-05 | K51: 0.0007532493954 | L51: -2.028783436e-06 | M51: -9.263845778e-05 | N51: 3.139529936e-08
A52: 23.4279 | B52: ='DF raw data'!G57 -> -5.3959866e-06 | C52: ='DF raw data'!H57 -> -1.6465203e-06 | D52: ='DF raw data'!I57 -> 5.1292154e-06 | F52: -5.401943769e-06 | G52: -1.651606306e-06 | H52: 5.134878054e-06 | J52: 4.553453794e-05 | K52: 0.0007760234945 | L52: -2.85483433e-06 | M52: -9.406630317e-05 | N52: 3.24363837e-08
A53: 23.92805 | B53: ='DF raw data'!G58 -> -4.3562231e-06 | C53: ='DF raw data'!H58 -> 7.876044e-06 | D53: ='DF raw data'!I58 -> 6.0034654e-06 | F53: -4.36103237e-06 | G53: 7.900372647e-06 | H53: 6.010093226e-06 | J53: 4.33533676e-05 | K53: 0.0007977066813 | L53: 1.096537049e-06 | M53: -9.351787017e-05 | N53: 3.337702424e-08
A54: 24.4282 | B54: ='DF raw data'!G59 -> -3.0220456e-06 | C54: ='DF raw data'!H59 -> -4.5589677e-06 | D54: ='DF raw data'!I59 -> 7.5452554e-06 | F54: -3.025381938e-06 | G54: -4.573050089e-06 | H54: 7.553585362e-06 | J54: 4.184022282e-05 | K54: 0.0008186330688 | L54: -1.190673953e-06 | M54: -9.411338574e-05 | N54: 3.425329802e-08
A55: 24.92835 | B55: ='DF raw data'!G60 -> -3.4210009e-06 | C55: ='DF raw data'!H60 -> -6.5731838e-06 | D55: ='DF raw data'!I60 -> 5.0818926e-06 | F55: -3.424777685e-06 | G55: -6.593487987e-06 | H55: 5.087503009e-06 | J55: 4.012732026e-05 | K55: 0.000838702748 | L55: -4.488406969e-06 | M55: -9.635826249e-05 | N55: 3.506871639e-08
A56: 25.4285 | B56: ='DF raw data'!G61 -> -2.6459077e-06 | C56: ='DF raw data'!H61 -> 1.2142112e-05 | D56: ='DF raw data'!I61 -> -1.8586289e-06 | F56: -2.648828782e-06 | G56: 1.217961829e-05 | H56: -1.860680826e-06 | J56: 3.880250855e-05 | K56: 0.0008581098227 | L56: 1.603229116e-06 | M56: -9.555640745e-05 | N56: 3.582304513e-08
A57: 25.92865 | B57: ='DF raw data'!G62 -> 1.0107703e-06 | C57: ='DF raw data'!H62 -> 1.4834147e-06 | D57: ='DF raw data'!I62 -> -6.7044311e-06 | F57: 1.01188619e-06 | G57: 1.487996883e-06 | H57: -6.711832792e-06 | J57: 3.930860342e-05 | K57: 0.0008777700207 | L57: 2.347450757e-06 | M57: -9.438232995e-05 | N57: 3.659861614e-08
A58: 26.4288 | B58: ='DF raw data'!G63 -> 3.9556126e-06 | C58: ='DF raw data'!H63 -> -1.5336012e-05 | D58: ='DF raw data'!I63 -> -8.6390937e-06 | F58: 3.959979596e-06 | G58: -1.538338406e-05 | H58: -8.648631259e-06 | J58: 4.128918722e-05 | K58: 0.0008984208077 | L58: -5.34654878e-06 | M58: -9.705640632e-05 | N58: 3.746556743e-08
A59: 26.92895 | B59: ='DF raw data'!G64 -> 5.49586e-06 | C59: ='DF raw data'!H64 -> 2.6655999e-07 | D59: ='DF raw data'!I64 -> -8.6661894e-06 | F59: 5.501927429e-06 | G59: 2.673833785e-07 | H59: -8.675756873e-06 | J59: 4.404097622e-05 | K59: 0.0009204479019 | L59: -5.212816983e-06 | M59: -9.966359674e-05 | N59: 3.844925297e-08
A60: 27.4291 | B60: ='DF raw data'!G65 -> 7.0722108e-06 | C60: ='DF raw data'!H65 -> 2.1456142e-06 | D60: ='DF raw data'!I65 -> -8.8783563e-06 | F60: 7.080018521e-06 | G60: 2.152241879e-06 | H60: -8.888158005e-06 | J60: 4.758204749e-05 | K60: 0.000944246063 | L60: -4.136373208e-06 | M60: -0.0001017324038 | N60: 3.959017556e-08
A61: 27.92925 | B61: ='DF raw data'!G66 -> 9.1720813e-06 | C61: ='DF raw data'!H66 -> -5.2900159e-06 | D61: ='DF raw data'!I66 -> -9.3502895e-06 | F61: 9.182207278e-06 | G61: -5.306356455e-06 | H61: -9.36061222e-06 | J61: 5.217452846e-05 | K61: 0.0009703411534 | L61: -6.790347388e-06 | M61: -0.000105128596 | N61: 4.097473592e-08
A62: 28.4294 | B62: ='DF raw data'!G67 -> 8.1488197e-06 | C62: ='DF raw data'!H67 -> -8.0719728e-06 | D62: ='DF raw data'!I67 -> -5.338341e-06 | F62: 8.157815997e-06 | G62: -8.09690666e-06 | H62: -5.344234528e-06 | J62: 5.625466013e-05 | K62: 0.0009984769216 | L62: -1.084001525e-05 | M62: -0.0001105502297 | N62: 4.261627459e-08
A63: 28.92955 | B63: ='DF raw data'!G68 -> 4.7313169e-06 | C63: ='DF raw data'!H68 -> -1.4466335e-05 | D63: ='DF raw data'!I68 -> 1.1979281e-06 | F63: 4.736540274e-06 | G63: -1.451102068e-05 | H63: 1.199250613e-06 | J63: 5.862364075e-05 | K63: 0.001027797536 | L63: -1.809770225e-05 | M63: -0.0001196017955 | N63: 4.449896827e-08
A64: 29.4297 | B64: ='DF raw data'!G69 -> 1.5731291e-06 | C64: ='DF raw data'!H69 -> -1.0367454e-05 | D64: ='DF raw data'!I69 -> 1.6001272e-07 | F64: 1.574865835e-06 | G64: -1.039947847e-05 | H64: 1.60189374e-07 | J64: 5.941130989e-05 | K64: 0.001057512102 | L64: -2.32990014e-05 | M64: -0.000131254791 | N64: 4.653585276e-08
A65: 29.92985 | B65: ='DF raw data'!G70 -> 3.292598e-06 | C65: ='DF raw data'!H70 -> 2.1625599e-06 | D65: ='DF raw data'!I70 -> -1.1247467e-06 | F65: 3.296233028e-06 | G65: 2.169239923e-06 | H65: -1.12598842e-06 | J65: 6.105992084e-05 | K65: 0.001088051222 | L65: -2.221405605e-05 | M65: -0.0001423651511 | N65: 4.864737514e-08
A66: 30.43 | B66: ='DF raw data'!G71 -> 4.2409029e-06 | C66: ='DF raw data'!H71 -> 7.4464097e-06 | D66: ='DF raw data'!I71 -> -2.2464521e-06 | F66: 4.245584857e-06 | G66: 7.469411231e-06 | H66: -2.248932183e-06 | J66: 6.318335011e-05 | K66: 0.001119652374 | L66: -1.847823003e-05 | M66: -0.0001516070379 | N66: 5.081481553e-08
A67: 30.93015 | B67: ='DF raw data'!G72 -> 2.8035809e-06 | C67: ='DF raw data'!H72 -> 5.1273292e-07 | D67: ='DF raw data'!I72 -> -6.096001e-06 | F67: 2.806676053e-06 | G67: 5.143167225e-07 | H67: -6.102730985e-06 | J67: 6.458710914e-05 | K67: 0.001151955617 | L67: -1.822099452e-05 | M67: -0.0001607202683 | N67: 5.306724071e-08
A68: 31.4303 | B68: ='DF raw data'!G73 -> -2.1309679e-08 | C68: ='DF raw data'!H73 -> 2.458635e-06 | D68: ='DF raw data'!I73 -> -3.8286103e-07 | F68: -2.133320489e-08 | G68: 2.466229582e-06 | H68: -3.832837086e-07 | J68: 6.457643933e-05 | K68: 0.001184253523 | L68: -1.698750979e-05 | M68: -0.0001692165713 | N68: 5.529725552e-08
A69: 31.93045 | B69: ='DF raw data'!G74 -> -8.6048954e-07 | C69: ='DF raw data'!H74 -> 8.1040707e-06 | D69: ='DF raw data'!I74 -> 6.4580236e-06 | F69: -8.614395205e-07 | G69: 8.129103708e-06 | H69: 6.465153258e-06 | J69: 6.414559036e-05 | K69: 0.00121633594 | L69: -1.292173857e-05 | M69: -0.0001756793789 | N69: 5.743871181e-08
A70: 32.4306 | B70: ='DF raw data'!G75 -> 1.1637546e-06 | C70: ='DF raw data'!H75 -> 5.4142021e-07 | D70: ='DF raw data'!I75 -> 4.7917129e-06 | F70: 1.165039385e-06 | G70: 5.430926259e-07 | H70: 4.797002951e-06 | J70: 6.472828481e-05 | K70: 0.001248709792 | L70: -1.26501108e-05 | M70: -0.0001820063318 | N70: 5.961425235e-08
A71: 32.93075 | B71: ='DF raw data'!G76 -> 1.071772e-06 | C71: ='DF raw data'!H76 -> 4.2556312e-06 | D71: ='DF raw data'!I76 -> 2.4912733e-08 | F71: 1.072955236e-06 | G71: =(1-$G$1*($B$2-$G$2))*C71*$M$2/$M$1 -> 4.2687766e-06 | H71: 2.494023666e-08 | J71: 6.526492337e-05 | K71: 0.001281352043 | L71: -1.051508218e-05 | M71: -0.0001872654501 | N71: 6.179994645e-08
A72: =A71+$B$1 -> 33.4309 | B72: ='DF raw data'!G77 -> 5.4030693e-07 | C72: ='DF raw data'!H77 -> 3.3213744e-06 | D72: ='DF raw data'!I77 -> -1.7896238e-06 | F72: 5.409034289e-07 | G72: 3.331633934e-06 | H72: -1.791599545e-06 | J72: =F72*$B$1+J71 -> 6.553545622e-05 | K72: =J72*$B$1+K71 -> 0.001314129601 | L72: =G72*$B$1+L71 -> -8.848765468e-06 | M72: =L72*$B$1+M71 -> -0.0001916911602 | N72: =(J72^2+L72^2)*$B$1+N71 -> 6.398720077e-08
A73: 33.93105 | B73: ='DF raw data'!G78 -> 3.1259931e-06 | C73: ='DF raw data'!H78 -> 1.9700235e-06 | D73: ='DF raw data'!I78 -> -4.8927922e-07 | F73: 3.129444196e-06 | G73: 1.976108789e-06 | H73: -4.898193843e-07 | J73: 6.710064773e-05 | K73: 0.00134768999 | L73: -7.860414657e-06 | M73: -0.0001956225466 | N73: 6.627002693e-08
A74: 34.4312 | B74: ='DF raw data'!G79 -> 4.1271651e-06 | C74: ='DF raw data'!H79 -> -8.1780325e-07 | D74: ='DF raw data'!I79 -> 3.4730181e-06 | F74: 4.13172149e-06 | G74: -8.203293972e-07 | H74: 3.476852312e-06 | J74: 6.916712824e-05 | K74: 0.00138228393 | L74: -8.270702405e-06 | M74: -0.0001997591384 | N74: 6.869700288e-08
A75: 34.93135 | B75: ='DF raw data'!G80 -> -2.037885e-06 | C75: ='DF raw data'!H80 -> 4.033609e-06 | D75: ='DF raw data'!I80 -> 6.1434985e-06 | F75: -2.040134825e-06 | G75: 4.046068586e-06 | H75: 6.150280922e-06 | J75: 6.81467548e-05 | K75: 0.001416367529 | L75: -6.247061201e-06 | M75: -0.000202883606 | N75: 7.103920831e-08
A76: 35.4315 | B76: ='DF raw data'!G81 -> -1.0333379e-05 | C76: ='DF raw data'!H81 -> 4.7365029e-06 | D76: ='DF raw data'!I81 -> 4.1597814e-06 | F76: -1.034478705e-05 | G76: 4.751133685e-06 | H76: 4.164373799e-06 | J76: 6.297280956e-05 | K76: 0.00144786338 | L76: -3.870781689e-06 | M76: -0.0002048195775 | N76: 7.303008424e-08
A77: 35.93165 | B77: ='DF raw data'!G82 -> -1.3748553e-05 | C77: ='DF raw data'!H82 -> 5.9980575e-06 | D77: ='DF raw data'!I82 -> 3.4485272e-06 | F77: -1.37637314e-05 | G77: 6.016585155e-06 | H77: 3.452334374e-06 | J77: 5.60888793e-05 | K77: 0.001475916233 | L77: -8.615866237e-07 | M77: -0.0002052505001 | N77: 7.46039086e-08
A78: 36.4318 | B78: ='DF raw data'!G83 -> -1.2113514e-05 | C78: ='DF raw data'!H83 -> 3.8997823e-06 | D78: ='DF raw data'!I83 -> 2.8054053e-06 | F78: -1.212688732e-05 | G78: 3.911828503e-06 | H78: 2.808502467e-06 | J78: 5.002361661e-05 | K78: 0.001500935545 | L78: 1.094914402e-06 | M78: -0.0002047028786 | N78: 7.585606467e-08
A79: 36.93195 | B79: ='DF raw data'!G84 -> -1.0322101e-05 | C79: ='DF raw data'!H84 -> 9.9921999e-06 | D79: ='DF raw data'!I84 -> -3.8399608e-07 | F79: -1.03334966e-05 | G79: 1.002306523e-05 | H79: -3.844200117e-07 | J79: 4.485531828e-05 | K79: 0.001523369932 | L79: 6.107950477e-06 | M79: -0.0002016479872 | N79: 7.688102538e-08
A80: 37.4321 | B80: ='DF raw data'!G85 -> -8.4601834e-06 | C80: ='DF raw data'!H85 -> 1.0166989e-05 | D80: ='DF raw data'!I85 -> -1.4258404e-06 | F80: -8.469523442e-06 | G80: 1.019839424e-05 | H80: -1.427414528e-06 | J80: 4.061928613e-05 | K80: 0.001543685668 | L80: 1.120867736e-05 | M80: -0.0001960419672 | N80: 7.776907214e-08
A81: 37.93225 | B81: ='DF raw data'!G86 -> -1.0636684e-05 | C81: ='DF raw data'!H86 -> 5.5013079e-06 | D81: ='DF raw data'!I86 -> -2.6257333e-06 | F81: -1.06484269e-05 | G81: 5.518301124e-06 | H81: -2.62863211e-06 | J81: 3.529347542e-05 | K81: 0.0015613377 | L81: 1.396865567e-05 | M81: -0.0001890555441 | N81: 7.848966463e-08
A82: 38.4324 | B82: ='DF raw data'!G87 -> -1.1989634e-05 | C82: ='DF raw data'!H87 -> -5.1617917e-06 | D82: ='DF raw data'!I87 -> 5.6379923e-07 | F82: -1.200287056e-05 | G82: -5.177736178e-06 | H82: 5.644216643e-07 | J82: 2.929023971e-05 | K82: 0.001575987213 | L82: 1.137901092e-05 | M82: -0.0001833643318 | N82: 7.898351276e-08
A83: 38.93255 | B83: ='DF raw data'!G88 -> -1.1665228e-05 | C83: ='DF raw data'!H88 -> -3.5830819e-06 | D83: ='DF raw data'!I88 -> -5.5829296e-06 | F83: -1.167810641e-05 | G83: -3.594149834e-06 | H83: -5.589093154e-06 | J83: 2.344943479e-05 | K83: 0.001587715448 | L83: 9.581396877e-06 | M83: -0.0001785721961 | N83: 7.930444859e-08
A84: 39.4327 | B84: ='DF raw data'!G89 -> -1.124184e-05 | C84: ='DF raw data'!H89 -> 1.7233176e-06 | D84: ='DF raw data'!I89 -> -4.7746289e-06 | F84: -1.125425099e-05 | G84: 1.728640829e-06 | H84: -4.77990009e-06 | J84: 1.782062115e-05 | K84: 0.001596628432 | L84: 1.044597659e-05 | M84: -0.0001733476409 | N84: 7.951785907e-08
A85: 39.93285 | B85: ='DF raw data'!G90 -> -6.9383586e-06 | C85: ='DF raw data'!H90 -> -7.4461968e-06 | D85: ='DF raw data'!I90 -> 6.1770406e-06 | F85: -6.946018548e-06 | G85: -7.469197674e-06 | H85: 6.183860053e-06 | J85: 1.434656998e-05 | K85: 0.001603803869 | L85: 6.710257371e-06 | M85: -0.0001699915057 | N85: 7.964332251e-08
A86: 40.433 | B86: ='DF raw data'!G91 -> -3.7727643e-06 | C86: ='DF raw data'!H91 -> -5.9802333e-06 | D86: ='DF raw data'!I91 -> 7.9375313e-06 | F86: -3.776929432e-06 | G86: -5.998705897e-06 | H86: 7.946294335e-06 | J86: 1.245753872e-05 | K86: 0.001610034506 | L86: 3.710004617e-06 | M86: -0.0001681359469 | N86: 7.972782506e-08
A87: 40.93315 | B87: ='DF raw data'!G92 -> -4.5670949e-06 | C87: ='DF raw data'!H92 -> 4.3974651e-06 | D87: ='DF raw data'!I92 -> -2.0531008e-06 | F87: =(1-$G$1*($B$2-$G$2))*B87 -> -4.572136973e-06 | G87: 4.411048617e-06 | H87: -2.055367423e-06 | J87: 1.017078442e-05 | K87: 0.001615121424 | L87: 5.916190582e-06 | M87: -0.0001651769642 | N87: 7.979706891e-08
A88: 41.4333 | B88: ='DF raw data'!G93 -> -6.0840448e-06 | C88: ='DF raw data'!H93 -> 5.7448124e-06 | D88: ='DF raw data'!I93 -> -5.7681464e-06 | F88: -6.090761585e-06 | G88: 5.762557795e-06 | H88: -5.774514434e-06 | J88: 7.124490008e-06 | K88: 0.001618684738 | L88: 8.798333864e-06 | M88: -0.0001607764775 | N88: 7.986117265e-08
A89: 41.93345 | B89: ='DF raw data'!G94 -> -4.9990977e-06 | C89: ='DF raw data'!H94 -> -3.25325e-06 | D89: ='DF raw data'!I94 -> -4.8612274e-06 | F89: -5.004616704e-06 | G89: -3.263299102e-06 | H89: -4.866594195e-06 | J89: 4.621430964e-06 | K89: 0.001620996147 | L89: 7.166194818e-06 | M89: -0.0001571923051 | N89: 7.989753955e-08
A90: 42.4336 | B90: ='DF raw data'!G95 -> 6.377029e-07 | C90: ='DF raw data'!H95 -> 3.0454464e-06 | D90: ='DF raw data'!I95 -> 8.579662e-07 | F90: 6.38406924e-07 | G90: 3.054853609e-06 | H90: 8.589133947e-07 | J90: 4.940730187e-06 | K90: 0.001623467253 | L90: 8.69407985e-06 | M90: -0.0001528439611 | N90: 7.994755346e-08
A91: 42.93375 | B91: ='DF raw data'!G96 -> 3.4489146e-06 | C91: ='DF raw data'!H96 -> 7.5807711e-06 | D91: ='DF raw data'!I96 -> 5.6291028e-06 | F91: 3.452722202e-06 | G91: 7.604187666e-06 | H91: 5.635317329e-06 | J91: 6.667609196e-06 | K91: 0.001626802058 | L91: 1.249731431e-05 | M91: -0.0001465934294 | N91: 8.00479035e-08
A92: 43.4339 | B92: ='DF raw data'!G97 -> 2.3973496e-06 | C92: ='DF raw data'!H97 -> -7.8101875e-06 | D92: ='DF raw data'!I97 -> 3.3840913e-06 | F92: 2.399996274e-06 | G92: -7.83431272e-06 | H92: 3.387827337e-06 | J92: 7.867967332e-06 | K92: 0.001630737221 | L92: 8.578982804e-06 | M92: -0.0001423026511 | N92: 8.011567575e-08
A93: 43.93405 | B93: ='DF raw data'!G98 -> 2.1438989e-06 | C93: ='DF raw data'!H98 -> -6.6073408e-06 | D93: ='DF raw data'!I98 -> -2.6328637e-06 | F93: 2.146265764e-06 | G93: -6.627750496e-06 | H93: -2.635770382e-06 | J93: 8.941422155e-06 | K93: 0.001635209274 | L93: 5.264113394e-06 | M93: -0.0001396698048 | N93: 8.016952186e-08
A94: 44.4342 | B94: ='DF raw data'!G99 -> 2.8351003e-06 | C94: ='DF raw data'!H99 -> -2.8418929e-06 | D94: ='DF raw data'!I99 -> -3.2850805e-06 | F94: 2.838230251e-06 | G94: -2.850671344e-06 | H94: -3.288707229e-06 | J94: 1.036096301e-05 | K94: 0.001640391309 | L94: 3.838350121e-06 | M94: -0.000137750054 | N94: 8.023058142e-08
A95: 44.93435 | B95: ='DF raw data'!G100 -> 4.6570149e-06 | C95: ='DF raw data'!H100 -> -5.9739632e-06 | D95: ='DF raw data'!I100 -> 1.9894503e-06 | F95: 4.662156244e-06 | G95: -5.992416429e-06 | H95: 1.991646653e-06 | J95: 1.269274046e-05 | K95: 0.001646739584 | L95: 8.412430446e-07 | M95: -0.0001373293063 | N95: 8.031151236e-08
A96: 45.4345 | B96: ='DF raw data'!G101 -> 6.6227894e-06 | C96: ='DF raw data'!H101 -> 3.0018161e-06 | D96: ='DF raw data'!I101 -> 2.5404586e-06 | F96: 6.630100959e-06 | G96: 3.011088537e-06 | H96: 2.543263266e-06 | J96: 1.600878545e-05 | K96: 0.001654746378 | L96: 2.347238976e-06 | M96: -0.0001361553347 | N96: 8.0442447e-08
A97: 45.93465 | B97: ='DF raw data'!G102 -> 6.1919218e-06 | C97: ='DF raw data'!H102 -> 7.5370173e-07 | D97: ='DF raw data'!I102 -> 6.8392529e-07 | F97: 6.198757682e-06 | G97: 7.560298713e-07 | H97: 6.846803435e-07 | J97: 1.910909411e-05 | K97: 0.001664303791 | L97: 2.725367317e-06 | M97: -0.0001347922422 | N97: 8.062879544e-08
A98: 46.4348 | B98: ='DF raw data'!G103 -> 3.3188205e-06 | C98: ='DF raw data'!H103 -> -2.7435583e-06 | D98: ='DF raw data'!I103 -> 1.1449446e-06 | F98: 3.322484478e-06 | G98: -2.752032994e-06 | H98: 1.146208619e-06 | J98: 2.077083472e-05 | K98: 0.001674692324 | L98: 1.348938015e-06 | M98: -0.0001341175709 | N98: 8.084548404e-08
A99: 46.93495 | B99: ='DF raw data'!G104 -> 1.4685299e-06 | C99: ='DF raw data'!H104 -> -4.3293403e-06 | D99: ='DF raw data'!I104 -> -3.7838474e-06 | F99: 1.470151157e-06 | G99: -4.342713383e-06 | H99: -3.788024768e-06 | J99: 2.150613082e-05 | K99: 0.001685448615 | L99: -8.230700838e-07 | M99: -0.0001345292294 | N99: 8.107714907e-08
A100: 47.4351 | B100: ='DF raw data'!G105 -> 2.6291762e-06 | C100: ='DF raw data'!H105 -> -5.3407166e-06 | D100: ='DF raw data'!I105 -> -5.6030258e-06 | F100: 2.632078811e-06 | G100: -5.357213766e-06 | H100: -5.60921154e-06 | J100: 2.282256504e-05 | K100: 0.001696863321 | L100: -3.502480549e-06 | M100: -0.000136280995 | N100: 8.134379746e-08
A101: 47.93525 | B101: ='DF raw data'!G106 -> 5.995078e-06 | C101: ='DF raw data'!H106 -> -3.5624e-06 | D101: ='DF raw data'!I106 -> 5.5102282e-06 | F101: 6.001696566e-06 | G101: -3.573404049e-06 | H101: 5.516311492e-06 | J101: 2.582431358e-05 | K101: 0.001709779352 | L101: -5.289718584e-06 | M101: -0.0001389266478 | N101: 8.169133984e-08
A102: 48.4354 | B102: ='DF raw data'!G107 -> 5.7170055e-06 | C102: ='DF raw data'!H107 -> 9.4783883e-07 | D102: ='DF raw data'!I107 -> 4.3278269e-06 | F102: 5.723317074e-06 | G102: 9.507666496e-07 | H102: 4.332604821e-06 | J102: 2.868683061e-05 | K102: 0.00172412707 | L102: -4.814192644e-06 | M102: -0.0001413344662 | N102: 8.211452211e-08
A103: 48.93555 | B103: ='DF raw data'!G108 -> 1.5687926e-06 | C103: ='DF raw data'!H108 -> 1.2915477e-06 | D103: ='DF raw data'!I108 -> -2.2378665e-06 | F103: 1.570524547e-06 | G103: 1.295537217e-06 | H103: -2.240337105e-06 | J103: 2.947232846e-05 | K103: 0.001738867655 | L103: -4.166229705e-06 | M103: -0.000143418206 | N103: 8.255764281e-08
A104: 49.4357 | B104: ='DF raw data'!G109 -> 2.1222747e-06 | C104: ='DF raw data'!H109 -> 1.1565298e-07 | D104: ='DF raw data'!I109 -> -6.8109948e-06 | F104: 2.124617691e-06 | G104: 1.160102254e-07 | H104: -6.818514138e-06 | J104: 3.0534956e-05 | K104: 0.001754139713 | L104: -4.108207191e-06 | M104: -0.0001454729259 | N104: 8.303241565e-08
A105: 49.93585 | B105: ='DF raw data'!G110 -> 6.6755256e-06 | C105: ='DF raw data'!H110 -> 1.0797566e-05 | D105: ='DF raw data'!I110 -> -5.4133142e-07 | F105: 6.68289538e-06 | G105: 1.083091906e-05 | H105: -5.419290499e-07 | J105: 3.387740613e-05 | K105: 0.001771083498 | L105: 1.308876977e-06 | M105: -0.000144818291 | N105: 8.360728396e-08
A106: 50.436 | B106: ='DF raw data'!G111 -> 5.8065871e-06 | C106: ='DF raw data'!H111 -> 7.436669e-06 | D106: ='DF raw data'!I111 -> 5.5975543e-06 | F106: 5.812997572e-06 | G106: 7.459640443e-06 | H106: 5.603734e-06 | J106: 3.678477686e-05 | K106: 0.001789481404 | L106: 5.039816144e-06 | M106: -0.000142297627 | N106: 8.429675052e-08
A107: 50.93615 | B107: ='DF raw data'!G112 -> 2.6238356e-06 | C107: ='DF raw data'!H112 -> 8.9920295e-06 | D107: ='DF raw data'!I112 -> 5.6705612e-06 | F107: 2.626732315e-06 | G107: 9.019805362e-06 | H107: 5.6768215e-06 | J107: 3.809853703e-05 | K107: 0.001808536387 | L107: 9.551071796e-06 | M107: -0.0001375206584 | N107: 8.506834268e-08
A108: 51.4363 | B108: ='DF raw data'!G113 -> 2.7869626e-06 | C108: ='DF raw data'!H113 -> -6.1508872e-06 | D108: ='DF raw data'!I113 -> 4.3245091e-06 | F108: 2.790039407e-06 | G108: -6.169886937e-06 | H108: 4.329283358e-06 | J108: 3.949397524e-05 | K108: 0.001828289299 | L108: 6.465202845e-06 | M108: -0.0001342870872 | N108: 8.586936938e-08
A109: 51.93645 | B109: ='DF raw data'!G114 -> -2.0828068e-06 | C109: ='DF raw data'!H114 -> -3.3498511e-06 | D109: ='DF raw data'!I114 -> 7.6775614e-06 | F109: -2.085106219e-06 | G109: -3.360198597e-06 | H109: 7.686037428e-06 | J109: 3.845110936e-05 | K109: 0.001847520622 | L109: 4.784599516e-06 | M109: -0.0001318940698 | N109: 8.662028468e-08
A110: 52.4366 | B110: ='DF raw data'!G115 -> -5.1482111e-06 | C110: ='DF raw data'!H115 -> 1.7926993e-06 | D110: ='DF raw data'!I115 -> 6.8477675e-06 | F110: -5.153894725e-06 | G110: 1.798236845e-06 | H110: 6.855327435e-06 | J110: 3.587338892e-05 | K110: 0.001865462697 | L110: 5.683987674e-06 | M110: -0.0001290512233 | N110: 8.728008644e-08
A111: 52.93675 | B111: ='DF raw data'!G116 -> -2.0693899e-06 | C111: ='DF raw data'!H116 -> -5.7651487e-06 | D111: ='DF raw data'!I116 -> 3.1417728e-06 | F111: -2.071674506e-06 | G111: -5.782956913e-06 | H111: 3.145241317e-06 | J111: 3.483724091e-05 | K111: 0.001882886543 | L111: 2.791641774e-06 | M111: -0.0001276549837 | N111: 8.789098296e-08
A112: 53.4369 | B112: ='DF raw data'!G117 -> -1.0349088e-06 | C112: ='DF raw data'!H117 -> -1.897406e-08 | D112: ='DF raw data'!I117 -> -2.0291484e-06 | F112: -1.036051339e-06 | G112: -1.903266978e-08 | H112: -2.03138858e-06 | J112: 3.431905983e-05 | K112: 0.001900051221 | L112: 2.782122585e-06 | M112: -0.0001262635051 | N112: 8.848392983e-08
A113: 53.93705 | B113: ='DF raw data'!G118 -> -2.4717503e-06 | C113: ='DF raw data'!H118 -> 3.8758972e-06 | D113: ='DF raw data'!I118 -> 7.6166162e-07 | F113: -2.474479112e-06 | G113: 3.887869623e-06 | H113: 7.625024944e-07 | J113: 3.308144911e-05 | K113: 0.001916596908 | L113: 4.726640577e-06 | M113: -0.0001238994758 | N113: 8.904245904e-08
A114: 54.4372 | B114: ='DF raw data'!G119 -> -4.9992868e-06 | C114: ='DF raw data'!H119 -> -3.6267122e-06 | D114: ='DF raw data'!I119 -> 4.2712636e-06 | F114: -5.004806013e-06 | G114: -3.637914905e-06 | H114: 4.275979075e-06 | J114: 3.057829538e-05 | K114: 0.001931890642 | L114: 2.907137437e-06 | M114: -0.000122445471 | N114: 8.951434236e-08
A115: 54.93735 | B115: ='DF raw data'!G120 -> -7.4062173e-06 | C115: ='DF raw data'!H120 -> -3.5756095e-06 | D115: ='DF raw data'!I120 -> 2.7709318e-06 | F115: -7.414393764e-06 | G115: -3.586654352e-06 | H115: 2.773990909e-06 | J115: 2.686998634e-05 | K115: 0.001945329666 | L115: 1.113272263e-06 | M115: -0.0001218886679 | N115: 8.987606862e-08
A116: 55.4375 | B116: ='DF raw data'!G121 -> -7.2467428e-06 | C116: ='DF raw data'!H121 -> -1.663064e-06 | D116: ='DF raw data'!I121 -> 3.5560658e-06 | F116: -7.254743204e-06 | G116: -1.668201109e-06 | H116: 3.559991697e-06 | J116: 2.324152652e-05 | K116: 0.001956953915 | L116: 2.78921478e-07 | M116: -0.0001217491653 | N116: 9.014627283e-08
A117: 55.93765 | B117: ='DF raw data'!G122 -> -8.8300494e-06 | C117: ='DF raw data'!H122 -> -6.2433372e-07 | D117: ='DF raw data'!I122 -> 4.9551018e-06 | F117: -8.839797775e-06 | G117: -6.262622509e-07 | H117: 4.960572232e-06 | J117: 1.882030167e-05 | K117: 0.001966366889 | L117: -3.430358681e-08 | M117: -0.0001217663223 | N117: 9.032342843e-08
A118: 56.4378 | B118: ='DF raw data'!G123 -> -8.2074021e-06 | C118: ='DF raw data'!H123 -> -4.028594e-06 | D118: ='DF raw data'!I123 -> 4.1902676e-06 | F118: -8.216463072e-06 | G118: -4.041038095e-06 | H118: 4.194893655e-06 | J118: 1.471083766e-05 | K118: 0.001973724515 | L118: -2.05542879e-06 | M118: -0.000122794345 | N118: 9.043377829e-08
A119: 56.93795 | B119: ='DF raw data'!G124 -> -8.0602172e-07 | C119: ='DF raw data'!H124 -> 5.9398826e-06 | D119: ='DF raw data'!I124 -> 5.1971001e-06 | F119: -8.06911568e-07 | G119: 5.958230556e-06 | H119: 5.202837699e-06 | J119: 1.430726084e-05 | K119: 0.001980880291 | L119: 9.245802223e-07 | M119: -0.0001223319162 | N119: 9.05365854e-08
A120: 57.4381 | B120: ='DF raw data'!G125 -> 7.7652749e-06 | C120: ='DF raw data'!H125 -> -3.5990927e-06 | D120: ='DF raw data'!I125 -> 8.4981148e-06 | F120: 7.773847763e-06 | G120: -3.61021009e-06 | H120: 8.507496719e-06 | J120: 1.81953508e-05 | K120: 0.001989980696 | L120: -8.810663543e-07 | M120: -0.0001227725815 | N120: 9.070255871e-08
A121: 57.93825 | B121: ='DF raw data'!G126 -> 1.0792568e-05 | C121: ='DF raw data'!H126 -> -9.8402816e-06 | D121: ='DF raw data'!I126 -> 7.7080476e-06 | F121: 1.0804483e-05 | G121: -9.870677664e-06 | H121: 7.716557285e-06 | J121: 2.359921297e-05 | K121: 0.002001783842 | L121: -5.817885788e-06 | M121: -0.0001256823971 | N121: 9.099803265e-08
A122: 58.4384 | B122: ='DF raw data'!G127 -> 8.8088364e-06 | C122: ='DF raw data'!H127 -> 9.6286103e-06 | D122: ='DF raw data'!I127 -> -1.0176592e-06 | F122: 8.818561355e-06 | G122: 9.658352523e-06 | H122: -1.018782696e-06 | J122: 2.800981643e-05 | K122: 0.002015792952 | L122: -9.872607733e-07 | M122: -0.0001261761756 | N122: 9.139091273e-08
A123: 58.93855 | B123: ='DF raw data'!G128 -> 6.2125564e-06 | C123: ='DF raw data'!H128 -> -7.48409e-06 | D123: ='DF raw data'!I128 -> -5.1772804e-06 | F123: 6.219415062e-06 | G123: -7.507207923e-06 | H123: -5.182996118e-06 | J123: 3.112045688e-05 | K123: 0.002031357848 | L123: -4.741990816e-06 | M123: -0.0001285478823 | N123: 9.188654603e-08
A124: 59.4387 | B124: ='DF raw data'!G129 -> 5.4030188e-06 | C124: ='DF raw data'!H129 -> 3.3147023e-06 | D124: ='DF raw data'!I129 -> -4.6926434e-06 | F124: 5.408983733e-06 | G124: 3.324941225e-06 | H124: -4.697824078e-06 | J124: 3.382576009e-05 | K124: 0.002048275802 | L124: -3.079021463e-06 | M124: -0.0001300878549 | N124: 9.246355029e-08
A125: 59.93885 | B125: ='DF raw data'!G130 -> 6.6557641e-06 | C125: ='DF raw data'!H130 -> 1.0930593e-05 | D125: ='DF raw data'!I130 -> -4.0666928e-06 | F125: 6.663112064e-06 | G125: 1.096435697e-05 | H125: -4.071182429e-06 | J125: 3.715831559e-05 | K125: 0.002066860534 | L125: 2.404801677e-06 | M125: -0.0001288850933 | N125: 9.315702002e-08
A126: 60.439 | B126: ='DF raw data'!G131 -> 3.6848739e-06 | C126: ='DF raw data'!H131 -> 5.9832473e-06 | D126: ='DF raw data'!I131 -> 1.7612169e-07 | F126: 3.688942001e-06 | G126: 6.001729207e-06 | H126: 1.763161283e-07 | J126: 3.900333993e-05 | K126: 0.002086368054 | L126: 5.40656654e-06 | M126: -0.000126180999 | N126: 9.393249833e-08
A127: 60.93915 | B127: ='DF raw data'!G132 -> 4.9992536e-07 | C127: ='DF raw data'!H132 -> 3.0546541e-06 | D127: ='DF raw data'!I132 -> 6.5216591e-06 | F127: 5.004772776e-07 | G127: 3.064089751e-06 | H127: 6.528859012e-06 | J127: 3.925365364e-05 | K127: 0.002106000769 | L127: 6.939071029e-06 | M127: -0.0001227104227 | N127: 9.47272367e-08
A128: 61.4393 | B128: ='DF raw data'!G133 -> 2.3510308e-06 | C128: ='DF raw data'!H133 -> -2.6146665e-06 | D128: ='DF raw data'!I133 -> 2.526416e-06 | F128: 2.353626338e-06 | G128: -2.622743054e-06 | H128: 2.529205163e-06 | J128: 4.043081985e-05 | K128: 0.002126222244 | L128: 5.62730609e-06 | M128: -0.0001198959255 | N128: 9.556064553e-08
A129: 61.93945 | B129: ='DF raw data'!G134 -> 6.9443286e-06 | C129: ='DF raw data'!H134 -> -2.462961e-06 | D129: ='DF raw data'!I134 -> 5.8376172e-06 | F129: 6.951995139e-06 | G129: -2.470568945e-06 | H129: 5.844061929e-06 | J129: 4.390786022e-05 | K129: 0.00214818276 | L129: 4.391651032e-06 | M129: -0.0001176994413 | N129: 9.6534531e-08
A130: 62.4396 | B130: ='DF raw data'!G135 -> 9.8958499e-06 | C130: ='DF raw data'!H135 -> -8.6803993e-06 | D130: ='DF raw data'!I135 -> 6.3478219e-06 | F130: 9.906774918e-06 | G130: -8.707212554e-06 | H130: 6.354829895e-06 | J130: 4.88627337e-05 | K130: 0.002172621456 | L130: 3.673867355e-08 | M130: -0.0001176810664 | N130: 9.772867319e-08
A131: 62.93975 | B131: ='DF raw data'!G136 -> 5.8727983e-06 | C131: ='DF raw data'!H136 -> -2.4893782e-06 | D131: ='DF raw data'!I136 -> -2.1203307e-06 | F131: 5.879281869e-06 | G131: -2.497067746e-06 | H131: -2.122671545e-06 | J131: 5.180325652e-05 | K131: 0.002198530855 | L131: -1.21216976e-06 | M131: -0.0001182873331 | N131: 9.907159931e-08
A132: 63.4399 | B132: ='DF raw data'!G137 -> 2.0311652e-06 | C132: ='DF raw data'!H137 -> -9.3081525e-07 | D132: ='DF raw data'!I137 -> -4.2301544e-06 | F132: 2.033407606e-06 | G132: -9.336904848e-07 | H132: -4.23482449e-06 | J132: 5.282026534e-05 | K132: 0.002224948911 | L132: -1.679155056e-06 | M132: -0.0001191271625 | N132: 1.004684182e-07
A133: 63.94005 | B133: ='DF raw data'!G138 -> 4.9406462e-06 | C133: ='DF raw data'!H138 -> -3.893032e-06 | D133: ='DF raw data'!I138 -> -4.9074151e-06 | F133: 4.946100673e-06 | G133: -3.905057352e-06 | H133: -4.912832886e-06 | J133: 5.529405759e-05 | K133: 0.002252604234 | L133: -3.63226949e-06 | M133: -0.0001209438421 | N133: 1.020041919e-07
A134: 64.4402 | B134: ='DF raw data'!G139 -> 1.0063401e-05 | C134: ='DF raw data'!H139 -> 1.9305296e-06 | D134: ='DF raw data'!I139 -> -4.639267e-06 | F134: 1.007451099e-05 | G134: 1.936492895e-06 | H134: -4.644388751e-06 | J134: 6.033282426e-05 | K134: 0.002282779696 | L134: -2.663732569e-06 | M134: -0.000122276108 | N134: 1.038283116e-07
A135: 64.94035 | B135: ='DF raw data'!G140 -> 1.2683182e-05 | C135: ='DF raw data'!H140 -> 1.6538013e-06 | D135: ='DF raw data'!I140 -> -4.1860912e-06 | F135: 1.269718423e-05 | G135: =(1-$G$1*($B$2-$G$2))*C135*$M$2/$M$1 -> 1.658909797e-06 | H135: -4.190712645e-06 | J135: 6.668332096e-05 | K135: 0.002316131359 | L135: -1.834028834e-06 | M135: -0.0001231933975 | N135: 1.060539935e-07
A136: =A135+$B$1 -> 65.4405 | B136: ='DF raw data'!G141 -> 8.471814e-06 | C136: ='DF raw data'!H141 -> 9.8223463e-06 | D136: ='DF raw data'!I141 -> -2.5125921e-06 | F136: 8.481166883e-06 | G136: 9.852686963e-06 | H136: -2.515366002e-06 | J136: =F136*$B$1+J135 -> 7.092517658e-05 | K136: =J136*$B$1+K135 -> 0.002351604586 | L136: =G136*$B$1+L135 -> 3.093792551e-06 | M136: =L136*$B$1+M135 -> -0.0001216460371 | N136: =(J136^2+L136^2)*$B$1+N135 -> 1.085747257e-07
A137: 65.94065 | B137: ='DF raw data'!G142 -> 1.9682864e-06 | C137: ='DF raw data'!H142 -> 8.9666783e-06 | D137: ='DF raw data'!I142 -> -4.6665096e-07 | F137: 1.970459388e-06 | G137: 8.994375853e-06 | H137: -4.671661427e-07 | J137: 7.191070184e-05 | K137: 0.002387570723 | L137: 7.592329634e-06 | M137: -0.0001178487335 | N137: 1.111899062e-07
A138: 66.4408 | B138: ='DF raw data'!G143 -> 1.8187654e-06 | C138: ='DF raw data'!H143 -> 1.8364353e-05 | D138: ='DF raw data'!I143 -> 1.6291305e-06 | F138: 1.820773317e-06 | G138: 1.842107943e-05 | H138: 1.63092906e-06 | J138: 7.282136161e-05 | K138: 0.002423992327 | L138: 1.680563251e-05 | M138: -0.0001094433964 | N138: 1.13983434e-07
A139: 66.94095 | B139: ='DF raw data'!G144 -> 9.222882e-06 | C139: ='DF raw data'!H144 -> 2.1306823e-05 | D139: ='DF raw data'!I144 -> 7.0012466e-06 | F139: 9.233064062e-06 | G139: 2.137263855e-05 | H139: 7.008975976e-06 | J139: 7.74392786e-05 | K139: 0.002462723582 | L139: 2.749515768e-05 | M139: -9.569169325e-05 | N139: 1.173608597e-07
A140: 67.4411 | B140: ='DF raw data'!G145 -> 1.5420179e-05 | C140: ='DF raw data'!H145 -> 1.9606848e-06 | D140: ='DF raw data'!I145 -> 8.3280029e-06 | F140: 1.543720288e-05 | G140: 1.966741243e-06 | H140: 8.337197015e-06 | J140: 8.516019562e-05 | K140: 0.002505316454 | L140: 2.847882331e-05 | M140: -8.144800977e-05 | N140: 1.213937204e-07
A141: 67.94125 | B141: ='DF raw data'!G146 -> 1.1007893e-05 | C141: ='DF raw data'!H146 -> 6.4809301e-06 | D141: ='DF raw data'!I146 -> 4.7153153e-06 | F141: 1.102004571e-05 | G141: 6.50094932e-06 | H141: 4.720521008e-06 | J141: 9.067187149e-05 | K141: 0.002550665991 | L141: 3.173027312e-05 | M141: -6.557811367e-05 | N141: 1.260092039e-07
A142: 68.4414 | B142: ='DF raw data'!G147 -> 2.8776792e-06 | C142: ='DF raw data'!H147 -> -1.1860632e-06 | D142: ='DF raw data'!I147 -> 1.9026046e-06 | F142: 2.880856158e-06 | G142: -1.189726881e-06 | H142: 1.904705075e-06 | J142: 9.211273169e-05 | K142: 0.002596736173 | L142: 3.113523122e-05 | M142: -5.000582777e-05 | N142: 1.30737701e-07
A143: 68.94155 | B143: ='DF raw data'!G148 -> -1.8726771e-06 | C143: ='DF raw data'!H148 -> 1.2840753e-06 | D143: ='DF raw data'!I148 -> 7.2279346e-07 | F143: -1.874744536e-06 | G143: 1.288041735e-06 | H143: 7.23591424e-07 | J143: 9.117507821e-05 | K143: 0.002642337389 | L143: 3.177944529e-05 | M143: -3.411133821e-05 | N143: 1.354005134e-07
A144: 69.4417 | B144: ='DF raw data'!G149 -> 3.6054496e-06 | C144: ='DF raw data'!H149 -> 7.231858e-06 | D144: ='DF raw data'!I149 -> 4.7208305e-06 | F144: 3.609430016e-06 | G144: 7.254196793e-06 | H144: 4.726042297e-06 | J144: 9.298033464e-05 | K144: 0.002688841503 | L144: 3.540763182e-05 | M144: -1.640221116e-05 | N144: 1.403515198e-07
A145: 69.94185 | B145: ='DF raw data'!G150 -> 9.6018866e-06 | C145: ='DF raw data'!H150 -> 2.5561877e-07 | D145: ='DF raw data'!I150 -> 9.8342571e-06 | F145: 9.612487083e-06 | G145: 2.564083617e-07 | H145: 9.84511412e-06 | J145: 9.778802005e-05 | K145: 0.002737750181 | L145: 3.553587446e-05 | M145: 1.371056452e-06 | N145: 1.457657912e-07
A146: 70.442 | B146: ='DF raw data'!G151 -> 5.1577754e-06 | C146: ='DF raw data'!H151 -> -2.8937959e-06 | D146: ='DF raw data'!I151 -> 7.4980053e-06 | F146: 5.163469584e-06 | G146: -2.902734669e-06 | H146: 7.506283098e-06 | J146: 0.0001003705294 | K146: 0.002787950502 | L146: 3.408407171e-05 | M146: 1.841820492e-05 | N146: 1.513854601e-07
A147: 70.94215 | B147: ='DF raw data'!G152 -> -4.2708984e-07 | C147: ='DF raw data'!H152 -> 9.6300782e-06 | D147: ='DF raw data'!I152 -> 1.106257e-05 | F147: -4.275613472e-07 | G147: 9.659824957e-06 | H147: 1.107478308e-05 | J147: 0.0001001566846 | K147: 0.002838043868 | L147: 3.891543317e-05 | M147: 3.788175882e-05 | N147: 1.571600782e-07
A148: 71.4423 | B148: ='DF raw data'!G153 -> -1.4733143e-06 | C148: ='DF raw data'!H153 -> 3.3861016e-07 | D148: ='DF raw data'!I153 -> 1.4337638e-05 | F148: -1.474940839e-06 | G148: 3.396561073e-07 | H148: 1.435346675e-05 | J148: 9.94189929e-05 | K148: 0.002887768277 | L148: 3.908531217e-05 | M148: 5.74302777e-05 | N148: 1.628676889e-07
A149: 71.94245 | B149: ='DF raw data'!G154 -> 1.7689106e-06 | C149: ='DF raw data'!H154 -> 5.999791e-06 | D149: ='DF raw data'!I154 -> 6.7430083e-06 | F149: 1.770863477e-06 | G149: 6.018324009e-06 | H149: 6.750452581e-06 | J149: 0.0001003046903 | K149: 0.002937935668 | L149: 4.209537692e-05 | M149: 7.848428047e-05 | N149: 1.687859896e-07
A150: 72.4426 | B150: ='DF raw data'!G155 -> 1.1028193e-05 | C150: ='DF raw data'!H155 -> 6.7249675e-06 | D150: ='DF raw data'!I155 -> -4.1070307e-06 | F150: 1.104036813e-05 | G150: 6.745740538e-06 | H150: -4.111564862e-06 | J150: 0.0001058265304 | K150: 0.002990864807 | L150: 4.546925905e-05 | M150: 0.0001012257304 | N150: 1.754213337e-07
A151: 72.94275 | B151: ='DF raw data'!G156 -> 1.7228822e-05 | C151: ='DF raw data'!H156 -> -3.7826887e-06 | D151: ='DF raw data'!I156 -> -5.3664262e-06 | F151: =(1-$G$1*($B$2-$G$2))*B151 -> 1.724784262e-05 | G151: -3.794373208e-06 | H151: -5.372350735e-06 | J151: 0.0001144530389 | K151: 0.003048108494 | L151: 4.357150329e-05 | M151: 0.0001230180178 | N151: 1.829225704e-07
A152: 73.4429 | B152: ='DF raw data'!G157 -> 1.3316758e-05 | C152: ='DF raw data'!H157 -> 3.2028909e-06 | D152: ='DF raw data'!I157 -> -8.7889219e-07 | F152: 1.33314597e-05 | G152: 3.212784446e-06 | H152: -8.79862487e-07 | J152: 0.0001211207684 | K152: 0.003108687047 | L152: 4.517837743e-05 | M152: 0.0001456139832 | N152: 1.912807402e-07
A153: 73.94305 | B153: ='DF raw data'!G158 -> 9.297315e-06 | C153: ='DF raw data'!H158 -> 1.6936972e-06 | D153: ='DF raw data'!I158 -> -4.7906069e-06 | F153: 9.307579236e-06 | G153: 1.698928933e-06 | H153: -4.79589573e-06 | J153: 0.0001257759542 | K153: 0.00317159389 | L153: 4.602809674e-05 | M153: 0.0001686349358 | N153: 2.002525191e-07
A154: 74.4432 | B154: ='DF raw data'!G159 -> 9.840116e-06 | C154: ='DF raw data'!H159 -> 4.1813128e-06 | D154: ='DF raw data'!I159 -> 1.1619267e-06 | F154: 9.850979488e-06 | G154: 4.194228635e-06 | H154: 1.163209467e-06 | J154: 0.0001307029216 | K154: 0.003236964956 | L154: 4.812584019e-05 | M154: 0.0001927050748 | N154: 2.099551041e-07
A155: 74.94335 | B155: ='DF raw data'!G160 -> 7.1519116e-06 | C155: ='DF raw data'!H160 -> 4.7892063e-06 | D155: ='DF raw data'!I160 -> 8.361676e-06 | F155: 7.15980731e-06 | G155: 4.803999883e-06 | H155: 8.37090729e-06 | J155: 0.0001342838992 | K155: 0.003304127048 | L155: 5.052856073e-05 | M155: 0.0002179769344 | N155: 2.202508425e-07
A156: 75.4435 | B156: ='DF raw data'!G161 -> 6.8502573e-07 | C156: ='DF raw data'!H161 -> -5.6944336e-06 | D156: ='DF raw data'!I161 -> -1.9991435e-07 | F156: 6.857819984e-07 | G156: -5.712023378e-06 | H156: -2.001350554e-07 | J156: 0.0001346268931 | K156: 0.003371460689 | L156: 4.767169224e-05 | M156: 0.0002418199313 | N156: 2.304523973e-07
A157: 75.94365 | B157: ='DF raw data'!G162 -> -2.9344576e-06 | C157: ='DF raw data'!H162 -> 1.006305e-05 | D157: ='DF raw data'!I162 -> -8.2838233e-06 | F157: -2.937697241e-06 | G157: 1.009413418e-05 | H157: -8.292968641e-06 | J157: 0.0001331576038 | K157: 0.003438059465 | L157: 5.272027345e-05 | M157: 0.0002681879761 | N157: 2.407106612e-07
A158: 76.4438 | B158: ='DF raw data'!G163 -> 4.7971991e-08 | C158: ='DF raw data'!H163 -> 1.4521652e-05 | D158: ='DF raw data'!I163 -> -7.5150601e-06 | F158: 4.802495208e-08 | G158: 1.456650855e-05 | H158: -7.523356726e-06 | J158: 0.0001331816235 | K158: 0.003504670254 | L158: 6.00057127e-05 | M158: 0.0002981998333 | N158: 2.513828771e-07
A159: 76.94395 | B159: ='DF raw data'!G164 -> 3.3883059e-06 | C159: ='DF raw data'!H164 -> 6.061302e-06 | D159: ='DF raw data'!I164 -> 1.0847142e-06 | F159: 3.39204659e-06 | G159: 6.080025013e-06 | H159: 1.085911724e-06 | J159: 0.0001348781556 | K159: 0.003572129563 | L159: 6.304663721e-05 | M159: 0.0003297326089 | N159: 2.624696998e-07
A160: 77.4441 | B160: ='DF raw data'!G165 -> 3.6111248e-06 | C160: ='DF raw data'!H165 -> 7.93662e-06 | D160: ='DF raw data'!I165 -> 4.8202637e-06 | F160: 3.615111482e-06 | G160: 7.961135763e-06 | H160: 4.825585271e-06 | J160: 0.0001366862536 | K160: 0.003640493193 | L160: 6.702839926e-05 | M160: 0.0003632568628 | N160: 2.740611453e-07
A161: 77.94425 | B161: ='DF raw data'!G166 -> -1.2944496e-07 | C161: ='DF raw data'!H166 -> 4.7062149e-06 | D161: ='DF raw data'!I166 -> 4.5618362e-06 | F161: -1.295878672e-07 | G161: 4.720752127e-06 | H161: 4.566872467e-06 | J161: 0.0001366214402 | K161: 0.003708824406 | L161: 6.938948344e-05 | M161: 0.0003979620129 | N161: 2.858048265e-07
A162: 78.4444 | B162: ='DF raw data'!G167 -> -4.5740944e-06 | C162: ='DF raw data'!H167 -> 5.4542088e-06 | D162: ='DF raw data'!I167 -> 7.3655538e-06 | F162: -4.5791442e-06 | G162: 5.471056537e-06 | H162: 7.373685371e-06 | J162: 0.0001343311812 | K162: 0.003776010146 | L162: 7.212583237e-05 | M162: 0.000434035748 | N162: 2.974318145e-07
A163: 78.94455 | B163: ='DF raw data'!G168 -> -1.7348414e-06 | C163: ='DF raw data'!H168 -> -2.3646153e-07 | D163: ='DF raw data'!I168 -> 2.7855128e-06 | F163: -1.736756665e-06 | G163: -2.371919461e-07 | H163: 2.788588006e-06 | J163: 0.0001334625424 | K163: 0.003842761437 | L163: 7.200720081e-05 | M163: 0.0004700501495 | N163: 3.089339077e-07
A164: 79.4447 | B164: ='DF raw data'!G169 -> 5.5156797e-06 | C164: ='DF raw data'!H169 -> -7.9992533e-06 | D164: ='DF raw data'!I169 -> -5.9543672e-06 | F164: 5.52176901e-06 | G164: -8.023962533e-06 | H164: -5.960940821e-06 | J164: 0.0001362242552 | K164: 0.003910893998 | L164: 6.799401595e-05 | M164: 0.0005040573565 | N164: 3.205275017e-07
A165: 79.94485 | B165: ='DF raw data'!G170 -> 1.0444472e-05 | C165: ='DF raw data'!H170 -> 1.7844266e-06 | D165: ='DF raw data'!I170 -> -8.5792288e-07 | F165: 1.04560027e-05 | G165: 1.789938591e-06 | H165: -8.588700269e-07 | J165: 0.0001414538249 | K165: 0.003981642129 | L165: 6.888925374e-05 | M165: 0.0005385123168 | N165: 3.329086719e-07
A166: 80.445 | B166: ='DF raw data'!G171 -> 4.7947924e-06 | C166: ='DF raw data'!H171 -> 1.0956344e-05 | D166: ='DF raw data'!I171 -> 2.7407802e-06 | F166: 4.800085851e-06 | G166: 1.099018752e-05 | H166: 2.743806021e-06 | J166: 0.0001438545879 | K166: 0.004053591001 | L166: 7.438599603e-05 | M166: 0.0005757164727 | N166: 3.460263154e-07
A167: 80.94515 | B167: ='DF raw data'!G172 -> -1.6200995e-06 | C167: ='DF raw data'!H172 -> -1.8936062e-07 | D167: ='DF raw data'!I172 -> 6.3458865e-06 | F167: -1.62188809e-06 | G167: -1.899455441e-07 | H167: 6.352892359e-06 | J167: 0.0001430434005 | K167: 0.004125134158 | L167: 7.429099476e-05 | M167: 0.0006128731137 | N167: 3.590204957e-07
A168: 81.4453 | B168: ='DF raw data'!G173 -> 3.1474825e-05 | C168: ='DF raw data'!H173 -> 3.2913687e-07 | D168: ='DF raw data'!I173 -> 9.9173776e-06 | F168: 3.150957321e-05 | G168: 3.301535549e-07 | H168: 9.928326385e-06 | J168: 0.0001588029136 | K168: 0.004204559435 | L168: 7.445612106e-05 | M168: 0.0006501123427 | N168: 3.744061497e-07
A169: 81.94545 | B169: ='DF raw data'!G174 -> 0.00012733391 | C169: ='DF raw data'!H174 -> 7.3426036e-06 | D169: ='DF raw data'!I174 -> 4.5185152e-06 | F169: 0.0001274744866 | G169: 7.36528448e-06 | H169: 4.523503641e-06 | J169: 0.0002225592781 | K169: 0.004315872458 | L169: 7.813986809e-05 | M169: 0.0006891939977 | N169: 4.02233731e-07
A170: 82.4456 | B170: ='DF raw data'!G175 -> 0.00023847661 | C170: ='DF raw data'!H175 -> 9.0051053e-06 | D170: ='DF raw data'!I175 -> 9.5887372e-06 | F170: 0.0002387398882 | G170: 9.032921552e-06 | H170: 9.599323166e-06 | J170: 0.0003419650331 | K170: 0.004486906269 | L170: 8.265768381e-05 | M170: 0.0007305352383 | N170: 4.641384852e-07
A171: 82.94575 | B171: ='DF raw data'!G176 -> 0.00030709695 | C171: ='DF raw data'!H176 -> 4.6645855e-06 | D171: ='DF raw data'!I176 -> 1.2797973e-05 | F171: 0.000307435985 | G171: 4.678994136e-06 | H171: 1.281210196e-05 | J171: 0.000495729141 | K171: 0.004734845199 | L171: 8.499788273e-05 | M171: 0.0007730469293 | N171: 5.906624417e-07
A172: 83.4459 | B172: ='DF raw data'!G177 -> 0.00030396399 | C172: ='DF raw data'!H177 -> 5.7610905e-06 | D172: ='DF raw data'!I177 -> 1.7382844e-06 | F172: 0.0003042995662 | G172: 5.778886177e-06 | H172: 1.740203466e-06 | J172: 0.0006479245691 | K172: 0.005058904672 | L172: 8.788819265e-05 | M172: 0.0008170042089 | N172: 8.044918621e-07
A173: 83.94605 | B173: ='DF raw data'!G178 -> 0.00024757028 | C173: ='DF raw data'!H178 -> 4.2121337e-06 | D173: ='DF raw data'!I178 -> -1.097667e-05 | F173: 0.0002478435976 | G173: 4.225144739e-06 | H173: -1.098878824e-05 | J173: 0.0007718835444 | K173: 0.005444962227 | L173: 9.000139879e-05 | M173: 0.0008620184085 | N173: 1.106534677e-06
A174: 84.4462 | B174: ='DF raw data'!G179 -> 0.00018254638 | C174: ='DF raw data'!H179 -> -3.1417042e-06 | D174: ='DF raw data'!I179 -> -1.6030594e-05 | F174: 0.0001827479112 | G174: -3.151408744e-06 | H174: -1.604829178e-05 | J174: 0.0008632849122 | K174: 0.005876734176 | L174: 8.842522171e-05 | M174: 0.0009062442831 | N174: 1.483187568e-06
A175: 84.94635 | B175: ='DF raw data'!G180 -> 0.00012700078 | C175: ='DF raw data'!H180 -> -2.7809091e-07 | D175: ='DF raw data'!I180 -> -9.9691097e-06 | F175: 0.0001271409889 | G175: -2.789499168e-07 | H175: -9.980115597e-06 | J175: 0.0009268744778 | K175: 0.006340310446 | L175: 8.82857049e-05 | M175: 0.0009504003784 | N175: 1.916762934e-06
A176: 85.4465 | B176: ='DF raw data'!G181 -> 8.685892e-05 | C176: ='DF raw data'!H181 -> -8.3461435e-07 | D176: ='DF raw data'!I181 -> -2.8933575e-06 | F176: 8.695481225e-05 | G176: -8.371924257e-07 | H176: -2.896551767e-06 | J176: 0.0009703649272 | K176: 0.006825638464 | L176: 8.786698311e-05 | M176: 0.00099434705 | N176: 2.391569682e-06
A177: 85.94665 | B177: ='DF raw data'!G182 -> 5.9988924e-05 | C177: ='DF raw data'!H182 -> -4.628082e-06 | D177: ='DF raw data'!I182 -> 1.2167583e-06 | F177: 6.005515177e-05 | G177: -4.642377879e-06 | H177: 1.218101601e-06 | J177: 0.001000401511 | K177: 0.00732598928 | L177: 8.554509782e-05 | M177: 0.001037132431 | N177: 2.895781474e-06
A178: 86.4468 | B178: ='DF raw data'!G183 -> 4.1686486e-05 | C178: ='DF raw data'!H183 -> 4.4449644e-06 | D178: ='DF raw data'!I183 -> 4.2620086e-06 | F178: 4.173250788e-05 | G178: 4.458694639e-06 | H178: 4.266713857e-06 | J178: 0.001021274025 | K178: 0.007836779484 | L178: 8.777511394e-05 | M178: 0.001081033154 | N178: 3.421291633e-06
A179: 86.94695 | B179: ='DF raw data'!G184 -> 2.716842e-05 | C179: ='DF raw data'!H184 -> 7.255876e-06 | D179: ='DF raw data'!I184 -> 2.1684825e-06 | F179: 2.719841394e-05 | G179: 7.278288984e-06 | H179: 2.170876505e-06 | J179: 0.001034877312 | K179: 0.008354373371 | L179: 9.141535018e-05 | M179: 0.001126754541 | N179: 3.96111744e-06
A180: 87.4471 | B180: ='DF raw data'!G185 -> 1.5332867e-05 | C180: ='DF raw data'!H185 -> 5.2896921e-06 | D180: ='DF raw data'!I185 -> -1.8606371e-06 | F180: 1.534979449e-05 | G180: 5.306031655e-06 | H180: -1.862691243e-06 | J180: 0.001042554512 | K180: 0.00887580701 | L180: 9.406916191e-05 | M180: 0.001173803233 | N180: 4.509166264e-06
A181: 87.94725 | B181: ='DF raw data'!G186 -> 9.4234074e-06 | C181: ='DF raw data'!H186 -> 1.0949139e-05 | D181: ='DF raw data'!I186 -> -5.2491669e-06 | F181: 9.433810842e-06 | G181: 1.098296026e-05 | H181: -5.25496198e-06 | J181: 0.001047272832 | K181: 0.009399600517 | L181: 9.956228948e-05 | M181: 0.001223599312 | N181: 5.062678785e-06
A182: 88.4474 | B182: ='DF raw data'!G187 -> 7.5880616e-06 | C182: ='DF raw data'!H187 -> 1.313563e-06 | D182: ='DF raw data'!I187 -> -6.1798637e-06 | F182: 7.59643882e-06 | G182: 1.317620521e-06 | H182: -6.18668627e-06 | J182: 0.001051072191 | K182: 0.009925294274 | L182: 0.0001002212974 | M182: 0.001273724994 | N182: 5.620244534e-06
A183: 88.94755 | B183: ='DF raw data'!G188 -> 4.5536963e-06 | C183: ='DF raw data'!H188 -> 1.2512517e-06 | D183: ='DF raw data'!I188 -> -6.2716281e-06 | F183: 4.558723581e-06 | G183: 1.255116745e-06 | H183: -6.278551977e-06 | J183: 0.001053352237 | K183: 0.01045212839 | L183: 0.000100849044 | M183: 0.001324164643 | N183: 6.180273224e-06
A184: 89.4477 | B184: ='DF raw data'!G189 -> 2.6558644e-06 | C184: ='DF raw data'!H189 -> 1.4347129e-05 | D184: ='DF raw data'!I189 -> -3.8283615e-06 | F184: 2.658796474e-06 | G184: 1.439144646e-05 | H184: -3.832588011e-06 | J184: 0.001054682034 | K184: 0.01097962761 | L184: 0.000108046926 | M184: 0.001378204313 | N184: 6.742455994e-06
A185: 89.94785 | B185: ='DF raw data'!G190 -> 4.7360463e-06 | C185: ='DF raw data'!H190 -> 1.0718844e-05 | D185: ='DF raw data'!I190 -> 3.2100504e-06 | F185: 4.741274895e-06 | G185: 1.075195389e-05 | H185: 3.213594296e-06 | J185: 0.001057053382 | K185: 0.01150831286 | L185: 0.0001134245157 | M185: 0.001434933585 | N185: 7.307739014e-06
A186: 90.448 | B186: ='DF raw data'!G191 -> 7.6652886e-06 | C186: ='DF raw data'!H191 -> 5.6813005e-06 | D186: ='DF raw data'!I191 -> 4.7889916e-06 | F186: 7.673751079e-06 | G186: 5.69884971e-06 | H186: 4.794278647e-06 | J186: 0.001060891409 | K186: 0.0120389177 | L186: 0.0001162747954 | M186: 0.001493088423 | N186: 7.877415071e-06
A187: 90.94815 | B187: ='DF raw data'!G192 -> 8.8175093e-06 | C187: ='DF raw data'!H192 -> 1.5171709e-05 | D187: ='DF raw data'!I192 -> 2.1443991e-06 | F187: 8.82724383e-06 | G187: 1.521857354e-05 | H187: 2.146766517e-06 | J187: 0.001065306355 | K187: 0.01257173067 | L187: 0.0001238863649 | M187: 0.001555050189 | N187: 8.452700335e-06
A188: 91.4483 | B188: ='DF raw data'!G193 -> 7.9832189e-06 | C188: ='DF raw data'!H193 -> 8.4222957e-06 | D188: ='DF raw data'!I193 -> -2.2889001e-06 | F188: 7.992032374e-06 | G188: 8.448311687e-06 | H188: -2.291427046e-06 | J188: 0.00106930357 | K188: 0.01310654285 | L188: 0.000128111788 | M188: 0.0016191253 | N188: 9.032785686e-06
A189: 91.94845 | B189: ='DF raw data'!G194 -> 5.6857625e-06 | C189: ='DF raw data'!H194 -> -8.9970235e-06 | D189: ='DF raw data'!I194 -> -1.3083046e-06 | F189: 5.692039582e-06 | G189: -9.024814788e-06 | H189: -1.309748968e-06 | J189: 0.001072150443 | K189: 0.0136427789 | L189: 0.0001235980269 | M189: 0.001680942853 | N189: 9.615351926e-06
A190: 92.4486 | B190: ='DF raw data'!G195 -> 2.6499272e-06 | C190: ='DF raw data'!H195 -> -3.0617814e-06 | D190: ='DF raw data'!I195 -> -3.6657732e-06 | F190: 2.65285272e-06 | G190: -3.071239067e-06 | H190: -3.669820214e-06 | J190: 0.001073477268 | K190: 0.01417967855 | L190: 0.0001220619467 | M190: 0.001741992135 | N190: 1.01991533e-05
A191: 92.94875 | B191: ='DF raw data'!G196 -> -1.6029428e-06 | C191: ='DF raw data'!H196 -> 3.9059196e-06 | D191: ='DF raw data'!I196 -> -9.3323906e-06 | F191: -1.604712449e-06 | G191: 3.917984761e-06 | H191: -9.342693559e-06 | J191: 0.001072674671 | K191: 0.01471617679 | L191: 0.0001240215268 | M191: 0.001804021502 | N191: 1.078233434e-05
A192: 93.4489 | B192: ='DF raw data'!G197 -> -4.409163e-06 | C192: ='DF raw data'!H197 -> 3.5800892e-06 | D192: ='DF raw data'!I197 -> -9.9419558e-06 | F192: -4.414030716e-06 | G192: 3.59114789e-06 | H192: -9.952931719e-06 | J192: 0.001070466993 | K192: 0.01525157086 | L192: 0.0001258176394 | M192: 0.001866949194 | N192: 1.136337343e-05
A193: 93.94905 | B193: ='DF raw data'!G198 -> -6.6129633e-06 | C193: ='DF raw data'!H198 -> 3.6724211e-06 | D193: ='DF raw data'!I198 -> -3.9841689e-06 | F193: -6.620264011e-06 | G193: 3.683764997e-06 | H193: -3.988567422e-06 | J193: 0.001067155868 | K193: 0.01578530887 | L193: 0.0001276600745 | M193: 0.001930798381 | N193: 1.194110607e-05
A194: 94.4492 | B194: ='DF raw data'!G199 -> -8.296387e-06 | C194: ='DF raw data'!H199 -> -2.504856e-06 | D194: ='DF raw data'!I199 -> 5.7611015e-07 | F194: -8.305546211e-06 | G194: -2.512593356e-06 | H194: 5.767461756e-07 | J194: 0.001063001849 | K194: 0.01631696924 | L194: 0.0001264034009 | M194: 0.001994019042 | N194: 1.251425334e-05
A195: 94.94935 | B195: ='DF raw data'!G200 -> -9.9673834e-06 | C195: ='DF raw data'!H200 -> 8.9841569e-06 | D195: ='DF raw data'!I200 -> -2.3919276e-06 | F195: -9.978387391e-06 | G195: 9.011908444e-06 | H195: -2.394568288e-06 | J195: 0.001058011159 | K195: 0.01684613352 | L195: 0.0001309107069 | M195: 0.002059494032 | N195: 1.308268643e-05
A196: 95.4495 | B196: ='DF raw data'!G201 -> -9.7686043e-06 | C196: ='DF raw data'!H201 -> 2.744702e-06 | D196: ='DF raw data'!I201 -> -6.7970832e-06 | F196: -9.779388839e-06 | G196: 2.753180227e-06 | H196: -6.80458718e-06 | J196: 0.001053119998 | K196: 0.01737285149 | L196: 0.00013228771 | M196: 0.00212565773 | N196: 1.36461363e-05
A197: 95.94965 | B197: ='DF raw data'!G202 -> -5.7431516e-06 | C197: ='DF raw data'!H202 -> -1.068661e-05 | D197: ='DF raw data'!I202 -> -2.9281378e-07 | F197: -5.749492039e-06 | G197: -1.071962032e-05 | H197: -2.931370464e-07 | J197: 0.001050244389 | K197: 0.01789813122 | L197: 0.0001269262919 | M197: 0.002189139915 | N197: 1.420586595e-05
A198: 96.4498 | B198: ='DF raw data'!G203 -> -5.1223087e-06 | C198: ='DF raw data'!H203 -> 1.0491092e-06 | D198: ='DF raw data'!I203 -> 1.237994e-05 | F198: -5.127963729e-06 | G198: 1.052349838e-06 | H198: 1.239360745e-05 | J198: 0.001047679638 | K198: 0.01842212819 | L198: 0.0001274526247 | M198: 0.002252885345 | N198: 1.476297143e-05
A199: 96.94995 | B199: ='DF raw data'!G204 -> -6.6106204e-06 | C199: ='DF raw data'!H204 -> 2.2771726e-06 | D199: ='DF raw data'!I204 -> 8.1675389e-06 | F199: -6.617918525e-06 | G199: =(1-$G$1*($B$2-$G$2))*C199*$M$2/$M$1 -> 2.284206655e-06 | H199: 8.176555863e-06 | J199: 0.001044369686 | K199: 0.01894446969 | L199: 0.0001285950706 | M199: 0.00231720217 | N199: 1.531675988e-05
A200: =A199+$B$1 -> 97.4501 | B200: ='DF raw data'!G205 -> -7.1745217e-06 | C200: ='DF raw data'!H205 -> 3.1950183e-06 | D200: ='DF raw data'!I205 -> -3.3162944e-06 | F200: -7.182442372e-06 | G200: 3.204887528e-06 | H200: -3.319955589e-06 | J200: =F200*$B$1+J199 -> 0.001040777388 | K200: =J200*$B$1+K199 -> 0.0194650145 | L200: =G200*$B$1+L199 -> 0.0001301979951 | M200: =L200*$B$1+M199 -> 0.002382320697 | N200: =(J200^2+L200^2)*$B$1+N199 -> 1.586700945e-05
A201: 97.95025 | B201: ='DF raw data'!G206 -> -7.0079168e-06 | C201: ='DF raw data'!H206 -> 7.2431994e-06 | D201: ='DF raw data'!I206 -> -1.6358828e-06 | F201: -7.01565354e-06 | G201: 7.265573226e-06 | H201: -1.637688815e-06 | J201: 0.001037268508 | K201: 0.01998380434 | L201: 0.0001338318716 | M201: 0.002449256707 | N201: 1.641409199e-05
... 1002 more rows

Sheet 10 x=1
A1: dz | B1: ='DF raw data'!K7 -> 0.50015 | C1: mm | F1: T_coeff | G1: -0.0008 | H1: /degC | L1: Hallref | M1: ='PI vs gap'!B44 -> 0.50561 | N1: T | P1: IBy total | Q1: =L1203*1000 -> -10.83122304 | R1: muTm | X1: DF ref | Y1: 20
A2: Tref | B2: ='DF raw data'!K8 -> 21.36 | C2: degC | F2: Tcorr | G2: 20 | H2: degC | L2: NMRref | M2: ='PI vs gap'!B45 -> 0.5066125 | N2: T | P2: JBy total | Q2: =M1203 -> -3.863537115 | R2: muTm^2
A3: Encoder | B3: ='DF raw data'!K9 -> 17908797 | P3: PI total | Q3: =N1203 -> 711.8782454 | R3: T^2mm^3
A5: z [mm] | B5: Bx | C5: By | D5: Bz | F5: Bx_corr | G5: By_corr | H5: Bz_corr | J5: Ix | K5: Jx | L5: Iy | M5: Jy | N5: PI
A6: ='PI vs gap'!B53 -> 0.421 | B6: ='DF raw data'!J11 -> 3.2439885e-07 | C6: ='DF raw data'!K11 -> -1.3145512e-05 | D6: ='DF raw data'!L11 -> -1.8248871e-06 | F6: =(1-$G$1*($B$2-$G$2))*B6 -> 3.247517959e-07 | G6: =(1-$G$1*($B$2-$G$2))*C6*$M$2/$M$1 -> -1.318590699e-05 | H6: =(1-$G$1*($B$2-$G$2))*D6 -> -1.826872577e-06 | J6: =F6*$B$1 -> 1.624246107e-07 | K6: =J6*$B$1 -> 8.123666906e-08 | L6: =G6*$B$1 -> -6.594931379e-06 | M6: =L6*$B$1 -> -3.298454929e-06 | N6: =(J6^2+L6)^2*$B$1 -> 2.175308374e-11
A7: =A6+$B$1 -> 0.92115 | B7: ='DF raw data'!J12 -> -1.5793893e-07 | C7: ='DF raw data'!K12 -> 5.2036654e-07 | D7: ='DF raw data'!L12 -> 1.6769876e-06 | F7: =(1-$G$1*($B$2-$G$2))*B7 -> -1.581107676e-07 | G7: =(1-$G$1*($B$2-$G$2))*C7*$M$2/$M$1 -> 5.219655799e-07 | H7: 1.678812163e-06 | J7: =F7*$B$1+J6 -> 8.334551035e-08 | K7: =J7*$B$1+K6 -> 1.229219261e-07 | L7: =G7*$B$1+L6 -> -6.333870294e-06 | M7: =L7*$B$1+M6 -> -6.466340156e-06 | N7: =(J7^2+L7^2)*$B$1+N6 -> 4.182153215e-11
A8: =A7+$B$1 -> 1.4213 | B8: ='DF raw data'!J13 -> 4.591886e-08 | C8: ='DF raw data'!K13 -> -5.4096699e-06 | D8: ='DF raw data'!L13 -> 1.6028513e-07 | F8: 4.596881972e-08 | G8: -5.426293333e-06 | H8: 1.604595202e-07 | J8: =F8*$B$1+J7 -> 1.063368155e-07 | K8: =J8*$B$1+K7 -> 1.761062844e-07 | L8: =G8*$B$1+L7 -> -9.047830904e-06 | M8: =L8*$B$1+M7 -> -1.099161278e-05 | N8: =(J8^2+L8^2)*$B$1+N7 -> 8.277108913e-11
A9: 1.92145 | B9: ='DF raw data'!J14 -> -9.4579882e-08 | C9: ='DF raw data'!K14 -> -2.2909435e-06 | D9: ='DF raw data'!L14 -> -4.0283526e-06 | F9: -9.468278491e-08 | G9: -2.297983365e-06 | H9: -4.032735448e-06 | J9: 5.898122066e-08 | K9: 2.056057419e-07 | L9: -1.019716728e-05 | M9: -1.6091726e-05 | N9: 1.347795367e-10
A10: 2.4216 | B10: ='DF raw data'!J15 -> -1.3554818e-08 | C10: ='DF raw data'!K15 -> -4.6067044e-06 | D10: ='DF raw data'!L15 -> -4.9253035e-06 | F10: -1.356956564e-08 | G10: -4.620860391e-06 | H10: -4.93066223e-06 | J10: 5.21944024e-08 | K10: 2.317107722e-07 | L10: -1.250829061e-05 | M10: -2.234774755e-05 | N10: 2.130330348e-10
A11: 2.92175 | B11: ='DF raw data'!J16 -> -3.4977683e-07 | C11: ='DF raw data'!K16 -> 4.4529997e-06 | D11: ='DF raw data'!L16 -> -5.3484587e-06 | F11: -3.501573872e-07 | G11: 4.466683371e-06 | H11: -5.354277823e-06 | J11: -1.229368148e-07 | K11: 1.702239243e-07 | L11: -1.027427892e-05 | M11: -2.748642815e-05 | N11: 2.658368316e-10
A12: 3.4219 | B12: ='DF raw data'!J17 -> -3.944221e-07 | C12: ='DF raw data'!K17 -> 7.9161018e-06 | D12: ='DF raw data'!L17 -> 8.7036269e-06 | F12: -3.948512312e-07 | G12: 7.940427274e-06 | H12: 8.713096446e-06 | J12: -3.204216581e-07 | K12: 9.965032006e-09 | L12: -6.30287422e-06 | M12: -3.063881069e-05 | N12: 2.857572527e-10
A13: 3.92205 | B13: ='DF raw data'!J18 -> 1.4231074e-07 | C13: ='DF raw data'!K18 -> -6.8569543e-06 | D13: ='DF raw data'!L18 -> 7.8774274e-06 | F13: 1.424655741e-07 | G13: -6.878025109e-06 | H13: 7.885998041e-06 | J13: -2.491675012e-07 | K13: -1.146560937e-07 | L13: -9.742918478e-06 | M13: -3.551173137e-05 | N13: 3.332647731e-10
A14: 4.4222 | B14: ='DF raw data'!J19 -> 1.9085128e-08 | C14: ='DF raw data'!K19 -> -4.9131877e-06 | D14: ='DF raw data'!L19 -> -1.2742136e-06 | F14: 1.910589262e-08 | G14: -4.928285487e-06 | H14: -1.275599944e-06 | J14: -2.39611689e-07 | K14: -2.3449788e-07 | L14: -1.220780046e-05 | M14: -4.161746277e-05 | N14: 4.078310392e-10
A15: 4.92235 | B15: ='DF raw data'!J20 -> -3.7553372e-07 | C15: ='DF raw data'!K20 -> 7.4377658e-06 | D15: ='DF raw data'!L20 -> 7.9939009e-06 | F15: -3.759423007e-07 | G15: 7.46062139e-06 | H15: 8.002598264e-06 | J15: -4.276392307e-07 | K15: -4.483816412e-07 | L15: -8.476370676e-06 | M15: -4.585691956e-05 | N15: 4.438577116e-10
A16: 5.4225 | B16: ='DF raw data'!J21 -> -2.0072156e-07 | C16: ='DF raw data'!K21 -> 3.5983985e-06 | D16: ='DF raw data'!L21 -> 1.4022628e-05 | F16: -2.009399451e-07 | G16: 3.609456057e-06 | H16: 1.403788462e-05 | J16: -5.281393442e-07 | K16: -7.125305343e-07 | L16: -6.671101229e-06 | M16: -4.919347084e-05 | N16: 4.662556903e-10
A17: 5.92265 | B17: ='DF raw data'!J22 -> -3.6172395e-07 | C17: ='DF raw data'!K22 -> 6.1611345e-06 | D17: ='DF raw data'!L22 -> 3.6589729e-06 | F17: -3.621175057e-07 | G17: 6.180067116e-06 | H17: 3.662953863e-06 | J17: -7.092524147e-07 | K17: -1.067263129e-06 | L17: -3.580140661e-06 | M17: -5.09840782e-05 | N17: 4.729179115e-10
A18: 6.4228 | B18: ='DF raw data'!J23 -> -2.1920249e-07 | C18: ='DF raw data'!K23 -> 3.7279736e-07 | D18: ='DF raw data'!L23 -> -7.3885353e-06 | F18: -2.194409823e-07 | G18: 3.73942933e-07 | H18: -7.396574026e-06 | J18: -8.19005822e-07 | K18: -1.476888891e-06 | L18: -3.393113103e-06 | M18: -5.268114371e-05 | N18: 4.790117326e-10
A19: 6.92295 | B19: ='DF raw data'!J24 -> 9.3888952e-10 | C19: ='DF raw data'!K24 -> -4.9957789e-06 | D19: ='DF raw data'!L24 -> -3.5250166e-06 | F19: 9.399110318e-10 | G19: -5.011130483e-06 | H19: -3.528851818e-06 | J19: -8.185357255e-07 | K19: -1.886279534e-06 | L19: -5.899430013e-06 | M19: -5.563174363e-05 | N19: 4.967536912e-10
A20: 7.4231 | B20: ='DF raw data'!J25 -> 2.2694003e-08 | C20: ='DF raw data'!K25 -> -5.2100631e-06 | D20: ='DF raw data'!L25 -> -1.4192379e-06 | F20: 2.271869408e-08 | G20: -5.226073159e-06 | H20: -1.420782031e-06 | J20: -8.071729707e-07 | K20: -2.289987096e-06 | L20: -8.513250504e-06 | M20: -5.988964587e-05 | N20: 5.333281414e-10
A21: 7.92325 | B21: ='DF raw data'!J26 -> 3.1578412e-07 | C21: ='DF raw data'!K26 -> -1.314004e-05 | D21: ='DF raw data'!L26 -> -1.4530566e-06 | F21: 3.161276931e-07 | G21: -1.318041817e-05 | H21: -1.454637526e-06 | J21: -6.490617049e-07 | K21: -2.614615307e-06 | L21: -1.510543665e-05 | M21: -6.744463002e-05 | N21: 6.476601795e-10
A22: 8.4234 | B22: ='DF raw data'!J27 -> 4.884717e-07 | C22: ='DF raw data'!K27 -> -1.1040031e-05 | D22: ='DF raw data'!L27 -> 1.026226e-06 | F22: 4.890031572e-07 | G22: -1.107395603e-05 | H22: 1.027342534e-06 | J22: -4.044867759e-07 | K22: -2.816919368e-06 | L22: -2.064407576e-05 | M22: -7.776976451e-05 | N22: 8.608948675e-10
A23: 8.92355 | B23: ='DF raw data'!J28 -> -8.2949526e-07 | C23: ='DF raw data'!K28 -> -2.7327214e-06 | D23: ='DF raw data'!L28 -> 3.9160618e-06 | F23: =(1-$G$1*($B$2-$G$2))*B23 -> -8.303977508e-07 | G23: -2.741118809e-06 | H23: 3.920322475e-06 | J23: -8.198102109e-07 | K23: -3.226947445e-06 | L23: -2.201504633e-05 | M23: -8.878058993e-05 | N23: 1.103634845e-09
A24: 9.4237 | B24: ='DF raw data'!J29 -> -3.3906033e-06 | C24: ='DF raw data'!K29 -> -1.2756972e-05 | D24: ='DF raw data'!L29 -> 2.279495e-06 | F24: -3.394292276e-06 | G24: -1.279617304e-05 | H24: 2.281975091e-06 | J24: -2.517465493e-06 | K24: -4.486057812e-06 | L24: -2.841505228e-05 | M24: -0.0001029923783 | N24: 1.510633322e-09
A25: 9.92385 | B25: ='DF raw data'!J30 -> -1.1482986e-06 | C25: ='DF raw data'!K30 -> -2.9167037e-07 | D25: ='DF raw data'!L30 -> -7.4212917e-06 | F25: -1.149547949e-06 | G25: -2.92566647e-07 | H25: -7.429366065e-06 | J25: -3.0924119e-06 | K25: -6.032727623e-06 | L25: -2.856137948e-05 | M25: -0.0001172773523 | N25: 1.923414824e-09
A26: 10.424 | B26: ='DF raw data'!J31 -> 6.2823897e-06 | C26: ='DF raw data'!K31 -> 2.3710076e-07 | D26: ='DF raw data'!L31 -> -1.0053894e-05 | F26: 6.28922494e-06 | G26: 2.378293495e-07 | H26: -1.006483264e-05 | J26: 5.314395412e-08 | K26: -6.006147675e-06 | L26: -2.844242914e-05 | M26: -0.0001315028332 | N26: 2.32802347e-09
A27: 10.92415 | B27: ='DF raw data'!J32 -> 4.5360289e-06 | C27: ='DF raw data'!K32 -> -4.7967018e-07 | D27: ='DF raw data'!L32 -> -1.055771e-05 | F27: 4.540964099e-06 | G27: -4.811441636e-07 | H27: -1.056919679e-05 | J27: 2.324307148e-06 | K27: -4.843645454e-06 | L27: -2.868307339e-05 | M27: -0.0001458486724 | N27: 2.742208239e-09
A28: 11.4243 | B28: ='DF raw data'!J33 -> -2.5217957e-06 | C28: ='DF raw data'!K33 -> -3.5015282e-06 | D28: ='DF raw data'!L33 -> -2.6959503e-06 | F28: -2.524539414e-06 | G28: -3.512288084e-06 | H28: -2.698883494e-06 | J28: 1.061658761e-06 | K28: -4.312656825e-06 | L28: -3.043974427e-05 | M28: -0.0001610731105 | N28: 3.20619997e-09
A29: 11.92445 | B29: ='DF raw data'!J34 -> -1.9201905e-06 | C29: ='DF raw data'!K34 -> -5.1528232e-06 | D29: ='DF raw data'!L34 -> -5.8389601e-06 | F29: -1.922279667e-06 | G29: -5.168657366e-06 | H29: -5.845312889e-06 | J29: 1.002305851e-07 | K29: -4.262526498e-06 | L29: -3.302484826e-05 | M29: -0.0001775904883 | N29: 3.751688892e-09
A30: 12.4246 | B30: ='DF raw data'!J35 -> 3.5190197e-07 | C30: ='DF raw data'!K35 -> -1.1612966e-05 | D30: ='DF raw data'!L35 -> -5.8357732e-06 | F30: 3.522848393e-07 | G30: -1.164865161e-05 | H30: -5.842122521e-06 | J30: 2.764258475e-07 | K30: -4.12427211e-06 | L30: -3.885092136e-05 | M30: -0.0001970217766 | N30: 4.506650564e-09
A31: 12.92475 | B31: ='DF raw data'!J36 -> 2.0748341e-06 | C31: ='DF raw data'!K36 -> -8.5684251e-06 | D31: ='DF raw data'!L36 -> -5.4025861e-07 | F31: 2.07709152e-06 | G31: -8.594755106e-06 | H31: -5.408464114e-07 | J31: 1.315283171e-06 | K31: -3.466433232e-06 | L31: -4.314958812e-05 | M31: -0.0002186030431 | N31: 5.438738569e-09
A32: 13.4249 | B32: ='DF raw data'!J37 -> -1.585831e-06 | C32: ='DF raw data'!K37 -> -4.5858897e-06 | D32: ='DF raw data'!L37 -> -1.0036789e-06 | F32: -1.587556384e-06 | G32: -4.59998173e-06 | H32: -1.004770903e-06 | J32: 5.212668455e-07 | K32: -3.20572162e-06 | L32: -4.545026899e-05 | M32: -0.0002413349952 | N32: 6.472047803e-09
A33: 13.92505 | B33: ='DF raw data'!J38 -> -8.2271363e-06 | C33: ='DF raw data'!K38 -> -9.6134227e-07 | D33: ='DF raw data'!L38 -> 2.7610906e-06 | F33: -8.236087424e-06 | G33: -9.64296389e-07 | H33: 2.764094667e-06 | J33: -3.59801228e-06 | K33: -5.005267461e-06 | L33: -4.593256182e-05 | M33: -0.000264308166 | N33: 7.533739179e-09
A34: 14.4252 | B34: ='DF raw data'!J39 -> -5.4019688e-06 | C34: ='DF raw data'!K39 -> -2.6511962e-06 | D34: ='DF raw data'!L39 -> -5.5992318e-06 | F34: -5.407846142e-06 | G34: -2.659343089e-06 | H34: -5.605323764e-06 | J34: -6.302746528e-06 | K34: -8.157586137e-06 | L34: -4.726263227e-05 | M34: -0.0002879465715 | N34: 8.670820713e-09
A35: 14.92535 | B35: ='DF raw data'!J40 -> -1.330183e-06 | C35: ='DF raw data'!K40 -> -1.1210416e-05 | D35: ='DF raw data'!L40 -> -9.4640318e-06 | F35: -1.331630239e-06 | G35: -1.124486461e-05 | H35: -9.474328667e-06 | J35: -6.968761392e-06 | K35: -1.164301215e-05 | L35: -5.28867513e-05 | M35: -0.0003143978802 | N35: 1.00940336e-08
A36: 15.4255 | B36: ='DF raw data'!J41 -> -1.9657816e-06 | C36: ='DF raw data'!K41 -> -2.4631981e-06 | D36: ='DF raw data'!L41 -> -4.7301769e-06 | F36: -1.96792037e-06 | G36: -2.470767288e-06 | H36: -4.735323332e-06 | J36: -7.953016765e-06 | K36: -1.562071348e-05 | L36: -5.412250556e-05 | M36: -0.0003414672513 | N36: 1.159073051e-08
A37: 15.92565 | B37: ='DF raw data'!J42 -> -3.8474508e-07 | C37: ='DF raw data'!K42 -> -1.2854352e-06 | D37: ='DF raw data'!L42 -> -5.4458983e-06 | F37: -3.851636826e-07 | G37: -1.289385228e-06 | H37: -5.451823437e-06 | J37: -8.145656381e-06 | K37: -1.969476352e-05 | L37: -5.476739158e-05 | M37: -0.0003688591622 | N37: 1.312409984e-08
A38: 16.4258 | B38: ='DF raw data'!J43 -> 1.4036708e-06 | C38: ='DF raw data'!K43 -> -5.4111379e-06 | D38: ='DF raw data'!L43 -> -1.9045589e-06 | F38: 1.405197994e-06 | G38: -5.427765844e-06 | H38: -1.90663106e-06 | J38: -7.442846604e-06 | K38: -2.341730325e-05 | L38: -5.748208867e-05 | M38: -0.0003976088289 | N38: 1.480439702e-08
A39: 16.92595 | B39: ='DF raw data'!J44 -> -3.0221488e-06 | C39: ='DF raw data'!K44 -> -4.7394651e-06 | D39: ='DF raw data'!L44 -> 1.7034721e-06 | F39: -3.025436898e-06 | G39: -4.754029053e-06 | H39: 1.705325478e-06 | J39: -8.956018869e-06 | K39: -2.789665609e-05 | L39: -5.98598163e-05 | M39: -0.000427547716 | N39: 1.663665047e-08
A40: 17.4261 | B40: ='DF raw data'!J45 -> -5.812944e-06 | C40: ='DF raw data'!K45 -> 2.3149632e-06 | D40: ='DF raw data'!L45 -> -3.3256845e-06 | F40: -5.819268483e-06 | G40: 2.322076875e-06 | H40: -3.329302845e-06 | J40: -1.1866526e-05 | K40: -3.383169907e-05 | L40: -5.869842955e-05 | M40: -0.0004569057355 | N40: 1.843034845e-08
A41: 17.92625 | B41: ='DF raw data'!J46 -> -2.0298537e-06 | C41: ='DF raw data'!K46 -> 5.1209363e-06 | D41: ='DF raw data'!L46 -> -8.5113118e-07 | F41: -2.032062181e-06 | G41: 5.13667248e-06 | H41: -8.520572107e-07 | J41: -1.28828619e-05 | K41: -4.027506245e-05 | L41: -5.612932281e-05 | M41: -0.0004849788163 | N41: 2.008908043e-08
A42: 18.4264 | B42: ='DF raw data'!J47 -> 3.0820886e-06 | C42: ='DF raw data'!K47 -> -3.1551508e-06 | D42: ='DF raw data'!L47 -> -1.4600415e-06 | F42: 3.085441912e-06 | G42: -3.164846297e-06 | H42: -1.461630025e-06 | J42: -1.133967813e-05 | K42: -4.594660246e-05 | L42: -5.771222069e-05 | M42: -0.0005138435835 | N42: 2.181924368e-08
A43: 18.92655 | B43: ='DF raw data'!J48 -> 5.3915505e-06 | C43: ='DF raw data'!K48 -> 1.6004606e-06 | D43: ='DF raw data'!L48 -> -3.1248244e-06 | F43: 5.397416507e-06 | G43: 1.605378673e-06 | H43: -3.128224209e-06 | J43: -8.640160262e-06 | K43: -5.026797862e-05 | L43: -5.690929054e-05 | M43: -0.0005423067652 | N43: 2.347640054e-08
A44: 19.4267 | B44: ='DF raw data'!J49 -> 7.2947082e-06 | C44: ='DF raw data'!K49 -> -8.623264e-06 | D44: ='DF raw data'!L49 -> -5.1379507e-06 | F44: 7.302644843e-06 | G44: -8.649762521e-06 | H44: -5.14354079e-06 | J44: -4.987742444e-06 | K44: -5.2762598e-05 | L44: -6.123546927e-05 | M44: -0.0005729336851 | N44: 2.536429687e-08
A45: 19.92685 | B45: ='DF raw data'!J50 -> 7.0322499e-06 | C45: ='DF raw data'!K50 -> -8.3939021e-06 | D45: ='DF raw data'!L50 -> -7.3494052e-06 | F45: 7.039900988e-06 | G45: -8.419695812e-06 | H45: -7.357401353e-06 | J45: -1.466735965e-06 | K45: -5.349618599e-05 | L45: -6.544658013e-05 | M45: -0.0006056667922 | N45: 2.750764277e-08
A46: 20.427 | B46: ='DF raw data'!J51 -> -1.3588211e-06 | C46: ='DF raw data'!K51 -> 9.8433238e-06 | D46: ='DF raw data'!L51 -> -6.6672987e-06 | F46: -1.360299497e-06 | G46: 9.873571455e-06 | H46: -6.674552721e-06 | J46: -2.147089758e-06 | K46: -5.457005294e-05 | L46: -6.050831337e-05 | M46: -0.0006359300251 | N46: 2.934112564e-08
A47: 20.92715 | B47: ='DF raw data'!J52 -> 7.6615135e-07 | C47: ='DF raw data'!K52 -> 1.0005171e-05 | D47: ='DF raw data'!L52 -> -2.0809864e-06 | F47: 7.669849227e-07 | G47: 1.0035916e-05 | H47: -2.083250513e-06 | J47: -1.763482249e-06 | K47: -5.545205858e-05 | L47: -5.548884998e-05 | M47: -0.0006636827734 | N47: 3.088264913e-08
A48: 21.4273 | B48: ='DF raw data'!J53 -> 6.9058374e-06 | C48: ='DF raw data'!K53 -> 4.779763e-06 | D48: ='DF raw data'!L53 -> -3.5873716e-06 | F48: 6.913350951e-06 | G48: 4.794450785e-06 | H48: -3.59127466e-06 | J48: 1.694230229e-06 | K48: -5.460468933e-05 | L48: -5.309090542e-05 | M48: -0.0006902361898 | N48: 3.229382968e-08
A49: 21.92745 | B49: ='DF raw data'!J54 -> 4.3119439e-06 | C49: ='DF raw data'!K54 -> -3.9781289e-06 | D49: ='DF raw data'!L54 -> -9.7208585e-06 | F49: 4.316635295e-06 | G49: -3.990353335e-06 | H49: -9.731434794e-06 | J49: 3.853195372e-06 | K49: -5.267751367e-05 | L49: -5.508668064e-05 | M49: -0.0007177877931 | N49: 3.381898184e-08
A50: 22.4276 | B50: ='DF raw data'!J55 -> -3.3172471e-06 | C50: ='DF raw data'!K55 -> 6.0069129e-07 | D50: ='DF raw data'!L55 -> -1.0008914e-05 | F50: -3.320856265e-06 | G50: 6.025371607e-07 | H50: -1.00198037e-05 | J50: 2.192269111e-06 | K50: -5.158105027e-05 | L50: -5.478532168e-05 | M50: -0.0007451886717 | N50: 3.532255153e-08
A51: 22.92775 | B51: ='DF raw data'!J56 -> 4.1457707e-07 | C51: ='DF raw data'!K56 -> 9.5285695e-06 | D51: ='DF raw data'!L56 -> -8.2997269e-07 | F51: 4.150281299e-07 | G51: 9.557849944e-06 | H51: -8.308757003e-07 | J51: 2.39984543e-06 | K51: -5.038076758e-05 | L51: -5.000496303e-05 | M51: -0.000770198654 | N51: 3.657605526e-08
A52: 23.4279 | B52: ='DF raw data'!J57 -> 1.0285228e-05 | C52: ='DF raw data'!K57 -> 4.4768831e-06 | D52: ='DF raw data'!L57 -> -6.5414392e-06 | F52: 1.029641833e-05 | G52: 4.490640162e-06 | H52: -6.548556286e-06 | J52: 7.549599057e-06 | K52: -4.660483561e-05 | L52: -4.775896935e-05 | M52: -0.0007940853025 | N52: 3.774536375e-08
A53: 23.92805 | B53: ='DF raw data'!J58 -> 9.4205534e-06 | C53: ='DF raw data'!K58 -> -2.035963e-06 | D53: ='DF raw data'!L58 -> -1.6455202e-06 | F53: 9.430802962e-06 | G53: -2.042219333e-06 | H53: -1.647310526e-06 | J53: 1.226641516e-05 | K53: -4.046978807e-05 | L53: -4.878038535e-05 | M53: -0.0008184828123 | N53: 3.901073872e-08
A54: 24.4282 | B54: ='DF raw data'!J59 -> 6.679817e-06 | C54: ='DF raw data'!K59 -> 7.3895981e-06 | D54: ='DF raw data'!L59 -> 2.439697e-06 | F54: 6.687084641e-06 | G54: 7.412305675e-06 | H54: 2.44235139e-06 | J54: 1.561096054e-05 | K54: -3.266196616e-05 | L54: -4.507312067e-05 | M54: -0.0008410261336 | N54: 4.014872416e-08
A55: 24.92835 | B55: ='DF raw data'!J60 -> 4.3847035e-06 | C55: ='DF raw data'!K60 -> 1.0133262e-05 | D55: ='DF raw data'!L60 -> -3.3780568e-06 | F55: 4.389474057e-06 | G55: 1.016440061e-05 | H55: -3.381732126e-06 | J55: 1.780635599e-05 | K55: -2.375611721e-05 | L55: -3.99893957e-05 | M55: -0.0008610268298 | N55: 4.110712063e-08
A56: 25.4285 | B56: ='DF raw data'!J61 -> 3.2127211e-06 | C56: ='DF raw data'!K61 -> -5.2503574e-06 | D56: ='DF raw data'!L61 -> -3.9272604e-06 | F56: 3.216216541e-06 | G56: -5.26649128e-06 | H56: -3.931533259e-06 | J56: 1.941494669e-05 | K56: -1.404573162e-05 | L56: -4.262343132e-05 | M56: -0.000882344939 | N56: 4.220429821e-08
A57: 25.92865 | B57: ='DF raw data'!J62 -> 3.9836673e-06 | C57: ='DF raw data'!K62 -> -5.287985e-06 | D57: ='DF raw data'!L62 -> 6.6842347e-07 | F57: 3.98800153e-06 | G57: -5.304234506e-06 | H57: 6.691507147e-07 | J57: 2.140954566e-05 | K57: -3.337747358e-06 | L57: -4.527634421e-05 | M57: -0.0009049899025 | N57: 4.345883245e-08
A58: 26.4288 | B58: ='DF raw data'!J63 -> -1.0492629e-07 | C58: ='DF raw data'!K63 -> -1.9276204e-06 | D58: ='DF raw data'!L63 -> 1.7441447e-06 | F58: -1.050404498e-07 | G58: -1.933543805e-06 | H58: 1.746042329e-06 | J58: 2.135700968e-05 | K58: 7.343961032e-06 | L58: -4.624340614e-05 | M58: -0.0009281185421 | N58: 4.475650888e-08
A59: 26.92895 | B59: ='DF raw data'!J64 -> -6.3336552e-06 | C59: ='DF raw data'!K64 -> 6.2932277e-06 | D59: ='DF raw data'!L64 -> 1.8950537e-07 | F59: -6.340546217e-06 | G59: 6.312566227e-06 | H59: 1.897115518e-07 | J59: 1.818578549e-05 | K59: 1.643958164e-05 | L59: -4.308617614e-05 | M59: -0.0009496680931 | N59: 4.585040763e-08
A60: 27.4291 | B60: ='DF raw data'!J65 -> -8.4219864e-06 | C60: ='DF raw data'!K65 -> 7.3665151e-06 | D60: ='DF raw data'!L65 -> 1.6699299e-06 | F60: -8.431149521e-06 | G60: 7.389151743e-06 | H60: 1.671746784e-06 | J60: 1.396894605e-05 | K60: 2.342615001e-05 | L60: -3.93904919e-05 | M60: -0.0009693692476 | N60: 4.67240408e-08
A61: 27.92925 | B61: ='DF raw data'!J66 -> -3.1364978e-06 | C61: ='DF raw data'!K66 -> -4.4556664e-06 | D61: ='DF raw data'!L66 -> 1.4596839e-06 | F61: -3.13991031e-06 | G61: -4.469358265e-06 | H61: 1.461272036e-06 | J61: 1.239851991e-05 | K61: 2.962726975e-05 | L61: -4.162584143e-05 | M61: -0.0009901884122 | N61: 4.766754075e-08
A62: 28.4294 | B62: ='DF raw data'!J67 -> 3.4828483e-06 | C62: ='DF raw data'!K67 -> -3.3831775e-06 | D62: ='DF raw data'!L67 -> 5.5641738e-07 | F62: 3.486637639e-06 | G62: -3.393573702e-06 | H62: 5.570227621e-07 | J62: 1.414236173e-05 | K62: 3.670057197e-05 | L62: -4.332313732e-05 | M62: -0.001011856479 | N62: 4.870630259e-08
A63: 28.92955 | B63: ='DF raw data'!J68 -> 4.8056322e-06 | C63: ='DF raw data'!K68 -> 1.3407164e-05 | D63: ='DF raw data'!L68 -> -1.2641727e-06 | F63: 4.810860728e-06 | G63: 1.344836302e-05 | H63: -1.26554812e-06 | J63: 1.654851372e-05 | K63: 4.49773111e-05 | L63: -3.659693856e-05 | M63: -0.001030160438 | N63: 4.951313918e-08
A64: 29.4297 | B64: ='DF raw data'!J69 -> 4.8564912e-06 | C64: ='DF raw data'!K69 -> 3.0063829e-06 | D64: ='DF raw data'!L69 -> -1.0763169e-05 | F64: 4.861775062e-06 | G64: 3.015621246e-06 | H64: -1.077487933e-05 | J64: 1.898013052e-05 | K64: 5.447022338e-05 | L64: -3.508867559e-05 | M64: -0.001047710039 | N64: 5.030910815e-08
A65: 29.92985 | B65: ='DF raw data'!J70 -> -1.8560455e-06 | C65: ='DF raw data'!K70 -> -1.4499519e-06 | D65: ='DF raw data'!L70 -> -9.4963807e-06 | F65: -1.858064878e-06 | G65: -1.454407473e-06 | H65: -9.506712762e-06 | J65: 1.805081937e-05 | K65: 6.349834069e-05 | L65: -3.581609749e-05 | M65: -0.00106562346 | N65: 5.111366191e-08
A66: 30.43 | B66: ='DF raw data'!J71 -> -4.4320982e-06 | C66: ='DF raw data'!K71 -> 1.1880375e-06 | D66: ='DF raw data'!L71 -> -4.6922983e-06 | F66: -4.436920323e-06 | G66: 1.191688233e-06 | H66: -4.697403521e-06 | J66: 1.583169367e-05 | K66: 7.141656228e-05 | L66: -3.522007462e-05 | M66: -0.001083238781 | N66: 5.185943366e-08
A67: 30.93015 | B67: ='DF raw data'!J72 -> -2.9000728e-06 | C67: ='DF raw data'!K72 -> 1.0438009e-05 | D67: ='DF raw data'!L72 -> 2.2920096e-06 | F67: -2.903228079e-06 | G67: 1.047008407e-05 | H67: 2.294503306e-06 | J67: 1.437964415e-05 | K67: 7.86085413e-05 | L67: -2.998346207e-05 | M67: -0.001098235009 | N67: 5.241249061e-08
A68: 31.4303 | B68: ='DF raw data'!J73 -> 1.815912e-06 | C68: ='DF raw data'!K73 -> -1.0333924e-06 | D68: ='DF raw data'!L73 -> 7.124308e-06 | F68: 1.817887712e-06 | G68: -1.036567923e-06 | H68: 7.132059247e-06 | J68: 1.528886069e-05 | K68: 8.625526497e-05 | L68: -3.050190152e-05 | M68: -0.001113490535 | N68: 5.299472286e-08
A69: 31.93045 | B69: ='DF raw data'!J74 -> 4.7962171e-06 | C69: ='DF raw data'!K74 -> 6.3591406e-06 | D69: ='DF raw data'!L74 -> 8.0506595e-07 | F69: 4.801435384e-06 | G69: 6.378681671e-06 | H69: 8.059418618e-07 | J69: 1.769029859e-05 | K69: 9.510306782e-05 | L69: -2.731160388e-05 | M69: -0.001127150434 | N69: 5.352431687e-08
A70: 32.4306 | B70: ='DF raw data'!J75 -> 2.705616e-06 | C70: ='DF raw data'!K75 -> 5.626635e-07 | D70: ='DF raw data'!L75 -> -4.8839179e-06 | F70: 2.70855971e-06 | G70: 5.643925147e-07 | H70: -4.889231603e-06 | J70: 1.904498473e-05 | K70: 0.0001046284169 | L70: -2.702932296e-05 | M70: -0.00114066915 | N70: 5.407112874e-08
A71: 32.93075 | B71: ='DF raw data'!J76 -> -1.2151792e-06 | C71: ='DF raw data'!K76 -> -8.5606853e-06 | D71: ='DF raw data'!L76 -> -5.3440874e-07 | F71: -1.216501315e-06 | G71: =(1-$G$1*($B$2-$G$2))*C71*$M$2/$M$1 -> -8.586991522e-06 | H71: -5.349901767e-07 | J71: 1.84365516e-05 | K71: 0.0001138494582 | L71: -3.132410677e-05 | M71: -0.001156335902 | N71: 5.473187996e-08
A72: =A71+$B$1 -> 33.4309 | B72: ='DF raw data'!J77 -> -2.9762957e-06 | C72: ='DF raw data'!K77 -> 9.1821921e-06 | D72: ='DF raw data'!L77 -> 1.7752915e-07 | F72: -2.97953391e-06 | G72: 9.210408157e-06 | H72: 1.777223017e-07 | J72: =F72*$B$1+J71 -> 1.694633772e-05 | K72: =J72*$B$1+K71 -> 0.000122325169 | L72: =G72*$B$1+L71 -> -2.671752113e-05 | M72: =L72*$B$1+M71 -> -0.00116969867 | N72: =(J72^2+L72^2)*$B$1+N71 -> 5.523253225e-08
A73: 33.93105 | B73: ='DF raw data'!J78 -> -8.2154992e-07 | C73: ='DF raw data'!K78 -> 1.4125953e-06 | D73: ='DF raw data'!L78 -> 3.0070762e-06 | F73: -8.224437663e-07 | G73: 1.416936079e-06 | H73: 3.010347899e-06 | J73: 1.653499247e-05 | K73: 0.0001305951455 | L73: -2.600884055e-05 | M73: -0.001182706992 | N73: 5.570760762e-08
A74: 34.4312 | B74: ='DF raw data'!J79 -> -7.7076373e-07 | C74: ='DF raw data'!K79 -> -1.2148542e-05 | D74: ='DF raw data'!L79 -> 1.8017121e-06 | F74: -7.716023209e-07 | G74: -1.218587339e-05 | H74: 1.803672363e-06 | J74: 1.614907556e-05 | K74: 0.0001386721056 | L74: -3.210360513e-05 | M74: -0.00119876361 | N74: 5.635351838e-08
A75: 34.93135 | B75: ='DF raw data'!J80 -> -2.6642444e-06 | C75: ='DF raw data'!K80 -> -8.0822165e-06 | D75: ='DF raw data'!L80 -> 1.8200225e-08 | F75: -2.667143098e-06 | G75: -8.10705243e-06 | H75: 1.822002684e-08 | J75: 1.481510394e-05 | K75: 0.0001460818799 | L75: -3.61583474e-05 | M75: -0.001216848207 | N75: 5.711720412e-08
A76: 35.4315 | B76: ='DF raw data'!J81 -> -3.4155744e-06 | C76: ='DF raw data'!K81 -> 1.6547647e-06 | D76: ='DF raw data'!L81 -> 1.3203202e-06 | F76: -3.419290545e-06 | G76: 1.659849644e-06 | H76: 1.321756708e-06 | J76: 1.310494578e-05 | K76: 0.0001526363185 | L76: -3.53281736e-05 | M76: -0.001234517593 | N76: 5.782732682e-08
A77: 35.93165 | B77: ='DF raw data'!J82 -> -6.4087576e-06 | C77: ='DF raw data'!K82 -> 9.8279797e-06 | D77: ='DF raw data'!L82 -> 1.8213426e-06 | F77: -6.415730328e-06 | G77: 9.858180204e-06 | H77: 1.823324221e-06 | J77: 9.896118255e-06 | K77: 0.0001575858621 | L77: -3.039760477e-05 | M77: -0.001249720955 | N77: 5.833845387e-08
A78: 36.4318 | B78: ='DF raw data'!J83 -> -7.3226179e-06 | C78: ='DF raw data'!K83 -> 8.1070453e-07 | D78: ='DF raw data'!L83 -> 1.0509206e-06 | F78: -7.330584908e-06 | G78: 8.131957527e-07 | H78: 1.052064002e-06 | J78: 6.229726213e-06 | K78: 0.0001607016596 | L78: -2.999088491e-05 | M78: -0.001264720896 | N78: 5.880772595e-08
A79: 36.93195 | B79: ='DF raw data'!J84 -> 1.2848544e-06 | C79: ='DF raw data'!K84 -> -1.4329903e-07 | D79: ='DF raw data'!L84 -> 3.3936187e-06 | F79: 1.286252322e-06 | G79: -1.437393751e-07 | H79: 3.397310957e-06 | J79: 6.873045311e-06 | K79: 0.0001641392132 | L79: -3.006277616e-05 | M79: -0.001279756794 | N79: 5.928337323e-08
A80: 37.4321 | B80: ='DF raw data'!J85 -> 8.6235596e-06 | C80: ='DF raw data'!K85 -> 8.3494733e-06 | D80: ='DF raw data'!L85 -> 7.2388461e-06 | F80: 8.632942033e-06 | G80: 8.375130486e-06 | H80: 7.246721965e-06 | J80: 1.119081127e-05 | K80: 0.0001697362975 | L80: -2.587395465e-05 | M80: -0.001292697652 | N80: 5.968084033e-08
A81: 37.93225 | B81: ='DF raw data'!J86 -> 8.7054577e-06 | C81: ='DF raw data'!K86 -> 4.0960813e-06 | D81: ='DF raw data'!L86 -> 1.8240056e-06 | F81: 8.714929238e-06 | G81: 4.108668192e-06 | H81: 1.825990118e-06 | J81: 1.554958313e-05 | K81: 0.0001775134215 | L81: -2.381900425e-05 | M81: -0.001304610727 | N81: 6.008552895e-08
A82: 38.4324 | B82: ='DF raw data'!J87 -> 4.5928978e-06 | C82: ='DF raw data'!K87 -> 1.4689003e-06 | D82: ='DF raw data'!L87 -> -3.658248e-07 | F82: 4.597894873e-06 | G82: 1.4734141e-06 | H82: -3.662228174e-07 | J82: 1.784922025e-05 | K82: 0.000186440709 | L82: -2.308207619e-05 | M82: -0.001316155228 | N82: 6.051134511e-08
A83: 38.93255 | B83: ='DF raw data'!J88 -> 2.2164825e-06 | C83: ='DF raw data'!K88 -> -9.8002147e-07 | D83: ='DF raw data'!L88 -> -7.5182891e-07 | F83: 2.218894033e-06 | G83: -9.830329885e-07 | H83: -7.526468999e-07 | J83: 1.89590001e-05 | K83: 0.0001959230529 | L83: -2.357374014e-05 | M83: -0.001327945634 | N83: 6.096906483e-08
A84: 39.4327 | B84: ='DF raw data'!J89 -> -5.5275955e-06 | C84: ='DF raw data'!K89 -> 1.8574401e-06 | D84: ='DF raw data'!L89 -> -1.2728893e-06 | F84: -5.533609524e-06 | G84: 1.863147848e-06 | H84: -1.274274204e-06 | J84: 1.61913653e-05 | K84: 0.0002040211643 | L84: -2.264188675e-05 | M84: -0.001339269974 | N84: 6.135658873e-08
A85: 39.93285 | B85: ='DF raw data'!J90 -> -6.6505813e-06 | C85: ='DF raw data'!K90 -> 2.8709537e-06 | D85: ='DF raw data'!L90 -> -2.1009022e-07 | F85: -6.657817132e-06 | G85: 2.879775884e-06 | H85: -2.103187982e-07 | J85: 1.286145806e-05 | K85: 0.0002104538225 | L85: -2.120156684e-05 | M85: -0.001349873937 | N85: 6.166414274e-08
A86: 40.433 | B86: ='DF raw data'!J91 -> 5.7338212e-07 | C86: ='DF raw data'!K91 -> -1.749363e-06 | D86: ='DF raw data'!L91 -> 6.4847222e-06 | F86: 5.740059597e-07 | G86: -1.754738636e-06 | H86: 6.491777578e-06 | J86: 1.314854714e-05 | K86: 0.0002170300684 | L86: -2.207919937e-05 | M86: -0.001360916849 | N86: 6.199442946e-08
A87: 40.93315 | B87: ='DF raw data'!J92 -> 5.665825e-06 | C87: ='DF raw data'!K92 -> -1.5519845e-05 | D87: ='DF raw data'!L92 -> 9.3313092e-06 | F87: =(1-$G$1*($B$2-$G$2))*B87 -> 5.671989418e-06 | G87: -1.55675361e-05 | H87: 9.341461664e-06 | J87: 1.598539264e-05 | K87: 0.0002250251625 | L87: -2.986530255e-05 | M87: -0.00137585398 | N87: 6.256833612e-08
A88: 41.4333 | B88: ='DF raw data'!J93 -> 5.4285997e-06 | C88: ='DF raw data'!K93 -> 1.441098e-08 | D88: ='DF raw data'!L93 -> 6.6781317e-06 | F88: 5.434506016e-06 | G88: 1.445526366e-08 | H88: 6.685397507e-06 | J88: 1.870346083e-05 | K88: 0.0002343796984 | L88: -2.985807275e-05 | M88: -0.001390787495 | N88: 6.31891843e-08
A89: 41.93345 | B89: ='DF raw data'!J94 -> 4.6080463e-06 | C89: ='DF raw data'!K94 -> 3.6505756e-07 | D89: ='DF raw data'!L94 -> 5.1602942e-06 | F89: 4.613059854e-06 | G89: 3.661793493e-07 | H89: 5.1659086e-06 | J89: 2.101068271e-05 | K89: 0.0002448881914 | L89: -2.967492814e-05 | M89: -0.00140562941 | N89: 6.385040768e-08
A90: 42.4336 | B90: ='DF raw data'!J95 -> 5.3014451e-06 | C90: ='DF raw data'!K95 -> -8.4060439e-06 | D90: ='DF raw data'!L95 -> 5.1952334e-06 | F90: 5.307213072e-06 | G90: -8.431874923e-06 | H90: 5.200885814e-06 | J90: 2.366508533e-05 | K90: 0.0002567242838 | L90: -3.389213039e-05 | M90: -0.001422580559 | N90: 6.470502037e-08
A91: 42.93375 | B91: ='DF raw data'!J96 -> 2.5300762e-06 | C91: ='DF raw data'!K96 -> -7.2873909e-06 | D91: ='DF raw data'!L96 -> 7.8272524e-06 | F91: 2.532828923e-06 | G91: -7.309784402e-06 | H91: 7.835768451e-06 | J91: 2.493187972e-05 | K91: 0.0002691939634 | L91: -3.754811906e-05 | M91: -0.001441360251 | N91: 6.572105502e-08
A92: 43.4339 | B92: ='DF raw data'!J97 -> -3.5214978e-06 | C92: ='DF raw data'!K97 -> -2.9153759e-07 | D92: ='DF raw data'!L97 -> 8.1989519e-06 | F92: -3.52532919e-06 | G92: -2.92433459e-07 | H92: 8.20787236e-06 | J92: 2.316868632e-05 | K92: 0.0002807817819 | L92: -3.769437965e-05 | M92: -0.001460213095 | N92: 6.670017581e-08
A93: 43.93405 | B93: ='DF raw data'!J98 -> -7.112561e-06 | C93: ='DF raw data'!K98 -> 2.9364664e-06 | D93: ='DF raw data'!L98 -> 1.1479527e-06 | F93: -7.120299466e-06 | G93: 2.945489899e-06 | H93: 1.149201673e-06 | J93: 1.960746855e-05 | K93: 0.0002905884573 | L93: -3.622119288e-05 | M93: -0.001478329125 | N93: 6.754864409e-08
A94: 44.4342 | B94: ='DF raw data'!J99 -> -4.6938871e-06 | C94: ='DF raw data'!K99 -> 1.4512889e-06 | D94: ='DF raw data'!L99 -> 4.3928901e-07 | F94: -4.698994049e-06 | G94: 1.455748581e-06 | H94: 4.397669564e-07 | J94: 1.725726667e-05 | K94: 0.0002992196792 | L94: -3.549310022e-05 | M94: -0.001496080999 | N94: 6.832766444e-08
A95: 44.93435 | B95: ='DF raw data'!J100 -> 3.4001306e-07 | C95: ='DF raw data'!K100 -> -3.4541617e-06 | D95: ='DF raw data'!L100 -> 1.7842061e-06 | F95: 3.403829942e-07 | G95: -3.464776031e-06 | H95: 1.786147316e-06 | J95: 1.742750923e-05 | K95: 0.000307936048 | L95: -3.722600796e-05 | M95: -0.001514699587 | N95: 6.917266474e-08
A96: 45.4345 | B96: ='DF raw data'!J101 -> 3.1066522e-06 | C96: ='DF raw data'!K101 -> 3.3765091e-06 | D96: ='DF raw data'!L101 -> 3.2035416e-06 | F96: 3.110032238e-06 | G96: 3.386884811e-06 | H96: 3.207027053e-06 | J96: 1.898299185e-05 | K96: 0.0003174303913 | L96: -3.553205752e-05 | M96: -0.001532470945 | N96: 6.998434871e-08
A97: 45.93465 | B97: ='DF raw data'!J102 -> -2.772045e-06 | C97: ='DF raw data'!K102 -> -7.9489228e-06 | D97: ='DF raw data'!L102 -> -1.4626552e-07 | F97: -2.775060985e-06 | G97: -7.97334913e-06 | H97: -1.464246569e-07 | J97: 1.75950451e-05 | K97: 0.0003262305532 | L97: -3.951992808e-05 | M97: -0.001552236837 | N97: 7.092033459e-08
A98: 46.4348 | B98: ='DF raw data'!J103 -> -1.1433258e-05 | C98: ='DF raw data'!K103 -> -2.0098114e-06 | D98: ='DF raw data'!L103 -> -3.5002492e-06 | F98: -1.144569738e-05 | G98: -2.015987371e-06 | H98: -3.504057471e-06 | J98: 1.187047955e-05 | K98: 0.0003321675735 | L98: -4.052822417e-05 | M98: -0.001572507028 | N98: 7.181232473e-08
A99: 46.93495 | B99: ='DF raw data'!J104 -> -8.3246632e-06 | C99: ='DF raw data'!K104 -> 9.521631e-06 | D99: ='DF raw data'!L104 -> -7.2837179e-06 | F99: -8.333720434e-06 | G99: 9.550890122e-06 | H99: -7.291642585e-06 | J99: 7.702369278e-06 | K99: 0.0003360199135 | L99: -3.575134647e-05 | M99: -0.001590388064 | N99: 7.248126798e-08
A100: 47.4351 | B100: ='DF raw data'!J105 -> -1.0905566e-06 | C100: ='DF raw data'!K105 -> 7.0924561e-06 | D100: ='DF raw data'!L105 -> -1.0504799e-05 | F100: -1.091743126e-06 | G100: 7.114250585e-06 | H100: -1.051622822e-05 | J100: 7.156333953e-06 | K100: 0.0003395991539 | L100: -3.219315404e-05 | M100: -0.00160648947 | N100: 7.302523726e-08
A101: 47.93525 | B101: ='DF raw data'!J106 -> 4.2327815e-06 | C101: ='DF raw data'!K106 -> 4.6237865e-06 | D101: ='DF raw data'!L106 -> 5.323194e-07 | F101: 4.237386766e-06 | G101: 4.637994983e-06 | H101: 5.328985635e-07 | J101: 9.275662944e-06 | K101: 0.0003442383767 | L101: -2.987346085e-05 | M101: -0.001621430682 | N101: 7.351461483e-08
A102: 48.4354 | B102: ='DF raw data'!J107 -> 2.6150449e-06 | C102: ='DF raw data'!K107 -> 3.0971123e-06 | D102: ='DF raw data'!L107 -> 1.2153071e-05 | F102: 2.617890069e-06 | G102: 3.10662945e-06 | H102: 1.216629354e-05 | J102: 1.058500066e-05 | K102: 0.0003495324648 | L102: -2.831968013e-05 | M102: -0.00163559477 | N102: 7.39717752e-08
A103: 48.93555 | B103: ='DF raw data'!J108 -> -1.5803013e-06 | C103: ='DF raw data'!K108 -> 3.1761019e-06 | D103: ='DF raw data'!L108 -> 1.3296066e-05 | F103: -1.582020668e-06 | G103: 3.185861778e-06 | H103: 1.331053212e-05 | J103: 9.793753025e-06 | K103: 0.0003544308104 | L103: -2.672627137e-05 | M103: -0.001648961914 | N103: 7.437700232e-08
A104: 49.4357 | B104: ='DF raw data'!J109 -> -5.4167293e-07 | C104: ='DF raw data'!K109 -> -5.0531517e-06 | D104: ='DF raw data'!L109 -> 6.9540652e-06 | F104: -5.422622701e-07 | G104: -5.068679584e-06 | H104: 6.961631223e-06 | J104: 9.522540551e-06 | K104: 0.0003591935091 | L104: -2.926137146e-05 | M104: -0.001663596989 | N104: 7.485059767e-08
A105: 49.93585 | B105: ='DF raw data'!J110 -> 3.418175e-07 | C105: ='DF raw data'!K110 -> -1.2120518e-06 | D105: ='DF raw data'!L110 -> -2.7909161e-06 | F105: 3.421893974e-07 | G105: -1.215776327e-06 | H105: -2.793952617e-06 | J105: 9.693686578e-06 | K105: 0.0003640418064 | L105: -2.986944199e-05 | M105: -0.001678536191 | N105: 7.534382116e-08
A106: 50.436 | B106: ='DF raw data'!J111 -> -1.4897884e-06 | C106: ='DF raw data'!K111 -> -5.4411585e-06 | D106: ='DF raw data'!L111 -> -3.6197205e-06 | F106: -1.49140929e-06 | G106: -5.457878694e-06 | H106: -3.623658756e-06 | J106: 8.947758222e-06 | K106: 0.0003685170277 | L106: -3.259920002e-05 | M106: -0.001694840681 | N106: 7.591537768e-08
A107: 50.93615 | B107: ='DF raw data'!J112 -> -1.976259e-06 | C107: ='DF raw data'!K112 -> -6.0179636e-06 | D107: ='DF raw data'!L112 -> 3.5980004e-06 | F107: -1.97840917e-06 | G107: -6.036456265e-06 | H107: 3.601915024e-06 | J107: 7.958256876e-06 | K107: 0.0003724973499 | L107: -3.561833362e-05 | M107: -0.00171265519 | N107: 7.658157725e-08
A108: 51.4363 | B108: ='DF raw data'!J113 -> -2.6357372e-06 | C108: ='DF raw data'!K113 -> 8.8634351e-06 | D108: ='DF raw data'!L113 -> 5.6412787e-06 | F108: -2.638604882e-06 | G108: 8.890671645e-06 | H108: 5.647416411e-06 | J108: 6.638558644e-06 | K108: 0.000375817625 | L108: -3.11716642e-05 | M108: -0.001728245698 | N108: 7.708960117e-08
A109: 51.93645 | B109: ='DF raw data'!J114 -> -1.0852888e-06 | C109: ='DF raw data'!K114 -> 2.082933e-06 | D109: ='DF raw data'!L114 -> 7.3285587e-06 | F109: -1.086469594e-06 | G109: 2.089333667e-06 | H109: 7.336532172e-06 | J109: 6.095160876e-06 | K109: 0.0003788661197 | L109: -3.012668396e-05 | M109: -0.001743313559 | N109: 7.756212692e-08
A110: 52.4366 | B110: ='DF raw data'!J115 -> -1.4408503e-06 | C110: ='DF raw data'!K115 -> 6.7032488e-06 | D110: ='DF raw data'!L115 -> 7.5518433e-06 | F110: -1.442417945e-06 | G110: 6.723847285e-06 | H110: 7.560059706e-06 | J110: 5.373735541e-06 | K110: 0.0003815537935 | L110: -2.676375174e-05 | M110: -0.00175669945 | N110: 7.793482642e-08
A111: 52.93675 | B111: ='DF raw data'!J116 -> 4.7218811e-07 | C111: ='DF raw data'!K116 -> 7.6384404e-06 | D111: ='DF raw data'!L116 -> 7.8128751e-06 | F111: 4.727018507e-07 | G111: 7.661912646e-06 | H111: 7.821375508e-06 | J111: 5.610157372e-06 | K111: 0.0003843597137 | L111: -2.293164613e-05 | M111: -0.001768168712 | N111: 7.821357715e-08
A112: 53.4369 | B112: ='DF raw data'!J117 -> 2.9933801e-06 | C112: ='DF raw data'!K117 -> -4.6619434e-06 | D112: ='DF raw data'!L117 -> 5.5530941e-06 | F112: 2.996636898e-06 | G112: -4.676269136e-06 | H112: 5.559135866e-06 | J112: 7.108925316e-06 | K112: 0.0003879152427 | L112: -2.527048214e-05 | M112: -0.001780807744 | N112: 7.855824756e-08
A113: 53.93705 | B113: ='DF raw data'!J118 -> 2.8722209e-06 | C113: ='DF raw data'!K118 -> -8.7466842e-06 | D113: ='DF raw data'!L118 -> 8.8259856e-07 | F113: 2.875345876e-06 | G113: -8.77356198e-06 | H113: 8.835588272e-07 | J113: 8.547029556e-06 | K113: 0.0003921900395 | L113: -2.965857917e-05 | M113: -0.001795641482 | N113: 7.903473198e-08
A114: 54.4372 | B114: ='DF raw data'!J119 -> 2.5215925e-06 | C114: ='DF raw data'!K119 -> -5.1430825e-06 | D114: ='DF raw data'!L119 -> -1.6531163e-06 | F114: 2.524335993e-06 | G114: -5.158886733e-06 | H114: -1.654914891e-06 | J114: 9.809576203e-06 | K114: 0.0003970962991 | L114: -3.223879637e-05 | M114: -0.001811765716 | N114: 7.96026862e-08
A115: 54.93735 | B115: ='DF raw data'!J120 -> 3.0388403e-06 | C115: ='DF raw data'!K120 -> -1.1930791e-05 | D115: ='DF raw data'!L120 -> -1.8265461e-06 | F115: 3.042146558e-06 | G115: -1.196745326e-05 | H115: -1.828533382e-06 | J115: 1.13311058e-05 | K115: 0.0004027635516 | L115: -3.822431811e-05 | M115: -0.001830883609 | N115: 8.039767085e-08
A116: 55.4375 | B116: ='DF raw data'!J121 -> 7.6207681e-07 | C116: ='DF raw data'!K121 -> -3.3602291e-06 | D116: ='DF raw data'!L121 -> 2.3447894e-06 | F116: 7.629059496e-07 | G116: -3.370554784e-06 | H116: 2.347340531e-06 | J116: 1.171267321e-05 | K116: 0.0004086216452 | L116: -3.991010109e-05 | M116: -0.001850844646 | N116: 8.12629318e-08
A117: 55.93765 | B117: ='DF raw data'!J122 -> 2.4302065e-06 | C117: ='DF raw data'!K122 -> 5.0149947e-06 | D117: ='DF raw data'!L122 -> 7.831778e-06 | F117: 2.432850565e-06 | G117: 5.030405331e-06 | H117: 7.840298974e-06 | J117: 1.292946342e-05 | K117: 0.0004150883163 | L117: -3.739414386e-05 | M117: -0.001869547327 | N117: 8.204591313e-08
A118: 56.4378 | B118: ='DF raw data'!J123 -> 4.803886e-06 | C118: ='DF raw data'!K123 -> 9.7184366e-06 | D118: ='DF raw data'!L123 -> 1.7251108e-06 | F118: 4.809112628e-06 | G118: 9.748300488e-06 | H118: 1.726987721e-06 | J118: 1.533474111e-05 | K118: 0.000422757987 | L118: -3.251853137e-05 | M118: -0.001885811471 | N118: 8.26924116e-08
A119: 56.93795 | B119: ='DF raw data'!J124 -> -3.7490606e-06 | C119: ='DF raw data'!K124 -> 7.2625753e-06 | D119: ='DF raw data'!L124 -> -8.2637837e-07 | F119: -3.753139578e-06 | G119: 7.284892546e-06 | H119: -8.272774697e-07 | J119: 1.345760835e-05 | K119: 0.0004294888099 | L119: -2.887499236e-05 | M119: -0.001900253298 | N119: 8.320000004e-08
A120: 57.4381 | B120: ='DF raw data'!J125 -> -1.0443422e-05 | C120: ='DF raw data'!K125 -> -4.1637277e-06 | D120: ='DF raw data'!L125 -> 2.6078153e-06 | F120: -1.045478444e-05 | G120: -4.176522464e-06 | H120: 2.610652603e-06 | J120: 8.228647906e-06 | K120: 0.0004336043681 | L120: -3.096388007e-05 | M120: -0.001915739883 | N120: 8.371339027e-08
A121: 57.93825 | B121: ='DF raw data'!J126 -> -8.2533734e-06 | C121: ='DF raw data'!K126 -> -2.0906691e-06 | D121: ='DF raw data'!L126 -> 6.104437e-06 | F121: -8.26235307e-06 | G121: -2.09709354e-06 | H121: 6.111078627e-06 | J121: 4.096232018e-06 | K121: 0.0004356530986 | L121: -3.201274141e-05 | M121: -0.001931751055 | N121: 8.423434387e-08
A122: 58.4384 | B122: ='DF raw data'!J127 -> -6.1490932e-06 | C122: ='DF raw data'!K127 -> -6.6433216e-07 | D122: ='DF raw data'!L127 -> 5.0765043e-06 | F122: -6.155783413e-06 | G122: -6.663735934e-07 | H122: 5.082027537e-06 | J122: 1.017416944e-06 | K122: 0.0004361619596 | L122: -3.234602816e-05 | M122: -0.001947928921 | N122: 8.47581513e-08
A123: 58.93855 | B123: ='DF raw data'!J128 -> -6.0571833e-06 | C123: ='DF raw data'!K128 -> -5.1275941e-07 | D123: ='DF raw data'!L128 -> 1.9788088e-06 | F123: -6.063773515e-06 | G123: -5.143350739e-07 | H123: 1.980961744e-06 | J123: -2.01537938e-06 | K123: 0.0004351539676 | L123: -3.260327285e-05 | M123: -0.001964235448 | N123: 8.529182894e-08
A124: 59.4387 | B124: ='DF raw data'!J129 -> -2.3636019e-06 | C124: ='DF raw data'!K129 -> -6.4805403e-07 | D124: ='DF raw data'!L129 -> 1.4421197e-06 | F124: -2.366173499e-06 | G124: -6.500454422e-07 | H124: 1.443688726e-06 | J124: -3.198821055e-06 | K124: 0.0004335540773 | L124: -3.292839308e-05 | M124: -0.001980704584 | N124: 8.583924888e-08
A125: 59.93885 | B125: ='DF raw data'!J130 -> 2.1252373e-07 | C125: ='DF raw data'!K130 -> 8.7046565e-06 | D125: ='DF raw data'!L130 -> -1.2398128e-06 | F125: 2.127549558e-07 | G125: 8.731405132e-06 | H125: -1.241161716e-06 | J125: -3.092411664e-06 | K125: 0.0004320074076 | L125: -2.85613808e-05 | M125: -0.001994989559 | N125: 8.625203041e-08
A126: 60.439 | B126: ='DF raw data'!J131 -> -3.7760835e-06 | C126: ='DF raw data'!K131 -> 1.471436e-06 | D126: ='DF raw data'!L131 -> -6.0198549e-06 | F126: -3.780191879e-06 | G126: 1.475957591e-06 | H126: -6.026404502e-06 | J126: -4.983074632e-06 | K126: 0.0004295151228 | L126: -2.782318061e-05 | M126: -0.002008905322 | N126: 8.665163046e-08
A127: 60.93915 | B127: ='DF raw data'!J132 -> -4.6912241e-06 | C127: ='DF raw data'!K132 -> 4.4623403e-06 | D127: ='DF raw data'!L132 -> -5.1868597e-06 | F127: -4.696328152e-06 | G127: 4.476052673e-06 | H127: -5.192503003e-06 | J127: -7.331943158e-06 | K127: 0.0004258480514 | L127: -2.558448287e-05 | M127: -0.002021701401 | N127: 8.700589829e-08
A128: 61.4393 | B128: ='DF raw data'!J133 -> 1.1456799e-06 | C128: ='DF raw data'!K133 -> 1.4360367e-05 | D128: ='DF raw data'!L133 -> -6.9129496e-06 | F128: 1.1469264e-06 | G128: 1.440449513e-05 | H128: -6.920470889e-06 | J128: -6.758307919e-06 | K128: 0.0004224678837 | L128: -1.838007463e-05 | M128: -0.002030894196 | N128: 8.719770675e-08
A129: 61.93945 | B129: ='DF raw data'!J134 -> 2.9448495e-06 | C129: ='DF raw data'!K134 -> 1.9672507e-06 | D129: ='DF raw data'!L134 -> 3.9770343e-06 | F129: 2.948053496e-06 | G129: 1.973295886e-06 | H129: 3.981361313e-06 | J129: -5.283838963e-06 | K129: 0.0004198251717 | L129: -1.739313069e-05 | M129: -0.00203959337 | N129: 8.736297629e-08
A130: 62.4396 | B130: ='DF raw data'!J135 -> -3.5150949e-06 | C130: ='DF raw data'!K135 -> 4.9875098e-06 | D130: ='DF raw data'!L135 -> 5.9970148e-06 | F130: -3.518919323e-06 | G130: 5.002835972e-06 | H130: 6.003539552e-06 | J130: -7.043826462e-06 | K130: 0.0004163022019 | L130: -1.489096228e-05 | M130: -0.002047041085 | N130: 8.749869512e-08
A131: 62.93975 | B131: ='DF raw data'!J136 -> -7.403381e-06 | C131: ='DF raw data'!K136 -> 6.2219769e-06 | D131: ='DF raw data'!L136 -> -3.3356671e-06 | F131: -7.411435879e-06 | G131: 6.24109648e-06 | H131: -3.339296306e-06 | J131: -1.075065612e-05 | K131: 0.0004109252612 | L131: -1.176947787e-05 | M131: -0.002052927589 | N131: 8.762578184e-08
A132: 63.4399 | B132: ='DF raw data'!J137 -> -2.7638378e-06 | C132: ='DF raw data'!K137 -> 6.7440778e-06 | D132: ='DF raw data'!L137 -> -1.7487515e-06 | F132: -2.766844856e-06 | G132: 6.764801749e-06 | H132: -1.750654142e-06 | J132: -1.213449357e-05 | K132: 0.0004048561943 | L132: -8.38606228e-06 | M132: -0.002057121878 | N132: 8.773460046e-08
A133: 63.94005 | B133: ='DF raw data'!J138 -> 5.7217432e-07 | C133: ='DF raw data'!K138 -> 1.0810938e-05 | D133: ='DF raw data'!L138 -> 1.9807442e-06 | F133: 5.727968457e-07 | G133: 1.084415905e-05 | H133: 1.98289925e-06 | J133: -1.184800923e-05 | K133: 0.0003989304124 | L133: -2.962356132e-06 | M133: -0.002058603501 | N133: 8.780919828e-08
A134: 64.4402 | B134: ='DF raw data'!J139 -> -3.2180805e-07 | C134: ='DF raw data'!K139 -> 6.8037198e-06 | D134: ='DF raw data'!L139 -> 1.4215578e-06 | F134: -3.221581772e-07 | G134: 6.824627024e-06 | H134: 1.423104455e-06 | J134: -1.200913664e-05 | K134: 0.0003929240428 | L134: 4.509810735e-07 | M134: -0.002058377943 | N134: 8.788143131e-08
A135: 64.94035 | B135: ='DF raw data'!J140 -> -2.7416024e-06 | C135: ='DF raw data'!K140 -> -1.7976627e-06 | D135: ='DF raw data'!L140 -> 3.5804362e-06 | F135: -2.744585263e-06 | G135: =(1-$G$1*($B$2-$G$2))*C135*$M$2/$M$1 -> -1.803186757e-06 | H135: 3.584331715e-06 | J135: -1.338184096e-05 | K135: 0.000386231115 | L135: -4.50882783e-07 | M135: -0.002058603452 | N135: 8.797109669e-08
A136: =A135+$B$1 -> 65.4405 | B136: ='DF raw data'!J141 -> -2.960405e-06 | C136: ='DF raw data'!K141 -> -6.7901083e-06 | D136: ='DF raw data'!L141 -> 7.4208033e-06 | F136: -2.963625921e-06 | G136: -6.810973697e-06 | H136: 7.428877134e-06 | J136: =F136*$B$1+J135 -> -1.486409846e-05 | K136: =J136*$B$1+K135 -> 0.0003787968362 | L136: =G136*$B$1+L135 -> -3.857391277e-06 | M136: =L136*$B$1+M135 -> -0.002060532726 | N136: =(J136^2+L136^2)*$B$1+N135 -> 8.80890425e-08
A137: 65.94065 | B137: ='DF raw data'!J142 -> 3.3625622e-06 | C137: ='DF raw data'!K142 -> -2.8769546e-06 | D137: ='DF raw data'!L142 -> 3.6096565e-06 | F137: 3.366220668e-06 | G137: -2.885795225e-06 | H137: 3.613583806e-06 | J137: -1.31804832e-05 | K137: 0.0003722046175 | L137: -5.300721759e-06 | M137: -0.002063183882 | N137: 8.818998417e-08
A138: 66.4408 | B138: ='DF raw data'!J143 -> 7.7653021e-06 | C138: ='DF raw data'!K143 -> 5.3775175e-06 | D138: ='DF raw data'!L143 -> 3.0592448e-06 | F138: 7.773750749e-06 | G138: 5.394042131e-06 | H138: 3.062573258e-06 | J138: -9.292441761e-06 | K138: 0.0003675570027 | L138: -2.602891587e-06 | M138: -0.002064485718 | N138: 8.82365604e-08
A139: 66.94095 | B139: ='DF raw data'!J144 -> 3.9191877e-06 | C139: ='DF raw data'!K144 -> 1.0629344e-05 | D139: ='DF raw data'!L144 -> 7.5917155e-06 | F139: 3.923451776e-06 | G139: 1.066200703e-05 | H139: 7.599975286e-06 | J139: -7.330127355e-06 | K139: 0.0003638908395 | L139: 2.729711227e-06 | M139: -0.002063120453 | N139: 8.826716062e-08
A140: 67.4411 | B140: ='DF raw data'!J145 -> 8.5184757e-07 | C140: ='DF raw data'!K145 -> 6.649745e-06 | D140: ='DF raw data'!L145 -> 1.523916e-06 | F140: 8.527743802e-07 | G140: 6.670179073e-06 | H140: 1.525574021e-06 | J140: -6.903612249e-06 | K140: 0.0003604379979 | L140: 6.06580129e-06 | M140: -0.002060086642 | N140: 8.830940019e-08
A141: 67.94125 | B141: ='DF raw data'!J146 -> 3.4731713e-06 | C141: ='DF raw data'!K146 -> 2.5595355e-06 | D141: ='DF raw data'!L146 -> 8.5697263e-07 | F141: 3.47695011e-06 | G141: 2.567400724e-06 | H141: 8.579050162e-07 | J141: -5.164615651e-06 | K141: 0.0003578549154 | L141: 7.349886762e-06 | M141: -0.002056410597 | N141: 8.834975934e-08
A142: 68.4414 | B142: ='DF raw data'!J147 -> 8.1256803e-06 | C142: ='DF raw data'!K147 -> 4.4648741e-06 | D142: ='DF raw data'!L147 -> 4.4208095e-06 | F142: 8.13452104e-06 | G142: 4.47859426e-06 | H142: 4.425619341e-06 | J142: -1.096134953e-06 | K142: 0.0003573066835 | L142: 9.589855681e-06 | M142: -0.00205161423 | N142: 8.839635674e-08
A143: 68.94155 | B143: ='DF raw data'!J148 -> 7.7781078e-06 | C143: ='DF raw data'!K148 -> 8.8319457e-06 | D143: ='DF raw data'!L148 -> 3.3398348e-06 | F143: 7.786570381e-06 | G143: 8.859085481e-06 | H143: 3.34346854e-06 | J143: 2.798318223e-06 | K143: 0.0003587062623 | L143: 1.402072728e-05 | M143: -0.002044601764 | N143: 8.849859309e-08
A144: 69.4417 | B144: ='DF raw data'!J149 -> 3.4598272e-06 | C144: ='DF raw data'!K149 -> 6.0822786e-06 | D144: ='DF raw data'!L149 -> 3.8007959e-06 | F144: 3.463591492e-06 | G144: 6.100968899e-06 | H144: 3.804931166e-06 | J144: 4.530633508e-06 | K144: 0.0003609722587 | L144: 1.707212688e-05 | M144: -0.002036063139 | N144: 8.865463197e-08
A145: 69.94185 | B145: ='DF raw data'!J150 -> -4.586007e-08 | C145: ='DF raw data'!K150 -> -5.687999e-06 | D145: ='DF raw data'!L150 -> -4.3356454e-06 | F145: -4.590996576e-08 | G145: -5.705477713e-06 | H145: -4.340362582e-06 | J145: 4.507671639e-06 | K145: 0.0003632267706 | L145: 1.42185322e-05 | M145: -0.00202895174 | N145: 8.876590822e-08
A146: 70.442 | B146: ='DF raw data'!J151 -> -3.3613685e-06 | C146: ='DF raw data'!K151 -> -4.960811e-07 | D146: ='DF raw data'!L151 -> -2.0913765e-06 | F146: -3.365025669e-06 | G146: -4.976055129e-07 | H146: -2.093651918e-06 | J146: 2.82465405e-06 | K146: 0.0003646395214 | L146: 1.39696548e-05 | M146: -0.002021964818 | N146: 8.886750365e-08
A147: 70.94215 | B147: ='DF raw data'!J152 -> -4.206202e-08 | C147: ='DF raw data'!K152 -> 7.9295847e-07 | D147: ='DF raw data'!L152 -> 3.8402609e-06 | F147: -4.210778348e-08 | G147: 7.953951606e-07 | H147: 3.844439104e-06 | J147: 2.803593842e-06 | K147: 0.0003660417388 | L147: 1.436747169e-05 | M147: -0.002014778927 | N147: 8.897467799e-08
A148: 71.4423 | B148: ='DF raw data'!J153 -> 3.9217925e-06 | C148: ='DF raw data'!K153 -> 2.1308465e-07 | D148: ='DF raw data'!L153 -> 2.4063586e-06 | F148: 3.92605941e-06 | G148: 2.137394401e-07 | H148: 2.408976718e-06 | J148: 4.767212456e-06 | K148: 0.0003684260601 | L148: 1.447437347e-05 | M148: -0.002007539569 | N148: 8.909082972e-08
A149: 71.94245 | B149: ='DF raw data'!J154 -> 3.6124186e-06 | C149: ='DF raw data'!K154 -> -1.4301258e-05 | D149: ='DF raw data'!L154 -> 1.1027545e-06 | F149: 3.616348911e-06 | G149: -1.434520449e-05 | H149: 1.103954297e-06 | J149: 6.575929364e-06 | K149: 0.0003717150112 | L149: 7.299619449e-06 | M149: -0.002003888664 | N149: 8.913910785e-08
A150: 72.4426 | B150: ='DF raw data'!J155 -> -2.2310339e-06 | C150: ='DF raw data'!K155 -> -7.1476925e-06 | D150: ='DF raw data'!L155 -> -2.856292e-07 | F150: -2.233461265e-06 | G150: -7.169656721e-06 | H150: -2.859399646e-07 | J150: 5.458863713e-06 | K150: 0.0003744452619 | L150: 3.71371564e-06 | M150: -0.002002031249 | N150: 8.916090982e-08
A151: 72.94275 | B151: ='DF raw data'!J156 -> -6.5126874e-06 | C151: ='DF raw data'!K156 -> -1.0825613e-05 | D151: ='DF raw data'!L156 -> 4.0605623e-06 | F151: =(1-$G$1*($B$2-$G$2))*B151 -> -6.519773204e-06 | G151: -1.085887914e-05 | H151: 4.064980192e-06 | J151: 2.197999145e-06 | K151: 0.0003755445912 | L151: -1.717352763e-06 | M151: -0.002002890183 | N151: 8.916480124e-08
A152: 73.4429 | B152: ='DF raw data'!J157 -> 6.7824323e-07 | C152: ='DF raw data'!K157 -> -1.5068998e-05 | D152: ='DF raw data'!L157 -> 9.9171839e-06 | F152: 6.789811586e-07 | G152: -1.511530369e-05 | H152: 9.927973796e-06 | J152: 2.537591571e-06 | K152: 0.0003768137676 | L152: -9.277271902e-06 | M152: -0.002007530211 | N152: 8.921106869e-08
A153: 73.94305 | B153: ='DF raw data'!J158 -> 7.1715554e-06 | C153: ='DF raw data'!K158 -> -1.5680353e-06 | D153: ='DF raw data'!L158 -> 5.063524e-06 | F153: 7.179358052e-06 | G153: -1.572853733e-06 | H153: 5.069033114e-06 | J153: 6.128347501e-06 | K153: 0.0003798788606 | L153: -1.00639347e-05 | M153: -0.002012563688 | N153: 8.928050923e-08
A154: 74.4432 | B154: ='DF raw data'!J159 -> 1.0530734e-05 | C154: ='DF raw data'!K159 -> 4.623262e-07 | D154: ='DF raw data'!L159 -> 4.724639e-06 | F154: 1.054219144e-05 | G154: 4.637468871e-07 | H154: 4.729779407e-06 | J154: 1.140102455e-05 | K154: 0.000385581083 | L154: -9.83199169e-06 | M154: -0.002017481158 | N154: 8.939386894e-08
A155: 74.94335 | B155: ='DF raw data'!J160 -> 1.8382801e-05 | C155: ='DF raw data'!K160 -> 3.3304777e-06 | D155: ='DF raw data'!L160 -> 9.680919e-06 | F155: 1.840280149e-05 | G155: 3.340711961e-06 | H155: 9.69145184e-06 | J155: 2.060518571e-05 | K155: 0.0003958867666 | L155: -8.161134603e-06 | M155: -0.00202156295 | N155: 8.963953151e-08
A156: 75.4435 | B156: ='DF raw data'!J161 -> 2.1948763e-05 | C156: ='DF raw data'!K161 -> 3.7989403e-06 | D156: ='DF raw data'!L161 -> 9.3659137e-06 | F156: 2.197264325e-05 | G156: 3.810614104e-06 | H156: 9.376103814e-06 | J156: 3.159480324e-05 | K156: 0.0004116889075 | L156: -6.255255959e-06 | M156: -0.002024691516 | N156: 9.015836702e-08
A157: 75.94365 | B157: ='DF raw data'!J162 -> 1.9197942e-05 | C157: ='DF raw data'!K162 -> -1.083417e-07 | D157: ='DF raw data'!L162 -> 8.7582694e-06 | F157: 1.921882936e-05 | G157: -1.086746244e-07 | H157: 8.767798397e-06 | J157: 4.120710074e-05 | K157: 0.0004322986389 | L157: -6.309609572e-06 | M157: -0.002027847267 | N157: 9.102754586e-08
A158: 76.4438 | B158: ='DF raw data'!J163 -> 1.2337907e-05 | C158: ='DF raw data'!K163 -> -7.8898147e-06 | D158: ='DF raw data'!L163 -> -2.0316351e-07 | F158: 1.235133064e-05 | G158: -7.914059396e-06 | H158: -2.033845519e-07 | J158: 4.738461876e-05 | K158: 0.000455998056 | L158: -1.026782638e-05 | M158: -0.002032982721 | N158: 9.220326365e-08
A159: 76.94395 | B159: ='DF raw data'!J164 -> 4.1142998e-06 | C159: ='DF raw data'!K164 -> -5.1612287e-06 | D159: ='DF raw data'!L164 -> -1.3839059e-06 | F159: 4.118776158e-06 | G159: -5.177088695e-06 | H159: -1.38541159e-06 | J159: 4.944462466e-05 | K159: 0.000480727785 | L159: -1.285714729e-05 | M159: -0.002039413223 | N159: 9.350869373e-08
A160: 77.4441 | B160: ='DF raw data'!J165 -> 2.1025992e-06 | C160: ='DF raw data'!K165 -> 4.8930424e-06 | D160: ='DF raw data'!L165 -> 8.6286263e-06 | F160: 2.104886828e-06 | G160: 4.908078283e-06 | H160: 8.638014245e-06 | J160: 5.049738381e-05 | K160: 0.0005059840515 | L160: -1.040237194e-05 | M160: -0.002044615969 | N160: 9.483819002e-08
A161: 77.94425 | B161: ='DF raw data'!J166 -> 4.1239769e-06 | C161: ='DF raw data'!K166 -> -3.8286917e-06 | D161: ='DF raw data'!L166 -> 5.2921346e-06 | F161: 4.128463787e-06 | G161: -3.840456928e-06 | H161: 5.297892442e-06 | J161: 5.256223497e-05 | K161: 0.0005322730534 | L161: -1.232317647e-05 | M161: -0.002050779406 | N161: 9.629595183e-08
A162: 78.4444 | B162: ='DF raw data'!J167 -> 3.4004117e-06 | C162: ='DF raw data'!K167 -> -7.3292858e-06 | D162: ='DF raw data'!L167 -> 3.7099483e-06 | F162: 3.404111348e-06 | G162: -7.351808041e-06 | H162: 3.713984724e-06 | J162: 5.426480126e-05 | K162: 0.0005594135937 | L162: -1.600018326e-05 | M162: -0.002058781897 | N162: 9.789676919e-08
A163: 78.94455 | B163: ='DF raw data'!J168 -> -5.4128003e-07 | C163: ='DF raw data'!K168 -> -1.5654996e-06 | D163: ='DF raw data'!L168 -> 5.3399958e-06 | F163: -5.418689427e-07 | G163: -1.570310241e-06 | H163: 5.345805715e-06 | J163: 5.399378551e-05 | K163: 0.0005864185855 | L163: -1.678557393e-05 | M163: -0.002067177202 | N163: 9.949579093e-08
A164: 79.4447 | B164: ='DF raw data'!J169 -> -2.9606815e-06 | C164: ='DF raw data'!K169 -> 2.9720914e-06 | D164: ='DF raw data'!L169 -> 3.1821066e-06 | F164: -2.963902721e-06 | G164: 2.981224372e-06 | H164: 3.185568732e-06 | J164: 5.251138956e-05 | K164: 0.000612682157 | L164: -1.529451456e-05 | M164: -0.002074826754 | N164: 1.009919237e-07
A165: 79.94485 | B165: ='DF raw data'!J170 -> -5.0309581e-07 | C165: ='DF raw data'!K170 -> 4.3467926e-06 | D165: ='DF raw data'!L170 -> -5.1537484e-07 | F165: -5.036431782e-07 | G165: 4.360149906e-06 | H165: -5.159355678e-07 | J165: 5.225949243e-05 | K165: 0.0006388197421 | L165: -1.311378558e-05 | M165: -0.002081385614 | N165: 1.024438722e-07
A166: 80.445 | B166: ='DF raw data'!J171 -> 1.856963e-06 | C166: ='DF raw data'!K171 -> 1.9934218e-07 | D166: ='DF raw data'!L171 -> -4.6112441e-06 | F166: 1.858983376e-06 | G166: 1.999547407e-07 | H166: -4.616261134e-06 | J166: 5.318926296e-05 | K166: 0.000665422352 | L166: -1.301377822e-05 | M166: -0.002087894455 | N166: 1.0394355e-07
A167: 80.94515 | B167: ='DF raw data'!J172 -> 4.1912649e-06 | C167: ='DF raw data'!K172 -> -2.8964359e-06 | D167: ='DF raw data'!L172 -> -6.0850766e-06 | F167: 4.195824996e-06 | G167: -2.905336389e-06 | H167: -6.091697163e-06 | J167: 5.528780483e-05 | K167: 0.0006930745476 | L167: -1.446688221e-05 | M167: -0.002095130066 | N167: 1.055770559e-07
A168: 81.4453 | B168: ='DF raw data'!J173 -> 1.1194155e-05 | C168: ='DF raw data'!K173 -> 3.3965234e-06 | D168: ='DF raw data'!L173 -> -7.1026193e-06 | F168: 1.120633424e-05 | G168: 3.406960613e-06 | H168: -7.11034695e-06 | J168: 6.08926529e-05 | K168: 0.000723530008 | L168: -1.276289086e-05 | M168: -0.002101513426 | N168: 1.075130398e-07
A169: 81.94545 | B169: ='DF raw data'!J174 -> 1.6414029e-05 | C169: ='DF raw data'!K174 -> -5.1840443e-06 | D169: ='DF raw data'!L174 -> 3.5923542e-06 | F169: 1.643188746e-05 | G169: -5.199974405e-06 | H169: 3.596262681e-06 | J169: 6.911106142e-05 | K169: 0.0007580959053 | L169: -1.536365806e-05 | M169: -0.002109197559 | N169: 1.100199821e-07
A170: 82.4456 | B170: ='DF raw data'!J175 -> 1.2625322e-05 | C170: ='DF raw data'!K175 -> -4.6247178e-06 | D170: ='DF raw data'!L175 -> 7.5877283e-06 | F170: 1.263905835e-05 | G170: -4.638929145e-06 | H170: 7.595983748e-06 | J170: 7.543248645e-05 | K170: 0.0007958234634 | L170: -1.768381847e-05 | M170: -0.002118042121 | N170: 1.130222712e-07
A171: 82.94575 | B171: ='DF raw data'!J176 -> 7.1067944e-07 | C171: ='DF raw data'!K176 -> -5.1110592e-06 | D171: ='DF raw data'!L176 -> 1.310745e-06 | F171: 7.114526592e-07 | G171: -5.126765029e-06 | H171: 1.312171091e-06 | J171: 7.57883195e-05 | K171: 0.0008337289914 | L171: -2.024797e-05 | M171: -0.002128169143 | N171: 1.161001191e-07
A172: 83.4459 | B172: ='DF raw data'!J177 -> -9.0542962e-06 | C172: ='DF raw data'!K177 -> 3.4442901e-06 | D172: ='DF raw data'!L177 -> 5.2160717e-06 | F172: -9.064147274e-06 | G172: 3.454874096e-06 | H172: 5.221746786e-06 | J172: 7.125488624e-05 | K172: 0.0008693671228 | L172: -1.852001472e-05 | M172: -0.002137431929 | N172: 1.18811057e-07
A173: 83.94605 | B173: ='DF raw data'!J178 -> -7.7196528e-06 | C173: ='DF raw data'!K178 -> 9.6825443e-06 | D173: ='DF raw data'!L178 -> -5.5555033e-06 | F173: -7.728051782e-06 | G173: 9.712297894e-06 | H173: -5.561547688e-06 | J173: 6.738970114e-05 | K173: 0.0009030720818 | L173: -1.366240893e-05 | M173: -0.002144265183 | N173: 1.211757829e-07
A174: 84.4462 | B174: ='DF raw data'!J179 -> -4.1034868e-06 | C174: ='DF raw data'!K179 -> 7.6347084e-07 | D174: ='DF raw data'!L179 -> -9.9189247e-06 | F174: -4.107951394e-06 | G174: 7.658169177e-07 | H174: -9.92971649e-06 | J174: 6.533510925e-05 | K174: 0.0009357494367 | L174: -1.32793856e-05 | M174: -0.002150906867 | N174: 1.233989589e-07
A175: 84.94635 | B175: ='DF raw data'!J180 -> -4.5213451e-06 | C175: ='DF raw data'!K180 -> 4.9354918e-07 | D175: ='DF raw data'!L180 -> -6.6875259e-06 | F175: -4.526264323e-06 | G175: 4.950658126e-07 | H175: -6.694801928e-06 | J175: 6.307129815e-05 | K175: 0.0009672945465 | L175: -1.303177844e-05 | M175: -0.002157424711 | N175: 1.25473489e-07
A176: 85.4465 | B176: ='DF raw data'!J181 -> -3.320817e-07 | C176: ='DF raw data'!K181 -> -7.3565052e-06 | D176: ='DF raw data'!L181 -> -3.2839496e-06 | F176: -3.324430049e-07 | G176: -7.379111084e-06 | H176: -3.287522537e-06 | J176: 6.290502678e-05 | K176: 0.0009987564956 | L176: -1.672244084e-05 | M176: -0.00216578844 | N176: 1.275924657e-07
A177: 85.94665 | B177: ='DF raw data'!J182 -> 5.0332387e-06 | C177: ='DF raw data'!K182 -> -6.6665534e-06 | D177: ='DF raw data'!L182 -> 3.8785906e-06 | F177: 5.038714864e-06 | G177: -6.687039124e-06 | H177: 3.882810507e-06 | J177: 6.542514002e-05 | K177: 0.001031478879 | L177: -2.006696346e-05 | M177: -0.002175824932 | N177: 1.299347342e-07
A178: 86.4468 | B178: ='DF raw data'!J183 -> 1.3044122e-06 | C178: ='DF raw data'!K183 -> 4.2030906e-06 | D178: ='DF raw data'!L183 -> -1.1935523e-06 | F178: 1.3058314e-06 | G178: 4.216006322e-06 | H178: -1.194850885e-06 | J178: 6.60782516e-05 | K178: 0.001064527917 | L178: -1.79583279e-05 | M178: -0.002184806789 | N178: 1.32279856e-07
A179: 86.94695 | B179: ='DF raw data'!J184 -> -3.9513757e-06 | C179: ='DF raw data'!K184 -> 6.294028e-06 | D179: ='DF raw data'!L184 -> -5.3376757e-06 | F179: -3.955674797e-06 | G179: 6.313368986e-06 | H179: -5.343483091e-06 | J179: 6.409982085e-05 | K179: 0.001096587442 | L179: -1.48006964e-05 | M179: -0.002192209358 | N179: 1.34444429e-07
A180: 87.4471 | B180: ='DF raw data'!J185 -> -1.3382593e-06 | C180: ='DF raw data'!K185 -> -1.0201972e-05 | D180: ='DF raw data'!L185 -> -5.5560417e-06 | F180: -1.339715326e-06 | G180: -1.023332175e-05 | H180: -5.562086673e-06 | J180: 6.342976223e-05 | K180: 0.001128311838 | L180: -1.991889227e-05 | M180: -0.002202171792 | N180: 1.366551405e-07
A181: 87.94725 | B181: ='DF raw data'!J186 -> 1.7901551e-06 | C181: ='DF raw data'!K186 -> -1.2525342e-05 | D181: ='DF raw data'!L186 -> -7.1575382e-06 | F181: 1.792102789e-06 | G181: -1.256383126e-05 | H181: -7.165325602e-06 | J181: 6.432608244e-05 | K181: 0.001160484528 | L181: -2.620269248e-05 | M181: -0.002215277068 | N181: 1.390680771e-07
A182: 88.4474 | B182: ='DF raw data'!J187 -> 3.1770107e-06 | C182: ='DF raw data'!K187 -> 4.1523881e-06 | D182: ='DF raw data'!L187 -> -9.7079158e-07 | F182: 3.180467288e-06 | G182: 4.165148018e-06 | H182: -9.718478012e-07 | J182: 6.591679315e-05 | K182: 0.001193452812 | L182: -2.41194937e-05 | M182: -0.002227340433 | N182: 1.415322029e-07
A183: 88.94755 | B183: ='DF raw data'!J188 -> 4.8090374e-06 | C183: ='DF raw data'!K188 -> -2.4982883e-06 | D183: ='DF raw data'!L188 -> -3.2527357e-06 | F183: 4.814269633e-06 | G183: -2.505965317e-06 | H183: -3.256274676e-06 | J183: 6.832465011e-05 | K183: 0.001227625386 | L183: -2.537285225e-05 | M183: -0.002240030665 | N183: 1.441890195e-07
A184: 89.4477 | B184: ='DF raw data'!J189 -> 5.1322936e-06 | C184: ='DF raw data'!K189 -> -8.2535362e-06 | D184: ='DF raw data'!L189 -> -9.3150202e-06 | F184: 5.137877535e-06 | G184: -8.27889858e-06 | H184: -9.325154942e-06 | J184: 7.089435956e-05 | K184: 0.0012630832 | L184: -2.951354337e-05 | M184: -0.002254791864 | N184: 1.471384338e-07
A185: 89.94785 | B185: ='DF raw data'!J190 -> 6.8033046e-06 | C185: ='DF raw data'!K190 -> 4.0521903e-07 | D185: ='DF raw data'!L190 -> -5.1425345e-06 | F185: 6.810706595e-06 | G185: 4.064642319e-07 | H185: -5.148129578e-06 | J185: 7.430073446e-05 | K185: 0.001300244712 | L185: -2.931025029e-05 | M185: -0.002269451386 | N185: 1.503292357e-07
A186: 90.448 | B186: ='DF raw data'!J191 -> 6.4686251e-06 | C186: ='DF raw data'!K191 -> 1.3222643e-06 | D186: ='DF raw data'!L191 -> -5.5467867e-06 | F186: 6.475662964e-06 | G186: 1.3263275e-06 | H186: -5.552821604e-06 | J186: 7.753953729e-05 | K186: 0.001339026112 | L186: -2.864688759e-05 | M186: -0.002283779126 | N186: 1.537467726e-07
A187: 90.94815 | B187: ='DF raw data'!J192 -> 9.8858727e-08 | C187: ='DF raw data'!K192 -> 7.0236074e-06 | D187: ='DF raw data'!L192 -> -7.708046e-07 | F187: 9.896628529e-08 | G187: 7.045190319e-06 | H187: -7.716432354e-07 | J187: 7.758903528e-05 | K187: 0.001377832268 | L187: -2.512323565e-05 | M187: -0.002296344513 | N187: 1.57073388e-07
A188: 91.4483 | B188: ='DF raw data'!J193 -> -3.8928333e-06 | C188: ='DF raw data'!K193 -> 2.3311068e-06 | D188: ='DF raw data'!L193 -> 1.6612133e-06 | F188: -3.897068703e-06 | G188: 2.338270083e-06 | H188: 1.6630207e-06 | J188: 7.563991637e-05 | K188: 0.001415663572 | L188: -2.395374987e-05 | M188: -0.002308324981 | N188: 1.602219218e-07
A189: 91.94845 | B189: ='DF raw data'!J194 -> -1.0758009e-06 | C189: ='DF raw data'!K194 -> -4.654873e-06 | D189: ='DF raw data'!L194 -> 1.6754597e-06 | F189: -1.076971371e-06 | G189: -4.669177009e-06 | H189: 1.6772826e-06 | J189: 7.510126914e-05 | K189: 0.001453225472 | L189: -2.628903875e-05 | M189: -0.002321473444 | N189: 1.633885286e-07
A190: 92.4486 | B190: ='DF raw data'!J195 -> 4.973896e-06 | C190: ='DF raw data'!K195 -> -1.5095929e-06 | D190: ='DF raw data'!L195 -> 5.1391939e-06 | F190: 4.979307599e-06 | G190: -1.514231744e-06 | H190: 5.144785343e-06 | J190: 7.759166983e-05 | K190: 0.001492032945 | L190: -2.704638176e-05 | M190: -0.002335000691 | N190: 1.667655284e-07
A191: 92.94875 | B191: ='DF raw data'!J196 -> 8.3755804e-06 | C191: ='DF raw data'!K196 -> 2.94047e-06 | D191: ='DF raw data'!L196 -> 6.4240844e-06 | F191: 8.384693031e-06 | G191: 2.949505802e-06 | H191: 6.431073804e-06 | J191: 8.178527405e-05 | K191: 0.00153293785 | L191: -2.557118643e-05 | M191: -0.00234779012 | N191: 1.704379881e-07
A192: 93.4489 | B192: ='DF raw data'!J197 -> 6.6665311e-06 | C192: ='DF raw data'!K197 -> -1.8414275e-06 | D192: ='DF raw data'!L197 -> -7.8916912e-07 | F192: 6.673784286e-06 | G192: -1.847086042e-06 | H192: -7.90027736e-07 | J192: 8.512316726e-05 | K192: 0.001575512202 | L192: -2.649500652e-05 | M192: -0.002361041598 | N192: 1.744131498e-07
A193: 93.94905 | B193: ='DF raw data'!J198 -> 2.5978882e-06 | C193: ='DF raw data'!K198 -> -1.064348e-06 | D193: ='DF raw data'!L198 -> -5.3373935e-07 | F193: 2.600714702e-06 | G193: -1.067618646e-06 | H193: -5.343200584e-07 | J193: 8.642391472e-05 | K193: 0.001618737123 | L193: -2.702897598e-05 | M193: -0.00237456014 | N193: 1.78514209e-07
A194: 94.4492 | B194: ='DF raw data'!J199 -> 6.620906e-07 | C194: ='DF raw data'!K199 -> 4.3521295e-06 | D194: ='DF raw data'!L199 -> -5.8964781e-07 | F194: 6.628109546e-07 | G194: 4.365503205e-06 | H194: -5.902893468e-07 | J194: 8.675541962e-05 | K194: 0.001662127846 | L194: -2.484556955e-05 | M194: -0.002386986652 | N194: 1.825873332e-07
A195: 94.94935 | B195: ='DF raw data'!J200 -> 2.5742559e-06 | C195: ='DF raw data'!K200 -> 1.014487e-05 | D195: ='DF raw data'!L200 -> -7.7559218e-07 | F195: 2.57705669e-06 | G195: 1.017604428e-05 | H195: -7.764360243e-07 | J195: 8.804433452e-05 | K195: 0.00170616322 | L195: -1.975602101e-05 | M195: -0.002396867626 | N195: 1.866596071e-07
A196: 95.4495 | B196: ='DF raw data'!J201 -> 4.6787395e-06 | C196: ='DF raw data'!K201 -> 4.568682e-06 | D196: ='DF raw data'!L201 -> 5.2486882e-07 | F196: 4.683829969e-06 | G196: 4.582721152e-06 | H196: 5.254398773e-07 | J196: 9.038695208e-05 | K196: 0.001751370254 | L196: -1.746397302e-05 | M196: -0.002405602232 | N196: 1.90898274e-07
A197: 95.94965 | B197: ='DF raw data'!J202 -> 1.7200003e-06 | C197: ='DF raw data'!K202 -> -5.8861378e-06 | D197: ='DF raw data'!L202 -> 5.7739194e-06 | F197: 1.72187166e-06 | G197: -5.904225376e-06 | H197: 5.780201424e-06 | J197: 9.124814619e-05 | K197: 0.001797008015 | L197: -2.041697134e-05 | M197: -0.00241581378 | N197: 1.95271124e-07
A198: 96.4498 | B198: ='DF raw data'!J203 -> -1.5140173e-06 | C198: ='DF raw data'!K203 -> -4.6756877e-06 | D198: ='DF raw data'!L203 -> 4.345678e-06 | F198: -1.515664551e-06 | G198: -4.690055671e-06 | H198: 4.350406098e-06 | J198: 9.049008657e-05 | K198: 0.001842266631 | L198: -2.276270269e-05 | M198: -0.002427198546 | N198: 1.996257282e-07
A199: 96.94995 | B199: ='DF raw data'!J204 -> 8.5878884e-07 | C199: ='DF raw data'!K204 -> -1.0631741e-05 | D199: ='DF raw data'!L204 -> 4.9623009e-06 | F199: 8.597232023e-07 | G199: =(1-$G$1*($B$2-$G$2))*C199*$M$2/$M$1 -> -1.066441139e-05 | H199: 4.967699883e-06 | J199: 9.092007713e-05 | K199: 0.001887740308 | L199: -2.809650805e-05 | M199: -0.002441251014 | N199: 2.041550236e-07
A200: =A199+$B$1 -> 97.4501 | B200: ='DF raw data'!J205 -> 6.5873687e-06 | C200: ='DF raw data'!K205 -> -3.5372859e-06 | D200: ='DF raw data'!L205 -> 6.3465518e-06 | F200: 6.594535757e-06 | G200: -3.548155664e-06 | H200: 6.353456848e-06 | J200: =F200*$B$1+J199 -> 9.421833419e-05 | K200: =J200*$B$1+K199 -> 0.001934863608 | L200: =G200*$B$1+L199 -> -2.98711181e-05 | M200: =L200*$B$1+M199 -> -0.002456191054 | N200: =(J200^2+L200^2)*$B$1+N199 -> 2.090411781e-07
A201: 97.95025 | B201: ='DF raw data'!J206 -> 6.1886026e-06 | C201: ='DF raw data'!K206 -> 3.7493103e-07 | D201: ='DF raw data'!L206 -> 3.2763448e-06 | F201: 6.1953358e-06 | G201: 3.760831596e-07 | H201: 3.279909463e-06 | J201: 9.731693139e-05 | K201: 0.001983536671 | L201: -2.968302011e-05 | M201: -0.002471037016 | N201: 2.142185643e-07
... 1002 more rows

Sheet 10 x=2
A1: dz | B1: ='DF raw data'!N7 -> 0.50013 | C1: mm | F1: T_coeff | G1: -0.0008 | H1: /degC | L1: Hallref | M1: ='PI vs gap'!B44 -> 0.50561 | N1: T | P1: IBy total | Q1: =L1203*1000 -> -6.207200737 | R1: muTm | X1: DF ref | Y1: 21
A2: Tref | B2: ='DF raw data'!N8 -> 21.38 | C2: degC | F2: Tcorr | G2: 20 | H2: degC | L2: NMRref | M2: ='PI vs gap'!B45 -> 0.5066125 | N2: T | P2: JBy total | Q2: =M1203 -> -2.464657086 | R2: muTm^2
A3: Encoder | B3: ='DF raw data'!N9 -> 17908792 | P3: PI total | Q3: =N1203 -> 711.4408336 | R3: T^2mm^3
A5: z [mm] | B5: Bx | C5: By | D5: Bz | F5: Bx_corr | G5: By_corr | H5: Bz_corr | J5: Ix | K5: Jx | L5: Iy | M5: Jy | N5: PI
A6: ='PI vs gap'!B53 -> 0.421 | B6: ='DF raw data'!M11 -> 1.1651982e-06 | C6: ='DF raw data'!N11 -> -7.4474206e-06 | D6: ='DF raw data'!O11 -> 5.0019057e-06 | F6: =(1-$G$1*($B$2-$G$2))*B6 -> 1.166484579e-06 | G6: =(1-$G$1*($B$2-$G$2))*C6*$M$2/$M$1 -> -7.470425254e-06 | H6: =(1-$G$1*($B$2-$G$2))*D6 -> 5.007427804e-06 | J6: =F6*$B$1 -> 5.833939324e-07 | K6: =J6*$B$1 -> 2.917728074e-07 | L6: =G6*$B$1 -> -3.736183782e-06 | M6: =L6*$B$1 -> -1.868577595e-06 | N6: =(J6^2+L6)^2*$B$1 -> 6.981348034e-12
A7: =A6+$B$1 -> 0.92113 | B7: ='DF raw data'!M12 -> 1.0550548e-06 | C7: ='DF raw data'!N12 -> -5.1490038e-06 | D7: ='DF raw data'!O12 -> 7.7905611e-07 | F7: =(1-$G$1*($B$2-$G$2))*B7 -> 1.05621958e-06 | G7: =(1-$G$1*($B$2-$G$2))*C7*$M$2/$M$1 -> -5.164908776e-06 | H7: 7.799161879e-07 | J7: =F7*$B$1+J6 -> 1.111641031e-06 | K7: =J7*$B$1+K6 -> 8.477378363e-07 | L7: =G7*$B$1+L6 -> -6.319309609e-06 | M7: =L7*$B$1+M6 -> -5.029053909e-06 | N7: =(J7^2+L7^2)*$B$1+N6 -> 2.757140991e-11
A8: =A7+$B$1 -> 1.42126 | B8: ='DF raw data'!M13 -> 1.2469654e-06 | C8: ='DF raw data'!N13 -> -1.2241593e-05 | D8: ='DF raw data'!O13 -> -1.0528088e-05 | F8: 1.24834205e-06 | G8: -1.227940658e-05 | H8: -1.053971101e-05 | J8: =F8*$B$1+J7 -> 1.735974341e-06 | K8: =J8*$B$1+K7 -> 1.715950683e-06 | L8: =G8*$B$1+L7 -> -1.246060922e-05 | M8: =L8*$B$1+M7 -> -1.12609784e-05 | N8: =(J8^2+L8^2)*$B$1+N7 -> 1.067321809e-10
A9: 1.92139 | B9: ='DF raw data'!M14 -> 1.0658814e-06 | C9: ='DF raw data'!N14 -> -8.1587204e-06 | D9: ='DF raw data'!O14 -> -1.5937601e-05 | F9: 1.067058133e-06 | G9: -8.183922218e-06 | H9: -1.595519611e-05 | J9: 2.269642125e-06 | K9: 2.851066799e-06 | L9: -1.655363424e-05 | M9: -1.953994749e-05 | N9: 2.463555145e-10
A10: 2.42152 | B10: ='DF raw data'!M15 -> 8.7810344e-07 | C10: ='DF raw data'!N15 -> -1.2792149e-06 | D10: ='DF raw data'!O15 -> -5.3347417e-06 | F10: 8.790728662e-07 | G10: -1.283166321e-06 | H10: -5.340631255e-06 | J10: 2.709292837e-06 | K10: 4.206065426e-06 | L10: -1.719538421e-05 | M10: -2.8139875e-05 | N10: 3.979056602e-10
A11: 2.92165 | B11: ='DF raw data'!M16 -> 1.0670019e-06 | C11: ='DF raw data'!N16 -> -5.1771563e-06 | D11: ='DF raw data'!O16 -> 2.551654e-06 | F11: 1.06817987e-06 | G11: -5.193148238e-06 | H11: 2.554471026e-06 | J11: 3.243521636e-06 | K11: 5.828247901e-06 | L11: -1.979263344e-05 | M11: -3.803876476e-05 | N11: 5.990923406e-10
A12: 3.42178 | B12: ='DF raw data'!M17 -> 1.0656777e-06 | C12: ='DF raw data'!N17 -> -4.296538e-06 | D12: ='DF raw data'!O17 -> 7.790125e-06 | F12: 1.066854208e-06 | G12: -4.309809759e-06 | H12: 7.798725298e-06 | J12: 3.777087431e-06 | K12: 7.717282638e-06 | L12: -2.194809859e-05 | M12: -4.901566731e-05 | N12: 8.471495294e-10
A13: 3.92191 | B13: ='DF raw data'!M18 -> 1.1580532e-06 | C13: ='DF raw data'!N18 -> -7.7635104e-06 | D13: ='DF raw data'!O18 -> 1.8220937e-06 | F13: 1.159331691e-06 | G13: -7.787491437e-06 | H13: 1.824105291e-06 | J13: 4.356903989e-06 | K13: 9.89630103e-06 | L13: -2.584285669e-05 | M13: -6.194045522e-05 | N13: 1.190656745e-09
A14: 4.42204 | B14: ='DF raw data'!M19 -> 1.2611099e-06 | C14: ='DF raw data'!N19 -> -1.1165635e-05 | D14: ='DF raw data'!O19 -> -2.4136195e-06 | F14: 1.262502165e-06 | G14: -1.1200125e-05 | H14: -2.416284136e-06 | J14: 4.988319197e-06 | K14: 1.239110911e-05 | L14: -3.14443752e-05 | M14: -7.766673059e-05 | N14: 1.697604547e-09
A15: 4.92217 | B15: ='DF raw data'!M20 -> 7.6036389e-07 | C15: ='DF raw data'!N20 -> 2.0041612e-06 | D15: ='DF raw data'!O20 -> -5.7409147e-06 | F15: 7.612033317e-07 | G15: 2.010351939e-06 | H15: -5.74725267e-06 | J15: 5.36901982e-06 | K15: 1.507631699e-05 | L15: -3.043893789e-05 | M15: -9.28901566e-05 | N15: 2.1754064e-09
A16: 5.4223 | B16: ='DF raw data'!M21 -> 6.0036558e-07 | C16: ='DF raw data'!N21 -> 5.9345243e-06 | D16: ='DF raw data'!O21 -> -7.9697447e-06 | F16: 6.010283836e-07 | G16: 5.952855704e-06 | H16: -7.978543298e-06 | J16: 5.669612145e-06 | K16: 1.791186011e-05 | L16: -2.746173617e-05 | M16: -0.0001066245947 | N16: 2.568654346e-09
A17: 5.92243 | B17: ='DF raw data'!M22 -> 4.3495399e-07 | C17: ='DF raw data'!N22 -> 9.6429985e-06 | D17: ='DF raw data'!O22 -> -1.2031344e-05 | F17: 4.354341792e-07 | G17: 9.672785168e-06 | H17: -1.20446266e-05 | J17: 5.887385841e-06 | K17: 2.08563184e-05 | L17: -2.262408612e-05 | M17: -0.0001179395789 | N17: 2.841980685e-09
A18: 6.42256 | B18: ='DF raw data'!M23 -> 6.7973173e-07 | C18: ='DF raw data'!N23 -> 4.0494656e-06 | D18: ='DF raw data'!O23 -> -5.1350021e-06 | F18: 6.804821538e-07 | G18: 4.061974166e-06 | H18: -5.140671142e-06 | J18: 6.227715381e-06 | K18: 2.397098569e-05 | L18: -2.059257098e-05 | M18: -0.0001282385414 | N18: 3.073460063e-09
A19: 6.92269 | B19: ='DF raw data'!M24 -> 7.7091403e-07 | C19: ='DF raw data'!N24 -> 2.9065291e-06 | D19: ='DF raw data'!O24 -> 2.7551043e-06 | F19: 7.717651191e-07 | G19: 2.915507201e-06 | H19: 2.758145935e-06 | J19: 6.61369827e-06 | K19: 2.72786946e-05 | L19: -1.913443836e-05 | M19: -0.0001378082481 | N19: 3.278447214e-09
A20: 7.42282 | B20: ='DF raw data'!M25 -> 9.7937027e-07 | C20: ='DF raw data'!N25 -> -2.4293581e-06 | D20: ='DF raw data'!O25 -> 4.6076361e-06 | F20: 9.804514948e-07 | G20: -2.436862247e-06 | H20: 4.61272293e-06 | J20: 7.104051476e-06 | K20: 3.083164387e-05 | L20: -2.035318628e-05 | M20: -0.0001479874871 | N20: 3.510867497e-09
A21: 7.92295 | B21: ='DF raw data'!M26 -> 4.8828673e-07 | C21: ='DF raw data'!N26 -> 1.0463309e-05 | D21: ='DF raw data'!O26 -> 1.8798503e-06 | F21: 4.888257985e-07 | G21: 1.049562956e-05 | H21: 1.881925655e-06 | J21: 7.348527922e-06 | K21: 3.450686314e-05 | L21: -1.510400707e-05 | M21: -0.0001555414542 | N21: 3.65197012e-09
A22: 8.42308 | B22: ='DF raw data'!M27 -> 1.7323778e-07 | C22: ='DF raw data'!N27 -> -2.549175e-06 | D22: ='DF raw data'!O27 -> 1.9428164e-06 | F22: 1.734290345e-07 | G22: -2.557049255e-06 | H22: 1.944961269e-06 | J22: 7.435264985e-06 | K22: 3.822546222e-05 | L22: -1.638286411e-05 | M22: -0.000163735016 | N22: 3.8138529e-09
A23: 8.92321 | B23: ='DF raw data'!M28 -> -4.2164056e-06 | C23: ='DF raw data'!N28 -> -4.4830681e-06 | D23: ='DF raw data'!O28 -> -7.725273e-07 | F23: =(1-$G$1*($B$2-$G$2))*B23 -> -4.221060512e-06 | G23: -4.496916039e-06 | H23: -7.733801701e-07 | J23: 5.324185992e-06 | K23: 4.088824736e-05 | L23: -1.863190673e-05 | M23: -0.0001730533915 | N23: 4.001649167e-09
A24: 9.42334 | B24: ='DF raw data'!M29 -> -9.648883e-06 | C24: ='DF raw data'!N29 -> -9.6166787e-06 | D24: ='DF raw data'!O29 -> -2.3345444e-06 | F24: -9.659535367e-06 | G24: -9.646384067e-06 | H24: -2.337121737e-06 | J24: 4.931625686e-07 | K24: 4.113489275e-05 | L24: -2.345635279e-05 | M24: -0.0001847846173 | N24: 4.276942572e-09
A25: 9.92347 | B25: ='DF raw data'!M30 -> -1.0030361e-05 | C25: ='DF raw data'!N30 -> -2.7144017e-07 | D25: ='DF raw data'!O30 -> -4.5906586e-06 | F25: -1.004143452e-05 | G25: -2.722786331e-07 | H25: -4.595726687e-06 | J25: -4.528860077e-06 | K25: 3.886987396e-05 | L25: -2.359252751e-05 | M25: -0.000196583948 | N25: 4.565576561e-09
A26: 10.4236 | B26: ='DF raw data'!M31 -> -9.0519488e-06 | C26: ='DF raw data'!N31 -> 2.6706298e-06 | D26: ='DF raw data'!O31 -> -1.20453e-06 | F26: -9.061942151e-06 | G26: 2.678879222e-06 | H26: -1.205859801e-06 | J26: -9.061009205e-06 | K26: 3.433819143e-05 | L26: -2.225273964e-05 | M26: -0.0002077132107 | N26: 4.854294763e-09
A27: 10.92373 | B27: ='DF raw data'!M32 -> -8.6911632e-06 | C27: ='DF raw data'!N32 -> 3.5892758e-06 | D27: ='DF raw data'!O32 -> -1.0051979e-06 | F27: -8.700758244e-06 | G27: 3.600362866e-06 | H27: -1.006307638e-06 | J27: -1.341251943e-05 | K27: 2.763018809e-05 | L27: -2.045209016e-05 | M27: -0.0002179419146 | N27: 5.153464362e-09
A28: 11.42386 | B28: ='DF raw data'!M33 -> -5.9846088e-06 | C28: ='DF raw data'!N33 -> -3.735076e-06 | D28: ='DF raw data'!O33 -> -7.2913349e-07 | F28: -5.991215808e-06 | G28: -3.746613435e-06 | H28: -7.299384534e-07 | J28: -1.640890619e-05 | K28: 1.942360183e-05 | L28: -2.232588394e-05 | M28: -0.0002291077589 | N28: 5.53741281e-09
A29: 11.92399 | B29: ='DF raw data'!M34 -> -3.3617688e-08 | C29: ='DF raw data'!N34 -> -9.0001561e-07 | D29: ='DF raw data'!O34 -> 6.0368234e-06 | F29: -3.365480193e-08 | G29: -9.027957064e-07 | H29: 6.043488053e-06 | J29: -1.642573796e-05 | K29: 1.120859751e-05 | L29: -2.277739916e-05 | M29: -0.0002404994195 | N29: 5.93182272e-09
A30: 12.42412 | B30: ='DF raw data'!M35 -> 2.5802847e-06 | C30: ='DF raw data'!N35 -> 7.3951519e-06 | D30: ='DF raw data'!O35 -> 7.9053325e-06 | F30: 2.583133334e-06 | G30: 7.417995099e-06 | H30: 7.914059987e-06 | J30: -1.513383549e-05 | K30: 3.639712363e-06 | L30: -1.906743727e-05 | M30: -0.0002500356169 | N30: 6.228199828e-09
A31: 12.92425 | B31: ='DF raw data'!M36 -> 2.0472917e-06 | C31: ='DF raw data'!N36 -> -2.9350463e-06 | D31: ='DF raw data'!O36 -> 2.1352946e-06 | F31: 2.04955191e-06 | G31: -2.944112489e-06 | H31: 2.137651965e-06 | J31: -1.410879309e-05 | K31: -3.416518326e-06 | L31: -2.053987625e-05 | M31: -0.0002603082252 | N31: 6.538752831e-09
A32: 13.42438 | B32: ='DF raw data'!M37 -> -1.1233087e-06 | C32: ='DF raw data'!N37 -> -6.5156978e-06 | D32: ='DF raw data'!O37 -> -3.4200445e-06 | F32: -1.124548833e-06 | G32: -6.535824416e-06 | H32: -3.423820229e-06 | J32: -1.46712137e-05 | K32: -1.075403243e-05 | L32: -2.380863811e-05 | M32: -0.0002722156394 | N32: 6.929902383e-09
A33: 13.92451 | B33: ='DF raw data'!M38 -> -2.2573104e-06 | C33: ='DF raw data'!N38 -> -5.3696926e-06 | D33: ='DF raw data'!O38 -> -6.633602e-06 | F33: -2.259802471e-06 | G33: -5.386279271e-06 | H33: -6.640925497e-06 | J33: -1.580140871e-05 | K33: -1.865679097e-05 | L33: -2.650247796e-05 | M33: -0.0002854703237 | N33: 7.406059079e-09
A34: 14.42464 | B34: ='DF raw data'!M39 -> 3.482809e-06 | C34: ='DF raw data'!N39 -> -5.1139118e-06 | D34: ='DF raw data'!O39 -> -7.4572113e-06 | F34: 3.486654021e-06 | G34: -5.129708379e-06 | H34: -7.465444061e-06 | J34: -1.405762843e-05 | K34: -2.568743268e-05 | L34: -2.906799901e-05 | M34: -0.0003000081021 | N34: 7.927477355e-09
A35: 14.92477 | B35: ='DF raw data'!M40 -> 7.3162346e-06 | C35: ='DF raw data'!N40 -> 2.2088375e-06 | D35: ='DF raw data'!O40 -> -1.2304877e-05 | F35: 7.324311723e-06 | G35: 2.215660472e-06 | H35: -1.231846158e-05 | J35: -1.039452041e-05 | K35: -3.088604418e-05 | L35: -2.795988074e-05 | M35: -0.0003139916772 | N35: 8.372493522e-09
A36: 15.4249 | B36: ='DF raw data'!M41 -> 3.6596875e-06 | C36: ='DF raw data'!N41 -> -1.0668888e-05 | D36: ='DF raw data'!O41 -> -1.193504e-05 | F36: 3.663727795e-06 | G36: -1.070184358e-05 | H36: -1.194821628e-05 | J36: -8.562180231e-06 | K36: -3.516824737e-05 | L36: -3.331219377e-05 | M36: -0.0003306521047 | N36: 8.964153906e-09
A37: 15.92503 | B37: ='DF raw data'!M42 -> -2.5233776e-06 | C37: ='DF raw data'!N42 -> -5.0269186e-06 | D37: ='DF raw data'!O42 -> -9.0529898e-07 | F37: -2.526163409e-06 | G37: -5.042446462e-06 | H37: -9.062984301e-07 | J37: -9.825590336e-06 | K37: -4.008231987e-05 | L37: -3.583407252e-05 | M37: -0.0003485737994 | N37: 9.654644876e-09
A38: 16.42516 | B38: ='DF raw data'!M43 -> -3.7976888e-06 | C38: ='DF raw data'!N43 -> 4.1630124e-06 | D38: ='DF raw data'!O43 -> 5.2731825e-06 | F38: -3.801881448e-06 | G38: 4.175871706e-06 | H38: 5.279004093e-06 | J38: -1.172702531e-05 | K38: -4.594735704e-05 | L38: -3.374559381e-05 | M38: -0.0003654509832 | N38: 1.029295491e-08
A39: 16.92529 | B39: ='DF raw data'!M44 -> 2.511134e-06 | C39: ='DF raw data'!N44 -> 3.7276391e-06 | D39: ='DF raw data'!O44 -> -2.1551775e-06 | F39: 2.513906292e-06 | G39: 3.739153563e-06 | H39: -2.157556816e-06 | J39: -1.046974535e-05 | K39: -5.118359078e-05 | L39: -3.187553093e-05 | M39: -0.0003813928925 | N39: 1.085593376e-08
A40: 17.42542 | B40: ='DF raw data'!M45 -> 6.4352616e-06 | C40: ='DF raw data'!N45 -> 6.2771655e-06 | D40: ='DF raw data'!O45 -> -5.7922975e-06 | F40: 6.442366129e-06 | G40: 6.296555303e-06 | H40: -5.798692196e-06 | J40: -7.247724779e-06 | K40: -5.480839537e-05 | L40: -2.872643473e-05 | M40: -0.0003957598443 | N40: 1.129491665e-08
A41: 17.92555 | B41: ='DF raw data'!M46 -> 5.0885255e-06 | C41: ='DF raw data'!N46 -> -6.8297863e-06 | D41: ='DF raw data'!O46 -> 4.1601938e-06 | F41: 5.094143232e-06 | G41: -6.850883117e-06 | H41: 4.164786654e-06 | J41: -4.699990925e-06 | K41: -5.715900183e-05 | L41: -3.21527669e-05 | M41: -0.0004118404076 | N41: 1.182299908e-08
A42: 18.42568 | B42: ='DF raw data'!M47 -> 1.2496908e-07 | C42: ='DF raw data'!N47 -> -3.568693e-06 | D42: ='DF raw data'!O47 -> 5.6916811e-06 | F42: 1.251070459e-07 | G42: -3.579716487e-06 | H42: 5.697964716e-06 | J42: -4.637421138e-06 | K42: -5.947831527e-05 | L42: -3.394309051e-05 | M42: -0.0004288163655 | N42: 1.240997119e-08
A43: 18.92581 | B43: ='DF raw data'!M48 -> -1.2433911e-06 | C43: ='DF raw data'!N48 -> 2.7494423e-07 | D43: ='DF raw data'!O48 -> -6.4158471e-06 | F43: -1.244763804e-06 | G43: 2.757935169e-07 | H43: -6.422930195e-06 | J43: -5.259964859e-06 | K43: -6.210898149e-05 | L43: -3.38051579e-05 | M43: -0.0004457233391 | N43: 1.299535132e-08
A44: 19.42594 | B44: ='DF raw data'!M49 -> 3.6201063e-06 | C44: ='DF raw data'!N49 -> 6.4493759e-07 | D44: ='DF raw data'!O49 -> -1.2810759e-05 | F44: 3.624102897e-06 | G44: 6.469297651e-07 | H44: -1.282490208e-05 | J44: -3.447442277e-06 | K44: -6.38331508e-05 | L44: -3.348160892e-05 | M44: -0.0004624684962 | N44: 1.356195009e-08
A45: 19.92607 | B45: ='DF raw data'!M50 -> 7.0103824e-06 | C45: ='DF raw data'!N50 -> -8.2586575e-06 | D45: ='DF raw data'!O50 -> -8.0258569e-06 | F45: 7.018121862e-06 | G45: -8.284168018e-06 | H45: -8.034717446e-06 | J45: 6.253101002e-08 | K45: -6.380187716e-05 | L45: -3.762476987e-05 | M45: -0.0004812857723 | N45: 1.426994773e-08
A46: 20.4262 | B46: ='DF raw data'!M51 -> 5.7044936e-06 | C46: ='DF raw data'!N51 -> 9.3141007e-06 | D46: ='DF raw data'!O51 -> -4.5577131e-06 | F46: 5.710791361e-06 | G46: 9.342871421e-06 | H46: -4.562744815e-06 | J46: 2.918669093e-06 | K46: -6.234216319e-05 | L46: -3.295211958e-05 | M46: -0.0004977661159 | N46: 1.48172704e-08
A47: 20.92633 | B47: ='DF raw data'!M52 -> 6.5359318e-06 | C47: ='DF raw data'!N52 -> -2.7757355e-06 | D47: ='DF raw data'!O52 -> -5.968725e-06 | F47: 6.543147469e-06 | G47: -2.784309587e-06 | H47: -5.975314472e-06 | J47: 6.191093437e-06 | K47: -5.924581163e-05 | L47: -3.434463634e-05 | M47: -0.0005149428989 | N47: 1.542637057e-08
A48: 21.42646 | B48: ='DF raw data'!M53 -> 9.8429564e-06 | C48: ='DF raw data'!N53 -> -1.1865193e-05 | D48: ='DF raw data'!O53 -> -4.876008e-07 | F48: 9.853823024e-06 | G48: -1.19018439e-05 | H48: -4.881391113e-07 | J48: 1.111928595e-05 | K48: -5.368472315e-05 | L48: -4.029710553e-05 | M48: -0.0005350966902 | N48: 1.630034536e-08
A49: 21.92659 | B49: ='DF raw data'!M54 -> 1.0640823e-05 | C49: ='DF raw data'!N54 -> 1.1655347e-05 | D49: ='DF raw data'!O54 -> 2.2207435e-06 | F49: 1.065257047e-05 | G49: 1.16913497e-05 | H49: 2.223195201e-06 | J49: 1.644695601e-05 | K49: -4.545910704e-05 | L49: -3.44499108e-05 | M49: -0.0005523261241 | N49: 1.702918417e-08
A50: 22.42672 | B50: ='DF raw data'!M55 -> 6.9462376e-06 | C50: ='DF raw data'!N55 -> 5.2946075e-06 | D50: ='DF raw data'!O55 -> 2.8205297e-06 | F50: 6.953906246e-06 | G50: 5.310962238e-06 | H50: 2.823643565e-06 | J50: 1.992481315e-05 | K50: -3.549411024e-05 | L50: -3.179373926e-05 | M50: -0.0005682271269 | N50: 1.773328721e-08
A51: 22.92685 | B51: ='DF raw data'!M56 -> 5.5916871e-06 | C51: ='DF raw data'!N56 -> 1.5238223e-06 | D51: ='DF raw data'!O56 -> 7.0617584e-06 | F51: 5.597860323e-06 | G51: 1.528529299e-06 | H51: 7.069554581e-06 | J51: 2.272447103e-05 | K51: -2.412892054e-05 | L51: -3.10292759e-05 | M51: -0.0005837457987 | N51: 1.847308828e-08
A52: 23.42698 | B52: ='DF raw data'!M57 -> 9.1964876e-06 | C52: ='DF raw data'!N57 -> 2.7246665e-06 | D52: ='DF raw data'!O57 -> 5.4737079e-06 | F52: 9.206640522e-06 | G52: 2.733082838e-06 | H52: 5.479750874e-06 | J52: 2.732898815e-05 | K52: -1.04608737e-05 | L52: -2.966237918e-05 | M52: -0.0005985808444 | N52: 1.928666492e-08
A53: 23.92711 | B53: ='DF raw data'!M58 -> 1.0977496e-05 | C53: ='DF raw data'!N58 -> 2.3780235e-06 | D53: ='DF raw data'!O58 -> 1.5765738e-06 | F53: 1.098961516e-05 | G53: 2.385369078e-06 | H53: 1.578314337e-06 | J53: 3.282522438e-05 | K53: 5.956005771e-06 | L53: -2.846938454e-05 | M53: -0.0006128192377 | N53: 2.023091096e-08
A54: 24.42724 | B54: ='DF raw data'!M59 -> 8.1472654e-06 | C54: ='DF raw data'!N59 -> 3.3277579e-06 | D54: ='DF raw data'!O59 -> -5.9295667e-07 | F54: 8.156259981e-06 | G54: 3.338037153e-06 | H54: -5.936112942e-07 | J54: 3.690441468e-05 | K54: 2.441301069e-05 | L54: -2.679993202e-05 | M54: -0.0006262226877 | N54: 2.127126748e-08
A55: 24.92737 | B55: ='DF raw data'!M60 -> 1.118603e-06 | C55: ='DF raw data'!N60 -> 6.1207888e-06 | D55: ='DF raw data'!O60 -> -1.2146436e-06 | F55: 1.119837938e-06 | G55: 6.139695564e-06 | H55: -1.215984567e-06 | J55: 3.746447923e-05 | K55: 4.315012069e-05 | L55: -2.372928608e-05 | M55: -0.0006380904155 | N55: 2.225485625e-08
A56: 25.4275 | B56: ='DF raw data'!M61 -> -4.3093924e-06 | C56: ='DF raw data'!N61 -> -7.2543512e-06 | D56: ='DF raw data'!O61 -> -1.4033819e-06 | F56: -4.314149969e-06 | G56: -7.276759473e-06 | H56: -1.404931234e-06 | J56: 3.530684341e-05 | K56: 6.080813228e-05 | L56: -2.736861179e-05 | M56: -0.0006517782794 | N56: 2.325292274e-08
A57: 25.92763 | B57: ='DF raw data'!M62 -> -3.5412404e-06 | C57: ='DF raw data'!N62 -> -1.7271301e-06 | D57: ='DF raw data'!O62 -> 4.2839288e-06 | F57: -3.545149929e-06 | G57: -1.732465106e-06 | H57: 4.288658257e-06 | J57: 3.353380757e-05 | K57: 7.757939546e-05 | L57: -2.823506957e-05 | M57: -0.0006658994847 | N57: 2.421404026e-08
A58: 26.42776 | B58: ='DF raw data'!M63 -> 3.8595769e-07 | C58: ='DF raw data'!N63 -> 8.2001179e-06 | D58: ='DF raw data'!O63 -> 1.4759473e-06 | F58: 3.863837873e-07 | G58: 8.225447592e-06 | H58: 1.477576746e-06 | J58: 3.37270497e-05 | K58: 9.444730483e-05 | L58: -2.412127646e-05 | M58: -0.0006779632587 | N58: 2.507393871e-08
A59: 26.92789 | B59: ='DF raw data'!M64 -> 5.3325612e-06 | C59: ='DF raw data'!N64 -> -5.4332045e-06 | D59: ='DF raw data'!O64 -> -5.8177925e-06 | F59: 5.338448348e-06 | G59: -5.449987356e-06 | H59: -5.824215343e-06 | J59: 3.639696787e-05 | K59: 0.0001126505204 | L59: -2.684697864e-05 | M59: -0.0006913902381 | N59: 2.609695439e-08
A60: 27.42802 | B60: ='DF raw data'!M65 -> 6.6267066e-06 | C60: ='DF raw data'!N65 -> -2.1837182e-06 | D60: ='DF raw data'!O65 -> -7.7306859e-06 | F60: 6.634022484e-06 | G60: -2.19046358e-06 | H60: -7.739220577e-06 | J60: 3.971484153e-05 | K60: 0.0001325131041 | L60: -2.794249519e-05 | M60: -0.0007053651182 | N60: 2.727628677e-08
A61: 27.92815 | B61: ='DF raw data'!M66 -> 3.7237014e-06 | C61: ='DF raw data'!N66 -> -9.6704516e-06 | D61: ='DF raw data'!O66 -> 2.6065002e-06 | F61: 3.727812366e-06 | G61: -9.700323069e-06 | H61: 2.609377776e-06 | J61: 4.157923233e-05 | K61: 0.0001533081255 | L61: -3.279391777e-05 | M61: -0.0007217663403 | N61: 2.867878813e-08
A62: 28.42828 | B62: ='DF raw data'!M67 -> 9.0447151e-07 | C62: ='DF raw data'!N67 -> -8.1455109e-06 | D62: ='DF raw data'!O67 -> 1.1150832e-05 | F62: 9.054700465e-07 | G62: -8.170671915e-06 | H62: 1.116314252e-05 | J62: 4.203208507e-05 | K62: 0.0001743296322 | L62: -3.688031591e-05 | M62: -0.0007402112927 | N62: 3.024262156e-08
A63: 28.92841 | B63: ='DF raw data'!M68 -> -2.2044973e-07 | C63: ='DF raw data'!N68 -> -9.1534221e-06 | D63: ='DF raw data'!O68 -> 2.7648978e-06 | F63: -2.206931065e-07 | G63: -9.181696494e-06 | H63: 2.767950247e-06 | J63: 4.192170982e-05 | K63: 0.000195295937 | L63: -4.147235778e-05 | M63: -0.000760952863 | N63: 3.198176673e-08
A64: 29.42854 | B64: ='DF raw data'!M69 -> 9.9792396e-07 | C64: ='DF raw data'!N69 -> 6.0702191e-06 | D64: ='DF raw data'!O69 -> -8.7608014e-06 | F64: 9.990256681e-07 | G64: 6.088969658e-06 | H64: -8.770473325e-06 | J64: 4.242135253e-05 | K64: 0.000216512128 | L64: -3.842708138e-05 | M64: -0.0007801713992 | N64: 3.36202985e-08
A65: 29.92867 | B65: ='DF raw data'!M70 -> 3.4659142e-06 | C65: ='DF raw data'!N70 -> -2.6499124e-06 | D65: ='DF raw data'!O70 -> -5.2766359e-06 | F65: 3.469740569e-06 | G65: -2.658097827e-06 | H65: -5.282461306e-06 | J65: 4.415667388e-05 | K65: 0.0002385962053 | L65: -3.975647585e-05 | M65: -0.0008000548055 | N65: 3.538595206e-08
A66: 30.4288 | B66: ='DF raw data'!M71 -> 1.6748977e-07 | C66: ='DF raw data'!N71 -> -3.9791134e-06 | D66: ='DF raw data'!O71 -> 6.9232669e-07 | F66: 1.676746787e-07 | G66: -3.991404652e-06 | H66: 6.930910187e-07 | J66: 4.424053302e-05 | K66: 0.0002607222231 | L66: -4.175269706e-05 | M66: -0.0008209365819 | N66: 3.723668937e-08
A67: 30.92893 | B67: ='DF raw data'!M72 -> -6.5932281e-06 | C67: ='DF raw data'!N72 -> -3.2915646e-06 | D67: ='DF raw data'!O72 -> -1.0342144e-06 | F67: -6.600507024e-06 | G67: -3.301732054e-06 | H67: -1.035356173e-06 | J67: 4.093942144e-05 | K67: 0.0002811972559 | L67: -4.340399231e-05 | M67: -0.0008426442206 | N67: 3.901712355e-08
A68: 31.42906 | B68: ='DF raw data'!M73 -> -1.013822e-05 | C68: ='DF raw data'!N73 -> 1.4475012e-06 | D68: ='DF raw data'!O73 -> -5.7210223e-06 | F68: -1.014941259e-05 | G68: 1.451972448e-06 | H68: -5.727338309e-06 | J68: 3.586339572e-05 | K68: 0.000299133616 | L68: -4.267781733e-05 | M68: -0.0008639886773 | N68: 4.057131716e-08
A69: 31.92919 | B69: ='DF raw data'!M74 -> -9.6049653e-06 | C69: ='DF raw data'!N74 -> -4.8141023e-06 | D69: ='DF raw data'!O74 -> 3.8551857e-06 | F69: -9.615569182e-06 | G69: -4.828972785e-06 | H69: 3.859441825e-06 | J69: 3.105436111e-05 | K69: 0.0003146648337 | L69: -4.509293149e-05 | M69: -0.0008865410052 | N69: 4.207057977e-08
A70: 32.42932 | B70: ='DF raw data'!M75 -> -2.9553075e-06 | C70: ='DF raw data'!N75 -> -1.0988979e-05 | D70: ='DF raw data'!O75 -> 1.2436391e-05 | F70: -2.958570159e-06 | G70: -1.102292332e-05 | H70: 1.245012078e-05 | J70: 2.957469141e-05 | K70: 0.0003294560241 | L70: -5.060582613e-05 | M70: -0.000911850497 | N70: 4.37888324e-08
A71: 32.92945 | B71: ='DF raw data'!M76 -> 3.7248262e-07 | C71: ='DF raw data'!N76 -> -7.8244866e-06 | D71: ='DF raw data'!O76 -> 4.2847873e-06 | F71: 3.728938408e-07 | G71: =(1-$G$1*($B$2-$G$2))*C71*$M$2/$M$1 -> -7.848655989e-06 | H71: 4.289517705e-06 | J71: 2.976118681e-05 | K71: 0.0003443404864 | L71: -5.453117445e-05 | M71: -0.0009391231733 | N71: 4.571902274e-08
A72: =A71+$B$1 -> 33.42958 | B72: ='DF raw data'!M77 -> -1.5881551e-06 | C72: ='DF raw data'!N77 -> 3.1240147e-06 | D72: ='DF raw data'!O77 -> 7.5629691e-07 | F72: -1.589908423e-06 | G72: 3.133664602e-06 | H72: 7.571318618e-07 | J72: =F72*$B$1+J71 -> 2.896602591e-05 | K72: =J72*$B$1+K71 -> 0.000358827265 | L72: =G72*$B$1+L71 -> -5.296393477e-05 | M72: =L72*$B$1+M71 -> -0.000965612026 | N72: =(J72^2+L72^2)*$B$1+N71 -> 4.754160101e-08
A73: 33.92971 | B73: ='DF raw data'!M78 -> -2.6051114e-07 | C73: ='DF raw data'!N78 -> 7.1405725e-06 | D73: ='DF raw data'!O78 -> 4.000224e-07 | F73: -2.607987443e-07 | G73: 7.162629318e-06 | H73: 4.004640247e-07 | J73: 2.883559263e-05 | K73: 0.0003732488099 | L73: -4.938168897e-05 | M73: -0.0009903092901 | N73: 4.917704742e-08
A74: 34.42984 | B74: ='DF raw data'!M79 -> 1.76708e-06 | C74: ='DF raw data'!N79 -> -1.1927239e-05 | D74: ='DF raw data'!O79 -> 1.3517467e-06 | F74: 1.769030856e-06 | G74: -1.196408156e-05 | H74: 1.353239028e-06 | J74: 2.972033804e-05 | K74: 0.0003881128426 | L74: -5.536528508e-05 | M74: -0.00101799913 | N74: 5.115186738e-08
A75: 34.92997 | B75: ='DF raw data'!M80 -> -1.4420393e-06 | C75: ='DF raw data'!N80 -> -1.4025023e-06 | D75: ='DF raw data'!O80 -> 1.0405366e-05 | F75: -1.443631311e-06 | G75: -1.406834549e-06 | H75: 1.041685352e-05 | J75: 2.899833471e-05 | K75: 0.0004026157797 | L75: -5.606888524e-05 | M75: -0.001046040862 | N75: 5.314469703e-08
A76: 35.4301 | B76: ='DF raw data'!M81 -> -5.4013535e-06 | C76: ='DF raw data'!N81 -> 8.4341491e-06 | D76: ='DF raw data'!O81 -> 7.02842e-06 | F76: -5.407316594e-06 | G76: 8.460201701e-06 | H76: 7.036179376e-06 | J76: 2.629397346e-05 | K76: 0.0004157661847 | L76: -5.183768457e-05 | M76: -0.001071966443 | N76: 5.483439553e-08
A77: 35.93023 | B77: ='DF raw data'!M82 -> -5.6047311e-06 | C77: ='DF raw data'!N82 -> 7.4094282e-06 | D77: ='DF raw data'!O82 -> 1.3763104e-06 | F77: -5.610918723e-06 | G77: 7.432315497e-06 | H77: 1.377829847e-06 | J77: 2.348778468e-05 | K77: 0.0004275131304 | L77: -4.812056062e-05 | M77: -0.001096032979 | N77: 5.626840047e-08
A78: 36.43036 | B78: ='DF raw data'!M83 -> -3.3990682e-06 | C78: ='DF raw data'!N83 -> 9.1483844e-06 | D78: ='DF raw data'!O83 -> -3.9430887e-08 | F78: -3.402820771e-06 | G78: 9.176643233e-06 | H78: -3.94744187e-08 | J78: 2.178593193e-05 | K78: 0.0004384089286 | L78: -4.353104604e-05 | M78: -0.001117804161 | N78: 5.745349791e-08
A79: 36.93049 | B79: ='DF raw data'!M84 -> 6.6296792e-07 | C79: ='DF raw data'!N84 -> -4.145098e-06 | D79: ='DF raw data'!O84 -> -4.1032858e-06 | F79: 6.636998366e-07 | G79: -4.157901969e-06 | H79: -4.107815828e-06 | J79: 2.211786813e-05 | K79: 0.0004494707379 | L79: -4.561053755e-05 | M79: -0.001140615359 | N79: 5.873859256e-08
A80: 37.43062 | B80: ='DF raw data'!M85 -> 1.6486711e-06 | C80: ='DF raw data'!N85 -> 9.9923109e-06 | D80: ='DF raw data'!O85 -> -4.0701366e-06 | F80: 1.650491233e-06 | G80: 1.002317657e-05 | H80: -4.074630031e-06 | J80: 2.294332831e-05 | K80: 0.0004609453847 | L80: -4.059764625e-05 | M80: -0.00116091946 | N80: 5.982615785e-08
A81: 37.93075 | B81: ='DF raw data'!M86 -> -5.1121157e-07 | C81: ='DF raw data'!N86 -> 1.233676e-05 | D81: ='DF raw data'!O86 -> 5.1154543e-06 | F81: -5.117759476e-07 | G81: 1.237486754e-05 | H81: 5.121101762e-06 | J81: 2.26873738e-05 | K81: 0.000472292021 | L81: -3.440860375e-05 | M81: -0.001178128235 | N81: 6.067571315e-08
A82: 38.43088 | B82: ='DF raw data'!M87 -> -2.3636412e-06 | C82: ='DF raw data'!N87 -> 6.4508881e-06 | D82: ='DF raw data'!O87 -> 9.1233278e-06 | F82: -2.36625066e-06 | G82: 6.470814522e-06 | H82: 9.133399954e-06 | J82: 2.150394086e-05 | K82: 0.0004830467869 | L82: -3.117235528e-05 | M82: -0.001193718465 | N82: 6.139296719e-08
A83: 38.93101 | B83: ='DF raw data'!M88 -> -2.7416563e-06 | C83: ='DF raw data'!N88 -> 1.6671223e-06 | D83: ='DF raw data'!O88 -> 3.911749e-06 | F83: -2.744683089e-06 | G83: 1.672271945e-06 | H83: 3.916067571e-06 | J83: 2.013124251e-05 | K83: 0.0004931150252 | L83: -3.033600191e-05 | M83: -0.00120889041 | N83: 6.205590948e-08
